Workbook

Sheet 5 YR Budget
D1: =D3*0.135 -> 15.525
B2: SUMMARY | D2: Add staff FTE for Board approval
B3: Total Enrollment | D3: =+'Enrollment and Demographics'!D19 -> 115 | E3: =+'Enrollment and Demographics'!E19 -> 160 | F3: =+'Enrollment and Demographics'!F19 -> 201 | G3: =+'Enrollment and Demographics'!G19 -> 237 | H3: =+'Enrollment and Demographics'!H19 -> 262 | I3: =+'Enrollment and Demographics'!I19 -> 270 | J3: =+'Enrollment and Demographics'!J19 -> 292 | U3: =H5/365*60 -> 695493.9408
B4: Total Revenue | D4: =D55 -> 2191423.163 | E4: 2583722.75 | F4: 2968829.294 | G4: 4653351.358 | H4: 4948035.675 | I4: 5420496.857 | J4: 1181356.57
B5: Total Expenses | D5: =D152 -> 2195543.121 | E5: =E152 -> 2673823.936 | F5: 3107318.973 | G5: 3787659.358 | H5: 4230921.473 | I5: 4343082.753 | J5: 4221977.566
B6: Net Income | D6: =D4-D5 -> -4119.957923 | E6: -90101.18586 | F6: -138489.6791 | G6: 865692 | H6: 717114.2018 | I6: 1077414.103 | J6: -3040620.996
B7: Revenue Per Pupil | D7: =D4/D3 -> 19055.85359 | E7: 16148.26719 | F7: 14770.29499 | G7: 19634.39392 | H7: 18885.63235 | I7: 20075.91428 | J7: 4045.741677
B8: General Apportionment Per Pupil | D8: =+D22/'Enrollment and Demographics'!D19 -> 11244.69383 | E8: =+E22/'Enrollment and Demographics'!E19 -> 10818.88297 | F8: =+F22/'Enrollment and Demographics'!F19 -> 10207.34712 | G8: =+G22/'Enrollment and Demographics'!G19 -> 16159.48566 | H8: =+H22/'Enrollment and Demographics'!H19 -> 15393.81514 | I8: =+I22/'Enrollment and Demographics'!I19 -> 15656.27763 | J8: =+J22/'Enrollment and Demographics'!J19 -> 
B9: Expenses Per Pupil | D9: =IFERROR(IF(D5>0,D5/VLOOKUP("Total Enrollment",X_Enrollment,2,FALSE),0),0) -> 19091.67931 | E9: =IFERROR(IF(E5>0,E5/VLOOKUP("Total Enrollment",X_Enrollment,3,FALSE),0),0) -> 16711.3996 | F9: =IFERROR(IF(F5>0,F5/VLOOKUP("Total Enrollment",X_Enrollment,4,FALSE),0),0) -> 15459.29837 | G9: =IFERROR(IF(G5>0,G5/VLOOKUP("Total Enrollment",X_Enrollment,5,FALSE),0),0) -> 15981.68506 | H9: =IFERROR(IF(H5>0,H5/VLOOKUP("Total Enrollment",X_Enrollment,6,FALSE),0),0) -> 16148.55524 | I9: =IFERROR(IF(I5>0,I5/VLOOKUP("Total Enrollment",X_Enrollment,6,FALSE),0),0) -> 16576.65173 | J9: =IFERROR(IF(J5>0,J5/VLOOKUP("Total Enrollment",X_Enrollment,6,FALSE),0),0) -> 16114.41819 | U9: 1803645
U10: =U9-D5+D150 -> -333065.3562
D11: YEAR 1 | E11: YEAR 2 | F11: YEAR 3 | G11: YEAR 4 | H11: YEAR 5 | I11: YEAR 6 | J11: YEAR 7
D12: =+'Enrollment and Demographics'!D2 -> 2022-23 | E12: =+'Enrollment and Demographics'!E2 -> 2023-24 | F12: =+'Enrollment and Demographics'!F2 -> 2024-25 | G12: =+'Enrollment and Demographics'!G2 -> 2025-26 | H12: =+'Enrollment and Demographics'!H2 -> 2026-27 | I12: =+'Enrollment and Demographics'!I2 -> 2027-28 | J12: =+'Enrollment and Demographics'!J2 -> 2028-29 | L12: Description of Assumptions
B13: 2021-22 Budget Detail
B14: REVENUES
B15: 2000 - LOCAL SUPPORT - NON-TAX
B16: 2200 - Sale Of Goods, Supplies, & Services | D16: =INDEX(Expense_Assump,MATCH('5 YR Budget'!$B16,Assumptions!$C:$C,0),MATCH('5 YR Budget'!D$12,Assumptions!$C$2:$I$2,0))*INDEX(X_Enrollment,MATCH("Total Enrollment",'Enrollment and Demographics'!$C$2:$C$47,0),MATCH(D$12,'Enrollment and Demographics'!$C$2:$M$2,0)) -> 0 | E16: =INDEX(Expense_Assump,MATCH('5 YR Budget'!$B16,Assumptions!$C:$C,0),MATCH('5 YR Budget'!E$12,Assumptions!$C$2:$I$2,0))*INDEX(X_Enrollment,MATCH("Total Enrollment",'Enrollment and Demographics'!$C$2:$C$47,0),MATCH(E$12,'Enrollment and Demographics'!$C$2:$M$2,0)) -> 0 | F16: =INDEX(Expense_Assump,MATCH('5 YR Budget'!$B16,Assumptions!$C:$C,0),MATCH('5 YR Budget'!F$12,Assumptions!$C$2:$I$2,0))*INDEX(X_Enrollment,MATCH("Total Enrollment",'Enrollment and Demographics'!$C$2:$C$47,0),MATCH(F$12,'Enrollment and Demographics'!$C$2:$M$2,0)) -> 0 | G16: =INDEX(Expense_Assump,MATCH('5 YR Budget'!$B16,Assumptions!$C:$C,0),MATCH('5 YR Budget'!G$12,Assumptions!$C$2:$I$2,0))*INDEX(X_Enrollment,MATCH("Total Enrollment",'Enrollment and Demographics'!$C$2:$C$47,0),MATCH(G$12,'Enrollment and Demographics'!$C$2:$M$2,0)) -> 0 | H16: =INDEX(Expense_Assump,MATCH('5 YR Budget'!$B16,Assumptions!$C:$C,0),MATCH('5 YR Budget'!H$12,Assumptions!$C$2:$I$2,0))*INDEX(X_Enrollment,MATCH("Total Enrollment",'Enrollment and Demographics'!$C$2:$C$47,0),MATCH(H$12,'Enrollment and Demographics'!$C$2:$M$2,0)) -> 0 | I16: =INDEX(Expense_Assump,MATCH('5 YR Budget'!$B16,Assumptions!$C:$C,0),MATCH('5 YR Budget'!I$12,Assumptions!$C$2:$K$2,0))*INDEX(X_Enrollment,MATCH("Total Enrollment",'Enrollment and Demographics'!$C$2:$C$47,0),MATCH(I$12,'Enrollment and Demographics'!$C$2:$M$2,0)) -> 0 | J16: =INDEX(Expense_Assump,MATCH('5 YR Budget'!$B16,Assumptions!$C:$C,0),MATCH('5 YR Budget'!J$12,Assumptions!$C$2:$K$2,0))*INDEX(X_Enrollment,MATCH("Total Enrollment",'Enrollment and Demographics'!$C$2:$C$47,0),MATCH(J$12,'Enrollment and Demographics'!$C$2:$M$2,0)) -> 0 | L16: Misc school feels & sales
B17: 2500 - Gifts Grants, and Donations (Local) | D17: =INDEX(Expense_Assump,MATCH('5 YR Budget'!$B17,Assumptions!$C:$C,0),MATCH('5 YR Budget'!D$12,Assumptions!$C$2:$I$2,0)) -> 25000 | E17: =INDEX(Expense_Assump,MATCH('5 YR Budget'!$B17,Assumptions!$C:$C,0),MATCH('5 YR Budget'!E$12,Assumptions!$C$2:$I$2,0)) -> 25000 | F17: =INDEX(Expense_Assump,MATCH('5 YR Budget'!$B17,Assumptions!$C:$C,0),MATCH('5 YR Budget'!F$12,Assumptions!$C$2:$I$2,0)) -> 25000 | G17: =INDEX(Expense_Assump,MATCH('5 YR Budget'!$B17,Assumptions!$C:$C,0),MATCH('5 YR Budget'!G$12,Assumptions!$C$2:$I$2,0)) -> 25000 | H17: =INDEX(Expense_Assump,MATCH('5 YR Budget'!$B17,Assumptions!$C:$C,0),MATCH('5 YR Budget'!H$12,Assumptions!$C$2:$I$2,0)) -> 25000 | I17: =+Assumptions!J6 -> 25000 | J17: =+Assumptions!K6 -> 25000 | L17: Local donations
B18: 2298 - Local lunch sales | D18: =INDEX(Expense_Assump,MATCH('5 YR Budget'!$B18,Assumptions!$C:$C,0),MATCH('5 YR Budget'!D$12,Assumptions!$C$2:$I$2,0))*INDEX(X_Enrollment,MATCH("Total Enrollment",'Enrollment and Demographics'!$C$2:$C$47,0),MATCH(D$12,'Enrollment and Demographics'!$C$2:$M$2,0)) -> 0 | E18: =INDEX(Expense_Assump,MATCH('5 YR Budget'!$B18,Assumptions!$C:$C,0),MATCH('5 YR Budget'!E$12,Assumptions!$C$2:$I$2,0))*INDEX(X_Enrollment,MATCH("Total Enrollment",'Enrollment and Demographics'!$C$2:$C$47,0),MATCH(E$12,'Enrollment and Demographics'!$C$2:$M$2,0)) -> 0 | F18: =INDEX(Expense_Assump,MATCH('5 YR Budget'!$B18,Assumptions!$C:$C,0),MATCH('5 YR Budget'!F$12,Assumptions!$C$2:$I$2,0))*INDEX(X_Enrollment,MATCH("Total Enrollment",'Enrollment and Demographics'!$C$2:$C$47,0),MATCH(F$12,'Enrollment and Demographics'!$C$2:$M$2,0)) -> 0 | G18: =INDEX(Expense_Assump,MATCH('5 YR Budget'!$B18,Assumptions!$C:$C,0),MATCH('5 YR Budget'!G$12,Assumptions!$C$2:$I$2,0))*INDEX(X_Enrollment,MATCH("Total Enrollment",'Enrollment and Demographics'!$C$2:$C$47,0),MATCH(G$12,'Enrollment and Demographics'!$C$2:$M$2,0)) -> 0 | H18: =INDEX(Expense_Assump,MATCH('5 YR Budget'!$B18,Assumptions!$C:$C,0),MATCH('5 YR Budget'!H$12,Assumptions!$C$2:$I$2,0))*INDEX(X_Enrollment,MATCH("Total Enrollment",'Enrollment and Demographics'!$C$2:$C$47,0),MATCH(H$12,'Enrollment and Demographics'!$C$2:$M$2,0)) -> 0 | I18: =+Assumptions!J7*'5 YR Budget'!I3 -> 0 | J18: =+Assumptions!K7*'5 YR Budget'!J3 -> 0 | L18: All 21-22 meals are reimbursed at the free rate, no local lunch sales
B19: TOTAL 2000 - LOCAL SUPPORT - NON-TAX | D19: =SUM(D16:D18) -> 25000 | E19: 25000 | F19: 25000 | G19: 25000 | H19: 25000 | I19: 25000 | J19: 25000
B21: 3000 - STATE REVENUE - GENERAL PURPOSE | M21: F-203 | N21: Variance
B22: 3100 - Apportionment | D22: 1293139.79 | E22: =+'Single School Forecast'!X75 -> 1731021.275 | F22: =+'Single School Forecast'!Y75 -> 2051676.77 | G22: =+'Single School Forecast'!Z75 -> 3829798.101 | H22: =+'Single School Forecast'!AA75 -> 4033179.568 | I22: =+'Single School Forecast'!AB75 -> 4227194.96 | J22: =+'Single School Forecast'!AC75 -> < This is less Account 3121 SpEd | M22: 1293139.79 | N22: =+M22-D22 -> 0
B23: 3121 - Special Education - General Apportionment | D23: 11703.63 | E23: =+'Single School Forecast'!X87 -> 43343.81989 | F23: =+'Single School Forecast'!Y87 -> 55023.39363 | G23: =+'Single School Forecast'!Z87 -> 64855.33028 | H23: =+'Single School Forecast'!AA87 -> 71682.20347 | I23: =+'Single School Forecast'!AB87 -> 74676.77431 | J23: =+'Single School Forecast'!AC87 -> < If there is no value for the charter school than the formula pulls the corresponding school district's value | M23: 11703.63 | N23: =+M23-D23 -> 0
B24: TOTAL 3000 - STATE REVENUE - GENERAL PURPOSE | D24: =SUM(D22:D23) -> 1304843.42 | E24: 1774365.095 | F24: 2106700.164 | G24: 3894653.431 | H24: 4104861.771 | I24: 4301871.735 | J24: =SUM(J22:L23) -> 0
B26: 4000 - STATE REVENUE - SPECIAL PURPOSE
B27: 4121 - Special Education - State | D27: 161799.72 | E27: =+'Single School Forecast'!X89 -> 221766.5995 | F27: =+'Single School Forecast'!Y89 -> 281583.3107 | G27: =+'Single School Forecast'!Z89 -> 331888.8818 | H27: =+'Single School Forecast'!AA89 -> 366767.0478 | I27: =+'Single School Forecast'!AB89 -> 382098.5232 | J27: =+'Single School Forecast'!AB89 -> 382098.5232 | M27: 161799.72 | N27: =+M27-D27 -> 0
B28: 4155 - Learning Assistance | D28: 11275.95 | E28: =+'Single School Forecast'!X93 -> 19353.40467 | F28: =+'Single School Forecast'!Y93 -> 27424.37026 | G28: =+'Single School Forecast'!Z93 -> 35090.62933 | H28: =+'Single School Forecast'!AA93 -> 42144.50443 | I28: =+'Single School Forecast'!AB93 -> 47458.0824 | J28: =+'Single School Forecast'!AB93 -> 47458.0824 | M28: 11275.95 | N28: 0
B29: 4165 - Transitional Bilingual | D29: 7409.84 | E29: =+'Single School Forecast'!X98 -> 8422.829426 | F29: =+'Single School Forecast'!Y98 -> 9754.641596 | G29: =+'Single School Forecast'!Z98 -> 10735.91402 | H29: =+'Single School Forecast'!AA98 -> 11141.34929 | I29: =+'Single School Forecast'!AB98 -> 11380.41065 | J29: =+'Single School Forecast'!AB98 -> 11380.41065 | M29: 7409.84 | N29: 0
B30: 4174 - Highly Capable | D30: 3413.82 | E30: =+'Single School Forecast'!X103 -> 4849.573458 | F30: =+'Single School Forecast'!Y103 -> 6204.928203 | G30: =+'Single School Forecast'!Z103 -> 7562.700712 | H30: =+'Single School Forecast'!AA103 -> 8516.133212 | I30: =+'Single School Forecast'!AB103 -> 8939.969728 | J30: =+'Single School Forecast'!AB103 -> 8939.969728 | M30: 3413.82 | N30: 0
B31: 4198 - School Food Service | D31: =INDEX(Expense_Assump,MATCH('5 YR Budget'!$B31,Assumptions!$C:$C,0),MATCH('5 YR Budget'!D$12,Assumptions!$C$2:$I$2,0))*INDEX(X_Enrollment,MATCH("Total Enrollment",'Enrollment and Demographics'!$C$2:$C$47,0),MATCH(D$12,'Enrollment and Demographics'!$C$2:$M$2,0)) -> 0 | E31: =INDEX(Expense_Assump,MATCH('5 YR Budget'!$B31,Assumptions!$C:$C,0),MATCH('5 YR Budget'!E$12,Assumptions!$C$2:$I$2,0))*INDEX(X_Enrollment,MATCH("Total Enrollment",'Enrollment and Demographics'!$C$2:$C$47,0),MATCH(E$12,'Enrollment and Demographics'!$C$2:$M$2,0)) -> 0 | F31: =INDEX(Expense_Assump,MATCH('5 YR Budget'!$B31,Assumptions!$C:$C,0),MATCH('5 YR Budget'!F$12,Assumptions!$C$2:$I$2,0))*INDEX(X_Enrollment,MATCH("Total Enrollment",'Enrollment and Demographics'!$C$2:$C$47,0),MATCH(F$12,'Enrollment and Demographics'!$C$2:$M$2,0)) -> 0 | G31: =INDEX(Expense_Assump,MATCH('5 YR Budget'!$B31,Assumptions!$C:$C,0),MATCH('5 YR Budget'!G$12,Assumptions!$C$2:$I$2,0))*INDEX(X_Enrollment,MATCH("Total Enrollment",'Enrollment and Demographics'!$C$2:$C$47,0),MATCH(G$12,'Enrollment and Demographics'!$C$2:$M$2,0)) -> 0 | H31: =INDEX(Expense_Assump,MATCH('5 YR Budget'!$B31,Assumptions!$C:$C,0),MATCH('5 YR Budget'!H$12,Assumptions!$C$2:$I$2,0))*INDEX(X_Enrollment,MATCH("Total Enrollment",'Enrollment and Demographics'!$C$2:$C$47,0),MATCH(H$12,'Enrollment and Demographics'!$C$2:$M$2,0)) -> 0 | I31: =INDEX(Expense_Assump,MATCH('5 YR Budget'!$B31,Assumptions!$C:$C,0),MATCH('5 YR Budget'!I$12,Assumptions!$C$2:$K$2,0))*INDEX(X_Enrollment,MATCH("Total Enrollment",'Enrollment and Demographics'!$C$2:$C$47,0),MATCH(I$12,'Enrollment and Demographics'!$C$2:$M$2,0)) -> 0 | J31: =INDEX(Expense_Assump,MATCH('5 YR Budget'!$B31,Assumptions!$C:$C,0),MATCH('5 YR Budget'!J$12,Assumptions!$C$2:$K$2,0))*INDEX(X_Enrollment,MATCH("Total Enrollment",'Enrollment and Demographics'!$C$2:$C$47,0),MATCH(J$12,'Enrollment and Demographics'!$C$2:$M$2,0)) -> 0 | M31: =SUM(M22:M30) -> 1488742.75
B32: 4199 - Transportation - Operations | D32: =INDEX(Expense_Assump,MATCH('5 YR Budget'!$B32,Assumptions!$C:$C,0),MATCH('5 YR Budget'!D$12,Assumptions!$C$2:$K$2,0))*INDEX(X_Enrollment,MATCH("Student Transportation Count",'Enrollment and Demographics'!$C$2:$C$47,0),MATCH('5 YR Budget'!D12,'Enrollment and Demographics'!$C$2:$M$2,0)) -> 45693.95317 | E32: =INDEX(Expense_Assump,MATCH('5 YR Budget'!$B32,Assumptions!$C:$C,0),MATCH('5 YR Budget'!E$12,Assumptions!$C$2:$K$2,0))*INDEX(X_Enrollment,MATCH("Student Transportation Count",'Enrollment and Demographics'!$C$2:$C$47,0),MATCH('5 YR Budget'!E12,'Enrollment and Demographics'!$C$2:$M$2,0)) -> 63574.19572 | F32: =INDEX(Expense_Assump,MATCH('5 YR Budget'!$B32,Assumptions!$C:$C,0),MATCH('5 YR Budget'!F$12,Assumptions!$C$2:$K$2,0))*INDEX(X_Enrollment,MATCH("Student Transportation Count",'Enrollment and Demographics'!$C$2:$C$47,0),MATCH('5 YR Budget'!F12,'Enrollment and Demographics'!$C$2:$M$2,0)) -> 79865.08337 | G32: =INDEX(Expense_Assump,MATCH('5 YR Budget'!$B32,Assumptions!$C:$C,0),MATCH('5 YR Budget'!G$12,Assumptions!$C$2:$K$2,0))*INDEX(X_Enrollment,MATCH("Student Transportation Count",'Enrollment and Demographics'!$C$2:$C$47,0),MATCH('5 YR Budget'!G12,'Enrollment and Demographics'!$C$2:$M$2,0)) -> 94169.27741 | H32: =INDEX(Expense_Assump,MATCH('5 YR Budget'!$B32,Assumptions!$C:$C,0),MATCH('5 YR Budget'!H$12,Assumptions!$C$2:$K$2,0))*INDEX(X_Enrollment,MATCH("Student Transportation Count",'Enrollment and Demographics'!$C$2:$C$47,0),MATCH('5 YR Budget'!H12,'Enrollment and Demographics'!$C$2:$M$2,0)) -> 104102.7455 | I32: =INDEX(Expense_Assump,MATCH('5 YR Budget'!$B32,Assumptions!$C:$C,0),MATCH('5 YR Budget'!I$12,Assumptions!$C$2:$K$2,0))*INDEX(X_Enrollment,MATCH("Student Transportation Count",'Enrollment and Demographics'!$C$2:$C$47,0),MATCH('5 YR Budget'!I12,'Enrollment and Demographics'!$C$2:$M$2,0)) -> 107281.4553 | J32: =INDEX(Expense_Assump,MATCH('5 YR Budget'!$B32,Assumptions!$C:$C,0),MATCH('5 YR Budget'!J$12,Assumptions!$C$2:$K$2,0))*INDEX(X_Enrollment,MATCH("Student Transportation Count",'Enrollment and Demographics'!$C$2:$C$47,0),MATCH('5 YR Budget'!J12,'Enrollment and Demographics'!$C$2:$M$2,0)) -> 116022.9072 | M32: =+M33/M31 -> 0.0009457644714
B33: 4201 - State - Misc Grants | D33: =INDEX(Expense_Assump,MATCH('5 YR Budget'!$B33,Assumptions!$C:$C,0),MATCH('5 YR Budget'!D$12,Assumptions!$C$2:$K$2,0)) -> 0 | E33: =INDEX(Expense_Assump,MATCH('5 YR Budget'!$B33,Assumptions!$C:$C,0),MATCH('5 YR Budget'!E$12,Assumptions!$C$2:$K$2,0)) -> 0 | F33: =INDEX(Expense_Assump,MATCH('5 YR Budget'!$B33,Assumptions!$C:$C,0),MATCH('5 YR Budget'!F$12,Assumptions!$C$2:$K$2,0)) -> 0 | G33: =INDEX(Expense_Assump,MATCH('5 YR Budget'!$B33,Assumptions!$C:$C,0),MATCH('5 YR Budget'!G$12,Assumptions!$C$2:$K$2,0)) -> 0 | H33: =INDEX(Expense_Assump,MATCH('5 YR Budget'!$B33,Assumptions!$C:$C,0),MATCH('5 YR Budget'!H$12,Assumptions!$C$2:$K$2,0)) -> 0 | I33: =INDEX(Expense_Assump,MATCH('5 YR Budget'!$B33,Assumptions!$C:$C,0),MATCH('5 YR Budget'!I$12,Assumptions!$C$2:$K$2,0)) -> 0 | J33: =INDEX(Expense_Assump,MATCH('5 YR Budget'!$B33,Assumptions!$C:$C,0),MATCH('5 YR Budget'!J$12,Assumptions!$C$2:$K$2,0)) -> 0 | L33: Learn to return + Meals grants | M33: 1408
B34: Total 4000 - STATE REVENUE - SPECIAL PURPOSE | D34: =SUM(D27:D33) -> 229593.2832 | E34: =SUM(E27:E33) -> 317966.6028 | F34: 404832.3341 | G34: 479447.4032 | H34: 532671.7802 | I34: 557158.4412 | J34: 565899.8931 | M34: =1-M32 -> 0.9990542355
B36: 5000 - FEDERAL REVENUE - RESTRICTED
B37: Title I | D37: =INDEX(Expense_Assump,MATCH('5 YR Budget'!$B37,Assumptions!$C:$C,0),MATCH('5 YR Budget'!D$12,Assumptions!$C$2:$I$2,0))*VLOOKUP("Student Count Qualifying for Free or Reduced Lunch",'Enrollment and Demographics'!$C:$M,3,FALSE) -> 9000 | E37: =INDEX(Expense_Assump,MATCH('5 YR Budget'!$B37,Assumptions!$C:$C,0),MATCH('5 YR Budget'!E$12,Assumptions!$C$2:$I$2,0))*VLOOKUP("Student Count Qualifying for Free or Reduced Lunch",'Enrollment and Demographics'!$C:$M,3,FALSE) -> 9000 | F37: =INDEX(Expense_Assump,MATCH('5 YR Budget'!$B37,Assumptions!$C:$C,0),MATCH('5 YR Budget'!F$12,Assumptions!$C$2:$I$2,0))*VLOOKUP("Student Count Qualifying for Free or Reduced Lunch",'Enrollment and Demographics'!$C:$M,4,FALSE) -> 11306.25 | G37: =INDEX(Expense_Assump,MATCH('5 YR Budget'!$B37,Assumptions!$C:$C,0),MATCH('5 YR Budget'!G$12,Assumptions!$C$2:$I$2,0))*VLOOKUP("Student Count Qualifying for Free or Reduced Lunch",'Enrollment and Demographics'!$C:$M,5,FALSE) -> 13331.25 | H37: =INDEX(Expense_Assump,MATCH('5 YR Budget'!$B37,Assumptions!$C:$C,0),MATCH('5 YR Budget'!H$12,Assumptions!$C$2:$K$2,0))*VLOOKUP("Student Count Qualifying for Free or Reduced Lunch",'Enrollment and Demographics'!$C:$M,6,FALSE) -> 14737.5 | I37: =INDEX(Expense_Assump,MATCH('5 YR Budget'!$B37,Assumptions!$C:$C,0),MATCH('5 YR Budget'!I$12,Assumptions!$C$2:$K$2,0))*VLOOKUP("Student Count Qualifying for Free or Reduced Lunch",'Enrollment and Demographics'!$C:$M,7,FALSE) -> 15187.5 | J37: =INDEX(Expense_Assump,MATCH('5 YR Budget'!$B37,Assumptions!$C:$C,0),MATCH('5 YR Budget'!J$12,Assumptions!$C$2:$K$2,0))*VLOOKUP("Student Count Qualifying for Free or Reduced Lunch",'Enrollment and Demographics'!$C:$M,8,FALSE) -> 16425
B38: Title II | D38: 2686 | E38: =INDEX(Expense_Assump,MATCH('5 YR Budget'!$B38,Assumptions!$C:$C,0),MATCH('5 YR Budget'!E$12,Assumptions!$C$2:$I$2,0))*VLOOKUP("Student Count Qualifying for Free or Reduced Lunch",'Enrollment and Demographics'!$C:$M,3,FALSE) -> 1400 | F38: =INDEX(Expense_Assump,MATCH('5 YR Budget'!$B38,Assumptions!$C:$C,0),MATCH('5 YR Budget'!F$12,Assumptions!$C$2:$I$2,0))*VLOOKUP("Student Count Qualifying for Free or Reduced Lunch",'Enrollment and Demographics'!$C:$M,4,FALSE) -> 1758.75 | G38: =INDEX(Expense_Assump,MATCH('5 YR Budget'!$B38,Assumptions!$C:$C,0),MATCH('5 YR Budget'!G$12,Assumptions!$C$2:$I$2,0))*VLOOKUP("Student Count Qualifying for Free or Reduced Lunch",'Enrollment and Demographics'!$C:$M,5,FALSE) -> 2073.75 | H38: =INDEX(Expense_Assump,MATCH('5 YR Budget'!$B38,Assumptions!$C:$C,0),MATCH('5 YR Budget'!H$12,Assumptions!$C$2:$K$2,0))*VLOOKUP("Student Count Qualifying for Free or Reduced Lunch",'Enrollment and Demographics'!$C:$M,6,FALSE) -> 2292.5 | I38: =INDEX(Expense_Assump,MATCH('5 YR Budget'!$B38,Assumptions!$C:$C,0),MATCH('5 YR Budget'!I$12,Assumptions!$C$2:$K$2,0))*VLOOKUP("Student Count Qualifying for Free or Reduced Lunch",'Enrollment and Demographics'!$C:$M,7,FALSE) -> 2362.5 | J38: =INDEX(Expense_Assump,MATCH('5 YR Budget'!$B38,Assumptions!$C:$C,0),MATCH('5 YR Budget'!J$12,Assumptions!$C$2:$K$2,0))*VLOOKUP("Student Count Qualifying for Free or Reduced Lunch",'Enrollment and Demographics'!$C:$M,8,FALSE) -> 2555
B39: Title III & IV | D39: =INDEX(Expense_Assump,MATCH('5 YR Budget'!$B39,Assumptions!$C:$C,0),MATCH('5 YR Budget'!D$12,Assumptions!$C$2:$I$2,0))*VLOOKUP("English Language Learner Count (ELL)",'Enrollment and Demographics'!$C:$M,2,FALSE) -> 0 | E39: =INDEX(Expense_Assump,MATCH('5 YR Budget'!$B39,Assumptions!$C:$C,0),MATCH('5 YR Budget'!E$12,Assumptions!$C$2:$I$2,0))*VLOOKUP("English Language Learner Count (ELL)",'Enrollment and Demographics'!$C:$M,2,FALSE) -> 0 | F39: =INDEX(Expense_Assump,MATCH('5 YR Budget'!$B39,Assumptions!$C:$C,0),MATCH('5 YR Budget'!F$12,Assumptions!$C$2:$I$2,0))*VLOOKUP("English Language Learner Count (ELL)",'Enrollment and Demographics'!$C:$M,2,FALSE) -> 0 | G39: =INDEX(Expense_Assump,MATCH('5 YR Budget'!$B39,Assumptions!$C:$C,0),MATCH('5 YR Budget'!G$12,Assumptions!$C$2:$I$2,0))*VLOOKUP("English Language Learner Count (ELL)",'Enrollment and Demographics'!$C:$M,2,FALSE) -> 0 | H39: =INDEX(Expense_Assump,MATCH('5 YR Budget'!$B39,Assumptions!$C:$C,0),MATCH('5 YR Budget'!H$12,Assumptions!$C$2:$K$2,0))*VLOOKUP("English Language Learner Count (ELL)",'Enrollment and Demographics'!$C:$M,2,FALSE) -> 0 | I39: =INDEX(Expense_Assump,MATCH('5 YR Budget'!$B39,Assumptions!$C:$C,0),MATCH('5 YR Budget'!I$12,Assumptions!$C$2:$K$2,0))*VLOOKUP("English Language Learner Count (ELL)",'Enrollment and Demographics'!$C:$M,2,FALSE) -> 0 | J39: =INDEX(Expense_Assump,MATCH('5 YR Budget'!$B39,Assumptions!$C:$C,0),MATCH('5 YR Budget'!J$12,Assumptions!$C$2:$K$2,0))*VLOOKUP("English Language Learner Count (ELL)",'Enrollment and Demographics'!$C:$M,2,FALSE) -> 0
B40: IDEA Funding | D40: =INDEX(Expense_Assump,MATCH('5 YR Budget'!$B40,Assumptions!$C:$C,0),MATCH('5 YR Budget'!D$12,Assumptions!$C$2:$I$2,0))*VLOOKUP("Actual Special Education Student Count (SpEd)",X_Enrollment,2,FALSE) -> 18630 | E40: =INDEX(Expense_Assump,MATCH('5 YR Budget'!$B40,Assumptions!$C:$C,0),MATCH('5 YR Budget'!E$12,Assumptions!$C$2:$I$2,0))*VLOOKUP("Actual Special Education Student Count (SpEd)",X_Enrollment,3,FALSE) -> 25920 | F40: =INDEX(Expense_Assump,MATCH('5 YR Budget'!$B40,Assumptions!$C:$C,0),MATCH('5 YR Budget'!F$12,Assumptions!$C$2:$I$2,0))*VLOOKUP("Actual Special Education Student Count (SpEd)",X_Enrollment,4,FALSE) -> 32562 | G40: =INDEX(Expense_Assump,MATCH('5 YR Budget'!$B40,Assumptions!$C:$C,0),MATCH('5 YR Budget'!G$12,Assumptions!$C$2:$I$2,0))*VLOOKUP("Actual Special Education Student Count (SpEd)",X_Enrollment,5,FALSE) -> 38394 | H40: =INDEX(Expense_Assump,MATCH('5 YR Budget'!$B40,Assumptions!$C:$C,0),MATCH('5 YR Budget'!H$12,Assumptions!$C$2:$K$2,0))*VLOOKUP("Actual Special Education Student Count (SpEd)",X_Enrollment,6,FALSE) -> 42444 | I40: =INDEX(Expense_Assump,MATCH('5 YR Budget'!$B40,Assumptions!$C:$C,0),MATCH('5 YR Budget'!I$12,Assumptions!$C$2:$K$2,0))*VLOOKUP("Actual Special Education Student Count (SpEd)",X_Enrollment,7,FALSE) -> 43740 | J40: =INDEX(Expense_Assump,MATCH('5 YR Budget'!$B40,Assumptions!$C:$C,0),MATCH('5 YR Budget'!J$12,Assumptions!$C$2:$K$2,0))*VLOOKUP("Actual Special Education Student Count (SpEd)",X_Enrollment,8,FALSE) -> 47304
B41: 6198 - School Food Services | D41: =INDEX(Expense_Assump,MATCH('5 YR Budget'!$B41,Assumptions!$C:$C,0),MATCH('5 YR Budget'!D$12,Assumptions!$C$2:$I$2,0))*INDEX(X_Enrollment,MATCH("Total Enrollment",'Enrollment and Demographics'!$C$2:$C$47,0),MATCH(D$12,'Enrollment and Demographics'!$C$2:$M$2,0)) -> 91655.46 | E41: =INDEX(Expense_Assump,MATCH('5 YR Budget'!$B41,Assumptions!$C:$C,0),MATCH('5 YR Budget'!E$12,Assumptions!$C$2:$I$2,0))*INDEX(X_Enrollment,MATCH("Total Enrollment",'Enrollment and Demographics'!$C$2:$C$47,0),MATCH(E$12,'Enrollment and Demographics'!$C$2:$M$2,0)) -> 130071.0528 | F41: =INDEX(Expense_Assump,MATCH('5 YR Budget'!$B41,Assumptions!$C:$C,0),MATCH('5 YR Budget'!F$12,Assumptions!$C$2:$I$2,0))*INDEX(X_Enrollment,MATCH("Total Enrollment",'Enrollment and Demographics'!$C$2:$C$47,0),MATCH(F$12,'Enrollment and Demographics'!$C$2:$M$2,0)) -> 166669.7953 | G41: =INDEX(Expense_Assump,MATCH('5 YR Budget'!$B41,Assumptions!$C:$C,0),MATCH('5 YR Budget'!G$12,Assumptions!$C$2:$I$2,0))*INDEX(X_Enrollment,MATCH("Total Enrollment",'Enrollment and Demographics'!$C$2:$C$47,0),MATCH(G$12,'Enrollment and Demographics'!$C$2:$M$2,0)) -> 200451.5239 | H41: =INDEX(Expense_Assump,MATCH('5 YR Budget'!$B41,Assumptions!$C:$C,0),MATCH('5 YR Budget'!H$12,Assumptions!$C$2:$K$2,0))*INDEX(X_Enrollment,MATCH("Total Enrollment",'Enrollment and Demographics'!$C$2:$C$47,0),MATCH(H$12,'Enrollment and Demographics'!$C$2:$M$2,0)) -> 226028.1234 | I41: =INDEX(Expense_Assump,MATCH('5 YR Budget'!$B41,Assumptions!$C:$C,0),MATCH('5 YR Budget'!I$12,Assumptions!$C$2:$K$2,0))*INDEX(X_Enrollment,MATCH("Total Enrollment",'Enrollment and Demographics'!$C$2:$C$47,0),MATCH(I$12,'Enrollment and Demographics'!$C$2:$M$2,0)) -> 237588.3404 | J41: =INDEX(Expense_Assump,MATCH('5 YR Budget'!$B41,Assumptions!$C:$C,0),MATCH('5 YR Budget'!J$12,Assumptions!$C$2:$K$2,0))*INDEX(X_Enrollment,MATCH("Total Enrollment",'Enrollment and Demographics'!$C$2:$C$47,0),MATCH(J$12,'Enrollment and Demographics'!$C$2:$M$2,0)) -> 262086.3382 | L41: Based on 65% particiation; pro-rated for no Aug/Sep rev
B42: CSP | D42: =INDEX(Expense_Assump,MATCH('5 YR Budget'!$B42,Assumptions!$C:$C,0),MATCH('5 YR Budget'!D$12,Assumptions!$C$2:$I$2,0)) -> 310000 | E42: =INDEX(Expense_Assump,MATCH('5 YR Budget'!$B42,Assumptions!$C:$C,0),MATCH('5 YR Budget'!E$12,Assumptions!$C$2:$I$2,0)) -> 300000 | F42: =INDEX(Expense_Assump,MATCH('5 YR Budget'!$B42,Assumptions!$C:$C,0),MATCH('5 YR Budget'!F$12,Assumptions!$C$2:$I$2,0)) -> 220000 | G42: =INDEX(Expense_Assump,MATCH('5 YR Budget'!$B42,Assumptions!$C:$C,0),MATCH('5 YR Budget'!G$12,Assumptions!$C$2:$I$2,0)) -> 0 | H42: =INDEX(Expense_Assump,MATCH('5 YR Budget'!$B42,Assumptions!$C:$C,0),MATCH('5 YR Budget'!H$12,Assumptions!$C$2:$K$2,0)) -> 0 | I42: =INDEX(Expense_Assump,MATCH('5 YR Budget'!$B42,Assumptions!$C:$C,0),MATCH('5 YR Budget'!I$12,Assumptions!$C$2:$K$2,0)) -> 0 | J42: =INDEX(Expense_Assump,MATCH('5 YR Budget'!$B42,Assumptions!$C:$C,0),MATCH('5 YR Budget'!J$12,Assumptions!$C$2:$K$2,0)) -> 0
B43: Federal - Misc Grants | D43: =INDEX(Expense_Assump,MATCH('5 YR Budget'!$B43,Assumptions!$C:$C,0),MATCH('5 YR Budget'!D$12,Assumptions!$C$2:$I$2,0)) -> 0 | E43: =INDEX(Expense_Assump,MATCH('5 YR Budget'!$B43,Assumptions!$C:$C,0),MATCH('5 YR Budget'!E$12,Assumptions!$C$2:$I$2,0)) -> 0 | F43: =INDEX(Expense_Assump,MATCH('5 YR Budget'!$B43,Assumptions!$C:$C,0),MATCH('5 YR Budget'!F$12,Assumptions!$C$2:$I$2,0)) -> 0 | G43: =INDEX(Expense_Assump,MATCH('5 YR Budget'!$B43,Assumptions!$C:$C,0),MATCH('5 YR Budget'!G$12,Assumptions!$C$2:$I$2,0)) -> 0 | H43: =INDEX(Expense_Assump,MATCH('5 YR Budget'!$B43,Assumptions!$C:$C,0),MATCH('5 YR Budget'!H$12,Assumptions!$C$2:$K$2,0)) -> 0 | I43: =INDEX(Expense_Assump,MATCH('5 YR Budget'!$B43,Assumptions!$C:$C,0),MATCH('5 YR Budget'!I$12,Assumptions!$C$2:$K$2,0)) -> 0 | J43: =INDEX(Expense_Assump,MATCH('5 YR Budget'!$B43,Assumptions!$C:$C,0),MATCH('5 YR Budget'!J$12,Assumptions!$C$2:$K$2,0)) -> 0 | L43: E-rate emergency connectivity funding
B44: ESSER | D44: =MAX(INDEX(Expense_Assump,MATCH('5 YR Budget'!$B44,Assumptions!$C:$C,0),MATCH('5 YR Budget'!D$12,Assumptions!$C$2:$I$2,0))) -> 40015 | E44: =MAX(INDEX(Expense_Assump,MATCH('5 YR Budget'!$B44,Assumptions!$C:$C,0),MATCH('5 YR Budget'!E$12,Assumptions!$C$2:$I$2,0))) -> 0 | F44: =MAX(INDEX(Expense_Assump,MATCH('5 YR Budget'!$B44,Assumptions!$C:$C,0),MATCH('5 YR Budget'!F$12,Assumptions!$C$2:$I$2,0))) -> 0 | G44: =MAX(INDEX(Expense_Assump,MATCH('5 YR Budget'!$B44,Assumptions!$C:$C,0),MATCH('5 YR Budget'!G$12,Assumptions!$C$2:$I$2,0))) -> 0 | H44: =MAX(INDEX(Expense_Assump,MATCH('5 YR Budget'!$B44,Assumptions!$C:$C,0),MATCH('5 YR Budget'!H$12,Assumptions!$C$2:$K$2,0))) -> 0 | I44: =MAX(INDEX(Expense_Assump,MATCH('5 YR Budget'!$B44,Assumptions!$C:$C,0),MATCH('5 YR Budget'!I$12,Assumptions!$C$2:$K$2,0))) -> 0 | J44: =MAX(INDEX(Expense_Assump,MATCH('5 YR Budget'!$B44,Assumptions!$C:$C,0),MATCH('5 YR Budget'!J$12,Assumptions!$C$2:$K$2,0))) -> 0 | L44: ESSER III
B45: TOTAL 5000 - FEDERAL REVENUE - RESTRICTED | D45: =SUM(D37:D44) -> 471986.46 | E45: =SUM(E37:E44) -> 466391.0528 | F45: 432296.7953 | G45: 254250.5239 | H45: 285502.1234 | I45: 298878.3404 | J45: 328370.3382
B47: 8000 - OTHER ENTITIES
B48: 8200 - Private Foundations | D48: =INDEX(Expense_Assump,MATCH('5 YR Budget'!$B48,Assumptions!$C:$C,0),MATCH('5 YR Budget'!D$12,Assumptions!$C$2:$I$2,0)) -> 160000 | E48: =INDEX(Expense_Assump,MATCH('5 YR Budget'!$B48,Assumptions!$C:$C,0),MATCH('5 YR Budget'!E$12,Assumptions!$C$2:$I$2,0)) -> 0 | F48: =INDEX(Expense_Assump,MATCH('5 YR Budget'!$B48,Assumptions!$C:$C,0),MATCH('5 YR Budget'!F$12,Assumptions!$C$2:$I$2,0)) -> 0 | G48: =INDEX(Expense_Assump,MATCH('5 YR Budget'!$B48,Assumptions!$C:$C,0),MATCH('5 YR Budget'!G$12,Assumptions!$C$2:$I$2,0)) -> 0 | H48: =INDEX(Expense_Assump,MATCH('5 YR Budget'!$B48,Assumptions!$C:$C,0),MATCH('5 YR Budget'!H$12,Assumptions!$C$2:$K$2,0)) -> 0 | I48: =INDEX(Expense_Assump,MATCH('5 YR Budget'!$B48,Assumptions!$C:$C,0),MATCH('5 YR Budget'!I$12,Assumptions!$C$2:$K$2,0)) -> 0 | J48: =INDEX(Expense_Assump,MATCH('5 YR Budget'!$B48,Assumptions!$C:$C,0),MATCH('5 YR Budget'!J$12,Assumptions!$C$2:$K$2,0)) -> 0 | L48: WA Charters ($216k) + 2 $50k donations
B49: TOTAL 8000 - OTHER ENTITIES | D49: =SUM(D48:D48) -> 160000 | E49: 0 | F49: 0 | G49: 0 | H49: 0 | I49: 0 | J49: 0
B51: 9000 - OTHER FINANCING SOURCES
B52: Other Financing Sources | D52: =INDEX(Expense_Assump,MATCH('5 YR Budget'!$B52,Assumptions!$C:$C,0),MATCH('5 YR Budget'!D$12,Assumptions!$C$2:$I$2,0)) -> 0 | E52: =INDEX(Expense_Assump,MATCH('5 YR Budget'!$B52,Assumptions!$C:$C,0),MATCH('5 YR Budget'!E$12,Assumptions!$C$2:$I$2,0)) -> 0 | F52: =INDEX(Expense_Assump,MATCH('5 YR Budget'!$B52,Assumptions!$C:$C,0),MATCH('5 YR Budget'!F$12,Assumptions!$C$2:$I$2,0)) -> 0 | G52: =INDEX(Expense_Assump,MATCH('5 YR Budget'!$B52,Assumptions!$C:$C,0),MATCH('5 YR Budget'!G$12,Assumptions!$C$2:$I$2,0)) -> 0 | H52: =INDEX(Expense_Assump,MATCH('5 YR Budget'!$B52,Assumptions!$C:$C,0),MATCH('5 YR Budget'!H$12,Assumptions!$C$2:$K$2,0)) -> 0 | I52: =INDEX(Expense_Assump,MATCH('5 YR Budget'!$B52,Assumptions!$C:$C,0),MATCH('5 YR Budget'!I$12,Assumptions!$C$2:$K$2,0)) -> 0 | J52: =INDEX(Expense_Assump,MATCH('5 YR Budget'!$B52,Assumptions!$C:$C,0),MATCH('5 YR Budget'!J$12,Assumptions!$C$2:$K$2,0)) -> 0
B53: TOTAL 9000 - OTHER FINANCING SOURCES | D53: =+D52 -> 0 | E53: =+E52 -> 0 | F53: 0 | G53: 0 | H53: 0 | I53: =+I52 -> 0 | J53: 0
B55: TOTAL REVENUE | D55: =SUM(D19,D24,D34,D45,D49,D53) -> 2191423.163 | E55: =SUM(E19,E24,E34,E45,E49,E53) -> 2583722.75 | F55: 2968829.294 | G55: 4653351.358 | H55: 4948035.675 | I55: =SUM(I19,I24,I34,I41,I45,I49,I53) -> 5420496.857 | J55: =SUM(J19,J24,J34,J41,J45,J49,J53) -> 1181356.57
B57: EXPENSES
B58: ADMINISTRATIVE STAFF PERSONNEL COSTS
B59: Executive Management | D59: =SUMIF('Position Control (Staffing)'!$V:$V,'5 YR Budget'!$B59,'Position Control (Staffing)'!$O:$O) -> 94950 | E59: =SUMIF('Position Control (Staffing)'!$V:$V,'5 YR Budget'!$B59,'Position Control (Staffing)'!$P:$P) -> 96849 | F59: =SUMIF('Position Control (Staffing)'!$V:$V,'5 YR Budget'!$B59,'Position Control (Staffing)'!$Q:$Q) -> 98785.98 | G59: =SUMIF('Position Control (Staffing)'!$V:$V,'5 YR Budget'!$B59,'Position Control (Staffing)'!$R:$R) -> 100761.6996 | H59: =SUMIF('Position Control (Staffing)'!$V:$V,'5 YR Budget'!$B59,'Position Control (Staffing)'!S:S) -> 102776.9336 | I59: =SUMIF('Position Control (Staffing)'!$V:$V,'5 YR Budget'!$B59,'Position Control (Staffing)'!T:T) -> 104832.4723 | J59: =SUMIF('Position Control (Staffing)'!$V:$V,'5 YR Budget'!$B59,'Position Control (Staffing)'!U:U) -> 106929.1217 | L59: Head of School
B60: Instructional Management | D60: =SUMIF('Position Control (Staffing)'!$V:$V,'5 YR Budget'!$B60,'Position Control (Staffing)'!$O:$O) -> 63300 | E60: =SUMIF('Position Control (Staffing)'!$V:$V,'5 YR Budget'!$B60,'Position Control (Staffing)'!$P:$P) -> 64566 | F60: =SUMIF('Position Control (Staffing)'!$V:$V,'5 YR Budget'!$B60,'Position Control (Staffing)'!$Q:$Q) -> 65857.32 | G60: =SUMIF('Position Control (Staffing)'!$V:$V,'5 YR Budget'!$B60,'Position Control (Staffing)'!$R:$R) -> 127174.4664 | H60: =SUMIF('Position Control (Staffing)'!$V:$V,'5 YR Budget'!$B60,'Position Control (Staffing)'!S:S) -> 129717.9557 | I60: =SUMIF('Position Control (Staffing)'!$V:$V,'5 YR Budget'!$B60,'Position Control (Staffing)'!T:T) -> 132312.3148 | J60: =SUMIF('Position Control (Staffing)'!$V:$V,'5 YR Budget'!$B60,'Position Control (Staffing)'!U:U) -> 134958.5611 | L60: Montessori Coach
B61: Deans, Directors & Coordinators | D61: =SUMIF('Position Control (Staffing)'!$V:$V,'5 YR Budget'!$B61,'Position Control (Staffing)'!$O:$O) -> 0 | E61: =SUMIF('Position Control (Staffing)'!$V:$V,'5 YR Budget'!$B61,'Position Control (Staffing)'!$P:$P) -> 0 | F61: =SUMIF('Position Control (Staffing)'!$V:$V,'5 YR Budget'!$B61,'Position Control (Staffing)'!$Q:$Q) -> 0 | G61: =SUMIF('Position Control (Staffing)'!$V:$V,'5 YR Budget'!$B61,'Position Control (Staffing)'!$R:$R) -> 0 | H61: =SUMIF('Position Control (Staffing)'!$V:$V,'5 YR Budget'!$B61,'Position Control (Staffing)'!$S:$S) -> 0 | I61: =SUMIF('Position Control (Staffing)'!$V:$V,'5 YR Budget'!$B61,'Position Control (Staffing)'!$S:$S) -> 0 | J61: =SUMIF('Position Control (Staffing)'!$V:$V,'5 YR Budget'!$B61,'Position Control (Staffing)'!$S:$S) -> 0
B62: CFO / Director of Finance | D62: =SUMIF('Position Control (Staffing)'!$V:$V,'5 YR Budget'!$B62,'Position Control (Staffing)'!$O:$O) -> 0 | E62: =SUMIF('Position Control (Staffing)'!$V:$V,'5 YR Budget'!$B62,'Position Control (Staffing)'!$P:$P) -> 0 | F62: =SUMIF('Position Control (Staffing)'!$V:$V,'5 YR Budget'!$B62,'Position Control (Staffing)'!$Q:$Q) -> 0 | G62: =SUMIF('Position Control (Staffing)'!$V:$V,'5 YR Budget'!$B62,'Position Control (Staffing)'!$R:$R) -> 0 | H62: =SUMIF('Position Control (Staffing)'!$V:$V,'5 YR Budget'!$B62,'Position Control (Staffing)'!$S:$S) -> 0 | I62: =SUMIF('Position Control (Staffing)'!$V:$V,'5 YR Budget'!$B62,'Position Control (Staffing)'!$S:$S) -> 0 | J62: =SUMIF('Position Control (Staffing)'!$V:$V,'5 YR Budget'!$B62,'Position Control (Staffing)'!$S:$S) -> 0
B63: Operation / Business Manager | D63: =SUMIF('Position Control (Staffing)'!$V:$V,'5 YR Budget'!$B63,'Position Control (Staffing)'!$O:$O) -> 0 | E63: =SUMIF('Position Control (Staffing)'!$V:$V,'5 YR Budget'!$B63,'Position Control (Staffing)'!$P:$P) -> 0 | F63: =SUMIF('Position Control (Staffing)'!$V:$V,'5 YR Budget'!$B63,'Position Control (Staffing)'!$Q:$Q) -> 0 | G63: =SUMIF('Position Control (Staffing)'!$V:$V,'5 YR Budget'!$B63,'Position Control (Staffing)'!$R:$R) -> 0 | H63: =SUMIF('Position Control (Staffing)'!$V:$V,'5 YR Budget'!$B63,'Position Control (Staffing)'!$S:$S) -> 0 | I63: =SUMIF('Position Control (Staffing)'!$V:$V,'5 YR Budget'!$B63,'Position Control (Staffing)'!$S:$S) -> 0 | J63: =SUMIF('Position Control (Staffing)'!$V:$V,'5 YR Budget'!$B63,'Position Control (Staffing)'!$S:$S) -> 0
B64: Administrative Staff | D64: =SUMIF('Position Control (Staffing)'!$V:$V,'5 YR Budget'!$B64,'Position Control (Staffing)'!$O:$O) -> 94879.015 | E64: =SUMIF('Position Control (Staffing)'!$V:$V,'5 YR Budget'!$B64,'Position Control (Staffing)'!$P:$P) -> 96776.5953 | F64: =SUMIF('Position Control (Staffing)'!$V:$V,'5 YR Budget'!$B64,'Position Control (Staffing)'!$Q:$Q) -> 98712.12721 | G64: =SUMIF('Position Control (Staffing)'!$V:$V,'5 YR Budget'!$B64,'Position Control (Staffing)'!$R:$R) -> 100686.3698 | H64: =SUMIF('Position Control (Staffing)'!$V:$V,'5 YR Budget'!$B64,'Position Control (Staffing)'!S:S) -> 102700.0971 | I64: =SUMIF('Position Control (Staffing)'!$V:$V,'5 YR Budget'!$B64,'Position Control (Staffing)'!T:T) -> 104754.0991 | J64: =SUMIF('Position Control (Staffing)'!$V:$V,'5 YR Budget'!$B64,'Position Control (Staffing)'!U:U) -> 106849.1811 | L64: Office Manager + Office Assistant
B65: Other - Administrative | D65: =SUMIF('Position Control (Staffing)'!$V:$V,'5 YR Budget'!$B65,'Position Control (Staffing)'!$O:$O) -> 0 | E65: =SUMIF('Position Control (Staffing)'!$V:$V,'5 YR Budget'!$B65,'Position Control (Staffing)'!$P:$P) -> 0 | F65: =SUMIF('Position Control (Staffing)'!$V:$V,'5 YR Budget'!$B65,'Position Control (Staffing)'!$Q:$Q) -> 0 | G65: =SUMIF('Position Control (Staffing)'!$V:$V,'5 YR Budget'!$B65,'Position Control (Staffing)'!$R:$R) -> 0 | H65: =SUMIF('Position Control (Staffing)'!$V:$V,'5 YR Budget'!$B65,'Position Control (Staffing)'!$S:$S) -> 0 | I65: =SUMIF('Position Control (Staffing)'!$V:$V,'5 YR Budget'!$B65,'Position Control (Staffing)'!$S:$S) -> 0 | J65: =SUMIF('Position Control (Staffing)'!$V:$V,'5 YR Budget'!$B65,'Position Control (Staffing)'!$S:$S) -> 0
B66: TOTAL ADMINISTRATIVE STAFF PERSONNEL COSTS | D66: =SUM(D59:D65) -> 253129.015 | E66: 258191.5953 | F66: 263355.4272 | G66: 328622.5358 | H66: 335194.9865 | I66: 341898.8862 | J66: 348736.8639
B68: INSTRUCTIONAL PERSONNEL COSTS
B69: Teachers - Regular | D69: =SUMIF('Position Control (Staffing)'!$V:$V,'5 YR Budget'!$B69,'Position Control (Staffing)'!$O:$O) -> 278445.5491 | E69: =SUMIF('Position Control (Staffing)'!$V:$V,'5 YR Budget'!$B69,'Position Control (Staffing)'!$P:$P) -> 390460.6575 | F69: =SUMIF('Position Control (Staffing)'!$V:$V,'5 YR Budget'!$B69,'Position Control (Staffing)'!$Q:$Q) -> 508619.4632 | G69: =SUMIF('Position Control (Staffing)'!$V:$V,'5 YR Budget'!$B69,'Position Control (Staffing)'!$R:$R) -> 626695.2475 | H69: =SUMIF('Position Control (Staffing)'!$V:$V,'5 YR Budget'!$B69,'Position Control (Staffing)'!S:S) -> 746211.0629 | I69: =SUMIF('Position Control (Staffing)'!$V:$V,'5 YR Budget'!$B69,'Position Control (Staffing)'!T:T) -> 815943.8066 | J69: =SUMIF('Position Control (Staffing)'!$V:$V,'5 YR Budget'!$B69,'Position Control (Staffing)'!U:U) -> 832262.6827
B70: Teachers - SPED | D70: =SUMIF('Position Control (Staffing)'!$V:$V,'5 YR Budget'!$B70,'Position Control (Staffing)'!$O:$O) -> 95546.445 | E70: =SUMIF('Position Control (Staffing)'!$V:$V,'5 YR Budget'!$B70,'Position Control (Staffing)'!$P:$P) -> 124957.3739 | F70: =SUMIF('Position Control (Staffing)'!$V:$V,'5 YR Budget'!$B70,'Position Control (Staffing)'!$Q:$Q) -> 127456.5214 | G70: =SUMIF('Position Control (Staffing)'!$V:$V,'5 YR Budget'!$B70,'Position Control (Staffing)'!$R:$R) -> 130005.6518 | H70: =SUMIF('Position Control (Staffing)'!$V:$V,'5 YR Budget'!$B70,'Position Control (Staffing)'!S:S) -> 161605.7648 | I70: =SUMIF('Position Control (Staffing)'!$V:$V,'5 YR Budget'!$B70,'Position Control (Staffing)'!T:T) -> 164837.8801 | J70: =SUMIF('Position Control (Staffing)'!$V:$V,'5 YR Budget'!$B70,'Position Control (Staffing)'!U:U) -> 168134.6377
B71: Teaching Assistants | D71: =SUMIF('Position Control (Staffing)'!$V:$V,'5 YR Budget'!$B71,'Position Control (Staffing)'!$O:$O) -> 116804.48 | E71: =SUMIF('Position Control (Staffing)'!$V:$V,'5 YR Budget'!$B71,'Position Control (Staffing)'!$P:$P) -> 177542.8096 | F71: =SUMIF('Position Control (Staffing)'!$V:$V,'5 YR Budget'!$B71,'Position Control (Staffing)'!$Q:$Q) -> 210294.7858 | G71: =SUMIF('Position Control (Staffing)'!$V:$V,'5 YR Budget'!$B71,'Position Control (Staffing)'!$R:$R) -> 287503.4815 | H71: =SUMIF('Position Control (Staffing)'!$V:$V,'5 YR Budget'!$B71,'Position Control (Staffing)'!S:S) -> 351655.7911 | I71: =SUMIF('Position Control (Staffing)'!$V:$V,'5 YR Budget'!$B71,'Position Control (Staffing)'!T:T) -> 358688.907 | J71: =SUMIF('Position Control (Staffing)'!$V:$V,'5 YR Budget'!$B71,'Position Control (Staffing)'!U:U) -> 365862.6851
B72: Specialty Teachers | D72: =SUMIF('Position Control (Staffing)'!$V:$V,'5 YR Budget'!$B72,'Position Control (Staffing)'!$O:$O) -> 0 | E72: =SUMIF('Position Control (Staffing)'!$V:$V,'5 YR Budget'!$B72,'Position Control (Staffing)'!$P:$P) -> 26000 | F72: =SUMIF('Position Control (Staffing)'!$V:$V,'5 YR Budget'!$B72,'Position Control (Staffing)'!$Q:$Q) -> 26520 | G72: =SUMIF('Position Control (Staffing)'!$V:$V,'5 YR Budget'!$B72,'Position Control (Staffing)'!$R:$R) -> 27050.4 | H72: =SUMIF('Position Control (Staffing)'!$V:$V,'5 YR Budget'!$B72,'Position Control (Staffing)'!S:S) -> 27591.408 | I72: =SUMIF('Position Control (Staffing)'!$V:$V,'5 YR Budget'!$B72,'Position Control (Staffing)'!T:T) -> 28143.23616 | J72: =SUMIF('Position Control (Staffing)'!$V:$V,'5 YR Budget'!$B72,'Position Control (Staffing)'!U:U) -> 28706.10088 | L72: Language & PE
B73: Substitute Teachers | D73: =SUMIF('Position Control (Staffing)'!$V:$V,'5 YR Budget'!$B73,'Position Control (Staffing)'!$O:$O) -> 11700 | E73: =SUMIF('Position Control (Staffing)'!$V:$V,'5 YR Budget'!$B73,'Position Control (Staffing)'!$P:$P) -> 11934 | F73: =SUMIF('Position Control (Staffing)'!$V:$V,'5 YR Budget'!$B73,'Position Control (Staffing)'!$Q:$Q) -> 12172.68 | G73: =SUMIF('Position Control (Staffing)'!$V:$V,'5 YR Budget'!$B73,'Position Control (Staffing)'!$R:$R) -> 12416.1336 | H73: =SUMIF('Position Control (Staffing)'!$V:$V,'5 YR Budget'!$B73,'Position Control (Staffing)'!S:S) -> 12664.45627 | I73: =SUMIF('Position Control (Staffing)'!$V:$V,'5 YR Budget'!$B73,'Position Control (Staffing)'!T:T) -> 12917.7454 | J73: =SUMIF('Position Control (Staffing)'!$V:$V,'5 YR Budget'!$B73,'Position Control (Staffing)'!U:U) -> 13176.10031
B74: Therapists & Counselors | D74: =SUMIF('Position Control (Staffing)'!$V:$V,'5 YR Budget'!$B74,'Position Control (Staffing)'!$O:$O) -> 0 | E74: =SUMIF('Position Control (Staffing)'!$V:$V,'5 YR Budget'!$B74,'Position Control (Staffing)'!$P:$P) -> 0 | F74: =SUMIF('Position Control (Staffing)'!$V:$V,'5 YR Budget'!$B74,'Position Control (Staffing)'!$Q:$Q) -> 50000 | G74: =SUMIF('Position Control (Staffing)'!$V:$V,'5 YR Budget'!$B74,'Position Control (Staffing)'!$R:$R) -> 101000 | H74: =SUMIF('Position Control (Staffing)'!$V:$V,'5 YR Budget'!$B74,'Position Control (Staffing)'!S:S) -> 103020 | I74: =SUMIF('Position Control (Staffing)'!$V:$V,'5 YR Budget'!$B74,'Position Control (Staffing)'!T:T) -> 105080.4 | J74: =SUMIF('Position Control (Staffing)'!$V:$V,'5 YR Budget'!$B74,'Position Control (Staffing)'!U:U) -> 107182.008 | L74: Social Worker
B75: Other - Instructional | D75: =SUMIF('Position Control (Staffing)'!$V:$V,'5 YR Budget'!$B75,'Position Control (Staffing)'!$O:$O) -> 0 | E75: =SUMIF('Position Control (Staffing)'!$V:$V,'5 YR Budget'!$B75,'Position Control (Staffing)'!$P:$P) -> 0 | F75: =SUMIF('Position Control (Staffing)'!$V:$V,'5 YR Budget'!$B75,'Position Control (Staffing)'!$Q:$Q) -> 0 | G75: =SUMIF('Position Control (Staffing)'!$V:$V,'5 YR Budget'!$B75,'Position Control (Staffing)'!$R:$R) -> 0 | H75: =SUMIF('Position Control (Staffing)'!$V:$V,'5 YR Budget'!$B75,'Position Control (Staffing)'!S:S) -> 0 | I75: =SUMIF('Position Control (Staffing)'!$V:$V,'5 YR Budget'!$B75,'Position Control (Staffing)'!T:T) -> 0 | J75: =SUMIF('Position Control (Staffing)'!$V:$V,'5 YR Budget'!$B75,'Position Control (Staffing)'!U:U) -> 0 | L75: Summer PD
B76: TOTAL INSTRUCTIONAL PERSONNEL COSTS | D76: =SUM(D69:D75) -> 502496.4741 | E76: 730894.841 | F76: 935063.4504 | G76: 1184670.914 | H76: 1402748.483 | I76: 1485611.975 | J76: 1515324.215
B78: NON-INSTRUCTIONAL PERSONNEL COSTS
B79: Nurse | D79: =SUMIF('Position Control (Staffing)'!$V:$V,'5 YR Budget'!$B79,'Position Control (Staffing)'!$O:$O) -> 0 | E79: =SUMIF('Position Control (Staffing)'!$V:$V,'5 YR Budget'!$B79,'Position Control (Staffing)'!$P:$P) -> 0 | F79: =SUMIF('Position Control (Staffing)'!$V:$V,'5 YR Budget'!$B79,'Position Control (Staffing)'!$Q:$Q) -> 0 | G79: =SUMIF('Position Control (Staffing)'!$V:$V,'5 YR Budget'!$B79,'Position Control (Staffing)'!$R:$R) -> 0 | H79: =SUMIF('Position Control (Staffing)'!$V:$V,'5 YR Budget'!$B79,'Position Control (Staffing)'!S:S) -> 0 | I79: =SUMIF('Position Control (Staffing)'!$V:$V,'5 YR Budget'!$B79,'Position Control (Staffing)'!T:T) -> 0 | J79: =SUMIF('Position Control (Staffing)'!$V:$V,'5 YR Budget'!$B79,'Position Control (Staffing)'!U:U) -> 0
B80: Librarian | D80: =SUMIF('Position Control (Staffing)'!$V:$V,'5 YR Budget'!$B80,'Position Control (Staffing)'!$O:$O) -> 0 | E80: =SUMIF('Position Control (Staffing)'!$V:$V,'5 YR Budget'!$B80,'Position Control (Staffing)'!$P:$P) -> 0 | F80: =SUMIF('Position Control (Staffing)'!$V:$V,'5 YR Budget'!$B80,'Position Control (Staffing)'!$Q:$Q) -> 0 | G80: =SUMIF('Position Control (Staffing)'!$V:$V,'5 YR Budget'!$B80,'Position Control (Staffing)'!$R:$R) -> 0 | H80: =SUMIF('Position Control (Staffing)'!$V:$V,'5 YR Budget'!$B80,'Position Control (Staffing)'!S:S) -> 0 | I80: =SUMIF('Position Control (Staffing)'!$V:$V,'5 YR Budget'!$B80,'Position Control (Staffing)'!T:T) -> 0 | J80: =SUMIF('Position Control (Staffing)'!$V:$V,'5 YR Budget'!$B80,'Position Control (Staffing)'!U:U) -> 0
B81: Custodian | D81: =SUMIF('Position Control (Staffing)'!$V:$V,'5 YR Budget'!$B81,'Position Control (Staffing)'!$O:$O) -> 0 | E81: =SUMIF('Position Control (Staffing)'!$V:$V,'5 YR Budget'!$B81,'Position Control (Staffing)'!$P:$P) -> 0 | F81: =SUMIF('Position Control (Staffing)'!$V:$V,'5 YR Budget'!$B81,'Position Control (Staffing)'!$Q:$Q) -> 0 | G81: =SUMIF('Position Control (Staffing)'!$V:$V,'5 YR Budget'!$B81,'Position Control (Staffing)'!$R:$R) -> 0 | H81: =SUMIF('Position Control (Staffing)'!$V:$V,'5 YR Budget'!$B81,'Position Control (Staffing)'!S:S) -> 0 | I81: =SUMIF('Position Control (Staffing)'!$V:$V,'5 YR Budget'!$B81,'Position Control (Staffing)'!T:T) -> 0 | J81: =SUMIF('Position Control (Staffing)'!$V:$V,'5 YR Budget'!$B81,'Position Control (Staffing)'!U:U) -> 0
B82: Security | D82: =SUMIF('Position Control (Staffing)'!$V:$V,'5 YR Budget'!$B82,'Position Control (Staffing)'!$O:$O) -> 0 | E82: =SUMIF('Position Control (Staffing)'!$V:$V,'5 YR Budget'!$B82,'Position Control (Staffing)'!$P:$P) -> 0 | F82: =SUMIF('Position Control (Staffing)'!$V:$V,'5 YR Budget'!$B82,'Position Control (Staffing)'!$Q:$Q) -> 0 | G82: =SUMIF('Position Control (Staffing)'!$V:$V,'5 YR Budget'!$B82,'Position Control (Staffing)'!$R:$R) -> 0 | H82: =SUMIF('Position Control (Staffing)'!$V:$V,'5 YR Budget'!$B82,'Position Control (Staffing)'!S:S) -> 0 | I82: =SUMIF('Position Control (Staffing)'!$V:$V,'5 YR Budget'!$B82,'Position Control (Staffing)'!T:T) -> 0 | J82: =SUMIF('Position Control (Staffing)'!$V:$V,'5 YR Budget'!$B82,'Position Control (Staffing)'!U:U) -> 0
B83: Other - Non-Instructional | D83: =SUMIF('Position Control (Staffing)'!$V:$V,'5 YR Budget'!$B83,'Position Control (Staffing)'!$O:$O) -> 88864 | E83: =SUMIF('Position Control (Staffing)'!$V:$V,'5 YR Budget'!$B83,'Position Control (Staffing)'!$P:$P) -> 90641.28 | F83: =SUMIF('Position Control (Staffing)'!$V:$V,'5 YR Budget'!$B83,'Position Control (Staffing)'!$Q:$Q) -> 98342.1056 | G83: =SUMIF('Position Control (Staffing)'!$V:$V,'5 YR Budget'!$B83,'Position Control (Staffing)'!$R:$R) -> 100308.9477 | H83: =SUMIF('Position Control (Staffing)'!$V:$V,'5 YR Budget'!$B83,'Position Control (Staffing)'!S:S) -> 125867.1267 | I83: =SUMIF('Position Control (Staffing)'!$V:$V,'5 YR Budget'!$B83,'Position Control (Staffing)'!T:T) -> 128384.4692 | J83: =SUMIF('Position Control (Staffing)'!$V:$V,'5 YR Budget'!$B83,'Position Control (Staffing)'!U:U) -> 130952.1586 | L83: Lunch server & Nurse
B84: TOTAL NON-INSTRUCTIONAL PERSONNEL COSTS | D84: =SUM(D79:D83) -> 88864 | E84: 90641.28 | F84: 98342.1056 | G84: 100308.9477 | H84: 125867.1267 | I84: 128384.4692 | J84: 130952.1586
B86: TOTAL PERSONNEL SALARY COSTS | D86: =D66+D76+D84 -> 844489.4891 | E86: 1079727.716 | F86: 1296760.983 | G86: 1613602.398 | H86: 1863810.596 | I86: 1955895.331 | J86: =J66+J76+J84 -> 1995013.237
B88: =Assumptions!C42 -> PAYROLL TAXES AND BENEFITS
B89: =Assumptions!C43 -> Social Security | D89: =INDEX(Expense_Assump,MATCH('5 YR Budget'!$B89,Assumptions!$C:$C,0),MATCH('5 YR Budget'!D$12,Assumptions!$C$2:$I$2,0))*D$86 -> 52358.34832 | E89: =INDEX(Expense_Assump,MATCH('5 YR Budget'!$B89,Assumptions!$C:$C,0),MATCH('5 YR Budget'!E$12,Assumptions!$C$2:$I$2,0))*E$86 -> 66943.11841 | F89: =INDEX(Expense_Assump,MATCH('5 YR Budget'!$B89,Assumptions!$C:$C,0),MATCH('5 YR Budget'!F$12,Assumptions!$C$2:$I$2,0))*F$86 -> 80399.18096 | G89: =INDEX(Expense_Assump,MATCH('5 YR Budget'!$B89,Assumptions!$C:$C,0),MATCH('5 YR Budget'!G$12,Assumptions!$C$2:$I$2,0))*G$86 -> 100043.3487 | H89: =INDEX(Expense_Assump,MATCH('5 YR Budget'!$B89,Assumptions!$C:$C,0),MATCH('5 YR Budget'!H$12,Assumptions!$C$2:$I$2,0))*H$86 -> 115556.257 | I89: =INDEX(Expense_Assump,MATCH('5 YR Budget'!$B89,Assumptions!$C:$C,0),MATCH('5 YR Budget'!I$12,Assumptions!$C$2:$K$2,0))*I$86 -> 121265.5105 | J89: =INDEX(Expense_Assump,MATCH('5 YR Budget'!$B89,Assumptions!$C:$C,0),MATCH('5 YR Budget'!J$12,Assumptions!$C$2:$K$2,0))*J$86 -> 123690.8207
B90: =Assumptions!C44 -> Medicare | D90: =INDEX(Expense_Assump,MATCH('5 YR Budget'!$B90,Assumptions!$C:$C,0),MATCH('5 YR Budget'!D$12,Assumptions!$C$2:$I$2,0))*D$86 -> 12245.09759 | E90: =INDEX(Expense_Assump,MATCH('5 YR Budget'!$B90,Assumptions!$C:$C,0),MATCH('5 YR Budget'!E$12,Assumptions!$C$2:$I$2,0))*E$86 -> 15656.05189 | F90: =INDEX(Expense_Assump,MATCH('5 YR Budget'!$B90,Assumptions!$C:$C,0),MATCH('5 YR Budget'!F$12,Assumptions!$C$2:$I$2,0))*F$86 -> 18803.03426 | G90: =INDEX(Expense_Assump,MATCH('5 YR Budget'!$B90,Assumptions!$C:$C,0),MATCH('5 YR Budget'!G$12,Assumptions!$C$2:$I$2,0))*G$86 -> 23397.23477 | H90: =INDEX(Expense_Assump,MATCH('5 YR Budget'!$B90,Assumptions!$C:$C,0),MATCH('5 YR Budget'!H$12,Assumptions!$C$2:$I$2,0))*H$86 -> 27025.25365 | I90: =INDEX(Expense_Assump,MATCH('5 YR Budget'!$B90,Assumptions!$C:$C,0),MATCH('5 YR Budget'!I$12,Assumptions!$C$2:$K$2,0))*I$86 -> 28360.48229 | J90: =INDEX(Expense_Assump,MATCH('5 YR Budget'!$B90,Assumptions!$C:$C,0),MATCH('5 YR Budget'!J$12,Assumptions!$C$2:$K$2,0))*J$86 -> 28927.69194
B91: =Assumptions!C45 -> State Unemployment | D91: =INDEX(Expense_Assump,MATCH('5 YR Budget'!$B91,Assumptions!$C:$C,0),MATCH('5 YR Budget'!D$12,Assumptions!$C$2:$I$2,0))*D$86 -> 11654.59688 | E91: =INDEX(Expense_Assump,MATCH('5 YR Budget'!$B91,Assumptions!$C:$C,0),MATCH('5 YR Budget'!E$12,Assumptions!$C$2:$I$2,0))*E$86 -> 14901.06322 | F91: =INDEX(Expense_Assump,MATCH('5 YR Budget'!$B91,Assumptions!$C:$C,0),MATCH('5 YR Budget'!F$12,Assumptions!$C$2:$I$2,0))*F$86 -> 17896.28728 | G91: =INDEX(Expense_Assump,MATCH('5 YR Budget'!$B91,Assumptions!$C:$C,0),MATCH('5 YR Budget'!G$12,Assumptions!$C$2:$I$2,0))*G$86 -> 22268.93965 | H91: =INDEX(Expense_Assump,MATCH('5 YR Budget'!$B91,Assumptions!$C:$C,0),MATCH('5 YR Budget'!H$12,Assumptions!$C$2:$I$2,0))*H$86 -> 25722.00298 | I91: =INDEX(Expense_Assump,MATCH('5 YR Budget'!$B91,Assumptions!$C:$C,0),MATCH('5 YR Budget'!I$12,Assumptions!$C$2:$K$2,0))*I$86 -> 26992.84231 | J91: =INDEX(Expense_Assump,MATCH('5 YR Budget'!$B91,Assumptions!$C:$C,0),MATCH('5 YR Budget'!J$12,Assumptions!$C$2:$K$2,0))*J$86 -> 27532.69915
B92: =Assumptions!C46 -> Paid Family Medical Leave (State) | D92: =INDEX(Expense_Assump,MATCH('5 YR Budget'!$B92,Assumptions!$C:$C,0),MATCH('5 YR Budget'!D$12,Assumptions!$C$2:$I$2,0))*D$86 -> 0 | E92: =INDEX(Expense_Assump,MATCH('5 YR Budget'!$B92,Assumptions!$C:$C,0),MATCH('5 YR Budget'!E$12,Assumptions!$C$2:$I$2,0))*E$86 -> 0 | F92: =INDEX(Expense_Assump,MATCH('5 YR Budget'!$B92,Assumptions!$C:$C,0),MATCH('5 YR Budget'!F$12,Assumptions!$C$2:$I$2,0))*F$86 -> 0 | G92: =INDEX(Expense_Assump,MATCH('5 YR Budget'!$B92,Assumptions!$C:$C,0),MATCH('5 YR Budget'!G$12,Assumptions!$C$2:$I$2,0))*G$86 -> 0 | H92: =INDEX(Expense_Assump,MATCH('5 YR Budget'!$B92,Assumptions!$C:$C,0),MATCH('5 YR Budget'!H$12,Assumptions!$C$2:$K$2,0))*H$86 -> 0 | I92: =INDEX(Expense_Assump,MATCH('5 YR Budget'!$B92,Assumptions!$C:$C,0),MATCH('5 YR Budget'!I$12,Assumptions!$C$2:$K$2,0))*I$86 -> 0 | J92: =INDEX(Expense_Assump,MATCH('5 YR Budget'!$B92,Assumptions!$C:$C,0),MATCH('5 YR Budget'!J$12,Assumptions!$C$2:$K$2,0))*J$86 -> 0
B93: =Assumptions!C47 -> Worker's Compensation Insurance | D93: =INDEX(Expense_Assump,MATCH('5 YR Budget'!$B93,Assumptions!$C:$C,0),MATCH('5 YR Budget'!D$12,Assumptions!$C$2:$I$2,0))*D$86 -> 3800.202701 | E93: =INDEX(Expense_Assump,MATCH('5 YR Budget'!$B93,Assumptions!$C:$C,0),MATCH('5 YR Budget'!E$12,Assumptions!$C$2:$I$2,0))*E$86 -> 4858.774724 | F93: =INDEX(Expense_Assump,MATCH('5 YR Budget'!$B93,Assumptions!$C:$C,0),MATCH('5 YR Budget'!F$12,Assumptions!$C$2:$I$2,0))*F$86 -> 5835.424424 | G93: =INDEX(Expense_Assump,MATCH('5 YR Budget'!$B93,Assumptions!$C:$C,0),MATCH('5 YR Budget'!G$12,Assumptions!$C$2:$I$2,0))*G$86 -> 7261.21079 | H93: =INDEX(Expense_Assump,MATCH('5 YR Budget'!$B93,Assumptions!$C:$C,0),MATCH('5 YR Budget'!H$12,Assumptions!$C$2:$I$2,0))*H$86 -> 8387.147683 | I93: =INDEX(Expense_Assump,MATCH('5 YR Budget'!$B93,Assumptions!$C:$C,0),MATCH('5 YR Budget'!I$12,Assumptions!$C$2:$K$2,0))*I$86 -> 8801.528988 | J93: =INDEX(Expense_Assump,MATCH('5 YR Budget'!$B93,Assumptions!$C:$C,0),MATCH('5 YR Budget'!J$12,Assumptions!$C$2:$K$2,0))*J$86 -> 8977.559568
B94: =Assumptions!C48 -> Federal Unemployment | D94: =INDEX(Expense_Assump,MATCH('5 YR Budget'!$B94,Assumptions!$C:$C,0),MATCH('5 YR Budget'!D$12,Assumptions!$C$2:$I$2,0))*D$86 -> 0 | E94: =INDEX(Expense_Assump,MATCH('5 YR Budget'!$B94,Assumptions!$C:$C,0),MATCH('5 YR Budget'!E$12,Assumptions!$C$2:$I$2,0))*E$86 -> 0 | F94: =INDEX(Expense_Assump,MATCH('5 YR Budget'!$B94,Assumptions!$C:$C,0),MATCH('5 YR Budget'!F$12,Assumptions!$C$2:$I$2,0))*F$86 -> 0 | G94: =INDEX(Expense_Assump,MATCH('5 YR Budget'!$B94,Assumptions!$C:$C,0),MATCH('5 YR Budget'!G$12,Assumptions!$C$2:$I$2,0))*G$86 -> 0 | H94: =INDEX(Expense_Assump,MATCH('5 YR Budget'!$B94,Assumptions!$C:$C,0),MATCH('5 YR Budget'!H$12,Assumptions!$C$2:$I$2,0))*H$86 -> 0 | I94: =INDEX(Expense_Assump,MATCH('5 YR Budget'!$B94,Assumptions!$C:$C,0),MATCH('5 YR Budget'!I$12,Assumptions!$C$2:$K$2,0))*I$86 -> 0 | J94: =INDEX(Expense_Assump,MATCH('5 YR Budget'!$B94,Assumptions!$C:$C,0),MATCH('5 YR Budget'!J$12,Assumptions!$C$2:$K$2,0))*J$86 -> 0
B95: =Assumptions!C49 -> SEBB | D95: =+Assumptions!AK48 -> 210528 | E95: =+Assumptions!AL48 -> 272448 | F95: =+Assumptions!AM48 -> 334368 | G95: =+Assumptions!AN48 -> 408672 | H95: =+Assumptions!AO48 -> 470592 | I95: =+Assumptions!AP48 -> 482976 | J95: =+Assumptions!AQ48 -> 482976
B96: =Assumptions!C50 -> SERS (Classified Retirement) | D96: =+SUMIF('Position Control (Staffing)'!$X:$X,"Class",'Position Control (Staffing)'!O:O)*INDEX(Expense_Assump,MATCH('5 YR Budget'!$B96,Assumptions!$C:$C,0),MATCH('5 YR Budget'!D$12,Assumptions!$C$2:$I$2,0)) -> 33312.81793 | E96: =+SUMIF('Position Control (Staffing)'!$X:$X,"Class",'Position Control (Staffing)'!P:P)*INDEX(Expense_Assump,MATCH('5 YR Budget'!$B96,Assumptions!$C:$C,0),MATCH('5 YR Budget'!E$12,Assumptions!$C$2:$I$2,0)) -> 38682.52656 | F96: =+SUMIF('Position Control (Staffing)'!$X:$X,"Class",'Position Control (Staffing)'!Q:Q)*INDEX(Expense_Assump,MATCH('5 YR Budget'!$B96,Assumptions!$C:$C,0),MATCH('5 YR Budget'!F$12,Assumptions!$C$2:$I$2,0)) -> 43333.52486 | G96: =+SUMIF('Position Control (Staffing)'!$X:$X,"Class",'Position Control (Staffing)'!R:R)*INDEX(Expense_Assump,MATCH('5 YR Budget'!$B96,Assumptions!$C:$C,0),MATCH('5 YR Budget'!G$12,Assumptions!$C$2:$I$2,0)) -> 55670.28099 | H96: =+SUMIF('Position Control (Staffing)'!$X:$X,"Class",'Position Control (Staffing)'!S:S)*INDEX(Expense_Assump,MATCH('5 YR Budget'!$B96,Assumptions!$C:$C,0),MATCH('5 YR Budget'!H$12,Assumptions!$C$2:$I$2,0)) -> 65839.63013 | I96: =+SUMIF('Position Control (Staffing)'!$X:$X,"Class",'Position Control (Staffing)'!T:T)*VLOOKUP($B96,Expense_Assump,5,FALSE) -> 67156.42273 | J96: =+SUMIF('Position Control (Staffing)'!$X:$X,"Class",'Position Control (Staffing)'!U:U)*VLOOKUP($B96,Expense_Assump,5,FALSE) -> 68499.55119 | P96: =D96+D97 -> 112167.5142 | Q96: =E96+E97 -> 96459.43758 | R96: 115174.1163 | S96: 165408.5626 | T96: 191370.8684
B97: =Assumptions!C51 -> TRS (Certificated Retirement) | D97: =+SUMIF('Position Control (Staffing)'!$X:$X,"Cert",'Position Control (Staffing)'!O:O)*INDEX(Expense_Assump,MATCH('5 YR Budget'!$B97,Assumptions!$C:$C,0),MATCH('5 YR Budget'!D$12,Assumptions!$C$2:$I$2,0)) -> 78854.6963 | E97: =+SUMIF('Position Control (Staffing)'!$X:$X,"Cert",'Position Control (Staffing)'!P:P)*INDEX(Expense_Assump,MATCH('5 YR Budget'!$B97,Assumptions!$C:$C,0),MATCH('5 YR Budget'!E$12,Assumptions!$C$2:$I$2,0)) -> 57776.91101 | F97: =+SUMIF('Position Control (Staffing)'!$X:$X,"Cert",'Position Control (Staffing)'!Q:Q)*INDEX(Expense_Assump,MATCH('5 YR Budget'!$B97,Assumptions!$C:$C,0),MATCH('5 YR Budget'!F$12,Assumptions!$C$2:$I$2,0)) -> 71840.59143 | G97: =+SUMIF('Position Control (Staffing)'!$X:$X,"Cert",'Position Control (Staffing)'!R:R)*INDEX(Expense_Assump,MATCH('5 YR Budget'!$B97,Assumptions!$C:$C,0),MATCH('5 YR Budget'!G$12,Assumptions!$C$2:$I$2,0)) -> 109738.2816 | H97: =+SUMIF('Position Control (Staffing)'!$X:$X,"Cert",'Position Control (Staffing)'!S:S)*INDEX(Expense_Assump,MATCH('5 YR Budget'!$B97,Assumptions!$C:$C,0),MATCH('5 YR Budget'!H$12,Assumptions!$C$2:$I$2,0)) -> 125531.2383 | I97: =+SUMIF('Position Control (Staffing)'!$X:$X,"Cert",'Position Control (Staffing)'!T:T)*VLOOKUP($B97,Expense_Assump,5,FALSE) -> 107485.7858 | J97: =+SUMIF('Position Control (Staffing)'!$X:$X,"Cert",'Position Control (Staffing)'!U:U)*VLOOKUP($B97,Expense_Assump,5,FALSE) -> 109635.5016
B98: =Assumptions!C52 -> TOTAL PAYROLL TAXES AND BENEFITS | D98: =SUM(D89:D97) -> 402753.7597 | E98: 471266.4458 | F98: 572476.0432 | G98: 727051.2965 | H98: 838653.5297 | I98: 843038.5727 | J98: 850239.8241
B100: =Assumptions!C54 -> TOTAL PERSONNEL, TAX & BENEFIT EXPENSES | D100: =D86+D98 -> 1247243.249 | E100: 1550994.162 | F100: 1869237.026 | G100: 2340653.694 | H100: 2702464.126 | I100: 2798933.903 | J100: =J86+J98 -> 2845253.061 | L100: =J100/$J$5 -> 0.673914775
D101: =D100/D4 -> 0.5691476068 | E101: =E100/E4 -> 0.6002943474 | F101: 0.6296209184 | G101: 0.5030038598 | H101: 0.5461690868 | I101: 0.5163611339 | J101: 2.408462555
B102: =Assumptions!C56 -> CONTRACTED SERVICES
B103: =Assumptions!C57 -> Accounting / Audit | D103: =INDEX(Expense_Assump,MATCH('5 YR Budget'!$B103,Assumptions!$C:$C,0),MATCH('5 YR Budget'!D$12,Assumptions!$C$2:$I$2,0)) -> 18360 | E103: =INDEX(Expense_Assump,MATCH('5 YR Budget'!$B103,Assumptions!$C:$C,0),MATCH('5 YR Budget'!E$12,Assumptions!$C$2:$I$2,0)) -> 18727.2 | F103: =INDEX(Expense_Assump,MATCH('5 YR Budget'!$B103,Assumptions!$C:$C,0),MATCH('5 YR Budget'!F$12,Assumptions!$C$2:$I$2,0)) -> 19101.744 | G103: =INDEX(Expense_Assump,MATCH('5 YR Budget'!$B103,Assumptions!$C:$C,0),MATCH('5 YR Budget'!G$12,Assumptions!$C$2:$I$2,0)) -> 19483.77888 | H103: =INDEX(Expense_Assump,MATCH('5 YR Budget'!$B103,Assumptions!$C:$C,0),MATCH('5 YR Budget'!H$12,Assumptions!$C$2:$I$2,0)) -> 19873.45446 | I103: =INDEX(Expense_Assump,MATCH('5 YR Budget'!$B103,Assumptions!$C:$C,0),MATCH('5 YR Budget'!I$12,Assumptions!$C$2:$K$2,0)) -> 20270.92355 | J103: =INDEX(Expense_Assump,MATCH('5 YR Budget'!$B103,Assumptions!$C:$C,0),MATCH('5 YR Budget'!J$12,Assumptions!$C$2:$K$2,0)) -> 20676.34202 | L103: =+Assumptions!M57 -> SAO ($12k) + CPA ($6k) audits
B104: =Assumptions!C58 -> Legal | D104: =INDEX(Expense_Assump,MATCH('5 YR Budget'!$B104,Assumptions!$C:$C,0),MATCH('5 YR Budget'!D$12,Assumptions!$C$2:$I$2,0)) -> 5000 | E104: =INDEX(Expense_Assump,MATCH('5 YR Budget'!$B104,Assumptions!$C:$C,0),MATCH('5 YR Budget'!E$12,Assumptions!$C$2:$I$2,0)) -> 5000 | F104: =INDEX(Expense_Assump,MATCH('5 YR Budget'!$B104,Assumptions!$C:$C,0),MATCH('5 YR Budget'!F$12,Assumptions!$C$2:$I$2,0)) -> 5000 | G104: =INDEX(Expense_Assump,MATCH('5 YR Budget'!$B104,Assumptions!$C:$C,0),MATCH('5 YR Budget'!G$12,Assumptions!$C$2:$I$2,0)) -> 5000 | H104: =INDEX(Expense_Assump,MATCH('5 YR Budget'!$B104,Assumptions!$C:$C,0),MATCH('5 YR Budget'!H$12,Assumptions!$C$2:$I$2,0)) -> 5000 | I104: =INDEX(Expense_Assump,MATCH('5 YR Budget'!$B104,Assumptions!$C:$C,0),MATCH('5 YR Budget'!I$12,Assumptions!$C$2:$K$2,0)) -> 5000 | J104: =INDEX(Expense_Assump,MATCH('5 YR Budget'!$B104,Assumptions!$C:$C,0),MATCH('5 YR Budget'!J$12,Assumptions!$C$2:$K$2,0)) -> 5000 | L104: =+Assumptions!M58 -> Flat yearly "in case" amount
B105: =Assumptions!C59 -> Oversight Fee (3%) | D105: =SUM(D22,D23,D27,D28,D29,D30,D32)*INDEX(Expense_Assump,MATCH('5 YR Budget'!$B105,Assumptions!$C:$C,0),MATCH('5 YR Budget'!D$12,Assumptions!$C$2:$I$2,0)) -> 46033.1011 | E105: =SUM(E22,E23,E27,E28,E29,E30,E32)*INDEX(Expense_Assump,MATCH('5 YR Budget'!$B105,Assumptions!$C:$C,0),MATCH('5 YR Budget'!E$12,Assumptions!$C$2:$I$2,0)) -> 62769.95093 | F105: =SUM(F22,F23,F27,F28,F29,F30,F32)*INDEX(Expense_Assump,MATCH('5 YR Budget'!$B105,Assumptions!$C:$C,0),MATCH('5 YR Budget'!F$12,Assumptions!$C$2:$I$2,0)) -> 75345.97495 | G105: =SUM(G22,G23,G27,G28,G29,G30,G32)*INDEX(Expense_Assump,MATCH('5 YR Budget'!$B105,Assumptions!$C:$C,0),MATCH('5 YR Budget'!G$12,Assumptions!$C$2:$I$2,0)) -> 131223.025 | H105: =SUM(H22,H23,H27,H28,H29,H30,H32)*INDEX(Expense_Assump,MATCH('5 YR Budget'!$B105,Assumptions!$C:$C,0),MATCH('5 YR Budget'!H$12,Assumptions!$C$2:$I$2,0)) -> 139126.0065 | I105: =SUM(I22,I23,I27,I28,I29,I30,I32)*INDEX(Expense_Assump,MATCH('5 YR Budget'!$B105,Assumptions!$C:$C,0),MATCH('5 YR Budget'!I$12,Assumptions!$C$2:$K$2,0)) -> 145770.9053 | J105: =SUM(J22,J23,J27,J28,J29,J30,J32)*INDEX(Expense_Assump,MATCH('5 YR Budget'!$B105,Assumptions!$C:$C,0),MATCH('5 YR Budget'!J$12,Assumptions!$C$2:$K$2,0)) -> 16976.99679 | L105: =+Assumptions!M59 -> Calculates as a % of total revenue for lines 3100, 3121, 4121, 4155, 4165, 4174 & 4199
B106: =Assumptions!C60 -> Substitute Teachers | D106: =INDEX(Expense_Assump,MATCH('5 YR Budget'!$B106,Assumptions!$C:$C,0),MATCH('5 YR Budget'!D$12,Assumptions!$C$2:$I$2,0)) -> 0 | E106: =INDEX(Expense_Assump,MATCH('5 YR Budget'!$B106,Assumptions!$C:$C,0),MATCH('5 YR Budget'!E$12,Assumptions!$C$2:$I$2,0)) -> 0 | F106: =INDEX(Expense_Assump,MATCH('5 YR Budget'!$B106,Assumptions!$C:$C,0),MATCH('5 YR Budget'!F$12,Assumptions!$C$2:$I$2,0)) -> 0 | G106: =INDEX(Expense_Assump,MATCH('5 YR Budget'!$B106,Assumptions!$C:$C,0),MATCH('5 YR Budget'!G$12,Assumptions!$C$2:$I$2,0)) -> 0 | H106: =INDEX(Expense_Assump,MATCH('5 YR Budget'!$B106,Assumptions!$C:$C,0),MATCH('5 YR Budget'!H$12,Assumptions!$C$2:$I$2,0)) -> 0 | I106: =INDEX(Expense_Assump,MATCH('5 YR Budget'!$B106,Assumptions!$C:$C,0),MATCH('5 YR Budget'!I$12,Assumptions!$C$2:$K$2,0)) -> 0 | J106: =INDEX(Expense_Assump,MATCH('5 YR Budget'!$B106,Assumptions!$C:$C,0),MATCH('5 YR Budget'!J$12,Assumptions!$C$2:$K$2,0)) -> 0 | L106: Subs handled in-house
B107: =Assumptions!C61 -> Student Health | D107: =INDEX(Expense_Assump,MATCH('5 YR Budget'!$B107,Assumptions!$C:$C,0),MATCH('5 YR Budget'!D$12,Assumptions!$C$2:$I$2,0)) -> 0 | E107: =INDEX(Expense_Assump,MATCH('5 YR Budget'!$B107,Assumptions!$C:$C,0),MATCH('5 YR Budget'!E$12,Assumptions!$C$2:$I$2,0)) -> 0 | F107: =INDEX(Expense_Assump,MATCH('5 YR Budget'!$B107,Assumptions!$C:$C,0),MATCH('5 YR Budget'!F$12,Assumptions!$C$2:$I$2,0)) -> 0 | G107: =INDEX(Expense_Assump,MATCH('5 YR Budget'!$B107,Assumptions!$C:$C,0),MATCH('5 YR Budget'!G$12,Assumptions!$C$2:$I$2,0)) -> 0 | H107: =INDEX(Expense_Assump,MATCH('5 YR Budget'!$B107,Assumptions!$C:$C,0),MATCH('5 YR Budget'!H$12,Assumptions!$C$2:$I$2,0)) -> 0 | I107: =INDEX(Expense_Assump,MATCH('5 YR Budget'!$B107,Assumptions!$C:$C,0),MATCH('5 YR Budget'!I$12,Assumptions!$C$2:$K$2,0)) -> 0 | J107: =INDEX(Expense_Assump,MATCH('5 YR Budget'!$B107,Assumptions!$C:$C,0),MATCH('5 YR Budget'!J$12,Assumptions!$C$2:$K$2,0)) -> 0
B108: =Assumptions!C62 -> Back Office | D108: =INDEX(Expense_Assump,MATCH('5 YR Budget'!$B108,Assumptions!$C:$C,0),MATCH('5 YR Budget'!D$12,Assumptions!$C$2:$I$2,0)) -> 115800 | E108: =INDEX(Expense_Assump,MATCH('5 YR Budget'!$B108,Assumptions!$C:$C,0),MATCH('5 YR Budget'!E$12,Assumptions!$C$2:$I$2,0)) -> 118695 | F108: =INDEX(Expense_Assump,MATCH('5 YR Budget'!$B108,Assumptions!$C:$C,0),MATCH('5 YR Budget'!F$12,Assumptions!$C$2:$I$2,0)) -> 121662.375 | G108: =INDEX(Expense_Assump,MATCH('5 YR Budget'!$B108,Assumptions!$C:$C,0),MATCH('5 YR Budget'!G$12,Assumptions!$C$2:$I$2,0)) -> 124703.9344 | H108: =INDEX(Expense_Assump,MATCH('5 YR Budget'!$B108,Assumptions!$C:$C,0),MATCH('5 YR Budget'!H$12,Assumptions!$C$2:$I$2,0)) -> 127821.5327 | I108: =INDEX(Expense_Assump,MATCH('5 YR Budget'!$B108,Assumptions!$C:$C,0),MATCH('5 YR Budget'!I$12,Assumptions!$C$2:$K$2,0)) -> 131017.0711 | J108: =INDEX(Expense_Assump,MATCH('5 YR Budget'!$B108,Assumptions!$C:$C,0),MATCH('5 YR Budget'!J$12,Assumptions!$C$2:$K$2,0)) -> 134292.4978 | L108: JGP + SIA
B109: =Assumptions!C63 -> Special Ed | D109: =INDEX(Expense_Assump,MATCH('5 YR Budget'!$B109,Assumptions!$C:$C,0),MATCH('5 YR Budget'!D$12,Assumptions!$C$2:$I$2,0)) -> 38651 | E109: =INDEX(Expense_Assump,MATCH('5 YR Budget'!$B109,Assumptions!$C:$C,0),MATCH('5 YR Budget'!E$12,Assumptions!$C$2:$I$2,0)) -> 39297.275 | F109: =INDEX(Expense_Assump,MATCH('5 YR Budget'!$B109,Assumptions!$C:$C,0),MATCH('5 YR Budget'!F$12,Assumptions!$C$2:$I$2,0)) -> 35759.70687 | G109: =INDEX(Expense_Assump,MATCH('5 YR Budget'!$B109,Assumptions!$C:$C,0),MATCH('5 YR Budget'!G$12,Assumptions!$C$2:$I$2,0)) -> 36438.69955 | H109: =INDEX(Expense_Assump,MATCH('5 YR Budget'!$B109,Assumptions!$C:$C,0),MATCH('5 YR Budget'!H$12,Assumptions!$C$2:$I$2,0)) -> 37134.66704 | I109: =INDEX(Expense_Assump,MATCH('5 YR Budget'!$B109,Assumptions!$C:$C,0),MATCH('5 YR Budget'!I$12,Assumptions!$C$2:$K$2,0)) -> 37848.03371 | J109: =INDEX(Expense_Assump,MATCH('5 YR Budget'!$B109,Assumptions!$C:$C,0),MATCH('5 YR Budget'!J$12,Assumptions!$C$2:$K$2,0)) -> 38579.23455 | L109: Presence Learning, TMC contracts; other misc SPED costs
B110: =Assumptions!C64 -> Program Support / PD | D110: =INDEX(Expense_Assump,MATCH('5 YR Budget'!$B110,Assumptions!$C:$C,0),MATCH('5 YR Budget'!D$12,Assumptions!$C$2:$I$2,0)) -> 18850 | E110: =INDEX(Expense_Assump,MATCH('5 YR Budget'!$B110,Assumptions!$C:$C,0),MATCH('5 YR Budget'!E$12,Assumptions!$C$2:$I$2,0)) -> 6350 | F110: =INDEX(Expense_Assump,MATCH('5 YR Budget'!$B110,Assumptions!$C:$C,0),MATCH('5 YR Budget'!F$12,Assumptions!$C$2:$I$2,0)) -> 6508.75 | G110: =INDEX(Expense_Assump,MATCH('5 YR Budget'!$B110,Assumptions!$C:$C,0),MATCH('5 YR Budget'!G$12,Assumptions!$C$2:$I$2,0)) -> 6671.46875 | H110: =INDEX(Expense_Assump,MATCH('5 YR Budget'!$B110,Assumptions!$C:$C,0),MATCH('5 YR Budget'!H$12,Assumptions!$C$2:$I$2,0)) -> 6838.255469 | I110: =INDEX(Expense_Assump,MATCH('5 YR Budget'!$B110,Assumptions!$C:$C,0),MATCH('5 YR Budget'!I$12,Assumptions!$C$2:$K$2,0)) -> 7009.211855 | J110: =INDEX(Expense_Assump,MATCH('5 YR Budget'!$B110,Assumptions!$C:$C,0),MATCH('5 YR Budget'!J$12,Assumptions!$C$2:$K$2,0)) -> 7184.442152 | L110: NCMPS, Nautilus, TSS
B111: Afterschool | D111: =INDEX(Expense_Assump,MATCH('5 YR Budget'!$B111,Assumptions!$C:$C,0),MATCH('5 YR Budget'!D$12,Assumptions!$C$2:$I$2,0)) -> 29536 | E111: =INDEX(Expense_Assump,MATCH('5 YR Budget'!$B111,Assumptions!$C:$C,0),MATCH('5 YR Budget'!E$12,Assumptions!$C$2:$I$2,0)) -> 30274.4 | F111: =INDEX(Expense_Assump,MATCH('5 YR Budget'!$B111,Assumptions!$C:$C,0),MATCH('5 YR Budget'!F$12,Assumptions!$C$2:$I$2,0)) -> 31031.26 | G111: =INDEX(Expense_Assump,MATCH('5 YR Budget'!$B111,Assumptions!$C:$C,0),MATCH('5 YR Budget'!G$12,Assumptions!$C$2:$I$2,0)) -> 31807.0415 | H111: =INDEX(Expense_Assump,MATCH('5 YR Budget'!$B111,Assumptions!$C:$C,0),MATCH('5 YR Budget'!H$12,Assumptions!$C$2:$I$2,0)) -> 32602.21754 | I111: =INDEX(Expense_Assump,MATCH('5 YR Budget'!$B111,Assumptions!$C:$C,0),MATCH('5 YR Budget'!I$12,Assumptions!$C$2:$K$2,0)) -> 33417.27298 | J111: =INDEX(Expense_Assump,MATCH('5 YR Budget'!$B111,Assumptions!$C:$C,0),MATCH('5 YR Budget'!J$12,Assumptions!$C$2:$K$2,0)) -> 34252.7048 | L111: YMCA
B112: Food Service Management Company | D112: =INDEX(Expense_Assump,MATCH('5 YR Budget'!$B112,Assumptions!$C:$C,0),MATCH('5 YR Budget'!D$12,Assumptions!$C$2:$I$2,0)) -> 0 | E112: =INDEX(Expense_Assump,MATCH('5 YR Budget'!$B112,Assumptions!$C:$C,0),MATCH('5 YR Budget'!E$12,Assumptions!$C$2:$I$2,0)) -> 0 | F112: =INDEX(Expense_Assump,MATCH('5 YR Budget'!$B112,Assumptions!$C:$C,0),MATCH('5 YR Budget'!F$12,Assumptions!$C$2:$I$2,0)) -> 0 | G112: =INDEX(Expense_Assump,MATCH('5 YR Budget'!$B112,Assumptions!$C:$C,0),MATCH('5 YR Budget'!G$12,Assumptions!$C$2:$I$2,0)) -> 0 | H112: =INDEX(Expense_Assump,MATCH('5 YR Budget'!$B112,Assumptions!$C:$C,0),MATCH('5 YR Budget'!H$12,Assumptions!$C$2:$I$2,0)) -> 0 | I112: =INDEX(Expense_Assump,MATCH('5 YR Budget'!$B112,Assumptions!$C:$C,0),MATCH('5 YR Budget'!I$12,Assumptions!$C$2:$K$2,0)) -> 0 | J112: =INDEX(Expense_Assump,MATCH('5 YR Budget'!$B112,Assumptions!$C:$C,0),MATCH('5 YR Budget'!J$12,Assumptions!$C$2:$K$2,0)) -> 0 | L112: HSFC contract ended
B113: =Assumptions!C67 -> Tech support | D113: =INDEX(Expense_Assump,MATCH('5 YR Budget'!$B113,Assumptions!$C:$C,0),MATCH('5 YR Budget'!D$12,Assumptions!$C$2:$I$2,0)) -> 0 | E113: =INDEX(Expense_Assump,MATCH('5 YR Budget'!$B113,Assumptions!$C:$C,0),MATCH('5 YR Budget'!E$12,Assumptions!$C$2:$I$2,0)) -> 0 | F113: =INDEX(Expense_Assump,MATCH('5 YR Budget'!$B113,Assumptions!$C:$C,0),MATCH('5 YR Budget'!F$12,Assumptions!$C$2:$I$2,0)) -> 0 | G113: =INDEX(Expense_Assump,MATCH('5 YR Budget'!$B113,Assumptions!$C:$C,0),MATCH('5 YR Budget'!G$12,Assumptions!$C$2:$I$2,0)) -> 0 | H113: =INDEX(Expense_Assump,MATCH('5 YR Budget'!$B113,Assumptions!$C:$C,0),MATCH('5 YR Budget'!H$12,Assumptions!$C$2:$I$2,0)) -> 0 | I113: =INDEX(Expense_Assump,MATCH('5 YR Budget'!$B113,Assumptions!$C:$C,0),MATCH('5 YR Budget'!I$12,Assumptions!$C$2:$K$2,0)) -> 0 | J113: =INDEX(Expense_Assump,MATCH('5 YR Budget'!$B113,Assumptions!$C:$C,0),MATCH('5 YR Budget'!J$12,Assumptions!$C$2:$K$2,0)) -> 0 | L113: Galexis
B114: =Assumptions!C68 -> TOTAL CONTRACTED SERVICES | D114: =SUM(D103:D113) -> 272230.1011 | E114: =SUM(E103:E113) -> 281113.8259 | F114: 294409.8108 | G114: 355327.9481 | H114: 368396.1338 | I114: =SUM(I103:I113) -> 380333.4184 | J114: =SUM(J103:J113) -> 256962.2181 | L114: =J114/$J$5 -> 0.06086299942
B116: =Assumptions!C70 -> SCHOOL OPERATIONS
B117: =Assumptions!C71 -> Board Expenses | D117: =INDEX(Expense_Assump,MATCH('5 YR Budget'!$B117,Assumptions!$C:$C,0),MATCH('5 YR Budget'!D$12,Assumptions!$C$2:$I$2,0)) -> 11250 | E117: =INDEX(Expense_Assump,MATCH('5 YR Budget'!$B117,Assumptions!$C:$C,0),MATCH('5 YR Budget'!E$12,Assumptions!$C$2:$I$2,0)) -> 11475 | F117: =INDEX(Expense_Assump,MATCH('5 YR Budget'!$B117,Assumptions!$C:$C,0),MATCH('5 YR Budget'!F$12,Assumptions!$C$2:$I$2,0)) -> 6704.5 | G117: =INDEX(Expense_Assump,MATCH('5 YR Budget'!$B117,Assumptions!$C:$C,0),MATCH('5 YR Budget'!G$12,Assumptions!$C$2:$I$2,0)) -> 6838.59 | H117: =INDEX(Expense_Assump,MATCH('5 YR Budget'!$B117,Assumptions!$C:$C,0),MATCH('5 YR Budget'!H$12,Assumptions!$C$2:$I$2,0)) -> 6975.3618 | I117: =INDEX(Expense_Assump,MATCH('5 YR Budget'!$B117,Assumptions!$C:$C,0),MATCH('5 YR Budget'!I$12,Assumptions!$C$2:$K$2,0)) -> 7114.869036 | J117: =INDEX(Expense_Assump,MATCH('5 YR Budget'!$B117,Assumptions!$C:$C,0),MATCH('5 YR Budget'!J$12,Assumptions!$C$2:$K$2,0)) -> 7257.166417 | L117: =+Assumptions!M71 -> Yearly Board OnTrack + supplies
B118: =Assumptions!C72 -> Classroom / Teaching Supplies & Materials | D118: =INDEX(Expense_Assump,MATCH('5 YR Budget'!$B118,Assumptions!$C:$C,0),MATCH('5 YR Budget'!D$12,Assumptions!$C$2:$I$2,0)) -> 68370 | E118: =INDEX(Expense_Assump,MATCH('5 YR Budget'!$B118,Assumptions!$C:$C,0),MATCH('5 YR Budget'!E$12,Assumptions!$C$2:$I$2,0)) -> 70000 | F118: =INDEX(Expense_Assump,MATCH('5 YR Budget'!$B118,Assumptions!$C:$C,0),MATCH('5 YR Budget'!F$12,Assumptions!$C$2:$I$2,0)) -> 58800 | G118: =INDEX(Expense_Assump,MATCH('5 YR Budget'!$B118,Assumptions!$C:$C,0),MATCH('5 YR Budget'!G$12,Assumptions!$C$2:$I$2,0)) -> 41150 | H118: =INDEX(Expense_Assump,MATCH('5 YR Budget'!$B118,Assumptions!$C:$C,0),MATCH('5 YR Budget'!H$12,Assumptions!$C$2:$I$2,0)) -> 27650 | I118: =INDEX(Expense_Assump,MATCH('5 YR Budget'!$B118,Assumptions!$C:$C,0),MATCH('5 YR Budget'!I$12,Assumptions!$C$2:$K$2,0)) -> 17950 | J118: =INDEX(Expense_Assump,MATCH('5 YR Budget'!$B118,Assumptions!$C:$C,0),MATCH('5 YR Budget'!J$12,Assumptions!$C$2:$K$2,0)) -> 38150 | L118: =+Assumptions!M72 -> Amount calculated in "Supplies & Furniture (PCM)" tab; Y1 includes $25k of 21-22 supplies not paid yet (as of 9/3/21) + the supplies for 22-23 ($61k)
B119: =Assumptions!C73 -> Special Ed Supplies & Materials | D119: =INDEX(Expense_Assump,MATCH('5 YR Budget'!$B119,Assumptions!$C:$C,0),MATCH('5 YR Budget'!D$12,Assumptions!$C$2:$I$2,0))*INDEX(X_Enrollment,MATCH("Actual Special Education Student Count (SPED)",'Enrollment and Demographics'!$C$2:$C$47,0),MATCH(D$12,'Enrollment and Demographics'!$C$2:$M$2,0)) -> 7762.5 | E119: =INDEX(Expense_Assump,MATCH('5 YR Budget'!$B119,Assumptions!$C:$C,0),MATCH('5 YR Budget'!E$12,Assumptions!$C$2:$I$2,0))*INDEX(X_Enrollment,MATCH("Actual Special Education Student Count (SPED)",'Enrollment and Demographics'!$C$2:$C$47,0),MATCH(E$12,'Enrollment and Demographics'!$C$2:$M$2,0)) -> 10800 | F119: =INDEX(Expense_Assump,MATCH('5 YR Budget'!$B119,Assumptions!$C:$C,0),MATCH('5 YR Budget'!F$12,Assumptions!$C$2:$I$2,0))*INDEX(X_Enrollment,MATCH("Actual Special Education Student Count (SPED)",'Enrollment and Demographics'!$C$2:$C$47,0),MATCH(F$12,'Enrollment and Demographics'!$C$2:$M$2,0)) -> 13567.5 | G119: =INDEX(Expense_Assump,MATCH('5 YR Budget'!$B119,Assumptions!$C:$C,0),MATCH('5 YR Budget'!G$12,Assumptions!$C$2:$I$2,0))*INDEX(X_Enrollment,MATCH("Actual Special Education Student Count (SPED)",'Enrollment and Demographics'!$C$2:$C$47,0),MATCH(G$12,'Enrollment and Demographics'!$C$2:$M$2,0)) -> 15997.5 | H119: =INDEX(Expense_Assump,MATCH('5 YR Budget'!$B119,Assumptions!$C:$C,0),MATCH('5 YR Budget'!H$12,Assumptions!$C$2:$K$2,0))*INDEX(X_Enrollment,MATCH("Actual Special Education Student Count (SPED)",'Enrollment and Demographics'!$C$2:$C$47,0),MATCH(H$12,'Enrollment and Demographics'!$C$2:$M$2,0)) -> 17685 | I119: =INDEX(Expense_Assump,MATCH('5 YR Budget'!$B119,Assumptions!$C:$C,0),MATCH('5 YR Budget'!I$12,Assumptions!$C$2:$K$2,0))*INDEX(X_Enrollment,MATCH("Actual Special Education Student Count (SPED)",'Enrollment and Demographics'!$C$2:$C$47,0),MATCH(I$12,'Enrollment and Demographics'!$C$2:$M$2,0)) -> 18225 | J119: =INDEX(Expense_Assump,MATCH('5 YR Budget'!$B119,Assumptions!$C:$C,0),MATCH('5 YR Budget'!J$12,Assumptions!$C$2:$K$2,0))*INDEX(X_Enrollment,MATCH("Actual Special Education Student Count (SPED)",'Enrollment and Demographics'!$C$2:$C$47,0),MATCH(J$12,'Enrollment and Demographics'!$C$2:$M$2,0)) -> 19710 | L119: =+Assumptions!M73 -> Estimate per SPED student
B120: =Assumptions!C74 -> Textbooks / Workbooks | D120: =INDEX(Expense_Assump,MATCH('5 YR Budget'!$B120,Assumptions!$C:$C,0),MATCH('5 YR Budget'!D$12,Assumptions!$C$2:$I$2,0))*INDEX(X_Enrollment,MATCH("Total Enrollment",'Enrollment and Demographics'!$C$2:$C$47,0),MATCH(D$12,'Enrollment and Demographics'!$C$2:$M$2,0)) -> 8625 | E120: =INDEX(Expense_Assump,MATCH('5 YR Budget'!$B120,Assumptions!$C:$C,0),MATCH('5 YR Budget'!E$12,Assumptions!$C$2:$I$2,0))*INDEX(X_Enrollment,MATCH("Total Enrollment",'Enrollment and Demographics'!$C$2:$C$47,0),MATCH(E$12,'Enrollment and Demographics'!$C$2:$M$2,0)) -> 12240 | F120: =INDEX(Expense_Assump,MATCH('5 YR Budget'!$B120,Assumptions!$C:$C,0),MATCH('5 YR Budget'!F$12,Assumptions!$C$2:$I$2,0))*INDEX(X_Enrollment,MATCH("Total Enrollment",'Enrollment and Demographics'!$C$2:$C$47,0),MATCH(F$12,'Enrollment and Demographics'!$C$2:$M$2,0)) -> 15684.03 | G120: =INDEX(Expense_Assump,MATCH('5 YR Budget'!$B120,Assumptions!$C:$C,0),MATCH('5 YR Budget'!G$12,Assumptions!$C$2:$I$2,0))*INDEX(X_Enrollment,MATCH("Total Enrollment",'Enrollment and Demographics'!$C$2:$C$47,0),MATCH(G$12,'Enrollment and Demographics'!$C$2:$M$2,0)) -> 18862.9722 | H120: =INDEX(Expense_Assump,MATCH('5 YR Budget'!$B120,Assumptions!$C:$C,0),MATCH('5 YR Budget'!H$12,Assumptions!$C$2:$K$2,0))*INDEX(X_Enrollment,MATCH("Total Enrollment",'Enrollment and Demographics'!$C$2:$C$47,0),MATCH(H$12,'Enrollment and Demographics'!$C$2:$M$2,0)) -> 21269.79194 | I120: =INDEX(Expense_Assump,MATCH('5 YR Budget'!$B120,Assumptions!$C:$C,0),MATCH('5 YR Budget'!I$12,Assumptions!$C$2:$K$2,0))*INDEX(X_Enrollment,MATCH("Total Enrollment",'Enrollment and Demographics'!$C$2:$C$47,0),MATCH(I$12,'Enrollment and Demographics'!$C$2:$M$2,0)) -> 22357.63626 | J120: =INDEX(Expense_Assump,MATCH('5 YR Budget'!$B120,Assumptions!$C:$C,0),MATCH('5 YR Budget'!J$12,Assumptions!$C$2:$K$2,0))*INDEX(X_Enrollment,MATCH("Total Enrollment",'Enrollment and Demographics'!$C$2:$C$47,0),MATCH(J$12,'Enrollment and Demographics'!$C$2:$M$2,0)) -> 24662.95698 | L120: $75 per student
B121: =Assumptions!C75 -> Equipment / Furniture | D121: ='BS Transactions'!I14+INDEX(Expense_Assump,MATCH('5 YR Budget'!$B121,Assumptions!$C:$C,0),MATCH('5 YR Budget'!D$12,Assumptions!$C$2:$I$2,0))+8095 -> 43432.36 | E121: =INDEX(Expense_Assump,MATCH('5 YR Budget'!$B121,Assumptions!$C:$C,0),MATCH('5 YR Budget'!E$12,Assumptions!$C$2:$I$2,0)) -> 36800 | F121: =INDEX(Expense_Assump,MATCH('5 YR Budget'!$B121,Assumptions!$C:$C,0),MATCH('5 YR Budget'!F$12,Assumptions!$C$2:$I$2,0)) -> 24200 | G121: =INDEX(Expense_Assump,MATCH('5 YR Budget'!$B121,Assumptions!$C:$C,0),MATCH('5 YR Budget'!G$12,Assumptions!$C$2:$I$2,0)) -> 25400 | H121: =INDEX(Expense_Assump,MATCH('5 YR Budget'!$B121,Assumptions!$C:$C,0),MATCH('5 YR Budget'!H$12,Assumptions!$C$2:$I$2,0)) -> 11600 | I121: =INDEX(Expense_Assump,MATCH('5 YR Budget'!$B121,Assumptions!$C:$C,0),MATCH('5 YR Budget'!I$12,Assumptions!$C$2:$K$2,0)) -> 11600 | J121: =INDEX(Expense_Assump,MATCH('5 YR Budget'!$B121,Assumptions!$C:$C,0),MATCH('5 YR Budget'!J$12,Assumptions!$C$2:$K$2,0)) -> 11600 | L121: Office, common, kitchen and classroom furniture ($58k for 22-23 needs, $13k for 21-22 purchases) - capitalized (below the line)
B122: =Assumptions!C76 -> Internet / Phone | D122: =INDEX(Expense_Assump,MATCH('5 YR Budget'!$B122,Assumptions!$C:$C,0),MATCH('5 YR Budget'!D$12,Assumptions!$C$2:$I$2,0)) -> 7680 | E122: =INDEX(Expense_Assump,MATCH('5 YR Budget'!$B122,Assumptions!$C:$C,0),MATCH('5 YR Budget'!E$12,Assumptions!$C$2:$I$2,0)) -> 7833.6 | F122: =INDEX(Expense_Assump,MATCH('5 YR Budget'!$B122,Assumptions!$C:$C,0),MATCH('5 YR Budget'!F$12,Assumptions!$C$2:$I$2,0)) -> 7990.272 | G122: =INDEX(Expense_Assump,MATCH('5 YR Budget'!$B122,Assumptions!$C:$C,0),MATCH('5 YR Budget'!G$12,Assumptions!$C$2:$I$2,0)) -> 8150.07744 | H122: =INDEX(Expense_Assump,MATCH('5 YR Budget'!$B122,Assumptions!$C:$C,0),MATCH('5 YR Budget'!H$12,Assumptions!$C$2:$I$2,0)) -> 8313.078989 | I122: =INDEX(Expense_Assump,MATCH('5 YR Budget'!$B122,Assumptions!$C:$C,0),MATCH('5 YR Budget'!I$12,Assumptions!$C$2:$K$2,0)) -> 8479.340569 | J122: =INDEX(Expense_Assump,MATCH('5 YR Budget'!$B122,Assumptions!$C:$C,0),MATCH('5 YR Budget'!J$12,Assumptions!$C$2:$K$2,0)) -> 8648.92738 | L122: =+Assumptions!M76 -> Internet / phone costs: $490/mo. ($300/mo internet, $190/mo for VOIP, $150/mo classroom phones); Expecting a $90/mo e-rate reimb.
B123: =Assumptions!C77 -> Technology Hardware | D123: =INDEX(Expense_Assump,MATCH('5 YR Budget'!$B123,Assumptions!$C:$C,0),MATCH('5 YR Budget'!D$12,Assumptions!$C$2:$I$2,0))+10000 -> 15391.3098 | E123: =INDEX(Expense_Assump,MATCH('5 YR Budget'!$B123,Assumptions!$C:$C,0),MATCH('5 YR Budget'!E$12,Assumptions!$C$2:$I$2,0)) -> 7597.09997 | F123: =INDEX(Expense_Assump,MATCH('5 YR Budget'!$B123,Assumptions!$C:$C,0),MATCH('5 YR Budget'!F$12,Assumptions!$C$2:$I$2,0)) -> 7685.35851 | G123: =INDEX(Expense_Assump,MATCH('5 YR Budget'!$B123,Assumptions!$C:$C,0),MATCH('5 YR Budget'!G$12,Assumptions!$C$2:$I$2,0)) -> 5777.84829 | H123: =INDEX(Expense_Assump,MATCH('5 YR Budget'!$B123,Assumptions!$C:$C,0),MATCH('5 YR Budget'!H$12,Assumptions!$C$2:$I$2,0)) -> 9043.16419 | I123: =INDEX(Expense_Assump,MATCH('5 YR Budget'!$B123,Assumptions!$C:$C,0),MATCH('5 YR Budget'!I$12,Assumptions!$C$2:$K$2,0)) -> 10259.58749 | J123: =INDEX(Expense_Assump,MATCH('5 YR Budget'!$B123,Assumptions!$C:$C,0),MATCH('5 YR Budget'!J$12,Assumptions!$C$2:$K$2,0)) -> 10259.58749 | L123: 4 laptops, 2 desktops, 1 charging cart | P123: =D123+D124 -> 42401.3898 | Q123: =E123+E124 -> 37411.28077 | R123: 40089.40412 | S123: 40493.35943 | T123: 45420.18345
B124: =Assumptions!C78 -> Technology Software | D124: =INDEX(Expense_Assump,MATCH('5 YR Budget'!$B124,Assumptions!$C:$C,0),MATCH('5 YR Budget'!D$12,Assumptions!$C$2:$I$2,0)) -> 27010.08 | E124: =INDEX(Expense_Assump,MATCH('5 YR Budget'!$B124,Assumptions!$C:$C,0),MATCH('5 YR Budget'!E$12,Assumptions!$C$2:$I$2,0)) -> 29814.1808 | F124: =INDEX(Expense_Assump,MATCH('5 YR Budget'!$B124,Assumptions!$C:$C,0),MATCH('5 YR Budget'!F$12,Assumptions!$C$2:$I$2,0)) -> 32404.04561 | G124: =INDEX(Expense_Assump,MATCH('5 YR Budget'!$B124,Assumptions!$C:$C,0),MATCH('5 YR Budget'!G$12,Assumptions!$C$2:$I$2,0)) -> 34715.51114 | H124: =INDEX(Expense_Assump,MATCH('5 YR Budget'!$B124,Assumptions!$C:$C,0),MATCH('5 YR Budget'!H$12,Assumptions!$C$2:$I$2,0)) -> 36377.01926 | I124: =INDEX(Expense_Assump,MATCH('5 YR Budget'!$B124,Assumptions!$C:$C,0),MATCH('5 YR Budget'!I$12,Assumptions!$C$2:$K$2,0)) -> 37009.43187 | J124: =INDEX(Expense_Assump,MATCH('5 YR Budget'!$B124,Assumptions!$C:$C,0),MATCH('5 YR Budget'!J$12,Assumptions!$C$2:$K$2,0)) -> 38514.12949 | L124: Skyward ($15k), Adobe, Smartsheet, Microsoft, etc
B125: =Assumptions!C79 -> Student Testing & Assessment | D125: =INDEX(Expense_Assump,MATCH('5 YR Budget'!$B125,Assumptions!$C:$C,0),MATCH('5 YR Budget'!D$12,Assumptions!$C$2:$I$2,0)) -> 4020 | E125: =INDEX(Expense_Assump,MATCH('5 YR Budget'!$B125,Assumptions!$C:$C,0),MATCH('5 YR Budget'!E$12,Assumptions!$C$2:$I$2,0)) -> 4635 | F125: =INDEX(Expense_Assump,MATCH('5 YR Budget'!$B125,Assumptions!$C:$C,0),MATCH('5 YR Budget'!F$12,Assumptions!$C$2:$I$2,0)) -> 5175 | G125: =INDEX(Expense_Assump,MATCH('5 YR Budget'!$B125,Assumptions!$C:$C,0),MATCH('5 YR Budget'!G$12,Assumptions!$C$2:$I$2,0)) -> 5585 | H125: =INDEX(Expense_Assump,MATCH('5 YR Budget'!$B125,Assumptions!$C:$C,0),MATCH('5 YR Budget'!H$12,Assumptions!$C$2:$I$2,0)) -> 5650 | I125: =INDEX(Expense_Assump,MATCH('5 YR Budget'!$B125,Assumptions!$C:$C,0),MATCH('5 YR Budget'!I$12,Assumptions!$C$2:$K$2,0)) -> 5650 | J125: =INDEX(Expense_Assump,MATCH('5 YR Budget'!$B125,Assumptions!$C:$C,0),MATCH('5 YR Budget'!J$12,Assumptions!$C$2:$K$2,0)) -> 5650 | L125: MAP tests & Reflection services
B126: =Assumptions!C80 -> Field Trips | D126: =INDEX(Expense_Assump,MATCH('5 YR Budget'!$B126,Assumptions!$C:$C,0),MATCH('5 YR Budget'!D$12,Assumptions!$C$2:$I$2,0))*INDEX(X_Enrollment,MATCH("Total Enrollment",'Enrollment and Demographics'!$C$2:$C$47,0),MATCH(D$12,'Enrollment and Demographics'!$C$2:$M$2,0)) -> 10925 | E126: =INDEX(Expense_Assump,MATCH('5 YR Budget'!$B126,Assumptions!$C:$C,0),MATCH('5 YR Budget'!E$12,Assumptions!$C$2:$I$2,0))*INDEX(X_Enrollment,MATCH("Total Enrollment",'Enrollment and Demographics'!$C$2:$C$47,0),MATCH(E$12,'Enrollment and Demographics'!$C$2:$M$2,0)) -> 15504 | F126: =INDEX(Expense_Assump,MATCH('5 YR Budget'!$B126,Assumptions!$C:$C,0),MATCH('5 YR Budget'!F$12,Assumptions!$C$2:$I$2,0))*INDEX(X_Enrollment,MATCH("Total Enrollment",'Enrollment and Demographics'!$C$2:$C$47,0),MATCH(F$12,'Enrollment and Demographics'!$C$2:$M$2,0)) -> 19866.438 | G126: =INDEX(Expense_Assump,MATCH('5 YR Budget'!$B126,Assumptions!$C:$C,0),MATCH('5 YR Budget'!G$12,Assumptions!$C$2:$I$2,0))*INDEX(X_Enrollment,MATCH("Total Enrollment",'Enrollment and Demographics'!$C$2:$C$47,0),MATCH(G$12,'Enrollment and Demographics'!$C$2:$M$2,0)) -> 23893.09812 | H126: =INDEX(Expense_Assump,MATCH('5 YR Budget'!$B126,Assumptions!$C:$C,0),MATCH('5 YR Budget'!H$12,Assumptions!$C$2:$K$2,0))*INDEX(X_Enrollment,MATCH("Total Enrollment",'Enrollment and Demographics'!$C$2:$C$47,0),MATCH(H$12,'Enrollment and Demographics'!$C$2:$M$2,0)) -> 26941.73646 | I126: =INDEX(Expense_Assump,MATCH('5 YR Budget'!$B126,Assumptions!$C:$C,0),MATCH('5 YR Budget'!I$12,Assumptions!$C$2:$K$2,0))*INDEX(X_Enrollment,MATCH("Total Enrollment",'Enrollment and Demographics'!$C$2:$C$47,0),MATCH(I$12,'Enrollment and Demographics'!$C$2:$M$2,0)) -> 28319.6726 | J126: =INDEX(Expense_Assump,MATCH('5 YR Budget'!$B126,Assumptions!$C:$C,0),MATCH('5 YR Budget'!J$12,Assumptions!$C$2:$K$2,0))*INDEX(X_Enrollment,MATCH("Total Enrollment",'Enrollment and Demographics'!$C$2:$C$47,0),MATCH(J$12,'Enrollment and Demographics'!$C$2:$M$2,0)) -> 31239.74551 | L126: =+Assumptions!M80 -> $95 per student
B127: =Assumptions!C81 -> Transportation (student) | D127: =INDEX(Expense_Assump,MATCH('5 YR Budget'!$B127,Assumptions!$C:$C,0),MATCH('5 YR Budget'!D$12,Assumptions!$C$2:$I$2,0)) -> 17500 | E127: =INDEX(Expense_Assump,MATCH('5 YR Budget'!$B127,Assumptions!$C:$C,0),MATCH('5 YR Budget'!E$12,Assumptions!$C$2:$I$2,0)) -> 29000 | F127: =INDEX(Expense_Assump,MATCH('5 YR Budget'!$B127,Assumptions!$C:$C,0),MATCH('5 YR Budget'!F$12,Assumptions!$C$2:$I$2,0)) -> 42000 | G127: =INDEX(Expense_Assump,MATCH('5 YR Budget'!$B127,Assumptions!$C:$C,0),MATCH('5 YR Budget'!G$12,Assumptions!$C$2:$I$2,0)) -> 54500 | H127: =INDEX(Expense_Assump,MATCH('5 YR Budget'!$B127,Assumptions!$C:$C,0),MATCH('5 YR Budget'!H$12,Assumptions!$C$2:$I$2,0)) -> 65000 | I127: =INDEX(Expense_Assump,MATCH('5 YR Budget'!$B127,Assumptions!$C:$C,0),MATCH('5 YR Budget'!I$12,Assumptions!$C$2:$K$2,0)) -> 65000 | J127: =INDEX(Expense_Assump,MATCH('5 YR Budget'!$B127,Assumptions!$C:$C,0),MATCH('5 YR Budget'!J$12,Assumptions!$C$2:$K$2,0)) -> 65000 | L127: Estimate to purchase bus & training + maintenance
B128: =Assumptions!C82 -> Student Services - other | D128: =INDEX(Expense_Assump,MATCH('5 YR Budget'!$B128,Assumptions!$C:$C,0),MATCH('5 YR Budget'!D$12,Assumptions!$C$2:$I$2,0))*INDEX(X_Enrollment,MATCH("Total Enrollment",'Enrollment and Demographics'!$C$2:$C$47,0),MATCH(D$12,'Enrollment and Demographics'!$C$2:$M$2,0)) -> 2875 | E128: =INDEX(Expense_Assump,MATCH('5 YR Budget'!$B128,Assumptions!$C:$C,0),MATCH('5 YR Budget'!E$12,Assumptions!$C$2:$I$2,0))*INDEX(X_Enrollment,MATCH("Total Enrollment",'Enrollment and Demographics'!$C$2:$C$47,0),MATCH(E$12,'Enrollment and Demographics'!$C$2:$M$2,0)) -> 4080 | F128: =INDEX(Expense_Assump,MATCH('5 YR Budget'!$B128,Assumptions!$C:$C,0),MATCH('5 YR Budget'!F$12,Assumptions!$C$2:$I$2,0))*INDEX(X_Enrollment,MATCH("Total Enrollment",'Enrollment and Demographics'!$C$2:$C$47,0),MATCH(F$12,'Enrollment and Demographics'!$C$2:$M$2,0)) -> 5228.01 | G128: =INDEX(Expense_Assump,MATCH('5 YR Budget'!$B128,Assumptions!$C:$C,0),MATCH('5 YR Budget'!G$12,Assumptions!$C$2:$I$2,0))*INDEX(X_Enrollment,MATCH("Total Enrollment",'Enrollment and Demographics'!$C$2:$C$47,0),MATCH(G$12,'Enrollment and Demographics'!$C$2:$M$2,0)) -> 6287.6574 | H128: =INDEX(Expense_Assump,MATCH('5 YR Budget'!$B128,Assumptions!$C:$C,0),MATCH('5 YR Budget'!H$12,Assumptions!$C$2:$K$2,0))*INDEX(X_Enrollment,MATCH("Total Enrollment",'Enrollment and Demographics'!$C$2:$C$47,0),MATCH(H$12,'Enrollment and Demographics'!$C$2:$M$2,0)) -> 7089.930648 | I128: =INDEX(Expense_Assump,MATCH('5 YR Budget'!$B128,Assumptions!$C:$C,0),MATCH('5 YR Budget'!I$12,Assumptions!$C$2:$K$2,0))*INDEX(X_Enrollment,MATCH("Total Enrollment",'Enrollment and Demographics'!$C$2:$C$47,0),MATCH(I$12,'Enrollment and Demographics'!$C$2:$M$2,0)) -> 7452.545422 | J128: =INDEX(Expense_Assump,MATCH('5 YR Budget'!$B128,Assumptions!$C:$C,0),MATCH('5 YR Budget'!J$12,Assumptions!$C$2:$K$2,0))*INDEX(X_Enrollment,MATCH("Total Enrollment",'Enrollment and Demographics'!$C$2:$C$47,0),MATCH(J$12,'Enrollment and Demographics'!$C$2:$M$2,0)) -> 8220.985661 | L128: =+Assumptions!M82 -> $25 per student for clubs, dances, other school events
B129: =Assumptions!C83 -> Office Expense | D129: =INDEX(Expense_Assump,MATCH('5 YR Budget'!$B129,Assumptions!$C:$C,0),MATCH('5 YR Budget'!D$12,Assumptions!$C$2:$I$2,0)) -> 8000 | E129: =INDEX(Expense_Assump,MATCH('5 YR Budget'!$B129,Assumptions!$C:$C,0),MATCH('5 YR Budget'!E$12,Assumptions!$C$2:$I$2,0)) -> 8160 | F129: =INDEX(Expense_Assump,MATCH('5 YR Budget'!$B129,Assumptions!$C:$C,0),MATCH('5 YR Budget'!F$12,Assumptions!$C$2:$I$2,0)) -> 8323.2 | G129: =INDEX(Expense_Assump,MATCH('5 YR Budget'!$B129,Assumptions!$C:$C,0),MATCH('5 YR Budget'!G$12,Assumptions!$C$2:$I$2,0)) -> 8489.664 | H129: =INDEX(Expense_Assump,MATCH('5 YR Budget'!$B129,Assumptions!$C:$C,0),MATCH('5 YR Budget'!H$12,Assumptions!$C$2:$I$2,0)) -> 8659.45728 | I129: =INDEX(Expense_Assump,MATCH('5 YR Budget'!$B129,Assumptions!$C:$C,0),MATCH('5 YR Budget'!I$12,Assumptions!$C$2:$K$2,0)) -> 8832.646426 | J129: =INDEX(Expense_Assump,MATCH('5 YR Budget'!$B129,Assumptions!$C:$C,0),MATCH('5 YR Budget'!J$12,Assumptions!$C$2:$K$2,0)) -> 9009.299354 | L129: =+Assumptions!M83 -> Flat amount for pens, hole punchers, etc
B130: =Assumptions!C84 -> Staff Development | D130: =INDEX(Expense_Assump,MATCH('5 YR Budget'!$B130,Assumptions!$C:$C,0),MATCH('5 YR Budget'!D$12,Assumptions!$C$2:$I$2,0))*INDEX('Position Control (Staffing)'!$C$1:$I$36,MATCH("Total",'Position Control (Staffing)'!$C$1:$C$36,0),MATCH(D$12,'Position Control (Staffing)'!$C$5:$I$5,0)) -> 3400 | E130: =INDEX(Expense_Assump,MATCH('5 YR Budget'!$B130,Assumptions!$C:$C,0),MATCH('5 YR Budget'!E$12,Assumptions!$C$2:$I$2,0))*INDEX('Position Control (Staffing)'!$C$1:$I$36,MATCH("Total",'Position Control (Staffing)'!$C$1:$C$36,0),MATCH(E$12,'Position Control (Staffing)'!$C$5:$I$5,0)) -> 4488 | F130: =INDEX(Expense_Assump,MATCH('5 YR Budget'!$B130,Assumptions!$C:$C,0),MATCH('5 YR Budget'!F$12,Assumptions!$C$2:$I$2,0))*INDEX('Position Control (Staffing)'!$C$1:$I$36,MATCH("Total",'Position Control (Staffing)'!$C$1:$C$36,0),MATCH(F$12,'Position Control (Staffing)'!$C$5:$I$5,0)) -> 5430.888 | G130: =INDEX(Expense_Assump,MATCH('5 YR Budget'!$B130,Assumptions!$C:$C,0),MATCH('5 YR Budget'!G$12,Assumptions!$C$2:$I$2,0))*INDEX('Position Control (Staffing)'!$C$1:$I$36,MATCH("Total",'Position Control (Staffing)'!$C$1:$C$36,0),MATCH(G$12,'Position Control (Staffing)'!$C$5:$I$5,0)) -> 6919.07616 | H130: =INDEX(Expense_Assump,MATCH('5 YR Budget'!$B130,Assumptions!$C:$C,0),MATCH('5 YR Budget'!H$12,Assumptions!$C$2:$K$2,0))*INDEX('Position Control (Staffing)'!$C$1:$K$36,MATCH("Total",'Position Control (Staffing)'!$C$1:$C$36,0),MATCH(H$12,'Position Control (Staffing)'!$C$5:$K$5,0)) -> 8226.484416 | I130: =INDEX(Expense_Assump,MATCH('5 YR Budget'!$B130,Assumptions!$C:$C,0),MATCH('5 YR Budget'!I$12,Assumptions!$C$2:$K$2,0))*INDEX('Position Control (Staffing)'!$C$1:$K$36,MATCH("Total",'Position Control (Staffing)'!$C$1:$C$36,0),MATCH(I$12,'Position Control (Staffing)'!$C$5:$K$5,0)) -> 8611.830265 | J130: =INDEX(Expense_Assump,MATCH('5 YR Budget'!$B130,Assumptions!$C:$C,0),MATCH('5 YR Budget'!J$12,Assumptions!$C$2:$L$2,0))*INDEX('Position Control (Staffing)'!$C$1:$L$36,MATCH("Total",'Position Control (Staffing)'!$C$1:$C$36,0),MATCH(J$12,'Position Control (Staffing)'!$C$5:$L$5,0)) -> 8784.06687 | L130: =+Assumptions!M84 -> $200 Per employee
B131: =Assumptions!C85 -> Staff Recruitment | D131: =INDEX(Expense_Assump,MATCH('5 YR Budget'!$B131,Assumptions!$C:$C,0),MATCH('5 YR Budget'!D$12,Assumptions!$C$2:$I$2,0)) -> 2000 | E131: =INDEX(Expense_Assump,MATCH('5 YR Budget'!$B131,Assumptions!$C:$C,0),MATCH('5 YR Budget'!E$12,Assumptions!$C$2:$I$2,0)) -> 2040 | F131: =INDEX(Expense_Assump,MATCH('5 YR Budget'!$B131,Assumptions!$C:$C,0),MATCH('5 YR Budget'!F$12,Assumptions!$C$2:$I$2,0)) -> 2080.8 | G131: =INDEX(Expense_Assump,MATCH('5 YR Budget'!$B131,Assumptions!$C:$C,0),MATCH('5 YR Budget'!G$12,Assumptions!$C$2:$I$2,0)) -> 2122.416 | H131: =INDEX(Expense_Assump,MATCH('5 YR Budget'!$B131,Assumptions!$C:$C,0),MATCH('5 YR Budget'!H$12,Assumptions!$C$2:$I$2,0)) -> 2164.86432 | I131: =INDEX(Expense_Assump,MATCH('5 YR Budget'!$B131,Assumptions!$C:$C,0),MATCH('5 YR Budget'!I$12,Assumptions!$C$2:$K$2,0)) -> 2208.161606 | J131: =INDEX(Expense_Assump,MATCH('5 YR Budget'!$B131,Assumptions!$C:$C,0),MATCH('5 YR Budget'!J$12,Assumptions!$C$2:$K$2,0)) -> 2252.324839 | L131: =+Assumptions!M85 -> Flat amount for fingerprints and background checks
B132: =Assumptions!C86 -> Student Recruitment / Marketing | D132: =INDEX(Expense_Assump,MATCH('5 YR Budget'!$B132,Assumptions!$C:$C,0),MATCH('5 YR Budget'!D$12,Assumptions!$C$2:$I$2,0)) -> 3000 | E132: =INDEX(Expense_Assump,MATCH('5 YR Budget'!$B132,Assumptions!$C:$C,0),MATCH('5 YR Budget'!E$12,Assumptions!$C$2:$I$2,0)) -> 3060 | F132: =INDEX(Expense_Assump,MATCH('5 YR Budget'!$B132,Assumptions!$C:$C,0),MATCH('5 YR Budget'!F$12,Assumptions!$C$2:$I$2,0)) -> 3121.2 | G132: =INDEX(Expense_Assump,MATCH('5 YR Budget'!$B132,Assumptions!$C:$C,0),MATCH('5 YR Budget'!G$12,Assumptions!$C$2:$I$2,0)) -> 3183.624 | H132: =INDEX(Expense_Assump,MATCH('5 YR Budget'!$B132,Assumptions!$C:$C,0),MATCH('5 YR Budget'!H$12,Assumptions!$C$2:$I$2,0)) -> 3247.29648 | I132: =INDEX(Expense_Assump,MATCH('5 YR Budget'!$B132,Assumptions!$C:$C,0),MATCH('5 YR Budget'!I$12,Assumptions!$C$2:$K$2,0)) -> 3312.24241 | J132: =INDEX(Expense_Assump,MATCH('5 YR Budget'!$B132,Assumptions!$C:$C,0),MATCH('5 YR Budget'!J$12,Assumptions!$C$2:$K$2,0)) -> 3378.487258 | L132: =+Assumptions!M86 -> Flat amount (can build feeder tab if necessary)
B133: =Assumptions!C87 -> School Meals / Lunch | D133: =INDEX(Expense_Assump,MATCH('5 YR Budget'!$B133,Assumptions!$C:$C,0),MATCH('5 YR Budget'!D$12,Assumptions!$C$2:$I$2,0))*INDEX(X_Enrollment,MATCH("Total Enrollment",'Enrollment and Demographics'!$C$2:$C$47,0),MATCH(D$12,'Enrollment and Demographics'!$C$2:$M$2,0)) -> 96839.5 | E133: =INDEX(Expense_Assump,MATCH('5 YR Budget'!$B133,Assumptions!$C:$C,0),MATCH('5 YR Budget'!E$12,Assumptions!$C$2:$I$2,0))*INDEX(X_Enrollment,MATCH("Total Enrollment",'Enrollment and Demographics'!$C$2:$C$47,0),MATCH(E$12,'Enrollment and Demographics'!$C$2:$M$2,0)) -> 136574.6054 | F133: =INDEX(Expense_Assump,MATCH('5 YR Budget'!$B133,Assumptions!$C:$C,0),MATCH('5 YR Budget'!F$12,Assumptions!$C$2:$I$2,0))*INDEX(X_Enrollment,MATCH("Total Enrollment",'Enrollment and Demographics'!$C$2:$C$47,0),MATCH(F$12,'Enrollment and Demographics'!$C$2:$M$2,0)) -> 174586.6106 | G133: =INDEX(Expense_Assump,MATCH('5 YR Budget'!$B133,Assumptions!$C:$C,0),MATCH('5 YR Budget'!G$12,Assumptions!$C$2:$I$2,0))*INDEX(X_Enrollment,MATCH("Total Enrollment",'Enrollment and Demographics'!$C$2:$C$47,0),MATCH(G$12,'Enrollment and Demographics'!$C$2:$M$2,0)) -> 207467.3273 | H133: =INDEX(Expense_Assump,MATCH('5 YR Budget'!$B133,Assumptions!$C:$C,0),MATCH('5 YR Budget'!H$12,Assumptions!$C$2:$K$2,0))*INDEX(X_Enrollment,MATCH("Total Enrollment",'Enrollment and Demographics'!$C$2:$C$47,0),MATCH(H$12,'Enrollment and Demographics'!$C$2:$M$2,0)) -> 232808.9672 | I133: =INDEX(Expense_Assump,MATCH('5 YR Budget'!$B133,Assumptions!$C:$C,0),MATCH('5 YR Budget'!I$12,Assumptions!$C$2:$K$2,0))*INDEX(X_Enrollment,MATCH("Total Enrollment",'Enrollment and Demographics'!$C$2:$C$47,0),MATCH(I$12,'Enrollment and Demographics'!$C$2:$M$2,0)) -> 247091.8741 | J133: =INDEX(Expense_Assump,MATCH('5 YR Budget'!$B133,Assumptions!$C:$C,0),MATCH('5 YR Budget'!J$12,Assumptions!$C$2:$K$2,0))*INDEX(X_Enrollment,MATCH("Total Enrollment",'Enrollment and Demographics'!$C$2:$C$47,0),MATCH(J$12,'Enrollment and Demographics'!$C$2:$M$2,0)) -> 272569.7917 | L133: Based on per student cost at 65% participation
B134: =Assumptions!C88 -> Travel (Staff) | D134: =INDEX(Expense_Assump,MATCH('5 YR Budget'!$B134,Assumptions!$C:$C,0),MATCH('5 YR Budget'!D$12,Assumptions!$C$2:$I$2,0)) -> 300 | E134: =INDEX(Expense_Assump,MATCH('5 YR Budget'!$B134,Assumptions!$C:$C,0),MATCH('5 YR Budget'!E$12,Assumptions!$C$2:$I$2,0)) -> 2500 | F134: =INDEX(Expense_Assump,MATCH('5 YR Budget'!$B134,Assumptions!$C:$C,0),MATCH('5 YR Budget'!F$12,Assumptions!$C$2:$I$2,0)) -> 2550 | G134: =INDEX(Expense_Assump,MATCH('5 YR Budget'!$B134,Assumptions!$C:$C,0),MATCH('5 YR Budget'!G$12,Assumptions!$C$2:$I$2,0)) -> 2601 | H134: =INDEX(Expense_Assump,MATCH('5 YR Budget'!$B134,Assumptions!$C:$C,0),MATCH('5 YR Budget'!H$12,Assumptions!$C$2:$I$2,0)) -> 2653.02 | I134: =INDEX(Expense_Assump,MATCH('5 YR Budget'!$B134,Assumptions!$C:$C,0),MATCH('5 YR Budget'!I$12,Assumptions!$C$2:$K$2,0)) -> 2706.0804 | J134: =INDEX(Expense_Assump,MATCH('5 YR Budget'!$B134,Assumptions!$C:$C,0),MATCH('5 YR Budget'!J$12,Assumptions!$C$2:$K$2,0)) -> 2760.202008 | L134: =+Assumptions!M88 -> Flat amount
B135: =Assumptions!C89 -> Fundraising | D135: =INDEX(Expense_Assump,MATCH('5 YR Budget'!$B135,Assumptions!$C:$C,0),MATCH('5 YR Budget'!D$12,Assumptions!$C$2:$I$2,0)) -> 5000 | E135: =INDEX(Expense_Assump,MATCH('5 YR Budget'!$B135,Assumptions!$C:$C,0),MATCH('5 YR Budget'!E$12,Assumptions!$C$2:$I$2,0)) -> 5000 | F135: =INDEX(Expense_Assump,MATCH('5 YR Budget'!$B135,Assumptions!$C:$C,0),MATCH('5 YR Budget'!F$12,Assumptions!$C$2:$I$2,0)) -> 5000 | G135: =INDEX(Expense_Assump,MATCH('5 YR Budget'!$B135,Assumptions!$C:$C,0),MATCH('5 YR Budget'!G$12,Assumptions!$C$2:$I$2,0)) -> 5000 | H135: =INDEX(Expense_Assump,MATCH('5 YR Budget'!$B135,Assumptions!$C:$C,0),MATCH('5 YR Budget'!H$12,Assumptions!$C$2:$I$2,0)) -> 5000 | I135: =INDEX(Expense_Assump,MATCH('5 YR Budget'!$B135,Assumptions!$C:$C,0),MATCH('5 YR Budget'!I$12,Assumptions!$C$2:$K$2,0)) -> 6250 | J135: =INDEX(Expense_Assump,MATCH('5 YR Budget'!$B135,Assumptions!$C:$C,0),MATCH('5 YR Budget'!J$12,Assumptions!$C$2:$K$2,0)) -> 6250 | L135: =+Assumptions!M89 -> Database renewal costs, gift processing fees, printing of collateral, event costs
B136: =Assumptions!C90 -> Dues & Memberships | D136: =INDEX(Expense_Assump,MATCH('5 YR Budget'!$B136,Assumptions!$C:$C,0),MATCH('5 YR Budget'!D$12,Assumptions!$C$2:$I$2,0)) -> 2000 | E136: =INDEX(Expense_Assump,MATCH('5 YR Budget'!$B136,Assumptions!$C:$C,0),MATCH('5 YR Budget'!E$12,Assumptions!$C$2:$I$2,0)) -> 2300 | F136: =INDEX(Expense_Assump,MATCH('5 YR Budget'!$B136,Assumptions!$C:$C,0),MATCH('5 YR Budget'!F$12,Assumptions!$C$2:$I$2,0)) -> 2505 | G136: =INDEX(Expense_Assump,MATCH('5 YR Budget'!$B136,Assumptions!$C:$C,0),MATCH('5 YR Budget'!G$12,Assumptions!$C$2:$I$2,0)) -> 2685 | H136: =INDEX(Expense_Assump,MATCH('5 YR Budget'!$B136,Assumptions!$C:$C,0),MATCH('5 YR Budget'!H$12,Assumptions!$C$2:$I$2,0)) -> 2810 | I136: =INDEX(Expense_Assump,MATCH('5 YR Budget'!$B136,Assumptions!$C:$C,0),MATCH('5 YR Budget'!I$12,Assumptions!$C$2:$K$2,0)) -> 2350 | J136: =INDEX(Expense_Assump,MATCH('5 YR Budget'!$B136,Assumptions!$C:$C,0),MATCH('5 YR Budget'!J$12,Assumptions!$C$2:$K$2,0)) -> 2460 | L136: =+Assumptions!M90 -> WA Charters ($5 per student), various fees ($1.5k)
B137: =Assumptions!C91 -> Printer | D137: =INDEX(Expense_Assump,MATCH('5 YR Budget'!$B137,Assumptions!$C:$C,0),MATCH('5 YR Budget'!D$12,Assumptions!$C$2:$I$2,0)) -> 2500 | E137: =INDEX(Expense_Assump,MATCH('5 YR Budget'!$B137,Assumptions!$C:$C,0),MATCH('5 YR Budget'!E$12,Assumptions!$C$2:$I$2,0)) -> 2550 | F137: =INDEX(Expense_Assump,MATCH('5 YR Budget'!$B137,Assumptions!$C:$C,0),MATCH('5 YR Budget'!F$12,Assumptions!$C$2:$I$2,0)) -> 2601 | G137: =INDEX(Expense_Assump,MATCH('5 YR Budget'!$B137,Assumptions!$C:$C,0),MATCH('5 YR Budget'!G$12,Assumptions!$C$2:$I$2,0)) -> 2653.02 | H137: =INDEX(Expense_Assump,MATCH('5 YR Budget'!$B137,Assumptions!$C:$C,0),MATCH('5 YR Budget'!H$12,Assumptions!$C$2:$I$2,0)) -> 2706.0804 | I137: =INDEX(Expense_Assump,MATCH('5 YR Budget'!$B137,Assumptions!$C:$C,0),MATCH('5 YR Budget'!I$12,Assumptions!$C$2:$K$2,0)) -> 2760.202008 | J137: =INDEX(Expense_Assump,MATCH('5 YR Budget'!$B137,Assumptions!$C:$C,0),MATCH('5 YR Budget'!J$12,Assumptions!$C$2:$K$2,0)) -> 2815.406048 | L137: =+Assumptions!M91 -> Printer rental costs ($78/mo) + supplies (paper & staples)
B138: =Assumptions!C92 -> TOTAL SCHOOL OPERATIONS | D138: =SUM(D117:D137) -> 347880.7498 | E138: =SUM(E117:E137) -> 406451.4862 | F138: 445503.8527 | G138: 488279.382 | H138: 511871.2533 | I138: =SUM(I117:I137) -> 523541.1204 | J138: 579193.077 | L138: =J138/$J$5 -> 0.1371852569
B140: =Assumptions!C94 -> FACILITY OPERATION & MAINTENANCE
B141: =Assumptions!C95 -> Insurance | D141: =INDEX(Expense_Assump,MATCH('5 YR Budget'!$B141,Assumptions!$C:$C,0),MATCH('5 YR Budget'!D$12,Assumptions!$C$2:$I$2,0)) -> 12500 | E141: =INDEX(Expense_Assump,MATCH('5 YR Budget'!$B141,Assumptions!$C:$C,0),MATCH('5 YR Budget'!E$12,Assumptions!$C$2:$I$2,0)) -> 12750 | F141: =INDEX(Expense_Assump,MATCH('5 YR Budget'!$B141,Assumptions!$C:$C,0),MATCH('5 YR Budget'!F$12,Assumptions!$C$2:$I$2,0)) -> 13005 | G141: =INDEX(Expense_Assump,MATCH('5 YR Budget'!$B141,Assumptions!$C:$C,0),MATCH('5 YR Budget'!G$12,Assumptions!$C$2:$I$2,0)) -> 13265.1 | H141: =INDEX(Expense_Assump,MATCH('5 YR Budget'!$B141,Assumptions!$C:$C,0),MATCH('5 YR Budget'!H$12,Assumptions!$C$2:$I$2,0)) -> 13530.402 | I141: =INDEX(Expense_Assump,MATCH('5 YR Budget'!$B141,Assumptions!$C:$C,0),MATCH('5 YR Budget'!I$12,Assumptions!$C$2:$K$2,0)) -> 13801.01004 | J141: =INDEX(Expense_Assump,MATCH('5 YR Budget'!$B141,Assumptions!$C:$C,0),MATCH('5 YR Budget'!J$12,Assumptions!$C$2:$K$2,0)) -> 14077.03024 | L141: Property, general liability, etc
B142: =Assumptions!C96 -> Janitorial Services | D142: =INDEX(Expense_Assump,MATCH('5 YR Budget'!$B142,Assumptions!$C:$C,0),MATCH('5 YR Budget'!D$12,Assumptions!$C$2:$I$2,0))*INDEX(X_Enrollment,MATCH("Total Enrollment",'Enrollment and Demographics'!$C$2:$C$47,0),MATCH(D$12,'Enrollment and Demographics'!$C$2:$M$2,0)) -> 6657.894737 | E142: =INDEX(Expense_Assump,MATCH('5 YR Budget'!$B142,Assumptions!$C:$C,0),MATCH('5 YR Budget'!E$12,Assumptions!$C$2:$I$2,0))*INDEX(X_Enrollment,MATCH("Total Enrollment",'Enrollment and Demographics'!$C$2:$C$47,0),MATCH(E$12,'Enrollment and Demographics'!$C$2:$M$2,0)) -> 20000 | F142: =INDEX(Expense_Assump,MATCH('5 YR Budget'!$B142,Assumptions!$C:$C,0),MATCH('5 YR Budget'!F$12,Assumptions!$C$2:$I$2,0))*INDEX(X_Enrollment,MATCH("Total Enrollment",'Enrollment and Demographics'!$C$2:$C$47,0),MATCH(F$12,'Enrollment and Demographics'!$C$2:$M$2,0)) -> 25627.5 | G142: =INDEX(Expense_Assump,MATCH('5 YR Budget'!$B142,Assumptions!$C:$C,0),MATCH('5 YR Budget'!G$12,Assumptions!$C$2:$I$2,0))*INDEX(X_Enrollment,MATCH("Total Enrollment",'Enrollment and Demographics'!$C$2:$C$47,0),MATCH(G$12,'Enrollment and Demographics'!$C$2:$M$2,0)) -> 30821.85 | H142: =INDEX(Expense_Assump,MATCH('5 YR Budget'!$B142,Assumptions!$C:$C,0),MATCH('5 YR Budget'!H$12,Assumptions!$C$2:$K$2,0))*INDEX(X_Enrollment,MATCH("Total Enrollment",'Enrollment and Demographics'!$C$2:$C$47,0),MATCH(H$12,'Enrollment and Demographics'!$C$2:$M$2,0)) -> 34754.562 | I142: =INDEX(Expense_Assump,MATCH('5 YR Budget'!$B142,Assumptions!$C:$C,0),MATCH('5 YR Budget'!I$12,Assumptions!$C$2:$K$2,0))*INDEX(X_Enrollment,MATCH("Total Enrollment",'Enrollment and Demographics'!$C$2:$C$47,0),MATCH(I$12,'Enrollment and Demographics'!$C$2:$M$2,0)) -> 36532.0854 | J142: =INDEX(Expense_Assump,MATCH('5 YR Budget'!$B142,Assumptions!$C:$C,0),MATCH('5 YR Budget'!J$12,Assumptions!$C$2:$K$2,0))*INDEX(X_Enrollment,MATCH("Total Enrollment",'Enrollment and Demographics'!$C$2:$C$47,0),MATCH(J$12,'Enrollment and Demographics'!$C$2:$M$2,0)) -> 40298.94932 | L142: =+Assumptions!M96 -> Supplies only; services provided by Gladish
B143: =Assumptions!C97 -> Building and Land Rent / Lease | D143: =INDEX(Expense_Assump,MATCH('5 YR Budget'!$B143,Assumptions!$C:$C,0),MATCH('5 YR Budget'!D$12,Assumptions!$C$2:$I$2,0)) -> 190200.1983 | E143: =INDEX(Expense_Assump,MATCH('5 YR Budget'!$B143,Assumptions!$C:$C,0),MATCH('5 YR Budget'!E$12,Assumptions!$C$2:$I$2,0)) -> 266259.9914 | F143: =INDEX(Expense_Assump,MATCH('5 YR Budget'!$B143,Assumptions!$C:$C,0),MATCH('5 YR Budget'!F$12,Assumptions!$C$2:$I$2,0)) -> 311739.6214 | G143: =INDEX(Expense_Assump,MATCH('5 YR Budget'!$B143,Assumptions!$C:$C,0),MATCH('5 YR Budget'!G$12,Assumptions!$C$2:$I$2,0)) -> 357569.1677 | H143: =INDEX(Expense_Assump,MATCH('5 YR Budget'!$B143,Assumptions!$C:$C,0),MATCH('5 YR Budget'!H$12,Assumptions!$C$2:$I$2,0)) -> 381673.6789 | I143: =INDEX(Expense_Assump,MATCH('5 YR Budget'!$B143,Assumptions!$C:$C,0),MATCH('5 YR Budget'!I$12,Assumptions!$C$2:$K$2,0)) -> 384432.5148 | J143: =INDEX(Expense_Assump,MATCH('5 YR Budget'!$B143,Assumptions!$C:$C,0),MATCH('5 YR Budget'!J$12,Assumptions!$C$2:$K$2,0)) -> 408743.4974 | L143: Based on Gladish rent agreement
B144: =Assumptions!C98 -> Repairs & Maintenance | D144: =INDEX(Expense_Assump,MATCH('5 YR Budget'!$B144,Assumptions!$C:$C,0),MATCH('5 YR Budget'!D$12,Assumptions!$C$2:$I$2,0)) -> 3000 | E144: =INDEX(Expense_Assump,MATCH('5 YR Budget'!$B144,Assumptions!$C:$C,0),MATCH('5 YR Budget'!E$12,Assumptions!$C$2:$I$2,0)) -> 0 | F144: =INDEX(Expense_Assump,MATCH('5 YR Budget'!$B144,Assumptions!$C:$C,0),MATCH('5 YR Budget'!F$12,Assumptions!$C$2:$I$2,0)) ->  | G144: =INDEX(Expense_Assump,MATCH('5 YR Budget'!$B144,Assumptions!$C:$C,0),MATCH('5 YR Budget'!G$12,Assumptions!$C$2:$I$2,0)) -> 0 | H144: =INDEX(Expense_Assump,MATCH('5 YR Budget'!$B144,Assumptions!$C:$C,0),MATCH('5 YR Budget'!H$12,Assumptions!$C$2:$I$2,0)) -> 0 | I144: =INDEX(Expense_Assump,MATCH('5 YR Budget'!$B144,Assumptions!$C:$C,0),MATCH('5 YR Budget'!I$12,Assumptions!$C$2:$K$2,0)) -> 0 | J144: =INDEX(Expense_Assump,MATCH('5 YR Budget'!$B144,Assumptions!$C:$C,0),MATCH('5 YR Budget'!J$12,Assumptions!$C$2:$K$2,0)) -> 0 | L144: =+Assumptions!M98 -> Covered by landlord; flat amount for incidentals
B145: =Assumptions!C99 -> Security Services | D145: =INDEX(Expense_Assump,MATCH('5 YR Budget'!$B145,Assumptions!$C:$C,0),MATCH('5 YR Budget'!D$12,Assumptions!$C$2:$I$2,0)) -> 0 | E145: =INDEX(Expense_Assump,MATCH('5 YR Budget'!$B145,Assumptions!$C:$C,0),MATCH('5 YR Budget'!E$12,Assumptions!$C$2:$I$2,0)) -> 0 | F145: =INDEX(Expense_Assump,MATCH('5 YR Budget'!$B145,Assumptions!$C:$C,0),MATCH('5 YR Budget'!F$12,Assumptions!$C$2:$I$2,0)) -> 0 | G145: =INDEX(Expense_Assump,MATCH('5 YR Budget'!$B145,Assumptions!$C:$C,0),MATCH('5 YR Budget'!G$12,Assumptions!$C$2:$I$2,0)) -> 0 | H145: =INDEX(Expense_Assump,MATCH('5 YR Budget'!$B145,Assumptions!$C:$C,0),MATCH('5 YR Budget'!H$12,Assumptions!$C$2:$I$2,0)) -> 0 | I145: =INDEX(Expense_Assump,MATCH('5 YR Budget'!$B145,Assumptions!$C:$C,0),MATCH('5 YR Budget'!I$12,Assumptions!$C$2:$K$2,0)) -> 0 | J145: =INDEX(Expense_Assump,MATCH('5 YR Budget'!$B145,Assumptions!$C:$C,0),MATCH('5 YR Budget'!J$12,Assumptions!$C$2:$K$2,0)) -> 0 | L145: =+Assumptions!M99 -> Estimate for security system ($150/month) + various fees
B146: =Assumptions!C100 -> Utilities | D146: =INDEX(Expense_Assump,MATCH('5 YR Budget'!$B146,Assumptions!$C:$C,0),MATCH('5 YR Budget'!D$12,Assumptions!$C$2:$I$2,0)) -> 0 | E146: =INDEX(Expense_Assump,MATCH('5 YR Budget'!$B146,Assumptions!$C:$C,0),MATCH('5 YR Budget'!E$12,Assumptions!$C$2:$I$2,0)) -> 0 | F146: =INDEX(Expense_Assump,MATCH('5 YR Budget'!$B146,Assumptions!$C:$C,0),MATCH('5 YR Budget'!F$12,Assumptions!$C$2:$I$2,0)) -> 0 | G146: =INDEX(Expense_Assump,MATCH('5 YR Budget'!$B146,Assumptions!$C:$C,0),MATCH('5 YR Budget'!G$12,Assumptions!$C$2:$I$2,0)) -> 0 | H146: =INDEX(Expense_Assump,MATCH('5 YR Budget'!$B146,Assumptions!$C:$C,0),MATCH('5 YR Budget'!H$12,Assumptions!$C$2:$I$2,0)) -> 0 | I146: =INDEX(Expense_Assump,MATCH('5 YR Budget'!$B146,Assumptions!$C:$C,0),MATCH('5 YR Budget'!I$12,Assumptions!$C$2:$K$2,0)) -> 0 | J146: =INDEX(Expense_Assump,MATCH('5 YR Budget'!$B146,Assumptions!$C:$C,0),MATCH('5 YR Budget'!J$12,Assumptions!$C$2:$K$2,0)) -> 0 | L146: =+Assumptions!M100 -> Covered by landlord
B147: =Assumptions!C101 -> Financing Costs (Loan Payments - Interest) | D147: =INDEX(Expense_Assump,MATCH('5 YR Budget'!$B147,Assumptions!$C:$C,0),MATCH('5 YR Budget'!D$12,Assumptions!$C$2:$I$2,0))+538.12+39 -> 56998.16347 | E147: =INDEX(Expense_Assump,MATCH('5 YR Budget'!$B147,Assumptions!$C:$C,0),MATCH('5 YR Budget'!E$12,Assumptions!$C$2:$I$2,0)) -> 59832.38791 | F147: =INDEX(Expense_Assump,MATCH('5 YR Budget'!$B147,Assumptions!$C:$C,0),MATCH('5 YR Budget'!F$12,Assumptions!$C$2:$I$2,0)) -> 60100.09254 | G147: =INDEX(Expense_Assump,MATCH('5 YR Budget'!$B147,Assumptions!$C:$C,0),MATCH('5 YR Budget'!G$12,Assumptions!$C$2:$I$2,0)) -> 63755.64538 | H147: =INDEX(Expense_Assump,MATCH('5 YR Budget'!$B147,Assumptions!$C:$C,0),MATCH('5 YR Budget'!H$12,Assumptions!$C$2:$I$2,0)) -> 71574.46675 | I147: =INDEX(Expense_Assump,MATCH('5 YR Budget'!$B147,Assumptions!$C:$C,0),MATCH('5 YR Budget'!I$12,Assumptions!$C$2:$K$2,0)) -> 51860.14549 | J147: =INDEX(Expense_Assump,MATCH('5 YR Budget'!$B147,Assumptions!$C:$C,0),MATCH('5 YR Budget'!J$12,Assumptions!$C$2:$K$2,0)) -> 51860.14549 | L147: =+Assumptions!M101 -> 21-22: Includes paying back the $63k bridge loan + fees; onward is regular loan payments
B148: =Assumptions!C102 -> TOTAL FACILITY OPERATION & MAINTENANCE | D148: =SUM(D141:D147) -> 269356.2565 | E148: 358842.3794 | F148: 410472.214 | G148: 465411.7631 | H148: 501533.1096 | I148: =SUM(I141:I147) -> 486625.7558 | J148: =SUM(J141:J147) -> 514979.6224 | L148: =J148/$J$5 -> 0.1219759258
B150: =Assumptions!C104 -> RESERVES / CONTIGENCY | D150: =INDEX(Expense_Assump,MATCH('5 YR Budget'!$B150,Assumptions!$C:$C,0),MATCH('5 YR Budget'!D$12,Assumptions!$C$2:$I$2,0)) -> 58832.7649 | E150: =INDEX(Expense_Assump,MATCH('5 YR Budget'!$B150,Assumptions!$C:$C,0),MATCH('5 YR Budget'!E$12,Assumptions!$C$2:$I$2,0)) -> 76422.08251 | F150: =INDEX(Expense_Assump,MATCH('5 YR Budget'!$B150,Assumptions!$C:$C,0),MATCH('5 YR Budget'!F$12,Assumptions!$C$2:$I$2,0)) -> 87696.06881 | G150: =INDEX(Expense_Assump,MATCH('5 YR Budget'!$B150,Assumptions!$C:$C,0),MATCH('5 YR Budget'!G$12,Assumptions!$C$2:$I$2,0)) -> 137986.5707 | H150: =INDEX(Expense_Assump,MATCH('5 YR Budget'!$B150,Assumptions!$C:$C,0),MATCH('5 YR Budget'!H$12,Assumptions!$C$2:$I$2,0)) -> 146656.8502 | I150: =INDEX(Expense_Assump,MATCH('5 YR Budget'!$B150,Assumptions!$C:$C,0),MATCH('5 YR Budget'!I$12,Assumptions!$C$2:$K$2,0)) -> 153648.5555 | J150: =INDEX(Expense_Assump,MATCH('5 YR Budget'!$B150,Assumptions!$C:$C,0),MATCH('5 YR Budget'!J$12,Assumptions!$C$2:$K$2,0)) -> 25589.58694 | L150: =+Assumptions!M104 -> Attrition - 3% of State funding; Y1 removed (revenue already updated to actual)
B152: Total Expenses | D152: =SUM(D100+D114+D138+D148+D150) -> 2195543.121 | E152: 2673823.936 | F152: 3107318.973 | G152: 3787659.358 | H152: 4230921.473 | I152: 4343082.753 | J152: =SUM(J100+J114+J138+J148+J150) -> 4221977.566
B153: Operating Net Income | D153: =D55-D152 -> -4119.957923 | E153: -90101.18586 | F153: -138489.6791 | G153: 865692 | H153: 717114.2018 | I153: 1077414.103 | J153: -3040620.996
B155: =+Assumptions!C105 -> DEPRECIATION / AMORTIZATION | D155: =INDEX(Expense_Assump,MATCH('5 YR Budget'!$B155,Assumptions!$C:$C,0),MATCH('5 YR Budget'!D$12,Assumptions!$C$2:$I$2,0)) -> 94883 | E155: =INDEX(Expense_Assump,MATCH('5 YR Budget'!$B155,Assumptions!$C:$C,0),MATCH('5 YR Budget'!E$12,Assumptions!$C$2:$I$2,0)) -> 94883 | F155: =INDEX(Expense_Assump,MATCH('5 YR Budget'!$B155,Assumptions!$C:$C,0),MATCH('5 YR Budget'!F$12,Assumptions!$C$2:$I$2,0)) -> 94883 | G155: =INDEX(Expense_Assump,MATCH('5 YR Budget'!$B155,Assumptions!$C:$C,0),MATCH('5 YR Budget'!G$12,Assumptions!$C$2:$I$2,0)) -> 94883 | H155: =INDEX(Expense_Assump,MATCH('5 YR Budget'!$B155,Assumptions!$C:$C,0),MATCH('5 YR Budget'!H$12,Assumptions!$C$2:$K$2,0)) -> 94883 | I155: =INDEX(Expense_Assump,MATCH('5 YR Budget'!$B155,Assumptions!$C:$C,0),MATCH('5 YR Budget'!I$12,Assumptions!$C$2:$K$2,0)) -> 0 | J155: =INDEX(Expense_Assump,MATCH('5 YR Budget'!$B155,Assumptions!$C:$C,0),MATCH('5 YR Budget'!J$12,Assumptions!$C$2:$K$2,0)) -> 0
B157: Net Income - Accrual Basis | D157: =D153-D155 -> -99002.95792 | E157: =E153-E155 -> -184984.1859 | F157: -233372.6791 | G157: 770809 | H157: 622231.2018 | I157: 1077414.103 | J157: -3040620.996
B159: Cash-Basis Adjustments
B160: Liabilities
B161: Deferred Revenue - Revenue Recognized | D161: =-Assumptions!E26-Assumptions!E29 -> -160000 | E161: =-Assumptions!F26 -> 0 | F161: 0 | G161: 0 | H161: 0 | I161: 0 | J161: 0 | L161: Grant revenue recognized but funds not received
B162: Deferred Revenue / AR -Cash Received | D162: =(1500*'Enrollment and Demographics'!D19)+49500 -> 222000 | E162: =-D161 -> 160000 | F162: =-E161 -> 0 | G162: 0 | H162: 0 | I162: 0 | J162: 0 | L162: Actual grant revenue funds received - if recognized in a prior year 21-22: includes $274k of WA Charters grant recognized in 20-21 and $74k of CSP revenue recognized in Aug 21
B163: Loan Withdrawals | D163: 0 | L163: Increases cash
B164: Principal Loan Payments | D164: 0 | E164: 0 | F164: 0 | G164: 0 | H164: 0 | I164: 0 | J164: 0 | L164: Loan payments - Principal (only affects the balance sheet)
B165: Depreciation - Add back | D165: =D155 -> 94883 | E165: =E155 -> 94883 | F165: 94883 | G165: 94883 | H165: 94883 | I165: =I155 -> 0 | J165: 0 | L165: Depreciation is not a cash expense and gets "added back" for cash effect calculations
B166: Total Liability Adjustments | D166: =SUM(D161:D165) -> 156883 | E166: 254883 | F166: 94883 | G166: 94883 | H166: 94883 | I166: 0 | J166: 0
B168: Assets
B169: Renovation costs - Construction | D169: 0 | E169: 0 | F169: 0 | G169: 0 | H169: 0 | I169: 0 | J169: 0 | L169: Final construction costs paid during FY21-22; includes $6k pager system
B170: Prepaids - Contractors | D170: 0 | E170: 0 | F170: 0 | G170: 0 | H170: 0 | I170: 0 | J170: 0 | L170: Contractor costs that are paid upfront for a full year of service are recorded as prepaid assets and expensed monthly
B171: Equipment/Furniture | D171: 0 | E171: 0 | F171: 0 | G171: 0 | H171: 0 | I171: 0 | J171: 0 | L171: Large furniture and equipment purchases are recorded as assets and depreciated over time
B172: Total Asset Adjustments | D172: =SUM(D169:D171) -> 0 | E172: 0 | F172: 0 | G172: 0 | H172: 0 | I172: =SUM(I169:I171) -> 0 | J172: 0
B174: Total Cash Effects | D174: =D166-D172 -> 156883 | E174: 254883 | F174: 94883 | G174: 94883 | H174: 94883 | I174: =I166-I172 -> 0 | J174: 0
B175: Final Cash Effects | D175: =D157+D174 -> 57880.04208 | E175: 69898.81414 | F175: -138489.6791 | G175: 865692 | H175: 717114.2018 | I175: 1077414.103 | J175: -3040620.996 | P175: WA Charters Impl Grant CF
B176: Rent + Utilities + Repairs | D176: =(D143+D142+D144)/D3 -> 1737.896461 | E176: 1789.124947 | G176: 1638.780665 | H176: 1589.420767 | I176: 1559.128149 | J176: 1537.816598 | P176: 474500 | Q176: Total
D177: =D148/D5 -> 0.1226832003 | E177: =E148/E5 -> 0.1342056874 | F177: 0.1320985124 | G177: 0.1228758236 | H177: 0.1185399239 | I177: 0.1120461625 | J177: 0.1219759258 | M177: In workbook | P177: 200000 | Q177: 2021-05-01
B178: Rent Costs per pupil | D178: =D143/D3 -> 1653.914768 | E178: 1664.124947 | F178: 1550.94339 | G178: 1508.730665 | H178: 1456.769767 | I178: 1423.824129 | J178: 1399.806498 | M178: 191098 | Q178: 2021-09-07 | R178: 84500
D179: YEAR 1 | E179: YEAR 2 | F179: YEAR 3 | G179: YEAR 4 | H179: YEAR 5 | I179: YEAR 6 | J179: YEAR 7
D180: =+D12 -> 2022-23 | E180: 2023-24 | F180: 2024-25 | G180: 2025-26 | H180: 2026-27 | I180: 2027-28 | J180: =VLOOKUP(2,X_Years,6,FALSE)&"-"&RIGHT(VLOOKUP(2,X_Years,7,FALSE),2) -> 2025-26 | L180: 08/31/21 Ending Cash | M180: 126543.79 | N180: Actual | P180: =P176-SUM(P177:P178) -> 274500 | Q180: Amount of cash received in 21-22 but recognized in 20-21
B181: Ending Cash | D181: =D157+M181+D174 -> 237352.0421 | E181: =D181+E157+E174 -> 307250.8562 | F181: 168761.1771 | G181: 1034453.177 | H181: 1751567.379 | I181: 2828981.482 | J181: -211639.5142 | L181: 08/31/22 Ending Cash | M181: 179472 | N181: Projected
B182: Net Excess/(Deficit) to 60 days cash | D182: =(-D5/365*60)+D181 -> -123559.1559 | E182: -132281.8456 | F182: -342030.9828 | G182: 411824.2415 | H182: 1056073.438 | I182: 2115050.071 | J182: -905663.2237 | M182: Actual Planning Year CSP | P182: 267000
B183: 30 days | D183: =(-D5/365*30)+D181 -> 56896.44308 | E183: =(-E5/365*30)+E181 -> 87484.5053 | F183: =(-F5/365*30)+F181 -> -86634.90284 | M183: 297531 | N183: As of 7/31 | P183: 0.02
B184: Actual Days Cash | D184: =D181/ (D152/365) -> 39.45879929 | E184: 41.94238858 | F184: 19.82346524 | G184: 99.68568288 | H184: 151.1070573 | I184: 237.7523754 | J184: -18.29673926 | M184: 74285.23 | N184: Aug claim | P184: =-PMT(P183/12,P186,P182) -> 4679.911934
B185: Actual 60 Days Cash Amount | D185: =(D5/365*60) -> 360911.198 | E185: 439532.7018 | F185: 510792.1599 | G185: 622628.9356 | H185: 695493.9408 | I185: 713931.4115 | J185: 694023.7095 | M185: =M183+M184 -> 371816.23 | N185: Total rev | P185: =P184*12 -> 56158.94321
P186: =5*12 -> 60
B187: Fixed Charges Coverage Ratio (FCCR) | M187: ='Start-Up Budget - Actual'!D25 -> 368616 | N187: Projected
B188: Lease | D188: =D143 -> 190200.1983 | E188: =E143 -> 266259.9914 | F188: =F143 -> 311739.6214 | G188: =G143 -> 357569.1677 | H188: =H143 -> 381673.6789 | I188: =I143 -> 384432.5148 | J188: 408743.4974 | M188: =M187-M185 -> -3200.23 | N188: Add to year 1 rev
B189: Debt Payments | D189: =D147 -> 56998.16347 | E189: =E147 -> 59832.38791 | F189: =F147 -> 60100.09254 | G189: =G147 -> 63755.64538 | H189: =H147 -> 71574.46675 | I189: =I147 -> 51860.14549 | J189: 51860.14549 | M189: =M188+D42 -> 306799.77 | N189: Total CSP
B190: Total Fixed Charges | D190: =SUM(D188:D189) -> 247198.3618 | E190: =SUM(E188:E189) -> 326092.3794 | F190: 371839.714 | G190: 421324.8131 | H190: 453248.1456 | I190: =SUM(I188:I189) -> 436292.6603 | J190: 460603.6429 | M190: Elig Exp | O190: In app budget | P190: Claimed in 20-21
B191: FCCR | D191: =(D157+D190)/D190 -> 0.5994999433 | E191: =(E157+E190)/E190 -> 0.4327245972 | F191: =(F157+F190)/F190 -> 0.3723836633 | G191: =(G157+G190)/G190 -> 2.829488737 | H191: =(H157+H190)/H190 -> 2.372826801 | I191: =(I157+I190)/I190 -> 3.469475655 | J191: -5.601382867 | M191: =41500-1763.33*2+13500-303.96 -> 51169.38 | N191: 46% of Tami | O191: ='CSP Budget'!E17+'CSP Budget'!E23 -> 55000 | P191: =1763.33*2+303.96 -> 3830.62
M192: =D123+D124 -> 42401.3898 | N192: Tech | O192: ='CSP Budget'!E41+'CSP Budget'!E39 -> 42000 | P192: 2149.15 | Q192: Software
B193: Ratios | M193: =D121 -> 43432.36 | N193: Furniture | O193: ='CSP Budget'!E29 -> 61000 | P193: 58475.82
B194: Personnel | D194: =D$100/D$4 -> 0.5691476068 | E194: =E$100/E$4 -> 0.6002943474 | F194: =F$100/F$4 -> 0.6296209184 | G194: =G$100/G$4 -> 0.5030038598 | H194: =H$100/H$4 -> 0.5461690868 | I194: =I$100/I$4 -> 0.5163611339 | J194: 2.408462555 | M194: =D118 -> 68370 | N194: Classroom supplies | O194: ='CSP Budget'!E27 -> 61500 | P194: 2184.91 | Q194: Lots of open Pos
B195: Contracted Services | D195: =D$114/D$4 -> 0.1242252549 | E195: =E$114/E$4 -> 0.1088018542 | F195: =F$114/F$4 -> 0.0991669718 | G195: =G$114/G$4 -> 0.07635957845 | H195: =H$114/H$4 -> 0.07445300681 | I195: =I$114/I$4 -> 0.07016578525 | J195: 0.2175145293 | M195: =D129 -> 8000 | N195: Office | O195: ='CSP Budget'!E32 -> 10000
B196: Supplies | D196: =D$138/D$4 -> 0.1587464966 | E196: =E$138/E$4 -> 0.1573123456 | F196: =F$138/F$4 -> 0.1500604476 | G196: =G$138/G$4 -> 0.1049306928 | H196: =H$138/H$4 -> 0.1034493862 | I196: =I$138/I$4 -> 0.09658544858 | J196: 0.4902779499 | M196: =D127 -> 17500 | N196: Transpo | O196: 20000
B197: Facilities | D197: =D$148/D$4 -> 0.1229138493 | E197: =E$148/E$4 -> 0.1388857916 | F197: =F$148/F$4 -> 0.1382606318 | G197: =G$148/G$4 -> 0.1000164671 | H197: =H$148/H$4 -> 0.1013600432 | I197: =I$148/I$4 -> 0.08977512 | J197: 0.4359222573 | M197: =D113 -> 0 | N197: Tech support | O197: ='CSP Budget'!E36 -> 20000 | R197: Contractors claimed
B198: Loans | D198: =D$147/D$4 -> 0.02600965639 | E198: =E$147/E$4 -> 0.02315743355 | F198: =F$147/F$4 -> 0.020243701 | G198: =G$147/G$4 -> 0.01370101685 | H198: =H$147/H$4 -> 0.01446522852 | I198: =I$147/I$4 -> 0.009567415471 | J198: 0.04389880822 | M198: =D110 -> 18850 | N198: Contractors | O198: ='CSP Budget'!E37 -> 30000 | R198: 3200 | S198: TMC
D199: =SUM(D194:D198) -> 1.001042864 | E199: =SUM(E194:E198) -> 1.028451772 | F199: =SUM(F194:F198) -> 1.037352671 | G199: =SUM(G194:G198) -> 0.7980116151 | H199: =SUM(H194:H198) -> 0.8398967515 | I199: =SUM(I194:I198) -> 0.7824549032 | J199: 3.596076099 | M199: =D141 -> 12500 | N199: Insurance | O199: ='CSP Budget'!E45 -> 7035 | R199: 14600 | S199: Teton
B200: Per student | M200: =D120 -> 8625 | N200: Textbooks / workbooks | O200: ='CSP Budget'!E28 -> 6000 | R200: =SUM(R198:R199) -> 17800
B201: Personnel | D201: =D$100/D$3 -> 10845.59347 | E201: =E$100/E$3 -> 9693.713514 | F201: =F$100/F$3 -> 9299.686698 | G201: =G$100/G$3 -> 9876.175925 | H201: =H$100/H$3 -> 10314.74857 | I201: =I$100/I$3 -> 10366.42186 | J201: 9744.017333 | M201: =SUM(M191:M200) -> 270848.1298 | N201: Total Expenses
B202: Contracted Services | D202: =D$114/D$3 -> 2367.21827 | E202: =E$114/E$3 -> 1756.961412 | F202: =F$114/F$3 -> 1464.725427 | G202: =G$114/G$3 -> 1499.274043 | H202: =H$114/H$3 -> 1406.092114 | I202: =I$114/I$3 -> 1408.64229 | J202: 880.0075964 | M202: =M189-M201 -> 35951.6402 | N202: Remaining
B203: Supplies | D203: =D$138/D$3 -> 3025.049998 | E203: =E$138/E$3 -> 2540.321789 | F203: =F$138/F$3 -> 2216.437078 | G203: =G$138/G$3 -> 2060.250557 | H203: =H$138/H$3 -> 1953.707074 | I203: =I$138/I$3 -> 1939.041187 | J203: 1983.537935
B204: Facilities | D204: =D$148/D$3 -> 2342.228318 | E204: =E$148/E$3 -> 2242.764871 | F204: =F$148/F$3 -> 2042.150318 | G204: =G$148/G$3 -> 1963.762713 | H204: =H$148/H$3 -> 1914.24851 | I204: =I$148/I$3 -> 1802.317614 | J204: 1763.628844
B205: Loans | D205: =D$147/D$3 -> 495.6362041 | E205: =E$147/E$3 -> 373.9524245 | F205: =F$147/F$3 -> 299.0054355 | G205: =G$147/G$3 -> 269.011162 | H205: =H$147/H$3 -> 273.1849876 | I205: =I$147/I$3 -> 192.0746129 | J205: 177.603238
B206: Rent | D206: =D143/D3 -> 1653.914768 | E206: =E143/E3 -> 1664.124947 | F206: 1550.94339 | G206: 1508.730665 | H206: 1456.769767 | I206: =I143/I3 -> 1423.824129 | J206: 1399.806498
H208: =H143/H3 -> 1456.769767
E209: =(E206-1200)*E3 -> 74259.99145 | F209: =(F206-1200)*F3 -> 70539.62144 | G209: 73169.16767 | M209: Current cash effects | N209: 348785.23 | O209: $274k of WA Charters grant payments + $72k of Aug CSP rev
M210: Current beg cash | N210: =M180 -> 126543.79
N211: =SUM(N209:N210) -> 475329.02
M213: Prev cash effects | N213: 264285.23
M214: Prev beg cash | N214: =M178 -> 191098
N215: =SUM(N213:N214) -> 455383.23
M217: Increase in cash | N217: =N211-N215 -> 19945.79
M218: from updating

Sheet Single School Forecast (hidden)
B3: Color Key | R3: SY 2017-18 | S3: SY 2018-19 | T3: SY 2019-20 | U3: SY 2020-21 | V3: SY 2021-22 | W3: SY 2022-23 | X3: SY 2023-24 | Y3: SY 2024-25 | Z3: SY 2025-26 | AA3: SY 2026 - 27 | AB3: SY 2027 - 28
C4: = User Input | O4: BEA Rate | R4: =+R75/R43 ->  | S4: =+S75/S43 ->  | T4: =+T75/T43 ->  | U4: =+IFERROR(U75/U43,0) -> 0 | V4: 10665.18161 | W4: 11077.28307 | X4: 10818.88297 | Y4: 10207.34712 | Z4: 16159.48566 | AA4: 15393.81514 | AB4: =+IFERROR(AB75/AB43,0) -> 15656.27763
C5: = Calculated Field | O5: SpEd 3121 | R5: =+R87/R63 ->  | S5: =+S87/S63 ->  | T5: =+T87/T63 ->  | U5: =+IFERROR(U87/U63,0) -> 0 | V5: 1859.744064 | W5: 2011.373158 | X5: 2006.658328 | Y5: 2027.764645 | Z5: 2027.045797 | AA5: 2026.638492 | AB5: =+IFERROR(AB87/AB63,0) -> 2048.745523
B6: FTE | C6: =Full time equivalent students | O6: SpEd 4121 | R6: =+R91/R62 ->  | S6: =+S89/S62 ->  | T6: =+T89/T62 ->  | U6: =+IFERROR(U89/U62,0) -> 0 | V6: 9513.53521 | W6: 10291.15179 | X6: 10266.9722 | Y6: 10375.2141 | Z6: 10371.52756 | AA6: 10369.43873 | AB6: =+IFERROR(AB89/AB62,0) -> 10482.81271
B7: Reference Data | D7: 2016 | E7: 2017 | F7: 2018 | G7: 2019 | H7: 2020 | O7: LAP | R7: =+(R209+R192+R174+R158+R148)/R54 ->  | S7: =+(S209+S192+S174+S158+S148)/S54 ->  | T7: =+(T209+T192+T174+T158+T148)/T54 ->  | U7: =+IFERROR((U209+U192+U174+U158+U148)/U54,0) -> 0 | V7: 540.7733224 | W7: 571.6703339 | X7: 583.2024438 | Y7: 595.4467193 | Z7: 607.9511004 | AA7: 620.7180735 | AB7: =+IFERROR((AB209+AB192+AB174+AB158+AB148)/AB54,0) -> 633.7531531 | XFD7: Per Pupil Values
D8: SY 2016-17 | E8: SY 2017-18 | F8: SY 2018-19 | G8: SY 2019-20 | H8: SY 2020-21 | O8: LAP HiPov | R8: =+(R212+R195+R177+R161+R151)/R55 ->  | S8: =+(S212+S195+S177+S161+S151)/S55 ->  | T8: =+(T212+T195+T177+T161+T151)/T55 ->  | U8: =+IFERROR((U212+U195+U177+U161+U151)/U55,0) -> 0 | V8: 0 | W8: 0 | X8: 0 | Y8: 0 | Z8: 0 | AA8: 0 | AB8: =+IFERROR((AB212+AB195+AB177+AB161+AB151)/AB55,0) -> 0
C9: State Revenue Inflation (IPD) | E9: 0.017 | F9: 0.016 | G9: 0.018 | H9: 0.019 | O9: LAP Total | R9: =+R93/R54 ->  | S9: =+S93/S54 ->  | T9: =+T93/T54 ->  | U9: =+IFERROR(U93/U54,0) -> 0 | V9: 625.4903804 | W9: 661.4401752 | X9: 673.1619017 | Y9: 685.6092565 | Z9: 698.3209816 | AA9: 711.2996529 | AB9: =+IFERROR(AB93/AB54,0) -> 724.5508763
C10: CPI Seattle/Tacoma/Bremerton | D10: 0.022 | O10: TBIP | R10: =+R98/SUM(R51:R53) ->  | S10: =+S98/SUM(S51:S53) -> 1356.076861 | T10: =+T98/SUM(T51:T53) ->  | U10: =+IFERROR(U98/SUM(U51:U53),0) -> 0 | V10: 1227.470078 | W10: 1104.004286 | X10: 1123.043923 | Y10: 1154.533622 | Z10: 1186.04388 | AA10: 1223.468525 | AB10: =+IFERROR(AB98/SUM(AB51:AB53),0) -> 1254.752669
B11: Analysis Levers, by Year | O11: HiCap | R11: =+R103/R56 ->  | S11: =+S103/S56 ->  | T11: =+T103/T56 ->  | U11: =+IFERROR(U103/U56,0) -> 0 | V11: 563.2674583 | W11: 595.641017 | X11: 606.1966823 | Y11: 617.4057914 | Z11: 638.2025918 | AA11: 650.0865047 | AB11: =+IFERROR(AB103/AB56,0) -> 662.2199799
B12: Note the difference in years from the reference data above | C12: Grant Year | D12: 2021 | E12: 2022 | F12: 2023 | G12: 2024 | H12: 2025 | O12: Transportation | R12: =+R108/(R43*0.95) ->  | S12: =+S108/(S43*0.95) ->  | T12: =+T108/(T43*0.95) ->  | U12: =+IFERROR(U108/(U43*0.95),0) -> 0 | V12: 0 | W12: 0 | X12: 0 | Y12: 0 | Z12: 0 | AA12: 0 | AB12: =+IFERROR(AB108/(AB43*0.95),0) -> 0
C13: School Year | D13: SY 2021-22 | E13: SY 2022-23 | F13: SY 2023-24 | G13: SY 2024-25 | H13: SY 2025-26 | O13: BEA Rate | S13: =+(S4-R4)/R4 ->  | T13: =+(T4-S4)/S4 ->  | U13: =+IFERROR((U4-T4)/T4,0) -> 0 | V13: 0 | W13: 0.03863989146 | X13: -0.02332702851 | Y13: -0.05652486054 | Z13: 0.5831229674 | AA13: -0.04738210919 | AB13: 0.01704986611
C14: % Revenue Growth | D14: 0 | E14: 0 | F14: 0 | G14: 0 | H14: 0 | O14: SpEd 3121 | S14: =+(S5-R5)/R5 ->  | U14: 0 | V14: 0 | W14: 0.0815322373 | X14: -0.002344085183 | Y14: 0.01051814153 | Z14: -0.0003545023833 | AA14: -0.0002009352681 | AB14: 0.0109082261
C15: % Salaries and Benefits Expense Growth | D15: 0 | E15: 0 | F15: 0 | G15: 0 | H15: 0 | O15: SpEd 4121 | U15: 0 | V15: 0 | W15: 0.08173792043 | X15: -0.002349551825 | Y15: 0.01054272866 | Z15: -0.0003553224201 | AA15: -0.0002014002379 | AB15: 0.01093347312
C16: % Operating Expenses Growth | D16: 0 | E16: 0 | F16: 0 | G16: 0 | H16: 0 | O16: LAP | U16: 0 | V16: 0 | W16: 0.05713486633 | X16: 0.02017265763 | Y16: 0.02099489742 | Z16: 0.021 | AA16: 0.021 | AB16: 0.021
B17: Analysis Levers, All Years | O17: LAP HiPov | U17: 0 | V17: 0 | W17: 0 | X17: 0 | Y17: 0 | Z17: 0 | AA17: 0 | AB17: 0
C18: Include professional Learning time? | D18: Yes | O18: LAP Total | U18: 0 | V18: 0 | W18: 0.05747457676 | X18: 0.01772152177 | Y18: 0.0184908783 | Z18: 0.01854077226 | AA18: 0.01858553825 | AB18: 0.01862959353
C19: Include Oversight Fee? | D19: No | O19: TBIP | U19: 0 | V19: 0 | W19: -0.1005855819 | X19: 0.0172459811 | Y19: 0.02803959622 | Z19: 0.0272926294 | AA19: 0.03155418283 | AB19: 0.02557004357
C20: Include SS RN ? | D20: Yes | O20: HiCap | U20: 0 | V20: 0 | W20: 0.05747457676 | X20: 0.01772152177 | Y20: 0.0184908783 | Z20: 0.03368416797 | AA20: 0.01862090993 | AB20: 0.01866440091
O21: Transportation | S21: =+(S12-R12)/R12 ->  | U21: 0 | V21: 0 | W21: 0 | X21: 0 | Y21: 0 | Z21: 0 | AA21: 0 | AB21: 0
U23: IPD Inflation (Reference)> | V23: 0.02 | W23: 0.055 | X23: 0.02 | Y23: 0.021 | Z23: 0.021 | AA23: 0.021 | AB23: 0.021 | AC23: <Actual IPD in March 2022 was 2.8%, The 5.5% calculated rebase value in the budget is 5.5%
U24: Choose your revenue inflation rate> | V24: 0 | W24: 0 | X24: =+X23 -> 0.02 | Y24: =+Y23 -> 0.021 | Z24: =+Z23 -> 0.021 | AA24: =+AA23 -> 0.021 | AB24: =+AB23 -> 0.021 | AC24: < Applies to salaries
M25: =INDEX('Master Charter List - SB 6362'!$F$7:$F$385,MATCH('Single School Forecast'!$O$25,'Master Charter List - SB 6362'!$D$7:$D$385,0)) -> Pullman School District | N25: =VLOOKUP(O25,'Master Charter List - SB 6362'!D7:E385,2,FALSE) -> Pullman School District | O25: Pullman School District | R25: <Pick the school district you plan to locate in
O26: Input Charter School or Home District ^
R27: Budget | S27: Projected | T27: Projected | U27: Projected | V27: Projected | W27: Projected | X27: Projected | Y27: Projected | Z27: Projected | AA27: Projected | AB27: Projected
O28: Grant Year | R28: 2017 | S28: 2018 | T28: 2019 | U28: 2020 | V28: 2021 | W28: 2022 | X28: 2023 | Y28: 2024 | Z28: 2025 | AA28: 2026 | AB28: 2027
O29: Enrollment/ Descriptive | Q29: 2016-17 | R29: SY 2017-18 | S29: SY 2018-19 | T29: SY 2019-20 | U29: 2020-21 | V29: SY 2021-22 | W29: SY 2022-23 | X29: SY 2023-24 | Y29: SY 2024-25 | Z29: SY 2025-26 | AA29: SY 2026-27 | AB29: SY 2027-28 | AC29: Notes
K30: Enroll K-6 | L30: Enroll K-8 | M30: Enroll K-3 | N30: Elem | O30: K | V30: =+'Enrollment and Demographics'!AF3 -> 24 | W30: =+'Enrollment and Demographics'!D3 -> 33 | X30: =+'Enrollment and Demographics'!E3 -> 33 | Y30: =+'Enrollment and Demographics'!F3 -> 33 | Z30: =+'Enrollment and Demographics'!G3 -> 33 | AA30: =+'Enrollment and Demographics'!H3 -> 33 | AB30: =+'Enrollment and Demographics'!I3 -> 33
K31: Enroll K-6 | L31: Enroll K-8 | M31: Enroll K-3 | N31: Elem | O31: 1 | V31: =+'Enrollment and Demographics'!AF4 -> 10 | W31: =+'Enrollment and Demographics'!D4 -> 23 | X31: =+'Enrollment and Demographics'!E4 -> 33 | Y31: =+'Enrollment and Demographics'!F4 -> 41 | Z31: =+'Enrollment and Demographics'!G4 -> 41 | AA31: =+'Enrollment and Demographics'!H4 -> 39 | AB31: =+'Enrollment and Demographics'!I4 -> 41
K32: Enroll K-6 | L32: Enroll K-8 | M32: Enroll K-3 | N32: Elem | O32: 2 | V32: =+'Enrollment and Demographics'!AF5 -> 11 | W32: =+'Enrollment and Demographics'!D5 -> 16 | X32: =+'Enrollment and Demographics'!E5 -> 24 | Y32: =+'Enrollment and Demographics'!F5 -> 31 | Z32: =+'Enrollment and Demographics'!G5 -> 34 | AA32: =+'Enrollment and Demographics'!H5 -> 34 | AB32: =+'Enrollment and Demographics'!I5 -> 34
K33: Enroll K-6 | L33: Enroll K-8 | M33: Enroll K-3 | N33: Elem | O33: 3 | V33: =+'Enrollment and Demographics'!AF6 -> 4 | W33: =+'Enrollment and Demographics'!D6 -> 13 | X33: =+'Enrollment and Demographics'!E6 -> 18 | Y33: =+'Enrollment and Demographics'!F6 -> 27 | Z33: =+'Enrollment and Demographics'!G6 -> 33 | AA33: =+'Enrollment and Demographics'!H6 -> 34 | AB33: =+'Enrollment and Demographics'!I6 -> 33
K34: Enroll K-6 | L34: Enroll K-8 | M34: Enroll 4 | N34: Elem | O34: 4 | V34: =+'Enrollment and Demographics'!AF7 -> 16 | W34: =+'Enrollment and Demographics'!D7 -> 7 | X34: =+'Enrollment and Demographics'!E7 -> 17 | Y34: =+'Enrollment and Demographics'!F7 -> 20 | Z34: =+'Enrollment and Demographics'!G7 -> 24 | AA34: =+'Enrollment and Demographics'!H7 -> 28 | AB34: =+'Enrollment and Demographics'!I7 -> 28
K35: Enroll K-6 | L35: Enroll K-8 | M35: Enroll 5-6 | N35: Elem | O35: 5 | V35: =+'Enrollment and Demographics'!AF8 -> 9 | W35: =+'Enrollment and Demographics'!D8 -> 16 | X35: =+'Enrollment and Demographics'!E8 -> 9 | Y35: =+'Enrollment and Demographics'!F8 -> 17 | Z35: =+'Enrollment and Demographics'!G8 -> 23 | AA35: =+'Enrollment and Demographics'!H8 -> 30 | AB35: =+'Enrollment and Demographics'!I8 -> 27
K36: Enroll K-6 | L36: Enroll K-8 | M36: Enroll 5-6 | N36: Elem | O36: 6 | V36: =+'Enrollment and Demographics'!AF9 -> 0 | W36: =+'Enrollment and Demographics'!D9 -> 7 | X36: =+'Enrollment and Demographics'!E9 -> 16 | Y36: =+'Enrollment and Demographics'!F9 -> 9 | Z36: =+'Enrollment and Demographics'!G9 -> 17 | AA36: =+'Enrollment and Demographics'!H9 -> 22 | AB36: =+'Enrollment and Demographics'!I9 -> 26
K37: Enroll 7-8 | L37: Enroll K-8 | M37: Enroll 7-8 | N37: Middle | O37: 7 | V37: =+'Enrollment and Demographics'!D10 -> 0 | W37: =+'Enrollment and Demographics'!D10 -> 0 | X37: =+'Enrollment and Demographics'!E10 -> 10 | Y37: =+'Enrollment and Demographics'!F10 -> 16 | Z37: =+'Enrollment and Demographics'!G10 -> 9 | AA37: =+'Enrollment and Demographics'!H10 -> 17 | AB37: =+'Enrollment and Demographics'!I10 -> 22
K38: Enroll 7-8 | L38: Enroll K-8 | M38: Enroll 7-8 | N38: Middle | O38: 8 | V38: =+'Enrollment and Demographics'!D11 -> 0 | W38: =+'Enrollment and Demographics'!D11 -> 0 | X38: =+'Enrollment and Demographics'!E11 -> 0 | Y38: =+'Enrollment and Demographics'!F11 -> 7 | Z38: =+'Enrollment and Demographics'!G11 -> 16 | AA38: =+'Enrollment and Demographics'!H11 -> 9 | AB38: =+'Enrollment and Demographics'!I11 -> 17
M39: Enroll 9-12 | N39: High | O39: 9 | V39: =+'Enrollment and Demographics'!D12 -> 0 | W39: =+'Enrollment and Demographics'!D12 -> 0 | X39: =+'Enrollment and Demographics'!E12 -> 0 | Y39: =+'Enrollment and Demographics'!F12 -> 0 | Z39: =+'Enrollment and Demographics'!G12 -> 7 | AA39: =+'Enrollment and Demographics'!H12 -> 16 | AB39: =+'Enrollment and Demographics'!I12 -> 9
M40: Enroll 9-12 | N40: High | O40: 10 | V40: =+'Enrollment and Demographics'!D13 -> 0 | W40: =+'Enrollment and Demographics'!D13 -> 0 | X40: =+'Enrollment and Demographics'!E13 -> 0 | Y40: =+'Enrollment and Demographics'!F13 -> 0 | Z40: =+'Enrollment and Demographics'!G13 -> 0 | AA40: =+'Enrollment and Demographics'!H13 -> 0 | AB40: =+'Enrollment and Demographics'!I13 -> 0
M41: Enroll 9-12 | N41: High | O41: 11 | V41: =+'Enrollment and Demographics'!D14 -> 0 | W41: =+'Enrollment and Demographics'!D14 -> 0 | X41: =+'Enrollment and Demographics'!E14 -> 0 | Y41: =+'Enrollment and Demographics'!F14 -> 0 | Z41: =+'Enrollment and Demographics'!G14 -> 0 | AA41: =+'Enrollment and Demographics'!H14 -> 0 | AB41: =+'Enrollment and Demographics'!I14 -> 0
M42: Enroll 9-12 | N42: High | O42: 12 | V42: =+'Enrollment and Demographics'!D15 -> 0 | W42: =+'Enrollment and Demographics'!D15 -> 0 | X42: =+'Enrollment and Demographics'!E15 -> 0 | Y42: =+'Enrollment and Demographics'!F15 -> 0 | Z42: =+'Enrollment and Demographics'!G15 -> 0 | AA42: =+'Enrollment and Demographics'!H15 -> 0 | AB42: =+'Enrollment and Demographics'!I15 -> 0
M43: Total Enrollment | O43: Total Enrollment | Q43: =IFERROR(INDEX('Variable Inputs - SB 6362'!G$12:G$4809,MATCH($N55,'Variable Inputs - SB 6362'!$C$12:$C$4809,0)),0) -> 0 | R43: =SUM(R30:R42) -> 0 | S43: 0 | T43: =SUM(T30:T42) -> 0 | U43: =SUM(U30:U42) -> 0 | V43: 74 | W43: 115 | X43: 160 | Y43: 201 | Z43: 237 | AA43: 262 | AB43: =SUM(AB30:AB42) -> 270
O44: Enrollment Growth | S44: =IFERROR((S43-R43)/R43,0) -> 0 | T44: =(T43-S43)/S43 ->  | W44: 0.5540540541 | X44: 0.3913043478 | Y44: 0.25625 | Z44: 0.1791044776 | AA44: 0.1054852321 | AB44: 0.03053435115
O45: % K-3 HighPov | R45: 0 | S45: 0 | T45: 0 | U45: 0 | V45: 0 | W45: 0 | X45: 0 | Y45: 0 | Z45: 0 | AA45: 1 | AB45: 1
M46: Enroll K-3 HighPov | O46: K-3 HighPov | R46: =IF(R45<0.5,0,R45*SUM(R30:R33)) -> 0 | S46: =IF(S45<0.5,0,S45*SUM(S30:S33)) -> 0 | T46: 0 | U46: 0 | V46: 0 | W46: 0 | X46: 0 | Y46: 0 | Z46: 0 | AA46: 140 | AB46: =IF(AB45<0.5,0,AB45*SUM(AB30:AB33)) -> 141
M47: =$M$25&" - "&"% LAP from Cedars" -> Pullman School District - % LAP from Cedars | N47: =$N$25&" - "&"% LAP from Cedars" -> Pullman School District - % LAP from Cedars | O47: % FRPL | R47: =IF(R43=0,0,IFERROR(INDEX('Variable Inputs - SB 6362'!H$12:H$4809,MATCH($N47,'Variable Inputs - SB 6362'!$C$12:$C$4809,0)),INDEX('Variable Inputs - SB 6362'!H$12:H$4809,MATCH($M47,'Variable Inputs - SB 6362'!$C$12:$C$4809,0)))) -> 0 | S47: =IF(S43=0,0,IFERROR(INDEX('Variable Inputs - SB 6362'!I$12:I$4809,MATCH($N47,'Variable Inputs - SB 6362'!$C$12:$C$4809,0)),INDEX('Variable Inputs - SB 6362'!I$12:I$4809,MATCH($M47,'Variable Inputs - SB 6362'!$C$12:$C$4809,0)))) -> 0 | T47: =IF(T43=0,0,IFERROR(INDEX('Variable Inputs - SB 6362'!J$12:J$4809,MATCH($N47,'Variable Inputs - SB 6362'!$C$12:$C$4809,0)),INDEX('Variable Inputs - SB 6362'!J$12:J$4809,MATCH($M47,'Variable Inputs - SB 6362'!$C$12:$C$4809,0)))) -> 0 | U47: =IF(U43=0,0,IFERROR(INDEX('Variable Inputs - SB 6362'!K$12:K$4809,MATCH($N47,'Variable Inputs - SB 6362'!$C$12:$C$4809,0)),INDEX('Variable Inputs - SB 6362'!K$12:K$4809,MATCH($M47,'Variable Inputs - SB 6362'!$C$12:$C$4809,0)))) -> 0 | V47: =IF(V43=0,0,IFERROR(INDEX('Variable Inputs - SB 6362'!L$12:L$4809,MATCH($N47,'Variable Inputs - SB 6362'!$C$12:$C$4809,0)),INDEX('Variable Inputs - SB 6362'!L$12:L$4809,MATCH($M47,'Variable Inputs - SB 6362'!$C$12:$C$4809,0)))) -> 0.2762 | W47: =IF(W43=0,0,IFERROR(INDEX('Variable Inputs - SB 6362'!M$12:M$4809,MATCH($N47,'Variable Inputs - SB 6362'!$C$12:$C$4809,0)),INDEX('Variable Inputs - SB 6362'!M$12:M$4809,MATCH($M47,'Variable Inputs - SB 6362'!$C$12:$C$4809,0)))) -> 0.3155 | X47: =+'Enrollment and Demographics'!E36 -> 0.25 | Y47: =+'Enrollment and Demographics'!F36 -> 0.25 | Z47: =+'Enrollment and Demographics'!G36 -> 0.25 | AA47: =+'Enrollment and Demographics'!H36 -> 0.25 | AB47: =+'Enrollment and Demographics'!I36 -> 0.25 | AC47: <<% FRPL 50 and greater triggers the additional LAP funding for High Poverty Schools
O48: TBIP K-12 % | R48: 0.05 | S48: =+IFERROR(S51/SUM(S30:S36)," ") ->  | T48: =+IFERROR(T51/SUM(T30:T36)," ") ->  | V48: 0.04594594595 | W48: 0.05 | X48: 0.05 | Y48: 0.04634831461 | Z48: 0.04214953271 | AA48: 0.03818181818 | AB48: =+IFERROR(AB51/SUM(AB30:AB36)," ") -> 0.036953125
O49: TBIP 7-12 % | R49: 0.05 | S49: =+IFERROR(S52/SUM(S37:S42)," ") ->  | T49: =+IFERROR(T52/SUM(T37:T42)," ") ->  | X49: 0 | Y49: 0.008651685393 | Z49: 0.01285046729 | AA49: 0.01681818182 | AB49: =+IFERROR(AB52/SUM(AB37:AB42)," ") -> 0.018046875
O50: TBIP Exited % | R50: 0.02 | S50: =+IFERROR(S53/S43," ") ->  | T50: =+IFERROR(T53/T43," ") ->  | V50: 0 | W50: 0 | X50: 0 | Y50: 0 | Z50: 0 | AA50: 0 | AB50: =+IFERROR(AB53/AB43," ") -> 0
N51: TBIP (K-6) Staff Units | O51: TBIP (K-6) FTE | R51: =+R48*SUM(R30:R36) -> 0 | S51: 35 | V51: 3.4 | W51: =+'Enrollment and Demographics'!D40 -> 5.75 | X51: =+'Enrollment and Demographics'!E40 -> 7.5 | Y51: =+'Enrollment and Demographics'!F40 -> 8.25 | Z51: =+'Enrollment and Demographics'!G40 -> 8.640654206 | AA51: =+'Enrollment and Demographics'!H40 -> 8.4 | AB51: =+'Enrollment and Demographics'!I40 -> 8.20359375 | AC51: << Enter values here is you plan to apply for these funds in iGrants
N52: TBIP (7-12) Staff Units | O52: TBIP(7-12) FTE | R52: =+R48*SUM(R37:R42) -> 0 | S52: 15 | V52: =+'Enrollment and Demographics'!D41 -> 0 | W52: =+'Enrollment and Demographics'!D41 -> 0 | X52: =+'Enrollment and Demographics'!E41 -> 0 | Y52: =+'Enrollment and Demographics'!F41 -> 0.198988764 | Z52: =+'Enrollment and Demographics'!G41 -> 0.4112149533 | AA52: =+'Enrollment and Demographics'!H41 -> 0.7063636364 | AB52: =+'Enrollment and Demographics'!I41 -> 0.86625 | AC52: << Enter values here is you plan to apply for these funds in iGrants
N53: TBIP Exited Staff Units | O53: TBIP Exited FTE | R53: =+R50*R43 -> 0 | S53: 5 | V53: =+'Enrollment and Demographics'!D42 -> 0 | W53: =+'Enrollment and Demographics'!D42 -> 0 | X53: =+'Enrollment and Demographics'!E42 -> 0 | Y53: =+'Enrollment and Demographics'!F42 -> 0 | Z53: =+'Enrollment and Demographics'!G42 -> 0 | AA53: =+'Enrollment and Demographics'!H42 -> 0 | AB53: =+'Enrollment and Demographics'!I42 -> 0 | AC53: << Enter values here is you plan to apply for these funds in iGrants
L54: =$M$25&" - "&"% LAP from Cedars" -> Pullman School District - % LAP from Cedars | M54: =$N$25&" - "&"% LAP from Cedars" -> Pullman School District - % LAP from Cedars | N54: LAP Staff Units | O54: LAP FTE | R54: =IF(R47*Q43=0,R47*R43,R47*Q43) -> 0 | S54: =+IF(S47*R43=0,S47*S43,S47*R43) -> 0 | T54: =+IF(T47*S43=0,T47*T43,T47*S43) -> 0 | U54: 0 | V54: 20.4388 | W54: 23.347 | X54: 28.75 | Y54: 40 | Z54: 50.25 | AA54: 59.25 | AB54: 65.5 | AC54: <<These do not reflect the actual number of students in the program, just the number of students that will produce funding,
M55: =N25&" - "&"LAP High Pov Eligible" -> Pullman School District - LAP High Pov Eligible | N55: =N25&" - "&O55 -> Pullman School District - LAP Hi Pov FTE | O55: LAP Hi Pov FTE | Q55: =IFERROR(INDEX('Variable Inputs - SB 6362'!G$12:G$4809,MATCH($M55,'Variable Inputs - SB 6362'!$C$12:$C$4809,0)),"No Value") -> No Value | R55: =IFERROR(IF(Q55="Yes",INDEX('Variable Inputs - SB 6362'!G$12:G$4809,MATCH($N55,'Variable Inputs - SB 6362'!$C$12:$C$4809,0)),IF(AND(Q55="No Value",R47>=0.5),R43,0)),0) -> 0 | S55: =+IF(AVERAGE(R47:S47)>0.5,R43,0) -> 0 | T55: 0 | U55: =+IF(AVERAGE(S47:U47)>0.5,T43,0) -> 0 | V55: =+IF(AVERAGE(T47:V47)>0.5,U43,0) -> 0 | W55: 0 | X55: 0 | Y55: 0 | Z55: 0 | AA55: 0 | AB55: 0 | AC55: <<Students eligible for LAP Hi POV will show up here, if the previous year's % FRPL is greater than 50, then previous year's total enrollment will fill in
M56: HiCap students % | N56: HiCap Staff Units | O56: HiCap FTE | R56: =R43*INDEX('Standard Inputs - SB 6362'!F$12:F$1048576,MATCH('Single School Forecast'!$M$56,'Standard Inputs - SB 6362'!$D$12:$D$1048576,0)) -> 0 | S56: =S43*INDEX('Standard Inputs - SB 6362'!G$12:G$1048576,MATCH('Single School Forecast'!$M$56,'Standard Inputs - SB 6362'!$D$12:$D$1048576,0)) -> 0 | T56: =T43*INDEX('Standard Inputs - SB 6362'!H$12:H$1048576,MATCH('Single School Forecast'!$M$56,'Standard Inputs - SB 6362'!$D$12:$D$1048576,0)) -> 0 | U56: =U43*INDEX('Standard Inputs - SB 6362'!I$12:I$1048576,MATCH('Single School Forecast'!$M$56,'Standard Inputs - SB 6362'!$D$12:$D$1048576,0)) -> 0 | V56: =V43*INDEX('Standard Inputs - SB 6362'!J$12:J$1048576,MATCH('Single School Forecast'!$M$56,'Standard Inputs - SB 6362'!$D$12:$D$1048576,0)) -> 3.7 | W56: =W43*INDEX('Standard Inputs - SB 6362'!K$12:K$1048576,MATCH('Single School Forecast'!$M$56,'Standard Inputs - SB 6362'!$D$12:$D$1048576,0)) -> 5.75 | X56: =X43*INDEX('Standard Inputs - SB 6362'!L$12:L$1048576,MATCH('Single School Forecast'!$M$56,'Standard Inputs - SB 6362'!$D$12:$D$1048576,0)) -> 8 | Y56: =Y43*INDEX('Standard Inputs - SB 6362'!M$12:M$1048576,MATCH('Single School Forecast'!$M$56,'Standard Inputs - SB 6362'!$D$12:$D$1048576,0)) -> 10.05 | Z56: =Z43*INDEX('Standard Inputs - SB 6362'!N$12:N$1048576,MATCH('Single School Forecast'!$M$56,'Standard Inputs - SB 6362'!$D$12:$D$1048576,0)) -> 11.85 | AA56: =AA43*INDEX('Standard Inputs - SB 6362'!O$12:O$1048576,MATCH('Single School Forecast'!$M$56,'Standard Inputs - SB 6362'!$D$12:$D$1048576,0)) -> 13.1 | AB56: =AB43*INDEX('Standard Inputs - SB 6362'!P$12:P$1048576,MATCH('Single School Forecast'!$M$56,'Standard Inputs - SB 6362'!$D$12:$D$1048576,0)) -> 13.5 | AC56: <<These do not reflect the actual number of students in the program, just the number of students that will produce funding
O57: Highly Capable Program? | R57: No | S57: No | T57: No | U57: Yes | V57: Yes | W57: Yes | X57: Yes | Y57: Yes | Z57: Yes | AA57: Yes | AB57: Yes | AC57: <<You should choose Yes if you plan to apply for the money in iGrants
O58: % SpEd (of total enrollment) | R58: 0.16 | S58: 0.15 | T58: 0.135 | V58: 0.135 | W58: =+'Enrollment and Demographics'!D28 -> 0.135 | X58: =+'Enrollment and Demographics'!E28 -> 0.135 | Y58: =+'Enrollment and Demographics'!F28 -> 0.135 | Z58: =+'Enrollment and Demographics'!G28 -> 0.135 | AA58: =+'Enrollment and Demographics'!H28 -> 0.135 | AB58: =+'Enrollment and Demographics'!I28 -> 0.135
O59: SpEd Tier 1 >= 80% FTE | V59: =+ROUND(V58*V43,2) -> 9.99 | W59: =+ROUND(W58*W43,2) -> 15.53 | X59: 21.6 | Y59: 27.14 | Z59: 32 | AA59: 35.37 | AB59: 36.45
O60: SpEd Tier 2 < 80% FTE
O61: Total Check | U61: =+IF(SUM(U59:U60)=U62," ","!Tier 1 & 2 <> 4121 SpEd FTE!") ->  | V61: =+IF(SUM(V59:V60)=V62," ","!Tier 1 & 2 <> 4121 SpEd FTE!") ->  | W61: =+IF(SUM(W59:W60)=W62," ","!Tier 1 & 2 <> 4121 SpEd FTE!") ->  | AB61: =+IF(SUM(AB59:AB60)=AB62," ","!Tier 1 & 2 <> 4121 SpEd FTE!") ->  | AC61: << Cell 59 + 60 must equal 62
O62: 4121 Funded SpEd FTE | R62: =IF(R58>0.135,R43*0.135,R58*R43) -> 0 | S62: 0 | T62: 0 | U62: =ROUND(IF(U58>0.135,U43*0.135,U58*U43),2) -> 0 | V62: =ROUND(IF(V58>0.135,V43*0.135,V58*V43),2) -> 9.99 | W62: 15.53 | X62: 21.6 | Y62: 27.14 | Z62: 32 | AA62: 35.37 | AB62: =ROUND(IF(AB58>0.135,AB43*0.135,AB58*AB43),2) -> 36.45 | AC62: <<This value informs Account 4121 SpEd
O63: Actual SpEd Count | R63: =R58*R43 -> 0 | S63: 0 | T63: 0 | U63: 0 | V63: 9.99 | W63: 15.525 | X63: 21.6 | Y63: 27.135 | Z63: 31.995 | AA63: 35.37 | AB63: =AB58*AB43 -> 36.45 | AC63: <<This value informs Account 3121 SpEd
O64: K-3 Ratio Student to Teacher Ratio | U64: 17 | V64: 17 | W64: 17 | X64: 17 | Y64: 17 | Z64: 17 | AA64: 17 | AB64: 17 | AC64: << Cannot be lower than 17, Links to Standard Inputs Tab
F65: LAP Staff Units | G65: TBIP Staff Units | H65: HiCap Staff Units | I65: LAP High Pov Staff Units | J65: SS RN CIS | K65: SS RN CAS | L65: School CIS Staff Units | M65: School CAS Staff Units | N65: Central Admin CAS Staff Units | O65: Funded CIS/ CAS Units | T65: =+SUMIF($P$218:$P$326,$F65,T$218:T$326)+SUMIF($P$218:$P$326,$G65,T$218:T$326)+SUMIF($P$218:$P$326,$H65,T$218:T$326)+SUMIF($P$218:$P$326,$I65,T$218:T$326)+SUMIF($P$218:$P$326,$J65,T$218:T$326)+SUMIF($P$218:$P$326,$K65,T$218:T$326)+SUMIF($P$218:$P$326,$L65,T$218:T$326)+SUMIF($P$218:$P$326,$M65,T$218:T$326)+SUMIF($P$218:$P$326,$N65,T$218:T$326) ->  | U65: 0 | V65: 5.644911594 | W65: 8.806143921 | X65: 11.76643638 | Y65: 14.07522748 | Z65: 25.37885315 | AA65: 26.24588359 | AB65: 27.0784972
N66: CIS/ CAS SEBB Multiplier | O66: SEBB Funded CIS/ CAS Units | T66: =+T$65*INDEX('Standard Inputs - SB 6362'!H$12:H$1048576,MATCH($N66,'Standard Inputs - SB 6362'!$D$12:$D$1048576,0)) ->  | U66: =+U$65*INDEX('Standard Inputs - SB 6362'!I$12:I$1048576,MATCH($N66,'Standard Inputs - SB 6362'!$D$12:$D$1048576,0)) -> 0 | V66: =+V$65*INDEX('Standard Inputs - SB 6362'!J$12:J$1048576,MATCH($N66,'Standard Inputs - SB 6362'!$D$12:$D$1048576,0)) -> 5.757809825 | W66: =+W$65*INDEX('Standard Inputs - SB 6362'!K$12:K$1048576,MATCH($N66,'Standard Inputs - SB 6362'!$D$12:$D$1048576,0)) -> 8.9822668 | X66: =+X$65*INDEX('Standard Inputs - SB 6362'!L$12:L$1048576,MATCH($N66,'Standard Inputs - SB 6362'!$D$12:$D$1048576,0)) -> 12.00176511 | Y66: =+Y$65*INDEX('Standard Inputs - SB 6362'!M$12:M$1048576,MATCH($N66,'Standard Inputs - SB 6362'!$D$12:$D$1048576,0)) -> 14.35673203 | Z66: =+Z$65*INDEX('Standard Inputs - SB 6362'!N$12:N$1048576,MATCH($N66,'Standard Inputs - SB 6362'!$D$12:$D$1048576,0)) -> 25.88643022 | AA66: =+AA$65*INDEX('Standard Inputs - SB 6362'!O$12:O$1048576,MATCH($N66,'Standard Inputs - SB 6362'!$D$12:$D$1048576,0)) -> 26.77080126 | AB66: =+AB$65*INDEX('Standard Inputs - SB 6362'!P$12:P$1048576,MATCH($N66,'Standard Inputs - SB 6362'!$D$12:$D$1048576,0)) -> 27.62006715
K67: SS RN CLS | L67: School CLS Staff Units | M67: District CLS Staff Units | N67: Central Admin CLS Staff Units | O67: Funded CLS Units | T67: =+SUMIF($P$218:$P$326,$K67,T$218:T$326)+SUMIF($P$218:$P$326,$L67,T$218:T$326)+SUMIF($P$218:$P$326,$M67,T$218:T$326)+SUMIF($P$218:$P$326,$N67,T$218:T$326) ->  | U67: 0 | V67: 1.992384868 | W67: 2.738923028 | X67: 3.536210689 | Y67: 3.594912476 | Z67: 7.329637115 | AA67: 7.597896888 | AB67: 7.860225039
N68: CLS SEBB Multiplier | O68: SEBB Funded CLS Units | T68: =+T$67*INDEX('Standard Inputs - SB 6362'!H$12:H$1048576,MATCH($N68,'Standard Inputs - SB 6362'!$D$12:$D$1048576,0)) ->  | U68: =+U$67*INDEX('Standard Inputs - SB 6362'!I$12:I$1048576,MATCH($N68,'Standard Inputs - SB 6362'!$D$12:$D$1048576,0)) -> 0 | V68: =+V$67*INDEX('Standard Inputs - SB 6362'!J$12:J$1048576,MATCH($N68,'Standard Inputs - SB 6362'!$D$12:$D$1048576,0)) -> 2.849110361 | W68: =+W$67*INDEX('Standard Inputs - SB 6362'!K$12:K$1048576,MATCH($N68,'Standard Inputs - SB 6362'!$D$12:$D$1048576,0)) -> 3.91665993 | X68: =+X$67*INDEX('Standard Inputs - SB 6362'!L$12:L$1048576,MATCH($N68,'Standard Inputs - SB 6362'!$D$12:$D$1048576,0)) -> 5.056781285 | Y68: =+Y$67*INDEX('Standard Inputs - SB 6362'!M$12:M$1048576,MATCH($N68,'Standard Inputs - SB 6362'!$D$12:$D$1048576,0)) -> 5.14072484 | Z68: =+Z$67*INDEX('Standard Inputs - SB 6362'!N$12:N$1048576,MATCH($N68,'Standard Inputs - SB 6362'!$D$12:$D$1048576,0)) -> 10.48138107 | AA68: =+AA$67*INDEX('Standard Inputs - SB 6362'!O$12:O$1048576,MATCH($N68,'Standard Inputs - SB 6362'!$D$12:$D$1048576,0)) -> 10.86499255 | AB68: =+AB$67*INDEX('Standard Inputs - SB 6362'!P$12:P$1048576,MATCH($N68,'Standard Inputs - SB 6362'!$D$12:$D$1048576,0)) -> 11.24012181
R70: Budget | S70: Projected | T70: Projected | U70: Projected | V70: Projected | W70: Projected | X70: Projected | Y70: Projected | Z70: Projected | AA70: Projected | AB70: Projected
O71: Grant Year | R71: 2017 | S71: 2018 | T71: 2019 | U71: 2020 | V71: 2021 | W71: 2022 | X71: 2023 | Y71: 2024 | Z71: 2025 | AA71: 2026 | AB71: 2027
O72: School Year | R72: SY 2017-18 | S72: SY 2018-19 | T72: SY 2019-20 | U72: SY 2020-21 | V72: SY 2021-22 | W72: SY 2022-23 | X72: SY 2023-24 | Y72: SY 2024-25 | Z72: SY 2025-26 | AA72: SY 2026-27 | AB72: SY 2027-28
O73: Total Revenue | R73: =R75+R87+R88-R74 ->  | V73: 921884.2594 | W73: 1490151.312 | X73: 2028757.502 | Y73: 2431667.415 | Z73: 4279931.557 | AA73: 4533430.806 | AB73: =AB75+AB87+AB88-AB74 -> 4751748.721
O74: Oversight Fee | R74: =IF($D$19="Yes",(R75+R88+R87+R110)*0.04,0) -> 0 | S74: 0 | T74: 0 | U74: 0 | V74: 0 | W74: 0 | X74: 0 | Y74: 0 | Z74: 0 | AA74: 0 | AB74: =IF($D$19="Yes",(AB75+AB88+AB87+AB110)*0.04,0) -> 0
O75: State Revenue - General Purpose | R75: =R76+R80+R85+R86-R87 ->  | V75: 789223.4388 | W75: 1273887.553 | X75: 1731021.275 | Y75: 2051676.77 | Z75: 3829798.101 | AA75: 4033179.568 | AB75: =AB76+AB80+AB85+AB86-AB87 -> 4227194.96 | AC75: < This is less Account 3121 SpEd
O76: Salaries | R76: =SUM(R77:R79) -> 0 | S76: 0 | U76: 0 | V76: 484634.5679 | W76: 782017.5368 | X76: 1061277.087 | Y76: 1260613.166 | Z76: 2385040.051 | AA76: =SUM(AA77:AA79) -> 2515928.333 | AB76: 2649972.146
O77: CIS Salaries | P77: CIS Salaries | R77: =SUMIF($P$137:$P$215,$P77,R$137:R$215) -> 0 | S77: 0 | U77: 0 | V77: 354156.9438 | W77: =SUMIF($P$137:$P$215,$P77,W$137:W$215) -> 586231.3168 | X77: =SUMIF($P$137:$P$215,$P77,X$137:X$215) -> 798412.0568 | Y77: 969643.669 | Z77: 1809676.71 | AA77: 1905803.582 | AB77: 2004639.406
O78: CAS Salaries | P78: CAS Salaries | R78: 0 | S78: 0 | U78: 0 | V78: 31948.2152 | W78: 52888.38891 | X78: 74680.41533 | Y78: 95643.50172 | Z78: 168751.5765 | AA78: 179779.9082 | AB78: 190780.3661
O79: CLS Salaries | P79: CLS Salaries | R79: 0 | S79: 0 | U79: 0 | V79: 98529.40886 | W79: 142897.8311 | X79: 188184.6147 | Y79: 195325.9948 | Z79: 406611.7639 | AA79: 430344.8432 | AB79: 454552.3737
O80: Benefits | R80: =SUM(R81:R84) -> 0 | S80: 0 | U80: 0 | V80: 207647.8898 | W80: 334577.7444 | X80: 449242.0642 | Y80: 523805.7311 | Z80: 988190.4293 | AA80: 1032964.581 | AB80: =SUM(AB81:AB84) -> 1078231.551
O81: Certificated SEBB Benefits | P81: Certificated SEBB | T81: =SUMIF($P$137:$P$215,$P81,T$137:T$215) ->  | U81: 0 | V81: 64568.8045 | W81: 107379.3747 | X81: 143678.9416 | Y81: 171456.6497 | Z81: 312346.5074 | AA81: 322393.4173 | AB81: 332313.9865
O82: Classified SEBB Benefits | P82: Classified SEBB | U82: 0 | V82: 33095.26595 | W82: 48221.91705 | X82: 62259.09118 | Y82: 63292.60424 | Z82: 129046.7638 | AA82: 133769.7883 | AB82: 138388.3797
O83: Certificated Insurance and Benefits | P83: Certificated Insurance and Benefits | R83: =SUMIF($P$137:$P$215,$P83,R$137:R$215) -> 0 | S83: 0 | U83: 0 | V83: 87636.02035 | W83: 146656.4927 | X83: 200527.0855 | Y83: 244662.7621 | Z83: 454382.3886 | AA83: 478992.5489 | AB83: 504218.4681
O84: Classified Insurance and Benefits | P84: Classified Insurance and Benefits | R84: 0 | S84: 0 | U84: 0 | V84: 22347.79905 | W84: 32319.96002 | X84: 42776.94584 | Y84: 44393.71506 | Z84: 92414.7695 | AA84: 97808.82654 | AB84: 103310.7169
O85: MSOC | P85: MSOC | R85: 0 | S85: 0 | T85: =SUMIF($P$137:$P$215,$P85,T$137:T$215) -> 0 | U85: =SUMIF($P$137:$P$215,$P85,U$137:U$215) -> 0 | V85: =SUMIF($P$137:$P$215,$P85,V$137:V$215)*(1+V$24) -> 105363.02 | W85: 172000.65 | X85: 241483.419 | Y85: 295280.1836 | Z85: 471394.5879 | AA85: 503588.0201 | AB85: 518866.0999
O86: Other Entitlements | P86: Other Entitlements | R86: 0 | S86: 0 | T86: =SUMIF($P$137:$P$215,$P86,T$137:T$215) ->  | U86: =SUMIF($P$137:$P$215,$P86,U$137:U$215) -> 0 | V86: =SUMIF($P$137:$P$215,$P86,V$137:V$215) -> 10156.80434 | W86: 16518.18956 | X86: 22362.52479 | Y86: 27001.08386 | Z86: 50028.36293 | AA86: 52380.83663 | AB86: 54801.93769
I87: SpEd BEA Rate | J87: District Exp. -State Recovery Rate | K87: =$N$25&" - "&"SpEd Recovery Rate" -> Pullman School District - SpEd Recovery Rate | L87: =IFERROR(INDEX('Variable Inputs - SB 6362'!H$12:H$4809,MATCH($K87,'Variable Inputs - SB 6362'!$C$12:$C$4809,0)),INDEX('Standard Inputs - SB 6362'!F$12:F$1048576,MATCH($J87,'Standard Inputs - SB 6362'!$D$12:$D$1048576,0))) -> 0.1 | M87: =$N$25&" - "&"% SpEd for 3121" -> Pullman School District - % SpEd for 3121 | N87: =$M$25&" - "&"% SpEd for 3121" -> Pullman School District - % SpEd for 3121 | O87: Account 3121 SpEd | R87: =IFERROR((R$63*INDEX(R$129:R$133,MATCH($I87,$P$129:$P$133,0)))/(1+$L87)*INDEX('Variable Inputs - SB 6362'!H$12:H$4808,MATCH($M87,'Variable Inputs - SB 6362'!$C$12:$C$4808,0)),(R$63*INDEX(R$129:R$133,MATCH($I87,$P$129:$P$133,0)))/(1+$L87)*INDEX('Variable Inputs - SB 6362'!H$12:H$4808,MATCH($N87,'Variable Inputs - SB 6362'!$C$12:$C$4808,0))) ->  | S87: =IFERROR((S$63*INDEX(S$129:S$133,MATCH($I87,$P$129:$P$133,0)))/(1+$L87)*INDEX('Variable Inputs - SB 6362'!I$12:I$4808,MATCH($M87,'Variable Inputs - SB 6362'!$C$12:$C$4808,0)),(S$63*INDEX(S$129:S$133,MATCH($I87,$P$129:$P$133,0)))/(1+$L87)*INDEX('Variable Inputs - SB 6362'!I$12:I$4808,MATCH($N87,'Variable Inputs - SB 6362'!$C$12:$C$4808,0))) ->  | T87: =IFERROR((T$63*INDEX(T$129:T$133,MATCH($I87,$P$129:$P$133,0)))/(1+$L87)*INDEX('Variable Inputs - SB 6362'!J$12:J$4808,MATCH($M87,'Variable Inputs - SB 6362'!$C$12:$C$4808,0)),(T$63*INDEX(T$129:T$133,MATCH($I87,$P$129:$P$133,0)))/(1+$L87)*INDEX('Variable Inputs - SB 6362'!J$12:J$4808,MATCH($N87,'Variable Inputs - SB 6362'!$C$12:$C$4808,0))) ->  | U87: =IFERROR((U$63*INDEX(U$129:U$133,MATCH($I87,$P$129:$P$133,0)))/(1+$L87)*INDEX('Variable Inputs - SB 6362'!K$12:K$4808,MATCH($M87,'Variable Inputs - SB 6362'!$C$12:$C$4808,0)),(U$63*INDEX(U$129:U$133,MATCH($I87,$P$129:$P$133,0)))/(1+$L87)*INDEX('Variable Inputs - SB 6362'!K$12:K$4808,MATCH($N87,'Variable Inputs - SB 6362'!$C$12:$C$4808,0))) ->  | V87: =IFERROR((V$63*INDEX(V$129:V$133,MATCH($I87,$P$129:$P$133,0)))/(1+$L87)*INDEX('Variable Inputs - SB 6362'!L$12:L$4808,MATCH($M87,'Variable Inputs - SB 6362'!$C$12:$C$4808,0)),(V$63*INDEX(V$129:V$133,MATCH($I87,$P$129:$P$133,0)))/(1+$L87)*INDEX('Variable Inputs - SB 6362'!L$12:L$4808,MATCH($N87,'Variable Inputs - SB 6362'!$C$12:$C$4808,0))) -> 18578.8432 | W87: =IFERROR((W$63*INDEX(W$129:W$133,MATCH($I87,$P$129:$P$133,0)))/(1+$L87)*INDEX('Variable Inputs - SB 6362'!M$12:M$4808,MATCH($M87,'Variable Inputs - SB 6362'!$C$12:$C$4808,0)),(W$63*INDEX(W$129:W$133,MATCH($I87,$P$129:$P$133,0)))/(1+$L87)*INDEX('Variable Inputs - SB 6362'!M$12:M$4808,MATCH($N87,'Variable Inputs - SB 6362'!$C$12:$C$4808,0))) -> 31226.56828 | X87: =IFERROR((X$63*INDEX(X$129:X$133,MATCH($I87,$P$129:$P$133,0)))/(1+$L87)*INDEX('Variable Inputs - SB 6362'!N$12:N$4808,MATCH($M87,'Variable Inputs - SB 6362'!$C$12:$C$4808,0)),(X$63*INDEX(X$129:X$133,MATCH($I87,$P$129:$P$133,0)))/(1+$L87)*INDEX('Variable Inputs - SB 6362'!N$12:N$4808,MATCH($N87,'Variable Inputs - SB 6362'!$C$12:$C$4808,0))) -> 43343.81989 | Y87: =IFERROR((Y$63*INDEX(Y$129:Y$133,MATCH($I87,$P$129:$P$133,0)))/(1+$L87)*INDEX('Variable Inputs - SB 6362'!O$12:O$4808,MATCH($M87,'Variable Inputs - SB 6362'!$C$12:$C$4808,0)),(Y$63*INDEX(Y$129:Y$133,MATCH($I87,$P$129:$P$133,0)))/(1+$L87)*INDEX('Variable Inputs - SB 6362'!O$12:O$4808,MATCH($N87,'Variable Inputs - SB 6362'!$C$12:$C$4808,0))) -> 55023.39363 | Z87: =IFERROR((Z$63*INDEX(Z$129:Z$133,MATCH($I87,$P$129:$P$133,0)))/(1+$L87)*INDEX('Variable Inputs - SB 6362'!P$12:P$4808,MATCH($M87,'Variable Inputs - SB 6362'!$C$12:$C$4808,0)),(Z$63*INDEX(Z$129:Z$133,MATCH($I87,$P$129:$P$133,0)))/(1+$L87)*INDEX('Variable Inputs - SB 6362'!P$12:P$4808,MATCH($N87,'Variable Inputs - SB 6362'!$C$12:$C$4808,0))) -> 64855.33028 | AA87: =IFERROR((AA$63*INDEX(AA$129:AA$133,MATCH($I87,$P$129:$P$133,0)))/(1+$L87)*INDEX('Variable Inputs - SB 6362'!Q$12:Q$4808,MATCH($M87,'Variable Inputs - SB 6362'!$C$12:$C$4808,0)),(AA$63*INDEX(AA$129:AA$133,MATCH($I87,$P$129:$P$133,0)))/(1+$L87)*INDEX('Variable Inputs - SB 6362'!Q$12:Q$4808,MATCH($N87,'Variable Inputs - SB 6362'!$C$12:$C$4808,0))) -> 71682.20347 | AB87: =IFERROR((AB$63*INDEX(AB$129:AB$133,MATCH($I87,$P$129:$P$133,0)))/(1+$L87)*INDEX('Variable Inputs - SB 6362'!R$12:R$4808,MATCH($M87,'Variable Inputs - SB 6362'!$C$12:$C$4808,0)),(AB$63*INDEX(AB$129:AB$133,MATCH($I87,$P$129:$P$133,0)))/(1+$L87)*INDEX('Variable Inputs - SB 6362'!R$12:R$4808,MATCH($N87,'Variable Inputs - SB 6362'!$C$12:$C$4808,0))) -> 74676.77431 | AC87: < If there is no value for the charter school than the formula pulls the corresponding school district's value
O88: State Revenue - Special Purpose | R88: =R91+R92+R108+R109 -> 0 | S88: =S89+S92+S108+S109 ->  | T88: =T89+T92+T108+T109 ->  | V88: 114081.9774 | W88: 185037.1916 | X88: 254392.4071 | Y88: 324967.2508 | Z88: 385278.1258 | AA88: 428569.0347 | AB88: =AB89+AB92+AB108+AB109 -> 449876.9859
L89: SpEd BEA Rate | M89: K-12 SpEd Allocation | N89: Fed Funds Int Rate Per Student | O89: Special Education - Account 4121 | R89: =R$62*((INDEX(R$129:R$133,MATCH($L89,$P$129:$P$133,0))*INDEX('Standard Inputs - SB 6362'!F$12:F$1048576,MATCH($M89,'Standard Inputs - SB 6362'!$D$12:$D$1048576,0)))-INDEX('Standard Inputs - SB 6362'!F$12:F$1048576,MATCH($N89,'Standard Inputs - SB 6362'!$D$12:$D$1048576,0))) ->  | S89: =S$62*((INDEX(S$129:S$133,MATCH($L89,$P$129:$P$133,0))*INDEX('Standard Inputs - SB 6362'!G$12:G$1048576,MATCH($M89,'Standard Inputs - SB 6362'!$D$12:$D$1048576,0)))-INDEX('Standard Inputs - SB 6362'!G$12:G$1048576,MATCH($N89,'Standard Inputs - SB 6362'!$D$12:$D$1048576,0))) ->  | T89: =T$62*((INDEX(T$129:T$133,MATCH($L89,$P$129:$P$133,0))*INDEX('Standard Inputs - SB 6362'!H$12:H$1048576,MATCH($M89,'Standard Inputs - SB 6362'!$D$12:$D$1048576,0)))-INDEX('Standard Inputs - SB 6362'!H$12:H$1048576,MATCH($N89,'Standard Inputs - SB 6362'!$D$12:$D$1048576,0))) ->  | U89: =+SUM(U90:U91) ->  | V89: 95040.21675 | W89: 159821.5874 | X89: 221766.5995 | Y89: 281583.3107 | Z89: 331888.8818 | AA89: 366767.0478 | AB89: =+SUM(AB90:AB91) -> 382098.5232
L90: SpEd BEA Rate | M90: K-12 SpEd Allocation - Tier 1 | N90: Fed Funds Int Rate Per Student | O90: SpEd Tier 1 | U90: =U$59*((INDEX(U$129:U$133,MATCH($L90,$P$129:$P$133,0))*INDEX('Standard Inputs - SB 6362'!I$12:I$1048576,MATCH($M90,'Standard Inputs - SB 6362'!$D$12:$D$1048576,0)))-INDEX('Standard Inputs - SB 6362'!I$12:I$1048576,MATCH($N90,'Standard Inputs - SB 6362'!$D$12:$D$1048576,0))) ->  | V90: =V$59*((INDEX(V$129:V$133,MATCH($L90,$P$129:$P$133,0))*INDEX('Standard Inputs - SB 6362'!J$12:J$1048576,MATCH($M90,'Standard Inputs - SB 6362'!$D$12:$D$1048576,0)))-INDEX('Standard Inputs - SB 6362'!J$12:J$1048576,MATCH($N90,'Standard Inputs - SB 6362'!$D$12:$D$1048576,0))) -> 95040.21675 | W90: =W$59*((INDEX(W$129:W$133,MATCH($L90,$P$129:$P$133,0))*INDEX('Standard Inputs - SB 6362'!K$12:K$1048576,MATCH($M90,'Standard Inputs - SB 6362'!$D$12:$D$1048576,0)))-INDEX('Standard Inputs - SB 6362'!K$12:K$1048576,MATCH($N90,'Standard Inputs - SB 6362'!$D$12:$D$1048576,0))) -> 159821.5874 | X90: =X$59*((INDEX(X$129:X$133,MATCH($L90,$P$129:$P$133,0))*INDEX('Standard Inputs - SB 6362'!L$12:L$1048576,MATCH($M90,'Standard Inputs - SB 6362'!$D$12:$D$1048576,0)))-INDEX('Standard Inputs - SB 6362'!L$12:L$1048576,MATCH($N90,'Standard Inputs - SB 6362'!$D$12:$D$1048576,0))) -> 221766.5995 | Y90: =Y$59*((INDEX(Y$129:Y$133,MATCH($L90,$P$129:$P$133,0))*INDEX('Standard Inputs - SB 6362'!M$12:M$1048576,MATCH($M90,'Standard Inputs - SB 6362'!$D$12:$D$1048576,0)))-INDEX('Standard Inputs - SB 6362'!M$12:M$1048576,MATCH($N90,'Standard Inputs - SB 6362'!$D$12:$D$1048576,0))) -> 281583.3107 | Z90: =Z$59*((INDEX(Z$129:Z$133,MATCH($L90,$P$129:$P$133,0))*INDEX('Standard Inputs - SB 6362'!N$12:N$1048576,MATCH($M90,'Standard Inputs - SB 6362'!$D$12:$D$1048576,0)))-INDEX('Standard Inputs - SB 6362'!N$12:N$1048576,MATCH($N90,'Standard Inputs - SB 6362'!$D$12:$D$1048576,0))) -> 331888.8818 | AA90: =AA$59*((INDEX(AA$129:AA$133,MATCH($L90,$P$129:$P$133,0))*INDEX('Standard Inputs - SB 6362'!O$12:O$1048576,MATCH($M90,'Standard Inputs - SB 6362'!$D$12:$D$1048576,0)))-INDEX('Standard Inputs - SB 6362'!O$12:O$1048576,MATCH($N90,'Standard Inputs - SB 6362'!$D$12:$D$1048576,0))) -> 366767.0478 | AB90: =AB$59*((INDEX(AB$129:AB$133,MATCH($L90,$P$129:$P$133,0))*INDEX('Standard Inputs - SB 6362'!P$12:P$1048576,MATCH($M90,'Standard Inputs - SB 6362'!$D$12:$D$1048576,0)))-INDEX('Standard Inputs - SB 6362'!P$12:P$1048576,MATCH($N90,'Standard Inputs - SB 6362'!$D$12:$D$1048576,0))) -> 382098.5232
L91: SpEd BEA Rate | M91: K-12 SpEd Allocation - Tier 2 | N91: Fed Funds Int Rate Per Student | O91: Sped Tier 2 | U91: =U$60*((INDEX(U$129:U$133,MATCH($L91,$P$129:$P$133,0))*INDEX('Standard Inputs - SB 6362'!I$12:I$1048576,MATCH($M91,'Standard Inputs - SB 6362'!$D$12:$D$1048576,0)))-INDEX('Standard Inputs - SB 6362'!I$12:I$1048576,MATCH($N91,'Standard Inputs - SB 6362'!$D$12:$D$1048576,0))) ->  | V91: =V$60*((INDEX(V$129:V$133,MATCH($L91,$P$129:$P$133,0))*INDEX('Standard Inputs - SB 6362'!J$12:J$1048576,MATCH($M91,'Standard Inputs - SB 6362'!$D$12:$D$1048576,0)))-INDEX('Standard Inputs - SB 6362'!J$12:J$1048576,MATCH($N91,'Standard Inputs - SB 6362'!$D$12:$D$1048576,0))) -> 0 | W91: =W$60*((INDEX(W$129:W$133,MATCH($L91,$P$129:$P$133,0))*INDEX('Standard Inputs - SB 6362'!K$12:K$1048576,MATCH($M91,'Standard Inputs - SB 6362'!$D$12:$D$1048576,0)))-INDEX('Standard Inputs - SB 6362'!K$12:K$1048576,MATCH($N91,'Standard Inputs - SB 6362'!$D$12:$D$1048576,0))) -> 0 | X91: =X$60*((INDEX(X$129:X$133,MATCH($L91,$P$129:$P$133,0))*INDEX('Standard Inputs - SB 6362'!L$12:L$1048576,MATCH($M91,'Standard Inputs - SB 6362'!$D$12:$D$1048576,0)))-INDEX('Standard Inputs - SB 6362'!L$12:L$1048576,MATCH($N91,'Standard Inputs - SB 6362'!$D$12:$D$1048576,0))) -> 0 | Y91: =Y$60*((INDEX(Y$129:Y$133,MATCH($L91,$P$129:$P$133,0))*INDEX('Standard Inputs - SB 6362'!M$12:M$1048576,MATCH($M91,'Standard Inputs - SB 6362'!$D$12:$D$1048576,0)))-INDEX('Standard Inputs - SB 6362'!M$12:M$1048576,MATCH($N91,'Standard Inputs - SB 6362'!$D$12:$D$1048576,0))) -> 0 | Z91: =Z$60*((INDEX(Z$129:Z$133,MATCH($L91,$P$129:$P$133,0))*INDEX('Standard Inputs - SB 6362'!N$12:N$1048576,MATCH($M91,'Standard Inputs - SB 6362'!$D$12:$D$1048576,0)))-INDEX('Standard Inputs - SB 6362'!N$12:N$1048576,MATCH($N91,'Standard Inputs - SB 6362'!$D$12:$D$1048576,0))) -> 0 | AA91: =AA$60*((INDEX(AA$129:AA$133,MATCH($L91,$P$129:$P$133,0))*INDEX('Standard Inputs - SB 6362'!O$12:O$1048576,MATCH($M91,'Standard Inputs - SB 6362'!$D$12:$D$1048576,0)))-INDEX('Standard Inputs - SB 6362'!O$12:O$1048576,MATCH($N91,'Standard Inputs - SB 6362'!$D$12:$D$1048576,0))) -> 0 | AB91: =AB$60*((INDEX(AB$129:AB$133,MATCH($L91,$P$129:$P$133,0))*INDEX('Standard Inputs - SB 6362'!P$12:P$1048576,MATCH($M91,'Standard Inputs - SB 6362'!$D$12:$D$1048576,0)))-INDEX('Standard Inputs - SB 6362'!P$12:P$1048576,MATCH($N91,'Standard Inputs - SB 6362'!$D$12:$D$1048576,0))) -> 0
O92: Categorical Programs | R92: =R93+R98+R103 -> 0 | S92: =S93+S98+S103 -> 74584.22733 | T92: 0 | U92: 0 | V92: =(V93+V98+V103) -> 19041.76065 | W92: 25215.60427 | X92: 32625.80756 | Y92: 43383.94006 | Z92: 53389.24405 | AA92: 61801.98694 | AB92: =(AB93+AB98+AB103) -> 67778.46278
O93: LAP TOTAL | R93: =SUM(R94:R97) -> 0 | S93: =SUM(S94:S97) -> 0 | T93: 0 | U93: 0 | V93: 12784.27279 | W93: 15442.64377 | X93: 19353.40467 | Y93: 27424.37026 | Z93: 35090.62933 | AA93: 42144.50443 | AB93: =SUM(AB94:AB97) -> 47458.0824
O94: LAP Salaries | P94: LAP Salaries | Q94: LAP High Pov Salaries | R94: =SUMIF($P$137:$P$215,$P94,R$137:R$215)+SUMIF($P$137:$P$215,$Q94,R$137:R$215) -> 0 | S94: 0 | T94: 0 | U94: 0 | V94: 9008.139892 | W94: 10855.75607 | X94: 13635.37272 | Y94: 19369.34336 | Z94: =SUMIF($P$137:$P$215,$P94,Z$137:Z$215)+SUMIF($P$137:$P$215,$Q94,Z$137:Z$215)*(1+Z24) -> 24843.72509 | AA94: =SUMIF($P$137:$P$215,$P94,AA$137:AA$215)+SUMIF($P$137:$P$215,$Q94,AA$137:AA$215)*(1+AA24) -> 29908.50779 | AB94: =SUMIF($P$137:$P$215,$P94,AB$137:AB$215)+SUMIF($P$137:$P$215,$Q94,AB$137:AB$215)*(1+AB24) -> 33757.74537
O95: LAP Professional Learning Time | R95: =+R124 -> 0 | S95: =+S124 -> 0 | T95: 0 | U95: 0 | V95: 183.2706061 | W95: 221.3488663 | X95: 278.0252497 | Y95: 394.9409112 | Z95: 506.5635546 | AA95: 609.8344739 | AB95: =+AB124 -> 688.320428
O96: LAP SEBB Benefits | P96: LAP SEBB | T96: =SUMIF($P$137:$P$215,$P96,T$137:T$215) -> 0 | U96: 0 | V96: 1548.244398 | W96: 1874.507619 | X96: 2308.309164 | Y96: 3211.560576 | Z96: 4034.522974 | AA96: 4757.124103 | AB96: 5258.930443
O97: LAP Insurance and Benefits | P97: LAP Insurance and Benefits | R97: =SUMIF($P$137:$P$215,$P97,R$137:R$215) -> 0 | S97: =SUMIF($P$137:$P$215,$P97,S$137:S$215) -> 0 | T97: 0 | U97: 0 | V97: 2044.61789 | W97: 2491.031214 | X97: 3131.697545 | Y97: 4448.525409 | Z97: 5705.817706 | AA97: 6869.038065 | AB97: 7753.086162
O98: TBIP TOTAL | R98: =SUM(R99:R102) -> 0 | S98: =SUM(S99:S102) -> 74584.22733 | T98: 0 | U98: 0 | V98: 4173.398267 | W98: 6348.024646 | X98: 8422.829426 | Y98: 9754.641596 | Z98: 10735.91402 | AA98: 11141.34929 | AB98: =SUM(AB99:AB102) -> 11380.41065
O99: TBIP Salaries | P99: TBIP Salaries | R99: =SUMIF($P$137:$P$215,$P99,R$137:R$215) -> 0 | S99: 47608.10977 | T99: 0 | U99: 0 | V99: 2921.530888 | W99: 4096.677851 | X99: 5450.08535 | Y99: 6330.436573 | Z99: 6987.363877 | AA99: 7271.79914 | AB99: 7448.517768
O100: TBIP Professional Learning Time | R100: =+R125 -> 0 | S100: =+S125 -> 7680.228513 | T100: 0 | U100: 0 | V100: 60.75805585 | W100: 108.6429608 | X100: 144.542374 | Y100: 167.8900232 | Z100: 185.3124456 | AA100: 192.8559763 | AB100: =+AB125 -> 197.5427455
O101: TBIP SEBB Benefits | P101: TBIP SEBB | T101: =SUMIF($P$137:$P$215,$P101,T$137:T$215) -> 0 | U101: 0 | V101: 513.2755415 | W101: 920.050151 | X101: 1200.065414 | Y101: 1365.23962 | Z101: 1475.920074 | AA101: 1504.407922 | AB101: 1509.273175
O102: TBIP Insurance and Benefits | P102: TBIP Insurance and Benefits | R102: =SUMIF($P$137:$P$215,$P102,R$137:R$215) -> 0 | S102: =SUMIF($P$137:$P$215,$P102,S$137:S$215) -> 19295.88905 | T102: 0 | U102: 0 | V102: 677.8337815 | W102: 1222.653683 | X102: 1628.136287 | Y102: 1891.07538 | Z102: 2087.31762 | AA102: 2172.28625 | AB102: 2225.076961
O103: HiCap TOTAL | R103: =SUM(R104:R107) -> 0 | S103: =SUM(S104:S107) -> 0 | T103: 0 | U103: 0 | V103: 2084.089596 | W103: 3424.935848 | X103: 4849.573458 | Y103: 6204.928203 | Z103: 7562.700712 | AA103: 8516.133212 | AB103: =SUM(AB104:AB107) -> 8939.969728
O104: HiCap Salaries | P104: HiCAP Salaries | R104: =SUMIF($P$137:$P$215,$P104,R$137:R$215) -> 0 | S104: =SUMIF($P$143:$P$215,$P104,S$143:S$215) -> 0 | T104: 0 | U104: 0 | V104: 1468.505166 | W104: 2407.636197 | X104: 3416.749804 | Y104: 4382.430071 | Z104: =SUMIF($P$143:$P$215,$P104,Z$143:Z$215)*(1+Z24) -> 5386.650121 | AA104: =SUMIF($P$143:$P$215,$P104,AA$143:AA$215)*(1+AA24) -> 6079.914264 | AB104: =SUMIF($P$143:$P$215,$P104,AB$143:AB$215)*(1+AB24) -> 6397.137272
O105: HiCap Professional Learning Time | R105: =+R126 -> 0 | S105: =+S126 -> 0 | T105: 0 | U105: 0 | V105: 29.87673759 | W105: 49.09170206 | X105: 69.66752849 | Y105: 89.35774916 | Z105: 107.5747267 | AA105: 121.4196394 | AB105: =+AB126 -> 127.7547786
O106: HiCap SEBB Benefits | P106: HiCap SEBB | T106: =SUMIF($P$137:$P$215,$P106,T$137:T$215) -> 0 | U106: 0 | V106: 252.3944924 | W106: 415.7363491 | X106: 578.4157901 | Y106: 726.6348363 | Z106: 856.7783891 | AA106: 947.1558563 | AB106: 976.0766458
O107: HiCap Insurance and Benefits | P107: HiCap Insurance and Benefits | R107: =SUMIF($P$137:$P$215,$P107,R$137:R$215) -> 0 | S107: =SUMIF($P$137:$P$215,$P107,S$137:S$215) -> 0 | T107: 0 | U107: 0 | V107: 333.3132 | W107: 552.4715995 | X107: 784.7403362 | Y107: 1006.505546 | Z107: 1211.697476 | AA107: 1367.643452 | AB107: 1439.001032
O108: Transportation | R108: =+(R110*(R43*0.95)) -> 0 | S108: 0 | T108: 0 | U108: 0 | V108: 0 | W108: 0 | X108: 0 | Y108: 0 | Z108: 0 | AA108: 0 | AB108: =+(AB110*(AB43*0.95)) -> 0 | AC108: <95% ridership baked into this formula
O109: State Meal Program with Inflation | R109: =R111 -> 0 | S109: =S111 -> 0 | T109: 0 | U109: 0 | V109: =IF(ISBLANK(V$24),V111,V111*(1+V$24)) -> 0 | W109: 0 | X109: 0 | Y109: 0 | Z109: 0 | AA109: 0 | AB109: =IF(ISBLANK(AB$24),AB111,AB111*(1+AB$24)) -> 0
O110: Transportation | AC110: <Per pupil Value translated to a total above
O111: State Meal Program
O117: SCHOOL SPECIFIC SALARIES | Q117: SY 2016-17 | R117: SY 2017-18 | S117: SY 2018-19 | T117: SY 2019-20 | U117: SY 2020-21 | V117: SY 2021-22 | W117: SY 2022-23 | X117: SY 2023-24 | Y117: SY 2024-25 | Z117: SY 2025-26 | AA117: SY 2026-27 | AB117: SY 2027-28
M118: =$M$25&" - "&O118 -> Pullman School District - CIS Salary | N118: =$N$25&" - "&$O118 -> Pullman School District - CIS Salary | O118: CIS Salary | Q118: =IFERROR(INDEX('Variable Inputs - SB 6362'!G$12:G$4808,MATCH($N118,'Variable Inputs - SB 6362'!$C$12:$C$4808,0)),INDEX('Variable Inputs - SB 6362'!G$12:G$4808,MATCH('Single School Forecast'!$M118,'Variable Inputs - SB 6362'!$C$12:$C$4808,0))) -> 35700 | R118: =IFERROR(INDEX('Variable Inputs - SB 6362'!H$12:H$4808,MATCH($N118,'Variable Inputs - SB 6362'!$C$12:$C$4808,0)),INDEX('Variable Inputs - SB 6362'!H$12:H$4808,MATCH('Single School Forecast'!$M118,'Variable Inputs - SB 6362'!$C$12:$C$4808,0))) -> 36521 | S118: =IFERROR(INDEX('Variable Inputs - SB 6362'!I$12:I$4808,MATCH($N118,'Variable Inputs - SB 6362'!$C$12:$C$4808,0)),INDEX('Variable Inputs - SB 6362'!I$12:I$4808,MATCH('Single School Forecast'!$M118,'Variable Inputs - SB 6362'!$C$12:$C$4808,0))) -> 65216.05 | T118: =IFERROR(INDEX('Variable Inputs - SB 6362'!J$12:J$4808,MATCH($N118,'Variable Inputs - SB 6362'!$C$12:$C$4808,0)),INDEX('Variable Inputs - SB 6362'!J$12:J$4808,MATCH('Single School Forecast'!$M118,'Variable Inputs - SB 6362'!$C$12:$C$4808,0))) -> 65216.05 | U118: =IFERROR(INDEX('Variable Inputs - SB 6362'!K$12:K$4808,MATCH($N118,'Variable Inputs - SB 6362'!$C$12:$C$4808,0)),INDEX('Variable Inputs - SB 6362'!K$12:K$4808,MATCH('Single School Forecast'!$M118,'Variable Inputs - SB 6362'!$C$12:$C$4808,0))) -> 67585 | V118: =IFERROR(INDEX('Variable Inputs - SB 6362'!L$12:L$4808,MATCH($N118,'Variable Inputs - SB 6362'!$C$12:$C$4808,0)),INDEX('Variable Inputs - SB 6362'!L$12:L$4808,MATCH('Single School Forecast'!$M118,'Variable Inputs - SB 6362'!$C$12:$C$4808,0)))*(1+V24) -> 68937 | W118: =IFERROR(INDEX('Variable Inputs - SB 6362'!M$12:M$4808,MATCH($N118,'Variable Inputs - SB 6362'!$C$12:$C$4808,0)),INDEX('Variable Inputs - SB 6362'!M$12:M$4808,MATCH('Single School Forecast'!$M118,'Variable Inputs - SB 6362'!$C$12:$C$4808,0)))*(1+W24) -> 72728 | X118: =IF(ISBLANK(X$24),IFERROR(INDEX('Variable Inputs - SB 6362'!N$12:N$4808,MATCH($N118,'Variable Inputs - SB 6362'!$C$12:$C$4808,0)),INDEX('Variable Inputs - SB 6362'!N$12:N$4808,MATCH('Single School Forecast'!$M118,'Variable Inputs - SB 6362'!$C$12:$C$4808,0))),W118*(1+X$24)) -> 74182.56 | Y118: =IF(ISBLANK(Y$24),IFERROR(INDEX('Variable Inputs - SB 6362'!O$12:O$4808,MATCH($N118,'Variable Inputs - SB 6362'!$C$12:$C$4808,0)),INDEX('Variable Inputs - SB 6362'!O$12:O$4808,MATCH('Single School Forecast'!$M118,'Variable Inputs - SB 6362'!$C$12:$C$4808,0))),X118*(1+Y$24)) -> 75740.39376 | Z118: =IF(ISBLANK(Z$24),IFERROR(INDEX('Variable Inputs - SB 6362'!P$12:P$4808,MATCH($N118,'Variable Inputs - SB 6362'!$C$12:$C$4808,0)),INDEX('Variable Inputs - SB 6362'!P$12:P$4808,MATCH('Single School Forecast'!$M118,'Variable Inputs - SB 6362'!$C$12:$C$4808,0))),Y118*(1+Z$24)) -> 77330.94203 | AA118: =IF(ISBLANK(AA$24),IFERROR(INDEX('Variable Inputs - SB 6362'!Q$12:Q$4808,MATCH($N118,'Variable Inputs - SB 6362'!$C$12:$C$4808,0)),INDEX('Variable Inputs - SB 6362'!Q$12:Q$4808,MATCH('Single School Forecast'!$M118,'Variable Inputs - SB 6362'!$C$12:$C$4808,0))),Z118*(1+AA$24)) -> 78954.89181 | AB118: =IF(ISBLANK(AB$24),IFERROR(INDEX('Variable Inputs - SB 6362'!R$12:R$4808,MATCH($N118,'Variable Inputs - SB 6362'!$C$12:$C$4808,0)),INDEX('Variable Inputs - SB 6362'!R$12:R$4808,MATCH('Single School Forecast'!$M118,'Variable Inputs - SB 6362'!$C$12:$C$4808,0))),AA118*(1+AB$24)) -> 80612.94454 | AC118: <Inclusive of Regionalization Factor
M119: =$M$25&" - "&O119 -> Pullman School District - CAS Salary | N119: =$N$25&" - "&$O119 -> Pullman School District - CAS Salary | O119: CAS Salary | Q119: =IFERROR(INDEX('Variable Inputs - SB 6362'!G$12:G$4808,MATCH($N119,'Variable Inputs - SB 6362'!$C$12:$C$4808,0)),INDEX('Variable Inputs - SB 6362'!G$12:G$4808,MATCH('Single School Forecast'!$M119,'Variable Inputs - SB 6362'!$C$12:$C$4808,0))) -> 60801 | R119: =IFERROR(INDEX('Variable Inputs - SB 6362'!H$12:H$4808,MATCH($N119,'Variable Inputs - SB 6362'!$C$12:$C$4808,0)),INDEX('Variable Inputs - SB 6362'!H$12:H$4808,MATCH('Single School Forecast'!$M119,'Variable Inputs - SB 6362'!$C$12:$C$4808,0))) -> 62199 | S119: =IFERROR(INDEX('Variable Inputs - SB 6362'!I$12:I$4808,MATCH($N119,'Variable Inputs - SB 6362'!$C$12:$C$4808,0)),INDEX('Variable Inputs - SB 6362'!I$12:I$4808,MATCH('Single School Forecast'!$M119,'Variable Inputs - SB 6362'!$C$12:$C$4808,0))) -> 96805 | T119: =IFERROR(INDEX('Variable Inputs - SB 6362'!J$12:J$4808,MATCH($N119,'Variable Inputs - SB 6362'!$C$12:$C$4808,0)),INDEX('Variable Inputs - SB 6362'!J$12:J$4808,MATCH('Single School Forecast'!$M119,'Variable Inputs - SB 6362'!$C$12:$C$4808,0))) -> 96805 | U119: =IFERROR(INDEX('Variable Inputs - SB 6362'!K$12:K$4808,MATCH($N119,'Variable Inputs - SB 6362'!$C$12:$C$4808,0)),INDEX('Variable Inputs - SB 6362'!K$12:K$4808,MATCH('Single School Forecast'!$M119,'Variable Inputs - SB 6362'!$C$12:$C$4808,0))) -> 100321 | V119: =IFERROR(INDEX('Variable Inputs - SB 6362'!L$12:L$4808,MATCH($N119,'Variable Inputs - SB 6362'!$C$12:$C$4808,0)),INDEX('Variable Inputs - SB 6362'!L$12:L$4808,MATCH('Single School Forecast'!$M119,'Variable Inputs - SB 6362'!$C$12:$C$4808,0)))*(1+V24) -> 102327 | W119: =IFERROR(INDEX('Variable Inputs - SB 6362'!M$12:M$4808,MATCH($N119,'Variable Inputs - SB 6362'!$C$12:$C$4808,0)),INDEX('Variable Inputs - SB 6362'!M$12:M$4808,MATCH('Single School Forecast'!$M119,'Variable Inputs - SB 6362'!$C$12:$C$4808,0)))*(1+W24) -> 107955 | X119: =IF(ISBLANK(X$24),IFERROR(INDEX('Variable Inputs - SB 6362'!N$12:N$4808,MATCH($N119,'Variable Inputs - SB 6362'!$C$12:$C$4808,0)),INDEX('Variable Inputs - SB 6362'!N$12:N$4808,MATCH('Single School Forecast'!$M119,'Variable Inputs - SB 6362'!$C$12:$C$4808,0))),W119*(1+X$24)) -> 110114.1 | Y119: =IF(ISBLANK(Y$24),IFERROR(INDEX('Variable Inputs - SB 6362'!O$12:O$4808,MATCH($N119,'Variable Inputs - SB 6362'!$C$12:$C$4808,0)),INDEX('Variable Inputs - SB 6362'!O$12:O$4808,MATCH('Single School Forecast'!$M119,'Variable Inputs - SB 6362'!$C$12:$C$4808,0))),X119*(1+Y$24)) -> 112426.4961 | Z119: =IF(ISBLANK(Z$24),IFERROR(INDEX('Variable Inputs - SB 6362'!P$12:P$4808,MATCH($N119,'Variable Inputs - SB 6362'!$C$12:$C$4808,0)),INDEX('Variable Inputs - SB 6362'!P$12:P$4808,MATCH('Single School Forecast'!$M119,'Variable Inputs - SB 6362'!$C$12:$C$4808,0))),Y119*(1+Z$24)) -> 114787.4525 | AA119: =IF(ISBLANK(AA$24),IFERROR(INDEX('Variable Inputs - SB 6362'!Q$12:Q$4808,MATCH($N119,'Variable Inputs - SB 6362'!$C$12:$C$4808,0)),INDEX('Variable Inputs - SB 6362'!Q$12:Q$4808,MATCH('Single School Forecast'!$M119,'Variable Inputs - SB 6362'!$C$12:$C$4808,0))),Z119*(1+AA$24)) -> 117197.989 | AB119: =IF(ISBLANK(AB$24),IFERROR(INDEX('Variable Inputs - SB 6362'!R$12:R$4808,MATCH($N119,'Variable Inputs - SB 6362'!$C$12:$C$4808,0)),INDEX('Variable Inputs - SB 6362'!R$12:R$4808,MATCH('Single School Forecast'!$M119,'Variable Inputs - SB 6362'!$C$12:$C$4808,0))),AA119*(1+AB$24)) -> 119659.1468 | AC119: <Inclusive of Regionalization Factor
M120: =$M$25&" - "&O120 -> Pullman School District - CLS Salary | N120: =$N$25&" - "&$O120 -> Pullman School District - CLS Salary | O120: CLS Salary | Q120: =IFERROR(INDEX('Variable Inputs - SB 6362'!G$12:G$4808,MATCH($N120,'Variable Inputs - SB 6362'!$C$12:$C$4808,0)),INDEX('Variable Inputs - SB 6362'!G$12:G$4808,MATCH('Single School Forecast'!$M120,'Variable Inputs - SB 6362'!$C$12:$C$4808,0))) -> 33587 | R120: =IFERROR(INDEX('Variable Inputs - SB 6362'!H$12:H$4808,MATCH($N120,'Variable Inputs - SB 6362'!$C$12:$C$4808,0)),INDEX('Variable Inputs - SB 6362'!H$12:H$4808,MATCH('Single School Forecast'!$M120,'Variable Inputs - SB 6362'!$C$12:$C$4808,0))) -> 34360 | S120: =IFERROR(INDEX('Variable Inputs - SB 6362'!I$12:I$4808,MATCH($N120,'Variable Inputs - SB 6362'!$C$12:$C$4808,0)),INDEX('Variable Inputs - SB 6362'!I$12:I$4808,MATCH('Single School Forecast'!$M120,'Variable Inputs - SB 6362'!$C$12:$C$4808,0))) -> 46784.33 | T120: =IFERROR(INDEX('Variable Inputs - SB 6362'!J$12:J$4808,MATCH($N120,'Variable Inputs - SB 6362'!$C$12:$C$4808,0)),INDEX('Variable Inputs - SB 6362'!J$12:J$4808,MATCH('Single School Forecast'!$M120,'Variable Inputs - SB 6362'!$C$12:$C$4808,0))) -> 46784.33 | U120: =IFERROR(INDEX('Variable Inputs - SB 6362'!K$12:K$4808,MATCH($N120,'Variable Inputs - SB 6362'!$C$12:$C$4808,0)),INDEX('Variable Inputs - SB 6362'!K$12:K$4808,MATCH('Single School Forecast'!$M120,'Variable Inputs - SB 6362'!$C$12:$C$4808,0))) -> 48483 | V120: =IFERROR(INDEX('Variable Inputs - SB 6362'!L$12:L$4808,MATCH($N120,'Variable Inputs - SB 6362'!$C$12:$C$4808,0)),INDEX('Variable Inputs - SB 6362'!L$12:L$4808,MATCH('Single School Forecast'!$M120,'Variable Inputs - SB 6362'!$C$12:$C$4808,0)))*(1+V24) -> 49453 | W120: =IFERROR(INDEX('Variable Inputs - SB 6362'!M$12:M$4808,MATCH($N120,'Variable Inputs - SB 6362'!$C$12:$C$4808,0)),INDEX('Variable Inputs - SB 6362'!M$12:M$4808,MATCH('Single School Forecast'!$M120,'Variable Inputs - SB 6362'!$C$12:$C$4808,0)))*(1+W24) -> 52173 | X120: =IF(ISBLANK(X$24),IFERROR(INDEX('Variable Inputs - SB 6362'!N$12:N$4808,MATCH($N120,'Variable Inputs - SB 6362'!$C$12:$C$4808,0)),INDEX('Variable Inputs - SB 6362'!N$12:N$4808,MATCH('Single School Forecast'!$M120,'Variable Inputs - SB 6362'!$C$12:$C$4808,0))),W120*(1+X$24)) -> 53216.46 | Y120: =IF(ISBLANK(Y$24),IFERROR(INDEX('Variable Inputs - SB 6362'!O$12:O$4808,MATCH($N120,'Variable Inputs - SB 6362'!$C$12:$C$4808,0)),INDEX('Variable Inputs - SB 6362'!O$12:O$4808,MATCH('Single School Forecast'!$M120,'Variable Inputs - SB 6362'!$C$12:$C$4808,0))),X120*(1+Y$24)) -> 54334.00566 | Z120: =IF(ISBLANK(Z$24),IFERROR(INDEX('Variable Inputs - SB 6362'!P$12:P$4808,MATCH($N120,'Variable Inputs - SB 6362'!$C$12:$C$4808,0)),INDEX('Variable Inputs - SB 6362'!P$12:P$4808,MATCH('Single School Forecast'!$M120,'Variable Inputs - SB 6362'!$C$12:$C$4808,0))),Y120*(1+Z$24)) -> 55475.01978 | AA120: =IF(ISBLANK(AA$24),IFERROR(INDEX('Variable Inputs - SB 6362'!Q$12:Q$4808,MATCH($N120,'Variable Inputs - SB 6362'!$C$12:$C$4808,0)),INDEX('Variable Inputs - SB 6362'!Q$12:Q$4808,MATCH('Single School Forecast'!$M120,'Variable Inputs - SB 6362'!$C$12:$C$4808,0))),Z120*(1+AA$24)) -> 56639.99519 | AB120: =IF(ISBLANK(AB$24),IFERROR(INDEX('Variable Inputs - SB 6362'!R$12:R$4808,MATCH($N120,'Variable Inputs - SB 6362'!$C$12:$C$4808,0)),INDEX('Variable Inputs - SB 6362'!R$12:R$4808,MATCH('Single School Forecast'!$M120,'Variable Inputs - SB 6362'!$C$12:$C$4808,0))),AA120*(1+AB$24)) -> 57829.43509 | AC120: <Inclusive of Regionalization Factor
M121: =$M$25&" - "&O121 -> Pullman School District - Staff Mix Factor | N121: =$N$25&" - "&$O121 -> Pullman School District - Staff Mix Factor | O121: Staff Mix Factor | Q121: =IFERROR(INDEX('Variable Inputs - SB 6362'!G$12:G$4808,MATCH($N121,'Variable Inputs - SB 6362'!$C$12:$C$4808,0)),INDEX('Variable Inputs - SB 6362'!G$12:G$4808,MATCH('Single School Forecast'!$M121,'Variable Inputs - SB 6362'!$C$12:$C$4808,0))) -> 1.51389 | R121: =IFERROR(INDEX('Variable Inputs - SB 6362'!H$12:H$4808,MATCH($N121,'Variable Inputs - SB 6362'!$C$12:$C$4808,0)),INDEX('Variable Inputs - SB 6362'!H$12:H$4808,MATCH('Single School Forecast'!$M121,'Variable Inputs - SB 6362'!$C$12:$C$4808,0))) -> 1.51389 | S121: =IFERROR(INDEX('Variable Inputs - SB 6362'!I$12:I$4808,MATCH($N121,'Variable Inputs - SB 6362'!$C$12:$C$4808,0)),INDEX('Variable Inputs - SB 6362'!I$12:I$4808,MATCH('Single School Forecast'!$M121,'Variable Inputs - SB 6362'!$C$12:$C$4808,0))) -> 0 | T121: =IFERROR(INDEX('Variable Inputs - SB 6362'!J$12:J$4808,MATCH($N121,'Variable Inputs - SB 6362'!$C$12:$C$4808,0)),INDEX('Variable Inputs - SB 6362'!J$12:J$4808,MATCH('Single School Forecast'!$M121,'Variable Inputs - SB 6362'!$C$12:$C$4808,0))) -> 0 | U121: =IFERROR(INDEX('Variable Inputs - SB 6362'!K$12:K$4808,MATCH($N121,'Variable Inputs - SB 6362'!$C$12:$C$4808,0)),INDEX('Variable Inputs - SB 6362'!K$12:K$4808,MATCH('Single School Forecast'!$M121,'Variable Inputs - SB 6362'!$C$12:$C$4808,0))) -> 0 | V121: =IFERROR(INDEX('Variable Inputs - SB 6362'!L$12:L$4808,MATCH($N121,'Variable Inputs - SB 6362'!$C$12:$C$4808,0)),INDEX('Variable Inputs - SB 6362'!L$12:L$4808,MATCH('Single School Forecast'!$M121,'Variable Inputs - SB 6362'!$C$12:$C$4808,0))) -> 0 | W121: =IFERROR(INDEX('Variable Inputs - SB 6362'!M$12:M$4808,MATCH($N121,'Variable Inputs - SB 6362'!$C$12:$C$4808,0)),INDEX('Variable Inputs - SB 6362'!M$12:M$4808,MATCH('Single School Forecast'!$M121,'Variable Inputs - SB 6362'!$C$12:$C$4808,0))) -> 0 | X121: =IFERROR(INDEX('Variable Inputs - SB 6362'!N$12:N$4808,MATCH($N121,'Variable Inputs - SB 6362'!$C$12:$C$4808,0)),INDEX('Variable Inputs - SB 6362'!N$12:N$4808,MATCH('Single School Forecast'!$M121,'Variable Inputs - SB 6362'!$C$12:$C$4808,0))) -> 0 | Y121: =IFERROR(INDEX('Variable Inputs - SB 6362'!O$12:O$4808,MATCH($N121,'Variable Inputs - SB 6362'!$C$12:$C$4808,0)),INDEX('Variable Inputs - SB 6362'!O$12:O$4808,MATCH('Single School Forecast'!$M121,'Variable Inputs - SB 6362'!$C$12:$C$4808,0))) -> 0 | Z121: =IFERROR(INDEX('Variable Inputs - SB 6362'!P$12:P$4808,MATCH($N121,'Variable Inputs - SB 6362'!$C$12:$C$4808,0)),INDEX('Variable Inputs - SB 6362'!P$12:P$4808,MATCH('Single School Forecast'!$M121,'Variable Inputs - SB 6362'!$C$12:$C$4808,0))) -> 0 | AA121: =IF(ISBLANK(AA$24),IFERROR(INDEX('Variable Inputs - SB 6362'!Q$12:Q$4808,MATCH($N121,'Variable Inputs - SB 6362'!$C$12:$C$4808,0)),INDEX('Variable Inputs - SB 6362'!Q$12:Q$4808,MATCH('Single School Forecast'!$M121,'Variable Inputs - SB 6362'!$C$12:$C$4808,0))),Z121*(1+AA$24)) -> 0 | AB121: =IF(ISBLANK(AB$24),IFERROR(INDEX('Variable Inputs - SB 6362'!R$12:R$4808,MATCH($N121,'Variable Inputs - SB 6362'!$C$12:$C$4808,0)),INDEX('Variable Inputs - SB 6362'!R$12:R$4808,MATCH('Single School Forecast'!$M121,'Variable Inputs - SB 6362'!$C$12:$C$4808,0))),AA121*(1+AB$24)) -> 0
O123: PROFESSIONAL LEARNING TIME -CATEOGRICALS | R123: SY 2017-18 | S123: SY 2018-19 | T123: SY 2019-20 | U123: SY 2020-21 | V123: SY 2021-22 | W123: SY 2022-23 | X123: SY 2023-24 | Y123: SY 2024-25 | Z123: SY 2025-26 | AA123: SY 2026-27 | AB123: SY 2027-28
N124: CIS/CAS Benefits Increase | O124: LAP | R124: 0 | S124: =+IF($D$18="No",0,((S$304+S$309)*S$118/180*1)+((S$304+S$309)*S$118/180*1)*'Standard Inputs - SB 6362'!G$108) -> 0 | T124: =+IF($D$18="No",0,((T$304+T$309)*T$118/180*3)+((T$304+T$309)*T$118/180*3)*INDEX('Standard Inputs - SB 6362'!H$12:H$1048576,MATCH($N140,'Standard Inputs - SB 6362'!$D$12:$D$1048576,0))) -> 0 | U124: =+IF($D$18="No",0,((U$304+U$309)*U$118/180*3)+((U$304+U$309)*U$118/180*3)*INDEX('Standard Inputs - SB 6362'!I$12:I$1048576,MATCH($N140,'Standard Inputs - SB 6362'!$D$12:$D$1048576,0))) -> 0 | V124: =+IF($D$18="No",0,((V$304+V$309)*V$118/180*3)+((V$304+V$309)*V$118/180*3)*INDEX('Standard Inputs - SB 6362'!J$12:J$1048576,MATCH($N140,'Standard Inputs - SB 6362'!$D$12:$D$1048576,0))) -> 183.2706061 | W124: =+IF($D$18="No",0,((W$304+W$309)*W$118/180*3)+((W$304+W$309)*W$118/180*3)*INDEX('Standard Inputs - SB 6362'!K$12:K$1048576,MATCH($N140,'Standard Inputs - SB 6362'!$D$12:$D$1048576,0))) -> 221.3488663 | X124: =+IF($D$18="No",0,((X$304+X$309)*X$118/180*3)+((X$304+X$309)*X$118/180*3)*INDEX('Standard Inputs - SB 6362'!L$12:L$1048576,MATCH($N140,'Standard Inputs - SB 6362'!$D$12:$D$1048576,0))) -> 278.0252497 | Y124: =+IF($D$18="No",0,((Y$304+Y$309)*Y$118/180*3)+((Y$304+Y$309)*Y$118/180*3)*INDEX('Standard Inputs - SB 6362'!M$12:M$1048576,MATCH($N140,'Standard Inputs - SB 6362'!$D$12:$D$1048576,0))) -> 394.9409112 | Z124: =+IF($D$18="No",0,((Z$304+Z$309)*Z$118/180*3)+((Z$304+Z$309)*Z$118/180*3)*INDEX('Standard Inputs - SB 6362'!N$12:N$1048576,MATCH($N140,'Standard Inputs - SB 6362'!$D$12:$D$1048576,0))) -> 506.5635546 | AA124: =+IF($D$18="No",0,((AA$304+AA$309)*AA$118/180*3)+((AA$304+AA$309)*AA$118/180*3)*INDEX('Standard Inputs - SB 6362'!O$12:O$1048576,MATCH($N140,'Standard Inputs - SB 6362'!$D$12:$D$1048576,0))) -> 609.8344739 | AB124: =+IF($D$18="No",0,((AB$304+AB$309)*AB$118/180*3)+((AB$304+AB$309)*AB$118/180*3)*INDEX('Standard Inputs - SB 6362'!P$12:P$1048576,MATCH($N140,'Standard Inputs - SB 6362'!$D$12:$D$1048576,0))) -> 688.320428 | AC124: <For LAP and Hi Pov LAP, includes salaries and benefits/ payroll tax
N125: CIS/CAS Benefits Increase | O125: TBIP | R125: 0 | S125: =+IF($D$18="No",0,((S$305+S$306+S$307)*S$118/180*1)+((S$305+S$306+S$307)*S$118/180*1)*'Standard Inputs - SB 6362'!G$108) -> 7680.228513 | T125: =+IF($D$18="No",0,((T$305+T$306+T$307)*T$118/180*3)+((T$305+T$306+T$307)*T$118/180*3)*INDEX('Standard Inputs - SB 6362'!H$12:H$1048576,MATCH($N140,'Standard Inputs - SB 6362'!$D$12:$D$1048576,0))) -> 0 | U125: =+IF($D$18="No",0,((U$305+U$306+U$307)*U$118/180*3)+((U$305+U$306+U$307)*U$118/180*3)*INDEX('Standard Inputs - SB 6362'!I$12:I$1048576,MATCH($N140,'Standard Inputs - SB 6362'!$D$12:$D$1048576,0))) -> 0 | V125: =+IF($D$18="No",0,((V$305+V$306+V$307)*V$118/180*3)+((V$305+V$306+V$307)*V$118/180*3)*INDEX('Standard Inputs - SB 6362'!J$12:J$1048576,MATCH($N140,'Standard Inputs - SB 6362'!$D$12:$D$1048576,0))) -> 60.75805585 | W125: =+IF($D$18="No",0,((W$305+W$306+W$307)*W$118/180*3)+((W$305+W$306+W$307)*W$118/180*3)*INDEX('Standard Inputs - SB 6362'!K$12:K$1048576,MATCH($N140,'Standard Inputs - SB 6362'!$D$12:$D$1048576,0))) -> 108.6429608 | X125: =+IF($D$18="No",0,((X$305+X$306+X$307)*X$118/180*3)+((X$305+X$306+X$307)*X$118/180*3)*INDEX('Standard Inputs - SB 6362'!L$12:L$1048576,MATCH($N140,'Standard Inputs - SB 6362'!$D$12:$D$1048576,0))) -> 144.542374 | Y125: =+IF($D$18="No",0,((Y$305+Y$306+Y$307)*Y$118/180*3)+((Y$305+Y$306+Y$307)*Y$118/180*3)*INDEX('Standard Inputs - SB 6362'!M$12:M$1048576,MATCH($N140,'Standard Inputs - SB 6362'!$D$12:$D$1048576,0))) -> 167.8900232 | Z125: =+IF($D$18="No",0,((Z$305+Z$306+Z$307)*Z$118/180*3)+((Z$305+Z$306+Z$307)*Z$118/180*3)*INDEX('Standard Inputs - SB 6362'!N$12:N$1048576,MATCH($N140,'Standard Inputs - SB 6362'!$D$12:$D$1048576,0))) -> 185.3124456 | AA125: =+IF($D$18="No",0,((AA$305+AA$306+AA$307)*AA$118/180*3)+((AA$305+AA$306+AA$307)*AA$118/180*3)*INDEX('Standard Inputs - SB 6362'!O$12:O$1048576,MATCH($N140,'Standard Inputs - SB 6362'!$D$12:$D$1048576,0))) -> 192.8559763 | AB125: =+IF($D$18="No",0,((AB$305+AB$306+AB$307)*AB$118/180*3)+((AB$305+AB$306+AB$307)*AB$118/180*3)*INDEX('Standard Inputs - SB 6362'!P$12:P$1048576,MATCH($N140,'Standard Inputs - SB 6362'!$D$12:$D$1048576,0))) -> 197.5427455 | AC125: <For TBIP K-6, 7-12, and Exited, includes salaries and benefits/ payroll tax
N126: CIS/CAS Benefits Increase | O126: HiCap | R126: 0 | S126: =+IF($D$18="No",0,(S$308*S$118/180*1)+(S$308*S$118/180*1)*'Standard Inputs - SB 6362'!G$108) -> 0 | T126: =+IF($D$18="No",0,(T$308*T$118/180*3)+(T$308*T$118/180*3)*INDEX('Standard Inputs - SB 6362'!H$12:H$1048576,MATCH($N140,'Standard Inputs - SB 6362'!$D$12:$D$1048576,0))) -> 0 | U126: =+IF($D$18="No",0,(U$308*U$118/180*3)+(U$308*U$118/180*3)*INDEX('Standard Inputs - SB 6362'!I$12:I$1048576,MATCH($N140,'Standard Inputs - SB 6362'!$D$12:$D$1048576,0))) -> 0 | V126: =+IF($D$18="No",0,(V$308*V$118/180*3)+(V$308*V$118/180*3)*INDEX('Standard Inputs - SB 6362'!J$12:J$1048576,MATCH($N140,'Standard Inputs - SB 6362'!$D$12:$D$1048576,0))) -> 29.87673759 | W126: =+IF($D$18="No",0,(W$308*W$118/180*3)+(W$308*W$118/180*3)*INDEX('Standard Inputs - SB 6362'!K$12:K$1048576,MATCH($N140,'Standard Inputs - SB 6362'!$D$12:$D$1048576,0))) -> 49.09170206 | X126: =+IF($D$18="No",0,(X$308*X$118/180*3)+(X$308*X$118/180*3)*INDEX('Standard Inputs - SB 6362'!L$12:L$1048576,MATCH($N140,'Standard Inputs - SB 6362'!$D$12:$D$1048576,0))) -> 69.66752849 | Y126: =+IF($D$18="No",0,(Y$308*Y$118/180*3)+(Y$308*Y$118/180*3)*INDEX('Standard Inputs - SB 6362'!M$12:M$1048576,MATCH($N140,'Standard Inputs - SB 6362'!$D$12:$D$1048576,0))) -> 89.35774916 | Z126: =+IF($D$18="No",0,(Z$308*Z$118/180*3)+(Z$308*Z$118/180*3)*INDEX('Standard Inputs - SB 6362'!N$12:N$1048576,MATCH($N140,'Standard Inputs - SB 6362'!$D$12:$D$1048576,0))) -> 107.5747267 | AA126: =+IF($D$18="No",0,(AA$308*AA$118/180*3)+(AA$308*AA$118/180*3)*INDEX('Standard Inputs - SB 6362'!O$12:O$1048576,MATCH($N140,'Standard Inputs - SB 6362'!$D$12:$D$1048576,0))) -> 121.4196394 | AB126: =+IF($D$18="No",0,(AB$308*AB$118/180*3)+(AB$308*AB$118/180*3)*INDEX('Standard Inputs - SB 6362'!P$12:P$1048576,MATCH($N140,'Standard Inputs - SB 6362'!$D$12:$D$1048576,0))) -> 127.7547786 | AC126: <Includes salary and benefits/ payroll tax
O128: BEA SPED RATE | R128: SY 2017-18 | S128: SY 2018-19 | T128: SY 2019-20 | U128: SY 2020-21 | V128: SY 2021-22 | W128: SY 2022-23 | X128: SY 2023-24 | Y128: SY 2024-25 | Z128: SY 2025-26 | AA128: SY 2026-27 | AB128: SY 2027-28
O129: SpEd BEA Rate | P129: SpEd BEA Rate | R129: =SUM(R130:R134) ->  | V129: 9466.536188 | W129: 10238.36406 | X129: 10214.36447 | Y129: 10321.8006 | Z129: 10318.14149 | AA129: =SUM(AA130:AA134) -> 10316.06822 | AB129: 10428.59822
L130: CIS SpEd Salary | M130: CAS SpEd Salary | N130: CLS SpEd Salary | O130: Total SpEd Salary | R130: =SUMIF($P$137:$P$215,$L130,R$137:R$215)+SUMIF($P$137:$P$215,$M130,R$137:R$215)+SUMIF($P$137:$P$215,$N130,R$137:R$215) -> 0 | S130: 0 | T130: 0 | U130: 0 | V130: 5635.371706 | W130: 6092.32868 | X130: 6089.82142 | Y130: 6181.472364 | Z130: 6191.008085 | AA130: 6201.124237 | AB130: 6300.127724
N131: SpEd Insurance and Benefits | O131: Total SpEd Payroll Insurance and Benefits | R131: =SUMIF($P$137:$P$215,$N131,R$137:R$215) -> 0 | S131: 0 | T131: 0 | U131: 0 | V131: 2368.233696 | W131: 2575.401542 | X131: 2555.303969 | Y131: 2570.030449 | Z131: 2552.229583 | AA131: 2535.024203 | AB131: 2552.72771
K132: CIS K-12 Average SpEd | L132: Teacher % | M132: Substitutes Days | N132: Substitutes Rate | O132: Substitutes BEA SpEd | R132: =SUMIF($P$218:$P$326,$K132,R$218:R$326)*INDEX('Standard Inputs - SB 6362'!F$12:F$1048576,MATCH($L132,'Standard Inputs - SB 6362'!$D$12:$D$1048576,0))*INDEX('Standard Inputs - SB 6362'!F$12:F$1048576,MATCH($M132,'Standard Inputs - SB 6362'!$D$12:$D$1048576,0))*INDEX('Standard Inputs - SB 6362'!F$12:F$1048576,MATCH($N132,'Standard Inputs - SB 6362'!$D$12:$D$1048576,0)) -> 0 | S132: =SUMIF($P$218:$P$326,$K132,S$218:S$326)*INDEX('Standard Inputs - SB 6362'!G$12:G$1048576,MATCH($L132,'Standard Inputs - SB 6362'!$D$12:$D$1048576,0))*INDEX('Standard Inputs - SB 6362'!G$12:G$1048576,MATCH($M132,'Standard Inputs - SB 6362'!$D$12:$D$1048576,0))*INDEX('Standard Inputs - SB 6362'!G$12:G$1048576,MATCH($N132,'Standard Inputs - SB 6362'!$D$12:$D$1048576,0)) -> 0 | T132: =SUMIF($P$218:$P$326,$K132,T$218:T$326)*INDEX('Standard Inputs - SB 6362'!H$12:H$1048576,MATCH($L132,'Standard Inputs - SB 6362'!$D$12:$D$1048576,0))*INDEX('Standard Inputs - SB 6362'!H$12:H$1048576,MATCH($M132,'Standard Inputs - SB 6362'!$D$12:$D$1048576,0))*INDEX('Standard Inputs - SB 6362'!H$12:H$1048576,MATCH($N132,'Standard Inputs - SB 6362'!$D$12:$D$1048576,0)) -> 0 | U132: =SUMIF($P$218:$P$326,$K132,U$218:U$326)*INDEX('Standard Inputs - SB 6362'!I$12:I$1048576,MATCH($L132,'Standard Inputs - SB 6362'!$D$12:$D$1048576,0))*INDEX('Standard Inputs - SB 6362'!I$12:I$1048576,MATCH($M132,'Standard Inputs - SB 6362'!$D$12:$D$1048576,0))*INDEX('Standard Inputs - SB 6362'!I$12:I$1048576,MATCH($N132,'Standard Inputs - SB 6362'!$D$12:$D$1048576,0)) -> 0 | V132: =SUMIF($P$218:$P$326,$K132,V$218:V$326)*INDEX('Standard Inputs - SB 6362'!J$12:J$1048576,MATCH($L132,'Standard Inputs - SB 6362'!$D$12:$D$1048576,0))*INDEX('Standard Inputs - SB 6362'!J$12:J$1048576,MATCH($M132,'Standard Inputs - SB 6362'!$D$12:$D$1048576,0))*INDEX('Standard Inputs - SB 6362'!J$12:J$1048576,MATCH($N132,'Standard Inputs - SB 6362'!$D$12:$D$1048576,0)) -> 34.90747725 | W132: =SUMIF($P$218:$P$326,$K132,W$218:W$326)*INDEX('Standard Inputs - SB 6362'!K$12:K$1048576,MATCH($L132,'Standard Inputs - SB 6362'!$D$12:$D$1048576,0))*INDEX('Standard Inputs - SB 6362'!K$12:K$1048576,MATCH($M132,'Standard Inputs - SB 6362'!$D$12:$D$1048576,0))*INDEX('Standard Inputs - SB 6362'!K$12:K$1048576,MATCH($N132,'Standard Inputs - SB 6362'!$D$12:$D$1048576,0)) -> 35.98728496 | X132: =SUMIF($P$218:$P$326,$K132,X$218:X$326)*INDEX('Standard Inputs - SB 6362'!L$12:L$1048576,MATCH($L132,'Standard Inputs - SB 6362'!$D$12:$D$1048576,0))*INDEX('Standard Inputs - SB 6362'!L$12:L$1048576,MATCH($M132,'Standard Inputs - SB 6362'!$D$12:$D$1048576,0))*INDEX('Standard Inputs - SB 6362'!L$12:L$1048576,MATCH($N132,'Standard Inputs - SB 6362'!$D$12:$D$1048576,0)) -> 35.09617614 | Y132: =SUMIF($P$218:$P$326,$K132,Y$218:Y$326)*INDEX('Standard Inputs - SB 6362'!M$12:M$1048576,MATCH($L132,'Standard Inputs - SB 6362'!$D$12:$D$1048576,0))*INDEX('Standard Inputs - SB 6362'!M$12:M$1048576,MATCH($M132,'Standard Inputs - SB 6362'!$D$12:$D$1048576,0))*INDEX('Standard Inputs - SB 6362'!M$12:M$1048576,MATCH($N132,'Standard Inputs - SB 6362'!$D$12:$D$1048576,0)) -> 34.84630098 | Z132: =SUMIF($P$218:$P$326,$K132,Z$218:Z$326)*INDEX('Standard Inputs - SB 6362'!N$12:N$1048576,MATCH($L132,'Standard Inputs - SB 6362'!$D$12:$D$1048576,0))*INDEX('Standard Inputs - SB 6362'!N$12:N$1048576,MATCH($M132,'Standard Inputs - SB 6362'!$D$12:$D$1048576,0))*INDEX('Standard Inputs - SB 6362'!N$12:N$1048576,MATCH($N132,'Standard Inputs - SB 6362'!$D$12:$D$1048576,0)) -> 34.02166391 | AA132: =SUMIF($P$218:$P$326,$K132,AA$218:AA$326)*INDEX('Standard Inputs - SB 6362'!O$12:O$1048576,MATCH($L132,'Standard Inputs - SB 6362'!$D$12:$D$1048576,0))*INDEX('Standard Inputs - SB 6362'!O$12:O$1048576,MATCH($M132,'Standard Inputs - SB 6362'!$D$12:$D$1048576,0))*INDEX('Standard Inputs - SB 6362'!O$12:O$1048576,MATCH($N132,'Standard Inputs - SB 6362'!$D$12:$D$1048576,0)) -> 33.21695131 | AB132: =SUMIF($P$218:$P$326,$K132,AB$218:AB$326)*INDEX('Standard Inputs - SB 6362'!P$12:P$1048576,MATCH($L132,'Standard Inputs - SB 6362'!$D$12:$D$1048576,0))*INDEX('Standard Inputs - SB 6362'!P$12:P$1048576,MATCH($M132,'Standard Inputs - SB 6362'!$D$12:$D$1048576,0))*INDEX('Standard Inputs - SB 6362'!P$12:P$1048576,MATCH($N132,'Standard Inputs - SB 6362'!$D$12:$D$1048576,0)) -> 33.01280376
K133: Total Enrollment | L133: Total BEA MSOC per student FTE | M133: Enroll 9-12 | N133: Total 9-12 MSOC per student FTE | O133: MSOC SpEd | R133: =((SUMIF($M$30:$M$56,$K133,R$30:R$56)*INDEX('Standard Inputs - SB 6362'!F$12:F$1048576,MATCH($L133,'Standard Inputs - SB 6362'!$D$12:$D$1048576,0)))+(SUMIF($M$30:$M$56,$M133,R$30:R$56)*INDEX('Standard Inputs - SB 6362'!F$12:F$1048576,MATCH($N133,'Standard Inputs - SB 6362'!$D$12:$D$1048576,0))))/SUMIF($M$30:$M$56,$K133,R$30:R$56) ->  | S133: =((SUMIF($M$30:$M$56,$K133,S$30:S$56)*INDEX('Standard Inputs - SB 6362'!G$12:G$1048576,MATCH($L133,'Standard Inputs - SB 6362'!$D$12:$D$1048576,0)))+(SUMIF($M$30:$M$56,$M133,S$30:S$56)*INDEX('Standard Inputs - SB 6362'!G$12:G$1048576,MATCH($N133,'Standard Inputs - SB 6362'!$D$12:$D$1048576,0))))/SUMIF($M$30:$M$56,$K133,S$30:S$56) ->  | T133: =((SUMIF($M$30:$M$56,$K133,T$30:T$56)*INDEX('Standard Inputs - SB 6362'!H$12:H$1048576,MATCH($L133,'Standard Inputs - SB 6362'!$D$12:$D$1048576,0)))+(SUMIF($M$30:$M$56,$M133,T$30:T$56)*INDEX('Standard Inputs - SB 6362'!H$12:H$1048576,MATCH($N133,'Standard Inputs - SB 6362'!$D$12:$D$1048576,0))))/SUMIF($M$30:$M$56,$K133,T$30:T$56) ->  | U133: =((SUMIF($M$30:$M$56,$K133,U$30:U$56)*INDEX('Standard Inputs - SB 6362'!I$12:I$1048576,MATCH($L133,'Standard Inputs - SB 6362'!$D$12:$D$1048576,0)))+(SUMIF($M$30:$M$56,$M133,U$30:U$56)*INDEX('Standard Inputs - SB 6362'!I$12:I$1048576,MATCH($N133,'Standard Inputs - SB 6362'!$D$12:$D$1048576,0))))/SUMIF($M$30:$M$56,$K133,U$30:U$56) ->  | V133: =((SUMIF($M$30:$M$56,$K133,V$30:V$56)*INDEX('Standard Inputs - SB 6362'!J$12:J$1048576,MATCH($L133,'Standard Inputs - SB 6362'!$D$12:$D$1048576,0)))+(SUMIF($M$30:$M$56,$M133,V$30:V$56)*INDEX('Standard Inputs - SB 6362'!J$12:J$1048576,MATCH($N133,'Standard Inputs - SB 6362'!$D$12:$D$1048576,0))))/SUMIF($M$30:$M$56,$K133,V$30:V$56) -> 1340.13 | W133: =((SUMIF($M$30:$M$56,$K133,W$30:W$56)*INDEX('Standard Inputs - SB 6362'!K$12:K$1048576,MATCH($L133,'Standard Inputs - SB 6362'!$D$12:$D$1048576,0)))+(SUMIF($M$30:$M$56,$M133,W$30:W$56)*INDEX('Standard Inputs - SB 6362'!K$12:K$1048576,MATCH($N133,'Standard Inputs - SB 6362'!$D$12:$D$1048576,0))))/SUMIF($M$30:$M$56,$K133,W$30:W$56) -> 1438.84 | X133: =((SUMIF($M$30:$M$56,$K133,X$30:X$56)*INDEX('Standard Inputs - SB 6362'!L$12:L$1048576,MATCH($L133,'Standard Inputs - SB 6362'!$D$12:$D$1048576,0)))+(SUMIF($M$30:$M$56,$M133,X$30:X$56)*INDEX('Standard Inputs - SB 6362'!L$12:L$1048576,MATCH($N133,'Standard Inputs - SB 6362'!$D$12:$D$1048576,0))))/SUMIF($M$30:$M$56,$K133,X$30:X$56) -> 1438.84 | Y133: =((SUMIF($M$30:$M$56,$K133,Y$30:Y$56)*INDEX('Standard Inputs - SB 6362'!M$12:M$1048576,MATCH($L133,'Standard Inputs - SB 6362'!$D$12:$D$1048576,0)))+(SUMIF($M$30:$M$56,$M133,Y$30:Y$56)*INDEX('Standard Inputs - SB 6362'!M$12:M$1048576,MATCH($N133,'Standard Inputs - SB 6362'!$D$12:$D$1048576,0))))/SUMIF($M$30:$M$56,$K133,Y$30:Y$56) -> 1438.84 | Z133: =((SUMIF($M$30:$M$56,$K133,Z$30:Z$56)*INDEX('Standard Inputs - SB 6362'!N$12:N$1048576,MATCH($L133,'Standard Inputs - SB 6362'!$D$12:$D$1048576,0)))+(SUMIF($M$30:$M$56,$M133,Z$30:Z$56)*INDEX('Standard Inputs - SB 6362'!N$12:N$1048576,MATCH($N133,'Standard Inputs - SB 6362'!$D$12:$D$1048576,0))))/SUMIF($M$30:$M$56,$K133,Z$30:Z$56) -> 1444.57616 | AA133: =((SUMIF($M$30:$M$56,$K133,AA$30:AA$56)*INDEX('Standard Inputs - SB 6362'!O$12:O$1048576,MATCH($L133,'Standard Inputs - SB 6362'!$D$12:$D$1048576,0)))+(SUMIF($M$30:$M$56,$M133,AA$30:AA$56)*INDEX('Standard Inputs - SB 6362'!O$12:O$1048576,MATCH($N133,'Standard Inputs - SB 6362'!$D$12:$D$1048576,0))))/SUMIF($M$30:$M$56,$K133,AA$30:AA$56) -> 1450.700153 | AB133: =((SUMIF($M$30:$M$56,$K133,AB$30:AB$56)*INDEX('Standard Inputs - SB 6362'!P$12:P$1048576,MATCH($L133,'Standard Inputs - SB 6362'!$D$12:$D$1048576,0)))+(SUMIF($M$30:$M$56,$M133,AB$30:AB$56)*INDEX('Standard Inputs - SB 6362'!P$12:P$1048576,MATCH($N133,'Standard Inputs - SB 6362'!$D$12:$D$1048576,0))))/SUMIF($M$30:$M$56,$K133,AB$30:AB$56) -> 1445.313667
N134: CIS/CAS Benefits Increase | O134: Professional Learning Time | R134: 0 | S134: =+IF($D$18="No",0,(S$222*S$118/180*1)+(S$222*S$118/180*1)*'Standard Inputs - SB 6362'!G$108) -> 0 | T134: =+IF($D$18="No",0,(T$222*T$118/180*2)+(T$222*T$118/180*2)*'Standard Inputs - SB 6362'!H$108) -> 0 | U134: =+IF($D$18="No",0,(U$222*U$118/180*3)+(U$222*U$118/180*3)*INDEX('Standard Inputs - SB 6362'!I$12:I$1048576,MATCH($N140,'Standard Inputs - SB 6362'!$D$12:$D$1048576,0))) -> 0 | V134: =+IF($D$18="No",0,(V$222*V$118/180*3)+(V$222*V$118/180*3)*INDEX('Standard Inputs - SB 6362'!J$12:J$1048576,MATCH($N140,'Standard Inputs - SB 6362'!$D$12:$D$1048576,0))) -> 87.89330902 | W134: =+IF($D$18="No",0,(W$222*W$118/180*3)+(W$222*W$118/180*3)*INDEX('Standard Inputs - SB 6362'!K$12:K$1048576,MATCH($N140,'Standard Inputs - SB 6362'!$D$12:$D$1048576,0))) -> 95.80655647 | X134: =+IF($D$18="No",0,(X$222*X$118/180*3)+(X$222*X$118/180*3)*INDEX('Standard Inputs - SB 6362'!L$12:L$1048576,MATCH($N140,'Standard Inputs - SB 6362'!$D$12:$D$1048576,0))) -> 95.30290103 | Y134: =+IF($D$18="No",0,(Y$222*Y$118/180*3)+(Y$222*Y$118/180*3)*INDEX('Standard Inputs - SB 6362'!M$12:M$1048576,MATCH($N140,'Standard Inputs - SB 6362'!$D$12:$D$1048576,0))) -> 96.61148227 | Z134: =+IF($D$18="No",0,(Z$222*Z$118/180*3)+(Z$222*Z$118/180*3)*INDEX('Standard Inputs - SB 6362'!N$12:N$1048576,MATCH($N140,'Standard Inputs - SB 6362'!$D$12:$D$1048576,0))) -> 96.30600196 | AA134: =+IF($D$18="No",0,(AA$222*AA$118/180*3)+(AA$222*AA$118/180*3)*INDEX('Standard Inputs - SB 6362'!O$12:O$1048576,MATCH($N140,'Standard Inputs - SB 6362'!$D$12:$D$1048576,0))) -> 96.00267095 | AB134: =+IF($D$18="No",0,(AB$222*AB$118/180*3)+(AB$222*AB$118/180*3)*INDEX('Standard Inputs - SB 6362'!P$12:P$1048576,MATCH($N140,'Standard Inputs - SB 6362'!$D$12:$D$1048576,0))) -> 97.41631523
O136: OTHER | R136: SY 2017-18 | S136: SY 2018-19 | T136: SY 2019-20 | U136: SY 2020-21 | V136: SY 2021-22 | W136: SY 2022-23 | X136: SY 2023-24 | Y136: SY 2024-25 | Z136: SY 2025-26 | AA136: SY 2026-27 | AB136: SY 2027-28
M137: Total Enrollment | N137: Total BEA MSOC per student FTE | O137: MSOC BEA | P137: MSOC | R137: =SUMIF($M$30:$M$56,$M137,R$30:R$56)*INDEX('Standard Inputs - SB 6362'!F$12:F$1048576,MATCH($N137,'Standard Inputs - SB 6362'!$D$12:$D$1048576,0)) -> 0 | S137: =SUMIF($M$30:$M$56,$M137,S$30:S$56)*INDEX('Standard Inputs - SB 6362'!G$12:G$1048576,MATCH($N137,'Standard Inputs - SB 6362'!$D$12:$D$1048576,0)) -> 0 | T137: =SUMIF($M$30:$M$56,$M137,T$30:T$56)*INDEX('Standard Inputs - SB 6362'!H$12:H$1048576,MATCH($N137,'Standard Inputs - SB 6362'!$D$12:$D$1048576,0)) -> 0 | U137: =SUMIF($M$30:$M$56,$M137,U$30:U$56)*INDEX('Standard Inputs - SB 6362'!I$12:I$1048576,MATCH($N137,'Standard Inputs - SB 6362'!$D$12:$D$1048576,0)) -> 0 | V137: =SUMIF($M$30:$M$56,$M137,V$30:V$56)*INDEX('Standard Inputs - SB 6362'!J$12:J$1048576,MATCH($N137,'Standard Inputs - SB 6362'!$D$12:$D$1048576,0)) -> 99169.62 | W137: =SUMIF($M$30:$M$56,$M137,W$30:W$56)*INDEX('Standard Inputs - SB 6362'!K$12:K$1048576,MATCH($N137,'Standard Inputs - SB 6362'!$D$12:$D$1048576,0)) -> 165466.6 | X137: =SUMIF($M$30:$M$56,$M137,X$30:X$56)*INDEX('Standard Inputs - SB 6362'!L$12:L$1048576,MATCH($N137,'Standard Inputs - SB 6362'!$D$12:$D$1048576,0)) -> 230214.4 | Y137: =SUMIF($M$30:$M$56,$M137,Y$30:Y$56)*INDEX('Standard Inputs - SB 6362'!M$12:M$1048576,MATCH($N137,'Standard Inputs - SB 6362'!$D$12:$D$1048576,0)) -> 289206.84 | Z137: =SUMIF($M$30:$M$56,$M137,Z$30:Z$56)*INDEX('Standard Inputs - SB 6362'!N$12:N$1048576,MATCH($N137,'Standard Inputs - SB 6362'!$D$12:$D$1048576,0)) -> 341005.08 | AA137: =SUMIF($M$30:$M$56,$M137,AA$30:AA$56)*INDEX('Standard Inputs - SB 6362'!O$12:O$1048576,MATCH($N137,'Standard Inputs - SB 6362'!$D$12:$D$1048576,0)) -> 376976.08 | AB137: =SUMIF($M$30:$M$56,$M137,AB$30:AB$56)*INDEX('Standard Inputs - SB 6362'!P$12:P$1048576,MATCH($N137,'Standard Inputs - SB 6362'!$D$12:$D$1048576,0)) -> 388486.8
M138: Enroll 9-12 | N138: Total 9-12 MSOC per student FTE | O138: MSOC 9-12 | P138: MSOC | R138: =SUMIF($M$30:$M$56,$M138,R$30:R$56)*INDEX('Standard Inputs - SB 6362'!F$12:F$1048576,MATCH($N138,'Standard Inputs - SB 6362'!$D$12:$D$1048576,0)) -> 0 | S138: =SUMIF($M$30:$M$56,$M138,S$30:S$56)*INDEX('Standard Inputs - SB 6362'!G$12:G$1048576,MATCH($N138,'Standard Inputs - SB 6362'!$D$12:$D$1048576,0)) -> 0 | T138: =SUMIF($M$30:$M$56,$M138,T$30:T$56)*INDEX('Standard Inputs - SB 6362'!H$12:H$1048576,MATCH($N138,'Standard Inputs - SB 6362'!$D$12:$D$1048576,0)) -> 0 | U138: =SUMIF($M$30:$M$56,$M138,U$30:U$56)*INDEX('Standard Inputs - SB 6362'!I$12:I$1048576,MATCH($N138,'Standard Inputs - SB 6362'!$D$12:$D$1048576,0)) -> 0 | V138: =SUMIF($M$30:$M$56,$M138,V$30:V$56)*INDEX('Standard Inputs - SB 6362'!J$12:J$1048576,MATCH($N138,'Standard Inputs - SB 6362'!$D$12:$D$1048576,0)) -> 0 | W138: =SUMIF($M$30:$M$56,$M138,W$30:W$56)*INDEX('Standard Inputs - SB 6362'!K$12:K$1048576,MATCH($N138,'Standard Inputs - SB 6362'!$D$12:$D$1048576,0)) -> 0 | X138: =SUMIF($M$30:$M$56,$M138,X$30:X$56)*INDEX('Standard Inputs - SB 6362'!L$12:L$1048576,MATCH($N138,'Standard Inputs - SB 6362'!$D$12:$D$1048576,0)) -> 0 | Y138: =SUMIF($M$30:$M$56,$M138,Y$30:Y$56)*INDEX('Standard Inputs - SB 6362'!M$12:M$1048576,MATCH($N138,'Standard Inputs - SB 6362'!$D$12:$D$1048576,0)) -> 0 | Z138: =SUMIF($M$30:$M$56,$M138,Z$30:Z$56)*INDEX('Standard Inputs - SB 6362'!N$12:N$1048576,MATCH($N138,'Standard Inputs - SB 6362'!$D$12:$D$1048576,0)) -> 1359.47 | AA138: =SUMIF($M$30:$M$56,$M138,AA$30:AA$56)*INDEX('Standard Inputs - SB 6362'!O$12:O$1048576,MATCH($N138,'Standard Inputs - SB 6362'!$D$12:$D$1048576,0)) -> 3107.36 | AB138: =SUMIF($M$30:$M$56,$M138,AB$30:AB$56)*INDEX('Standard Inputs - SB 6362'!P$12:P$1048576,MATCH($N138,'Standard Inputs - SB 6362'!$D$12:$D$1048576,0)) -> 1747.89
J139: Small High School CAS | K139: Small High School CIS | L139: Non-High K-6 Cert. Instructional | M139: Non-High K-8 Cert. Instructional | N139: Total Small School MSOC | O139: MSOC SS RN | P139: MSOC | R139: =(SUMIF($O$218:$O$326,$J139,R$218:R$326)+SUMIF($O$218:$O$326,$K139,R$218:R$326)+SUMIF($O$218:$O$326,$L139,R$218:R$326)+SUMIF($O$218:$O$326,$M139,R$218:R$326))*INDEX('Standard Inputs - SB 6362'!F$12:F$1048576,MATCH($N139,'Standard Inputs - SB 6362'!$D$12:$D$1048576,0)) -> 0 | S139: =(SUMIF($O$218:$O$326,$J139,S$218:S$326)+SUMIF($O$218:$O$326,$K139,S$218:S$326)+SUMIF($O$218:$O$326,$L139,S$218:S$326)+SUMIF($O$218:$O$326,$M139,S$218:S$326))*INDEX('Standard Inputs - SB 6362'!G$12:G$1048576,MATCH($N139,'Standard Inputs - SB 6362'!$D$12:$D$1048576,0)) -> 0 | T139: =(SUMIF($O$218:$O$326,$J139,T$218:T$326)+SUMIF($O$218:$O$326,$K139,T$218:T$326)+SUMIF($O$218:$O$326,$L139,T$218:T$326)+SUMIF($O$218:$O$326,$M139,T$218:T$326))*INDEX('Standard Inputs - SB 6362'!H$12:H$1048576,MATCH($N139,'Standard Inputs - SB 6362'!$D$12:$D$1048576,0)) -> 0 | U139: =(SUMIF($O$218:$O$326,$J139,U$218:U$326)+SUMIF($O$218:$O$326,$K139,U$218:U$326)+SUMIF($O$218:$O$326,$L139,U$218:U$326)+SUMIF($O$218:$O$326,$M139,U$218:U$326))*INDEX('Standard Inputs - SB 6362'!I$12:I$1048576,MATCH($N139,'Standard Inputs - SB 6362'!$D$12:$D$1048576,0)) -> 0 | V139: =(SUMIF($O$218:$O$326,$J139,V$218:V$326)+SUMIF($O$218:$O$326,$K139,V$218:V$326)+SUMIF($O$218:$O$326,$L139,V$218:V$326)+SUMIF($O$218:$O$326,$M139,V$218:V$326))*INDEX('Standard Inputs - SB 6362'!J$12:J$1048576,MATCH($N139,'Standard Inputs - SB 6362'!$D$12:$D$1048576,0)) -> 6193.4 | W139: =(SUMIF($O$218:$O$326,$J139,W$218:W$326)+SUMIF($O$218:$O$326,$K139,W$218:W$326)+SUMIF($O$218:$O$326,$L139,W$218:W$326)+SUMIF($O$218:$O$326,$M139,W$218:W$326))*INDEX('Standard Inputs - SB 6362'!K$12:K$1048576,MATCH($N139,'Standard Inputs - SB 6362'!$D$12:$D$1048576,0)) -> 6534.05 | X139: =(SUMIF($O$218:$O$326,$J139,X$218:X$326)+SUMIF($O$218:$O$326,$K139,X$218:X$326)+SUMIF($O$218:$O$326,$L139,X$218:X$326)+SUMIF($O$218:$O$326,$M139,X$218:X$326))*INDEX('Standard Inputs - SB 6362'!L$12:L$1048576,MATCH($N139,'Standard Inputs - SB 6362'!$D$12:$D$1048576,0)) -> 6534.05 | Y139: =(SUMIF($O$218:$O$326,$J139,Y$218:Y$326)+SUMIF($O$218:$O$326,$K139,Y$218:Y$326)+SUMIF($O$218:$O$326,$L139,Y$218:Y$326)+SUMIF($O$218:$O$326,$M139,Y$218:Y$326))*INDEX('Standard Inputs - SB 6362'!M$12:M$1048576,MATCH($N139,'Standard Inputs - SB 6362'!$D$12:$D$1048576,0)) -> 0 | Z139: =(SUMIF($O$218:$O$326,$J139,Z$218:Z$326)+SUMIF($O$218:$O$326,$K139,Z$218:Z$326)+SUMIF($O$218:$O$326,$L139,Z$218:Z$326)+SUMIF($O$218:$O$326,$M139,Z$218:Z$326))*INDEX('Standard Inputs - SB 6362'!N$12:N$1048576,MATCH($N139,'Standard Inputs - SB 6362'!$D$12:$D$1048576,0)) -> 119334.3608 | AA139: =(SUMIF($O$218:$O$326,$J139,AA$218:AA$326)+SUMIF($O$218:$O$326,$K139,AA$218:AA$326)+SUMIF($O$218:$O$326,$L139,AA$218:AA$326)+SUMIF($O$218:$O$326,$M139,AA$218:AA$326))*INDEX('Standard Inputs - SB 6362'!O$12:O$1048576,MATCH($N139,'Standard Inputs - SB 6362'!$D$12:$D$1048576,0)) -> 113146.7461 | AB139: =(SUMIF($O$218:$O$326,$J139,AB$218:AB$326)+SUMIF($O$218:$O$326,$K139,AB$218:AB$326)+SUMIF($O$218:$O$326,$L139,AB$218:AB$326)+SUMIF($O$218:$O$326,$M139,AB$218:AB$326))*INDEX('Standard Inputs - SB 6362'!P$12:P$1048576,MATCH($N139,'Standard Inputs - SB 6362'!$D$12:$D$1048576,0)) -> 117959.3353
N140: CIS/CAS Benefits Increase | O140: Professional Learning Time | P140: Other Entitlements | R140: =IF($D$18="No",0,(((R230+R238+R303)*((Q118*Q121)/180))+(((R230+R238+R303)*((R118*R121)/180))-((R230+R238+R303)*((Q118*Q121)/180)))+((R230+R238+R303)*((Q118*Q121*'Standard Inputs - SB 6362'!E107)/180))+(((R230+R238+R303)*((R118*R121*'Standard Inputs - SB 6362'!E108)/180))-(R230+R238+R303)*((Q118*Q121*'Standard Inputs - SB 6362'!E107)/180)))*0) -> 0 | S140: =IF($D$18="No",0,((S$230+S$238+S$294+S$295+S$296)*S$118/180*1)+((S$230+S$238+S$294+S$295+S$296)*S$118/180*1)*'Standard Inputs - SB 6362'!G$108) -> 0 | T140: =IF($D$18="No",0,((T$230+T$238+T$294+T$295+T$296+T290+T292)*T$118/180*3)+((T$230+T$238+T$294+T$295+T$296+T290+T292)*T$118/180*3)*INDEX('Standard Inputs - SB 6362'!H$12:H$1048576,MATCH($N140,'Standard Inputs - SB 6362'!$D$12:$D$1048576,0))) ->  | U140: =IF($D$18="No",0,((U$230+U$238+U$294+U$295+U$296+U290+U292)*U$118/180*3)+((U$230+U$238+U$294+U$295+U$296+U290+U292)*U$118/180*3)*INDEX('Standard Inputs - SB 6362'!I$12:I$1048576,MATCH($N140,'Standard Inputs - SB 6362'!$D$12:$D$1048576,0))) -> 0 | V140: =IF($D$18="No",0,((V$230+V$238+V$294+V$295+V$296+V290+V292)*V$118/180*3)+((V$230+V$238+V$294+V$295+V$296+V290+V292)*V$118/180*3)*INDEX('Standard Inputs - SB 6362'!J$12:J$1048576,MATCH($N140,'Standard Inputs - SB 6362'!$D$12:$D$1048576,0))) -> 7206.164536 | W140: =IF($D$18="No",0,((W$230+W$238+W$294+W$295+W$296+W290+W292)*W$118/180*3)+((W$230+W$238+W$294+W$295+W$296+W290+W292)*W$118/180*3)*INDEX('Standard Inputs - SB 6362'!K$12:K$1048576,MATCH($N140,'Standard Inputs - SB 6362'!$D$12:$D$1048576,0))) -> 11952.3668 | X140: =IF($D$18="No",0,((X$230+X$238+X$294+X$295+X$296+X290+X292)*X$118/180*3)+((X$230+X$238+X$294+X$295+X$296+X290+X292)*X$118/180*3)*INDEX('Standard Inputs - SB 6362'!L$12:L$1048576,MATCH($N140,'Standard Inputs - SB 6362'!$D$12:$D$1048576,0))) -> 16279.92435 | Y140: =IF($D$18="No",0,((Y$230+Y$238+Y$294+Y$295+Y$296+Y290+Y292)*Y$118/180*3)+((Y$230+Y$238+Y$294+Y$295+Y$296+Y290+Y292)*Y$118/180*3)*INDEX('Standard Inputs - SB 6362'!M$12:M$1048576,MATCH($N140,'Standard Inputs - SB 6362'!$D$12:$D$1048576,0))) -> 19770.72554 | Z140: =IF($D$18="No",0,((Z$230+Z$238+Z$294+Z$295+Z$296+Z290+Z292)*Z$118/180*3)+((Z$230+Z$238+Z$294+Z$295+Z$296+Z290+Z292)*Z$118/180*3)*INDEX('Standard Inputs - SB 6362'!N$12:N$1048576,MATCH($N140,'Standard Inputs - SB 6362'!$D$12:$D$1048576,0))) -> 36899.662 | AA140: =IF($D$18="No",0,((AA$230+AA$238+AA$294+AA$295+AA$296+AA290+AA292)*AA$118/180*3)+((AA$230+AA$238+AA$294+AA$295+AA$296+AA290+AA292)*AA$118/180*3)*INDEX('Standard Inputs - SB 6362'!O$12:O$1048576,MATCH($N140,'Standard Inputs - SB 6362'!$D$12:$D$1048576,0))) -> 38859.07994 | AB140: =IF($D$18="No",0,((AB$230+AB$238+AB$294+AB$295+AB$296+AB290+AB292)*AB$118/180*3)+((AB$230+AB$238+AB$294+AB$295+AB$296+AB290+AB292)*AB$118/180*3)*INDEX('Standard Inputs - SB 6362'!P$12:P$1048576,MATCH($N140,'Standard Inputs - SB 6362'!$D$12:$D$1048576,0))) -> 40875.11874 | AC140: <For General Entitlement only, includes Salary and Benefits/ Payroll Tax
I141: Small High School CIS | J141: Non-High K-6 Cert. Instructional | K141: Non-High K-8 Cert. Instructional | L141: Teacher % | M141: Substitutes Days | N141: Substitutes Rate | O141: SS RN Substitutes | P141: Other Entitlements | R141: =(SUMIF($O$218:$O$326,$I141,R$218:R$326)+SUMIF($O$218:$O$326,$J141,R$218:R$326)+SUMIF($O$218:$O$326,$K141,R$218:R$326))*INDEX('Standard Inputs - SB 6362'!F$12:F$1048576,MATCH($L141,'Standard Inputs - SB 6362'!$D$12:$D$1048576,0))*INDEX('Standard Inputs - SB 6362'!F$12:F$1048576,MATCH($M141,'Standard Inputs - SB 6362'!$D$12:$D$1048576,0))*INDEX('Standard Inputs - SB 6362'!F$12:F$1048576,MATCH($N141,'Standard Inputs - SB 6362'!$D$12:$D$1048576,0)) -> 0 | S141: =(SUMIF($O$218:$O$326,$I141,S$218:S$326)+SUMIF($O$218:$O$326,$J141,S$218:S$326)+SUMIF($O$218:$O$326,$K141,S$218:S$326))*INDEX('Standard Inputs - SB 6362'!G$12:G$1048576,MATCH($L141,'Standard Inputs - SB 6362'!$D$12:$D$1048576,0))*INDEX('Standard Inputs - SB 6362'!G$12:G$1048576,MATCH($M141,'Standard Inputs - SB 6362'!$D$12:$D$1048576,0))*INDEX('Standard Inputs - SB 6362'!G$12:G$1048576,MATCH($N141,'Standard Inputs - SB 6362'!$D$12:$D$1048576,0)) -> 0 | T141: =(SUMIF($O$218:$O$326,$I141,T$218:T$326)+SUMIF($O$218:$O$326,$J141,T$218:T$326)+SUMIF($O$218:$O$326,$K141,T$218:T$326))*INDEX('Standard Inputs - SB 6362'!H$12:H$1048576,MATCH($L141,'Standard Inputs - SB 6362'!$D$12:$D$1048576,0))*INDEX('Standard Inputs - SB 6362'!H$12:H$1048576,MATCH($M141,'Standard Inputs - SB 6362'!$D$12:$D$1048576,0))*INDEX('Standard Inputs - SB 6362'!H$12:H$1048576,MATCH($N141,'Standard Inputs - SB 6362'!$D$12:$D$1048576,0)) -> 0 | U141: =(SUMIF($O$218:$O$326,$I141,U$218:U$326)+SUMIF($O$218:$O$326,$J141,U$218:U$326)+SUMIF($O$218:$O$326,$K141,U$218:U$326)+U290+U292)*INDEX('Standard Inputs - SB 6362'!I$12:I$1048576,MATCH($L141,'Standard Inputs - SB 6362'!$D$12:$D$1048576,0))*INDEX('Standard Inputs - SB 6362'!I$12:I$1048576,MATCH($M141,'Standard Inputs - SB 6362'!$D$12:$D$1048576,0))*INDEX('Standard Inputs - SB 6362'!I$12:I$1048576,MATCH($N141,'Standard Inputs - SB 6362'!$D$12:$D$1048576,0)) -> 0 | V141: =(SUMIF($O$218:$O$326,$I141,V$218:V$326)+SUMIF($O$218:$O$326,$J141,V$218:V$326)+SUMIF($O$218:$O$326,$K141,V$218:V$326)+V290+V292)*INDEX('Standard Inputs - SB 6362'!J$12:J$1048576,MATCH($L141,'Standard Inputs - SB 6362'!$D$12:$D$1048576,0))*INDEX('Standard Inputs - SB 6362'!J$12:J$1048576,MATCH($M141,'Standard Inputs - SB 6362'!$D$12:$D$1048576,0))*INDEX('Standard Inputs - SB 6362'!J$12:J$1048576,MATCH($N141,'Standard Inputs - SB 6362'!$D$12:$D$1048576,0)) -> 278.51124 | W141: =(SUMIF($O$218:$O$326,$I141,W$218:W$326)+SUMIF($O$218:$O$326,$J141,W$218:W$326)+SUMIF($O$218:$O$326,$K141,W$218:W$326)+W290+W292)*INDEX('Standard Inputs - SB 6362'!K$12:K$1048576,MATCH($L141,'Standard Inputs - SB 6362'!$D$12:$D$1048576,0))*INDEX('Standard Inputs - SB 6362'!K$12:K$1048576,MATCH($M141,'Standard Inputs - SB 6362'!$D$12:$D$1048576,0))*INDEX('Standard Inputs - SB 6362'!K$12:K$1048576,MATCH($N141,'Standard Inputs - SB 6362'!$D$12:$D$1048576,0)) -> 278.51124 | X141: =(SUMIF($O$218:$O$326,$I141,X$218:X$326)+SUMIF($O$218:$O$326,$J141,X$218:X$326)+SUMIF($O$218:$O$326,$K141,X$218:X$326)+X290+X292)*INDEX('Standard Inputs - SB 6362'!L$12:L$1048576,MATCH($L141,'Standard Inputs - SB 6362'!$D$12:$D$1048576,0))*INDEX('Standard Inputs - SB 6362'!L$12:L$1048576,MATCH($M141,'Standard Inputs - SB 6362'!$D$12:$D$1048576,0))*INDEX('Standard Inputs - SB 6362'!L$12:L$1048576,MATCH($N141,'Standard Inputs - SB 6362'!$D$12:$D$1048576,0)) -> 278.51124 | Y141: =(SUMIF($O$218:$O$326,$I141,Y$218:Y$326)+SUMIF($O$218:$O$326,$J141,Y$218:Y$326)+SUMIF($O$218:$O$326,$K141,Y$218:Y$326)+Y290+Y292)*INDEX('Standard Inputs - SB 6362'!M$12:M$1048576,MATCH($L141,'Standard Inputs - SB 6362'!$D$12:$D$1048576,0))*INDEX('Standard Inputs - SB 6362'!M$12:M$1048576,MATCH($M141,'Standard Inputs - SB 6362'!$D$12:$D$1048576,0))*INDEX('Standard Inputs - SB 6362'!M$12:M$1048576,MATCH($N141,'Standard Inputs - SB 6362'!$D$12:$D$1048576,0)) -> 0 | Z141: =(SUMIF($O$218:$O$326,$I141,Z$218:Z$326)+SUMIF($O$218:$O$326,$J141,Z$218:Z$326)+SUMIF($O$218:$O$326,$K141,Z$218:Z$326)+Z290+Z292)*INDEX('Standard Inputs - SB 6362'!N$12:N$1048576,MATCH($L141,'Standard Inputs - SB 6362'!$D$12:$D$1048576,0))*INDEX('Standard Inputs - SB 6362'!N$12:N$1048576,MATCH($M141,'Standard Inputs - SB 6362'!$D$12:$D$1048576,0))*INDEX('Standard Inputs - SB 6362'!N$12:N$1048576,MATCH($N141,'Standard Inputs - SB 6362'!$D$12:$D$1048576,0)) -> 4823.781255 | AA141: =(SUMIF($O$218:$O$326,$I141,AA$218:AA$326)+SUMIF($O$218:$O$326,$J141,AA$218:AA$326)+SUMIF($O$218:$O$326,$K141,AA$218:AA$326)+AA290+AA292)*INDEX('Standard Inputs - SB 6362'!O$12:O$1048576,MATCH($L141,'Standard Inputs - SB 6362'!$D$12:$D$1048576,0))*INDEX('Standard Inputs - SB 6362'!O$12:O$1048576,MATCH($M141,'Standard Inputs - SB 6362'!$D$12:$D$1048576,0))*INDEX('Standard Inputs - SB 6362'!O$12:O$1048576,MATCH($N141,'Standard Inputs - SB 6362'!$D$12:$D$1048576,0)) -> 4580.239887 | AB141: =(SUMIF($O$218:$O$326,$I141,AB$218:AB$326)+SUMIF($O$218:$O$326,$J141,AB$218:AB$326)+SUMIF($O$218:$O$326,$K141,AB$218:AB$326)+AB290+AB292)*INDEX('Standard Inputs - SB 6362'!P$12:P$1048576,MATCH($L141,'Standard Inputs - SB 6362'!$D$12:$D$1048576,0))*INDEX('Standard Inputs - SB 6362'!P$12:P$1048576,MATCH($M141,'Standard Inputs - SB 6362'!$D$12:$D$1048576,0))*INDEX('Standard Inputs - SB 6362'!P$12:P$1048576,MATCH($N141,'Standard Inputs - SB 6362'!$D$12:$D$1048576,0)) -> 4769.660951
L142: Teacher Staff Units | M142: Substitutes Days | N142: Substitutes Rate | O142: Substitute Dollars | P142: Other Entitlements | R142: =SUMIF($P$218:$P$326,$L$142,R$218:R$326)*INDEX('Standard Inputs - SB 6362'!F$12:F$1048576,MATCH($M142,'Standard Inputs - SB 6362'!$D$12:$D$1048576,0))*INDEX('Standard Inputs - SB 6362'!F$12:F$1048576,MATCH($N142,'Standard Inputs - SB 6362'!$D$12:$D$1048576,0)) -> 0 | S142: =SUMIF($P$218:$P$326,$L$142,S$218:S$326)*INDEX('Standard Inputs - SB 6362'!G$12:G$1048576,MATCH($M142,'Standard Inputs - SB 6362'!$D$12:$D$1048576,0))*INDEX('Standard Inputs - SB 6362'!G$12:G$1048576,MATCH($N142,'Standard Inputs - SB 6362'!$D$12:$D$1048576,0)) -> 0 | T142: =SUMIF($P$218:$P$326,$L$142,T$218:T$326)*INDEX('Standard Inputs - SB 6362'!H$12:H$1048576,MATCH($M142,'Standard Inputs - SB 6362'!$D$12:$D$1048576,0))*INDEX('Standard Inputs - SB 6362'!H$12:H$1048576,MATCH($N142,'Standard Inputs - SB 6362'!$D$12:$D$1048576,0)) ->  | U142: =SUMIF($P$218:$P$326,$L$142,U$218:U$326)*INDEX('Standard Inputs - SB 6362'!I$12:I$1048576,MATCH($M142,'Standard Inputs - SB 6362'!$D$12:$D$1048576,0))*INDEX('Standard Inputs - SB 6362'!I$12:I$1048576,MATCH($N142,'Standard Inputs - SB 6362'!$D$12:$D$1048576,0)) -> 0 | V142: =SUMIF($P$218:$P$326,$L$142,V$218:V$326)*INDEX('Standard Inputs - SB 6362'!J$12:J$1048576,MATCH($M142,'Standard Inputs - SB 6362'!$D$12:$D$1048576,0))*INDEX('Standard Inputs - SB 6362'!J$12:J$1048576,MATCH($N142,'Standard Inputs - SB 6362'!$D$12:$D$1048576,0)) -> 2672.12856 | W142: =SUMIF($P$218:$P$326,$L$142,W$218:W$326)*INDEX('Standard Inputs - SB 6362'!K$12:K$1048576,MATCH($M142,'Standard Inputs - SB 6362'!$D$12:$D$1048576,0))*INDEX('Standard Inputs - SB 6362'!K$12:K$1048576,MATCH($N142,'Standard Inputs - SB 6362'!$D$12:$D$1048576,0)) -> 4287.31152 | X142: =SUMIF($P$218:$P$326,$L$142,X$218:X$326)*INDEX('Standard Inputs - SB 6362'!L$12:L$1048576,MATCH($M142,'Standard Inputs - SB 6362'!$D$12:$D$1048576,0))*INDEX('Standard Inputs - SB 6362'!L$12:L$1048576,MATCH($N142,'Standard Inputs - SB 6362'!$D$12:$D$1048576,0)) -> 5804.0892 | Y142: =SUMIF($P$218:$P$326,$L$142,Y$218:Y$326)*INDEX('Standard Inputs - SB 6362'!M$12:M$1048576,MATCH($M142,'Standard Inputs - SB 6362'!$D$12:$D$1048576,0))*INDEX('Standard Inputs - SB 6362'!M$12:M$1048576,MATCH($N142,'Standard Inputs - SB 6362'!$D$12:$D$1048576,0)) -> 7230.35832 | Z142: =SUMIF($P$218:$P$326,$L$142,Z$218:Z$326)*INDEX('Standard Inputs - SB 6362'!N$12:N$1048576,MATCH($M142,'Standard Inputs - SB 6362'!$D$12:$D$1048576,0))*INDEX('Standard Inputs - SB 6362'!N$12:N$1048576,MATCH($N142,'Standard Inputs - SB 6362'!$D$12:$D$1048576,0)) -> 8304.91968 | AA142: =SUMIF($P$218:$P$326,$L$142,AA$218:AA$326)*INDEX('Standard Inputs - SB 6362'!O$12:O$1048576,MATCH($M142,'Standard Inputs - SB 6362'!$D$12:$D$1048576,0))*INDEX('Standard Inputs - SB 6362'!O$12:O$1048576,MATCH($N142,'Standard Inputs - SB 6362'!$D$12:$D$1048576,0)) -> 8941.5168 | AB142: =SUMIF($P$218:$P$326,$L$142,AB$218:AB$326)*INDEX('Standard Inputs - SB 6362'!P$12:P$1048576,MATCH($M142,'Standard Inputs - SB 6362'!$D$12:$D$1048576,0))*INDEX('Standard Inputs - SB 6362'!P$12:P$1048576,MATCH($N142,'Standard Inputs - SB 6362'!$D$12:$D$1048576,0)) -> 9157.158
M143: TBIP Salaries | N143: TBIP Insurance and Benefits | O143: TBIP withholding % | P143: TBIP Salaries | R143: =-(SUMIF($P$146:$P$215,$M143,R$146:R$215)+SUMIF($P$146:$P$215,$N143,R$146:R$215)+SUMIF($P$146:$P$215,#REF!,R$146:R$215))*INDEX('Standard Inputs - SB 6362'!F$12:F$1048576,MATCH($O143,'Standard Inputs - SB 6362'!$D$12:$D$1048576,0)) -> 0 | S143: =-(SUMIF($P$146:$P$215,$M143,S$146:S$215)+SUMIF($P$146:$P$215,$N143,S$146:S$215)+SUMIF($P$146:$P$215,#REF!,S$146:S$215))*INDEX('Standard Inputs - SB 6362'!G$12:G$1048576,MATCH($O143,'Standard Inputs - SB 6362'!$D$12:$D$1048576,0)) -> -1764.787816 | T143: =-(SUMIF($P$146:$P$215,$M143,T$146:T$215)+SUMIF($P$146:$P$215,$N143,T$146:T$215)+SUMIF($P$146:$P$215,#REF!,T$146:T$215))*INDEX('Standard Inputs - SB 6362'!H$12:H$1048576,MATCH($O143,'Standard Inputs - SB 6362'!$D$12:$D$1048576,0)) -> 0 | U143: =-(SUMIF($P$146:$P$215,$M143,U$146:U$215)+SUMIF($P$146:$P$215,$N143,U$146:U$215)+SUMIF($P$146:$P$215,#REF!,U$146:U$215))*INDEX('Standard Inputs - SB 6362'!I$12:I$1048576,MATCH($O143,'Standard Inputs - SB 6362'!$D$12:$D$1048576,0)) -> 0 | V143: =-(SUMIF($P$146:$P$215,$M143,V$146:V$215)+SUMIF($P$146:$P$215,$N143,V$146:V$215)+SUMIF($P$146:$P$215,#REF!,V$146:V$215))*INDEX('Standard Inputs - SB 6362'!J$12:J$1048576,MATCH($O143,'Standard Inputs - SB 6362'!$D$12:$D$1048576,0)) -> -64.85671857 | W143: =-(SUMIF($P$146:$P$215,$M143,W$146:W$215)+SUMIF($P$146:$P$215,$N143,W$146:W$215)+SUMIF($P$146:$P$215,#REF!,W$146:W$215))*INDEX('Standard Inputs - SB 6362'!K$12:K$1048576,MATCH($O143,'Standard Inputs - SB 6362'!$D$12:$D$1048576,0)) -> -1231.56937 | X143: =-(SUMIF($P$146:$P$215,$M143,X$146:X$215)+SUMIF($P$146:$P$215,$N143,X$146:X$215)+SUMIF($P$146:$P$215,#REF!,X$146:X$215))*INDEX('Standard Inputs - SB 6362'!L$12:L$1048576,MATCH($O143,'Standard Inputs - SB 6362'!$D$12:$D$1048576,0)) -> -1638.800083 | Y143: =-(SUMIF($P$146:$P$215,$M143,Y$146:Y$215)+SUMIF($P$146:$P$215,$N143,Y$146:Y$215)+SUMIF($P$146:$P$215,#REF!,Y$146:Y$215))*INDEX('Standard Inputs - SB 6362'!M$12:M$1048576,MATCH($O143,'Standard Inputs - SB 6362'!$D$12:$D$1048576,0)) -> -1903.502768 | Z143: =-(SUMIF($P$146:$P$215,$M143,Z$146:Z$215)+SUMIF($P$146:$P$215,$N143,Z$146:Z$215)+SUMIF($P$146:$P$215,#REF!,Z$146:Z$215))*INDEX('Standard Inputs - SB 6362'!N$12:N$1048576,MATCH($O143,'Standard Inputs - SB 6362'!$D$12:$D$1048576,0)) -> -2101.034632 | AA143: =-(SUMIF($P$146:$P$215,$M143,AA$146:AA$215)+SUMIF($P$146:$P$215,$N143,AA$146:AA$215)+SUMIF($P$146:$P$215,#REF!,AA$146:AA$215))*INDEX('Standard Inputs - SB 6362'!O$12:O$1048576,MATCH($O143,'Standard Inputs - SB 6362'!$D$12:$D$1048576,0)) -> -2186.561642 | AB143: =-(SUMIF($P$146:$P$215,$M143,AB$146:AB$215)+SUMIF($P$146:$P$215,$N143,AB$146:AB$215)+SUMIF($P$146:$P$215,#REF!,AB$146:AB$215))*INDEX('Standard Inputs - SB 6362'!P$12:P$1048576,MATCH($O143,'Standard Inputs - SB 6362'!$D$12:$D$1048576,0)) -> -2239.699272
O145: PAYROLL TAX AND BENEFITS INCREASE | R145: SY 2017-18 | S145: SY 2018-19 | T145: SY 2019-20 | U145: SY 2020-21 | V145: SY 2021-22 | W145: SY 2022-23 | X145: SY 2023-24 | Y145: SY 2024-25 | Z145: SY 2025-26 | AA145: SY 2026-27 | AB145: SY 2027-28
L146: CIS Salaries | M146: CAS Salaries | N146: CIS/CAS Benefits Increase | O146: Certificated Payroll Tax and Benefits Increase | P146: Certificated insurance and Benefits | R146: =(SUMIF($P$184:$P$198,$L146,R$184:R$198)+SUMIF($P$184:$P$198,$M146,R$184:R$198))*INDEX('Standard Inputs - SB 6362'!F$12:F$1048576,MATCH($N146,'Standard Inputs - SB 6362'!$D$12:$D$1048576,0)) -> 0 | S146: =(SUMIF($P$184:$P$198,$L146,S$184:S$198)+SUMIF($P$184:$P$198,$M146,S$184:S$198))*INDEX('Standard Inputs - SB 6362'!G$12:G$1048576,MATCH($N146,'Standard Inputs - SB 6362'!$D$12:$D$1048576,0)) -> 0 | T146: =(SUMIF($P$184:$P$198,$L146,T$184:T$198)+SUMIF($P$184:$P$198,$M146,T$184:T$198))*INDEX('Standard Inputs - SB 6362'!H$12:H$1048576,MATCH($N146,'Standard Inputs - SB 6362'!$D$12:$D$1048576,0)) ->  | U146: =(SUMIF($P$184:$P$198,$L146,U$184:U$198)+SUMIF($P$184:$P$198,$M146,U$184:U$198))*INDEX('Standard Inputs - SB 6362'!I$12:I$1048576,MATCH($N146,'Standard Inputs - SB 6362'!$D$12:$D$1048576,0)) -> 0 | V146: =(SUMIF($P$184:$P$198,$L146,V$184:V$198)+SUMIF($P$184:$P$198,$M146,V$184:V$198))*INDEX('Standard Inputs - SB 6362'!J$12:J$1048576,MATCH($N146,'Standard Inputs - SB 6362'!$D$12:$D$1048576,0)) -> 1671.156253 | W146: =(SUMIF($P$184:$P$198,$L146,W$184:W$198)+SUMIF($P$184:$P$198,$M146,W$184:W$198))*INDEX('Standard Inputs - SB 6362'!K$12:K$1048576,MATCH($N146,'Standard Inputs - SB 6362'!$D$12:$D$1048576,0)) -> 7442.561205 | X146: =(SUMIF($P$184:$P$198,$L146,X$184:X$198)+SUMIF($P$184:$P$198,$M146,X$184:X$198))*INDEX('Standard Inputs - SB 6362'!L$12:L$1048576,MATCH($N146,'Standard Inputs - SB 6362'!$D$12:$D$1048576,0)) -> 3824.487417 | Y146: =(SUMIF($P$184:$P$198,$L146,Y$184:Y$198)+SUMIF($P$184:$P$198,$M146,Y$184:Y$198))*INDEX('Standard Inputs - SB 6362'!M$12:M$1048576,MATCH($N146,'Standard Inputs - SB 6362'!$D$12:$D$1048576,0)) -> 4894.895429 | Z146: =(SUMIF($P$184:$P$198,$L146,Z$184:Z$198)+SUMIF($P$184:$P$198,$M146,Z$184:Z$198))*INDEX('Standard Inputs - SB 6362'!N$12:N$1048576,MATCH($N146,'Standard Inputs - SB 6362'!$D$12:$D$1048576,0)) -> 9090.693894 | AA146: =(SUMIF($P$184:$P$198,$L146,AA$184:AA$198)+SUMIF($P$184:$P$198,$M146,AA$184:AA$198))*INDEX('Standard Inputs - SB 6362'!O$12:O$1048576,MATCH($N146,'Standard Inputs - SB 6362'!$D$12:$D$1048576,0)) -> 9583.062082 | AB146: =(SUMIF($P$184:$P$198,$L146,AB$184:AB$198)+SUMIF($P$184:$P$198,$M146,AB$184:AB$198))*INDEX('Standard Inputs - SB 6362'!P$12:P$1048576,MATCH($N146,'Standard Inputs - SB 6362'!$D$12:$D$1048576,0)) -> 10087.74958
M147: CLS Salaries | N147: CLS Benefits Increase | O147: Classified Payroll Tax and Benefits Increase | P147: Classified Insurance and Benefits | R147: =(SUMIF($P$184:$P$198,$M147,R$184:R$198))*INDEX('Standard Inputs - SB 6362'!F$12:F$1048576,MATCH($N147,'Standard Inputs - SB 6362'!$D$12:$D$1048576,0)) -> 0 | S147: =(SUMIF($P$184:$P$198,$M147,S$184:S$198))*INDEX('Standard Inputs - SB 6362'!G$12:G$1048576,MATCH($N147,'Standard Inputs - SB 6362'!$D$12:$D$1048576,0)) -> 0 | T147: =(SUMIF($P$184:$P$198,$M147,T$184:T$198))*INDEX('Standard Inputs - SB 6362'!H$12:H$1048576,MATCH($N147,'Standard Inputs - SB 6362'!$D$12:$D$1048576,0)) ->  | U147: =(SUMIF($P$184:$P$198,$M147,U$184:U$198))*INDEX('Standard Inputs - SB 6362'!I$12:I$1048576,MATCH($N147,'Standard Inputs - SB 6362'!$D$12:$D$1048576,0)) -> 0 | V147: =(SUMIF($P$184:$P$198,$M147,V$184:V$198))*INDEX('Standard Inputs - SB 6362'!J$12:J$1048576,MATCH($N147,'Standard Inputs - SB 6362'!$D$12:$D$1048576,0)) -> 372.0280644 | W147: =(SUMIF($P$184:$P$198,$M147,W$184:W$198))*INDEX('Standard Inputs - SB 6362'!K$12:K$1048576,MATCH($N147,'Standard Inputs - SB 6362'!$D$12:$D$1048576,0)) -> 1437.825033 | X147: =(SUMIF($P$184:$P$198,$M147,X$184:X$198))*INDEX('Standard Inputs - SB 6362'!L$12:L$1048576,MATCH($N147,'Standard Inputs - SB 6362'!$D$12:$D$1048576,0)) -> 712.1496202 | Y147: =(SUMIF($P$184:$P$198,$M147,Y$184:Y$198))*INDEX('Standard Inputs - SB 6362'!M$12:M$1048576,MATCH($N147,'Standard Inputs - SB 6362'!$D$12:$D$1048576,0)) -> 775.3734152 | Z147: =(SUMIF($P$184:$P$198,$M147,Z$184:Z$198))*INDEX('Standard Inputs - SB 6362'!N$12:N$1048576,MATCH($N147,'Standard Inputs - SB 6362'!$D$12:$D$1048576,0)) -> 1614.101351 | AA147: =(SUMIF($P$184:$P$198,$M147,AA$184:AA$198))*INDEX('Standard Inputs - SB 6362'!O$12:O$1048576,MATCH($N147,'Standard Inputs - SB 6362'!$D$12:$D$1048576,0)) -> 1708.313075 | AB147: =(SUMIF($P$184:$P$198,$M147,AB$184:AB$198))*INDEX('Standard Inputs - SB 6362'!P$12:P$1048576,MATCH($N147,'Standard Inputs - SB 6362'!$D$12:$D$1048576,0)) -> 1804.408198
M148: LAP Salaries | N148: CIS/CAS Benefits Increase | O148: LAP Payroll tax and Benefits Increase | P148: LAP Insurance and Benefits | R148: =(SUMIF($P$184:$P$198,$M148,R$184:R$198))*INDEX('Standard Inputs - SB 6362'!F$12:F$1048576,MATCH($N148,'Standard Inputs - SB 6362'!$D$12:$D$1048576,0)) -> 0 | S148: =(SUMIF($P$184:$P$198,$M148,S$184:S$198))*INDEX('Standard Inputs - SB 6362'!G$12:G$1048576,MATCH($N148,'Standard Inputs - SB 6362'!$D$12:$D$1048576,0)) -> 0 | T148: =(SUMIF($P$184:$P$198,$M148,T$184:T$198))*INDEX('Standard Inputs - SB 6362'!H$12:H$1048576,MATCH($N148,'Standard Inputs - SB 6362'!$D$12:$D$1048576,0)) -> 0 | U148: =(SUMIF($P$184:$P$198,$M148,U$184:U$198))*INDEX('Standard Inputs - SB 6362'!I$12:I$1048576,MATCH($N148,'Standard Inputs - SB 6362'!$D$12:$D$1048576,0)) -> 0 | V148: =(SUMIF($P$184:$P$198,$M148,V$184:V$198))*INDEX('Standard Inputs - SB 6362'!J$12:J$1048576,MATCH($N148,'Standard Inputs - SB 6362'!$D$12:$D$1048576,0)) -> 38.99076596 | W148: =(SUMIF($P$184:$P$198,$M148,W$184:W$198))*INDEX('Standard Inputs - SB 6362'!K$12:K$1048576,MATCH($N148,'Standard Inputs - SB 6362'!$D$12:$D$1048576,0)) -> 126.4140615 | X148: =(SUMIF($P$184:$P$198,$M148,X$184:X$198))*INDEX('Standard Inputs - SB 6362'!L$12:L$1048576,MATCH($N148,'Standard Inputs - SB 6362'!$D$12:$D$1048576,0)) -> 59.7282797 | Y148: =(SUMIF($P$184:$P$198,$M148,Y$184:Y$198))*INDEX('Standard Inputs - SB 6362'!M$12:M$1048576,MATCH($N148,'Standard Inputs - SB 6362'!$D$12:$D$1048576,0)) -> 89.00033052 | Z148: =(SUMIF($P$184:$P$198,$M148,Z$184:Z$198))*INDEX('Standard Inputs - SB 6362'!N$12:N$1048576,MATCH($N148,'Standard Inputs - SB 6362'!$D$12:$D$1048576,0)) -> 114.1546052 | AA148: =(SUMIF($P$184:$P$198,$M148,AA$184:AA$198))*INDEX('Standard Inputs - SB 6362'!O$12:O$1048576,MATCH($N148,'Standard Inputs - SB 6362'!$D$12:$D$1048576,0)) -> 137.4268104 | AB148: =(SUMIF($P$184:$P$198,$M148,AB$184:AB$198))*INDEX('Standard Inputs - SB 6362'!P$12:P$1048576,MATCH($N148,'Standard Inputs - SB 6362'!$D$12:$D$1048576,0)) -> 155.1136989
M149: TBIP Salaries | N149: CIS/CAS Benefits Increase | O149: TBIP Payroll tax and Benefits Increase | P149: TBIP Insurance and Benefits | R149: =(SUMIF($P$184:$P$198,$M149,R$184:R$198))*INDEX('Standard Inputs - SB 6362'!F$12:F$1048576,MATCH($N149,'Standard Inputs - SB 6362'!$D$12:$D$1048576,0)) -> 0 | S149: =(SUMIF($P$184:$P$198,$M149,S$184:S$198))*INDEX('Standard Inputs - SB 6362'!G$12:G$1048576,MATCH($N149,'Standard Inputs - SB 6362'!$D$12:$D$1048576,0)) -> 1729.341335 | T149: =(SUMIF($P$184:$P$198,$M149,T$184:T$198))*INDEX('Standard Inputs - SB 6362'!H$12:H$1048576,MATCH($N149,'Standard Inputs - SB 6362'!$D$12:$D$1048576,0)) -> 0 | U149: =(SUMIF($P$184:$P$198,$M149,U$184:U$198))*INDEX('Standard Inputs - SB 6362'!I$12:I$1048576,MATCH($N149,'Standard Inputs - SB 6362'!$D$12:$D$1048576,0)) -> 0 | V149: =(SUMIF($P$184:$P$198,$M149,V$184:V$198))*INDEX('Standard Inputs - SB 6362'!J$12:J$1048576,MATCH($N149,'Standard Inputs - SB 6362'!$D$12:$D$1048576,0)) -> 12.92625799 | W149: =(SUMIF($P$184:$P$198,$M149,W$184:W$198))*INDEX('Standard Inputs - SB 6362'!K$12:K$1048576,MATCH($N149,'Standard Inputs - SB 6362'!$D$12:$D$1048576,0)) -> 62.04684107 | X149: =(SUMIF($P$184:$P$198,$M149,X$184:X$198))*INDEX('Standard Inputs - SB 6362'!L$12:L$1048576,MATCH($N149,'Standard Inputs - SB 6362'!$D$12:$D$1048576,0)) -> 31.05209815 | Y149: =(SUMIF($P$184:$P$198,$M149,Y$184:Y$198))*INDEX('Standard Inputs - SB 6362'!M$12:M$1048576,MATCH($N149,'Standard Inputs - SB 6362'!$D$12:$D$1048576,0)) -> 37.83418513 | Z149: =(SUMIF($P$184:$P$198,$M149,Z$184:Z$198))*INDEX('Standard Inputs - SB 6362'!N$12:N$1048576,MATCH($N149,'Standard Inputs - SB 6362'!$D$12:$D$1048576,0)) -> 41.76034551 | AA149: =(SUMIF($P$184:$P$198,$M149,AA$184:AA$198))*INDEX('Standard Inputs - SB 6362'!O$12:O$1048576,MATCH($N149,'Standard Inputs - SB 6362'!$D$12:$D$1048576,0)) -> 43.46028773 | AB149: =(SUMIF($P$184:$P$198,$M149,AB$184:AB$198))*INDEX('Standard Inputs - SB 6362'!P$12:P$1048576,MATCH($N149,'Standard Inputs - SB 6362'!$D$12:$D$1048576,0)) -> 44.51645585
M150: HiCap Salaries | N150: CIS/CAS Benefits Increase | O150: HiCap Payroll tax and Benefits Increase | P150: HiCap Insurance and Benefits | R150: =(SUMIF($P$184:$P$198,$M150,R$184:R$198))*INDEX('Standard Inputs - SB 6362'!F$12:F$1048576,MATCH($N150,'Standard Inputs - SB 6362'!$D$12:$D$1048576,0)) -> 0 | S150: =(SUMIF($P$184:$P$198,$M150,S$184:S$198))*INDEX('Standard Inputs - SB 6362'!G$12:G$1048576,MATCH($N150,'Standard Inputs - SB 6362'!$D$12:$D$1048576,0)) -> 0 | T150: =(SUMIF($P$184:$P$198,$M150,T$184:T$198))*INDEX('Standard Inputs - SB 6362'!H$12:H$1048576,MATCH($N150,'Standard Inputs - SB 6362'!$D$12:$D$1048576,0)) -> 0 | U150: =(SUMIF($P$184:$P$198,$M150,U$184:U$198))*INDEX('Standard Inputs - SB 6362'!I$12:I$1048576,MATCH($N150,'Standard Inputs - SB 6362'!$D$12:$D$1048576,0)) -> 0 | V150: =(SUMIF($P$184:$P$198,$M150,V$184:V$198))*INDEX('Standard Inputs - SB 6362'!J$12:J$1048576,MATCH($N150,'Standard Inputs - SB 6362'!$D$12:$D$1048576,0)) -> 6.356266878 | W150: =(SUMIF($P$184:$P$198,$M150,W$184:W$198))*INDEX('Standard Inputs - SB 6362'!K$12:K$1048576,MATCH($N150,'Standard Inputs - SB 6362'!$D$12:$D$1048576,0)) -> 28.03665338 | X150: =(SUMIF($P$184:$P$198,$M150,X$184:X$198))*INDEX('Standard Inputs - SB 6362'!L$12:L$1048576,MATCH($N150,'Standard Inputs - SB 6362'!$D$12:$D$1048576,0)) -> 14.96670404 | Y150: =(SUMIF($P$184:$P$198,$M150,Y$184:Y$198))*INDEX('Standard Inputs - SB 6362'!M$12:M$1048576,MATCH($N150,'Standard Inputs - SB 6362'!$D$12:$D$1048576,0)) -> 20.13685841 | Z150: =(SUMIF($P$184:$P$198,$M150,Z$184:Z$198))*INDEX('Standard Inputs - SB 6362'!N$12:N$1048576,MATCH($N150,'Standard Inputs - SB 6362'!$D$12:$D$1048576,0)) -> 24.24207258 | AA150: =(SUMIF($P$184:$P$198,$M150,AA$184:AA$198))*INDEX('Standard Inputs - SB 6362'!O$12:O$1048576,MATCH($N150,'Standard Inputs - SB 6362'!$D$12:$D$1048576,0)) -> 27.36203754 | AB150: =(SUMIF($P$184:$P$198,$M150,AB$184:AB$198))*INDEX('Standard Inputs - SB 6362'!P$12:P$1048576,MATCH($N150,'Standard Inputs - SB 6362'!$D$12:$D$1048576,0)) -> 28.78966752
M151: LAP High Pov Salaries | N151: CIS/CAS Benefits Increase | O151: LAP High Poverty Payroll tax and Benefits Increase | P151: LAP Insurance and Benefits | R151: =(SUMIF($P$184:$P$198,$M151,R$184:R$198))*INDEX('Standard Inputs - SB 6362'!F$12:F$1048576,MATCH($N151,'Standard Inputs - SB 6362'!$D$12:$D$1048576,0)) -> 0 | S151: =(SUMIF($P$184:$P$198,$M151,S$184:S$198))*INDEX('Standard Inputs - SB 6362'!G$12:G$1048576,MATCH($N151,'Standard Inputs - SB 6362'!$D$12:$D$1048576,0)) -> 0 | T151: =(SUMIF($P$184:$P$198,$M151,T$184:T$198))*INDEX('Standard Inputs - SB 6362'!H$12:H$1048576,MATCH($N151,'Standard Inputs - SB 6362'!$D$12:$D$1048576,0)) -> 0 | U151: =(SUMIF($P$184:$P$198,$M151,U$184:U$198))*INDEX('Standard Inputs - SB 6362'!I$12:I$1048576,MATCH($N151,'Standard Inputs - SB 6362'!$D$12:$D$1048576,0)) -> 0 | V151: =(SUMIF($P$184:$P$198,$M151,V$184:V$198))*INDEX('Standard Inputs - SB 6362'!J$12:J$1048576,MATCH($N151,'Standard Inputs - SB 6362'!$D$12:$D$1048576,0)) -> 0 | W151: =(SUMIF($P$184:$P$198,$M151,W$184:W$198))*INDEX('Standard Inputs - SB 6362'!K$12:K$1048576,MATCH($N151,'Standard Inputs - SB 6362'!$D$12:$D$1048576,0)) -> 0 | X151: =(SUMIF($P$184:$P$198,$M151,X$184:X$198))*INDEX('Standard Inputs - SB 6362'!L$12:L$1048576,MATCH($N151,'Standard Inputs - SB 6362'!$D$12:$D$1048576,0)) -> 0 | Y151: =(SUMIF($P$184:$P$198,$M151,Y$184:Y$198))*INDEX('Standard Inputs - SB 6362'!M$12:M$1048576,MATCH($N151,'Standard Inputs - SB 6362'!$D$12:$D$1048576,0)) -> 0 | Z151: =(SUMIF($P$184:$P$198,$M151,Z$184:Z$198))*INDEX('Standard Inputs - SB 6362'!N$12:N$1048576,MATCH($N151,'Standard Inputs - SB 6362'!$D$12:$D$1048576,0)) -> 0 | AA151: =(SUMIF($P$184:$P$198,$M151,AA$184:AA$198))*INDEX('Standard Inputs - SB 6362'!O$12:O$1048576,MATCH($N151,'Standard Inputs - SB 6362'!$D$12:$D$1048576,0)) -> 0 | AB151: =(SUMIF($P$184:$P$198,$M151,AB$184:AB$198))*INDEX('Standard Inputs - SB 6362'!P$12:P$1048576,MATCH($N151,'Standard Inputs - SB 6362'!$D$12:$D$1048576,0)) -> 0
L152: CIS SpEd Salary | M152: CAS SpEd Salary | N152: CIS/CAS Benefits Increase | O152: Certificated Payroll tax and Benefits SpEd Increase | P152: SpEd Insurance and Benefits | R152: =(SUMIF($P$184:$P$198,$L152,R$184:R$198)+SUMIF($P$184:$P$198,$M152,R$184:R$198))*INDEX('Standard Inputs - SB 6362'!F$12:F$1048576,MATCH($N152,'Standard Inputs - SB 6362'!$D$12:$D$1048576,0)) -> 0 | S152: =(SUMIF($P$184:$P$198,$L152,S$184:S$198)+SUMIF($P$184:$P$198,$M152,S$184:S$198))*INDEX('Standard Inputs - SB 6362'!G$12:G$1048576,MATCH($N152,'Standard Inputs - SB 6362'!$D$12:$D$1048576,0)) -> 0 | T152: =(SUMIF($P$184:$P$198,$L152,T$184:T$198)+SUMIF($P$184:$P$198,$M152,T$184:T$198))*INDEX('Standard Inputs - SB 6362'!H$12:H$1048576,MATCH($N152,'Standard Inputs - SB 6362'!$D$12:$D$1048576,0)) -> 0 | U152: =(SUMIF($P$184:$P$198,$L152,U$184:U$198)+SUMIF($P$184:$P$198,$M152,U$184:U$198))*INDEX('Standard Inputs - SB 6362'!I$12:I$1048576,MATCH($N152,'Standard Inputs - SB 6362'!$D$12:$D$1048576,0)) -> 0 | V152: =(SUMIF($P$184:$P$198,$L152,V$184:V$198)+SUMIF($P$184:$P$198,$M152,V$184:V$198))*INDEX('Standard Inputs - SB 6362'!J$12:J$1048576,MATCH($N152,'Standard Inputs - SB 6362'!$D$12:$D$1048576,0)) -> 20.56658983 | W152: =(SUMIF($P$184:$P$198,$L152,W$184:W$198)+SUMIF($P$184:$P$198,$M152,W$184:W$198))*INDEX('Standard Inputs - SB 6362'!K$12:K$1048576,MATCH($N152,'Standard Inputs - SB 6362'!$D$12:$D$1048576,0)) -> 60.04248367 | X152: =(SUMIF($P$184:$P$198,$L152,X$184:X$198)+SUMIF($P$184:$P$198,$M152,X$184:X$198))*INDEX('Standard Inputs - SB 6362'!L$12:L$1048576,MATCH($N152,'Standard Inputs - SB 6362'!$D$12:$D$1048576,0)) -> 22.51051012 | Y152: =(SUMIF($P$184:$P$198,$L152,Y$184:Y$198)+SUMIF($P$184:$P$198,$M152,Y$184:Y$198))*INDEX('Standard Inputs - SB 6362'!M$12:M$1048576,MATCH($N152,'Standard Inputs - SB 6362'!$D$12:$D$1048576,0)) -> 23.94938862 | Z152: =(SUMIF($P$184:$P$198,$L152,Z$184:Z$198)+SUMIF($P$184:$P$198,$M152,Z$184:Z$198))*INDEX('Standard Inputs - SB 6362'!N$12:N$1048576,MATCH($N152,'Standard Inputs - SB 6362'!$D$12:$D$1048576,0)) -> 23.91569802 | AA152: =(SUMIF($P$184:$P$198,$L152,AA$184:AA$198)+SUMIF($P$184:$P$198,$M152,AA$184:AA$198))*INDEX('Standard Inputs - SB 6362'!O$12:O$1048576,MATCH($N152,'Standard Inputs - SB 6362'!$D$12:$D$1048576,0)) -> 23.88327183 | AB152: =(SUMIF($P$184:$P$198,$L152,AB$184:AB$198)+SUMIF($P$184:$P$198,$M152,AB$184:AB$198))*INDEX('Standard Inputs - SB 6362'!P$12:P$1048576,MATCH($N152,'Standard Inputs - SB 6362'!$D$12:$D$1048576,0)) -> 24.2461624
M153: CLS SpEd Salary | N153: CLS Benefits Increase | O153: Classified Payroll tax and Benefits SpEd Increase | P153: SpEd Insurance and Benefits | R153: =(SUMIF($P$184:$P$198,$M153,R$184:R$198))*INDEX('Standard Inputs - SB 6362'!F$12:F$1048576,MATCH($N153,'Standard Inputs - SB 6362'!$D$12:$D$1048576,0)) -> 0 | S153: =(SUMIF($P$184:$P$198,$M153,S$184:S$198))*INDEX('Standard Inputs - SB 6362'!G$12:G$1048576,MATCH($N153,'Standard Inputs - SB 6362'!$D$12:$D$1048576,0)) -> 0 | T153: =(SUMIF($P$184:$P$198,$M153,T$184:T$198))*INDEX('Standard Inputs - SB 6362'!H$12:H$1048576,MATCH($N153,'Standard Inputs - SB 6362'!$D$12:$D$1048576,0)) -> 0 | U153: =(SUMIF($P$184:$P$198,$M153,U$184:U$198))*INDEX('Standard Inputs - SB 6362'!I$12:I$1048576,MATCH($N153,'Standard Inputs - SB 6362'!$D$12:$D$1048576,0)) -> 0 | V153: =(SUMIF($P$184:$P$198,$M153,V$184:V$198))*INDEX('Standard Inputs - SB 6362'!J$12:J$1048576,MATCH($N153,'Standard Inputs - SB 6362'!$D$12:$D$1048576,0)) -> 3.336437626 | W153: =(SUMIF($P$184:$P$198,$M153,W$184:W$198))*INDEX('Standard Inputs - SB 6362'!K$12:K$1048576,MATCH($N153,'Standard Inputs - SB 6362'!$D$12:$D$1048576,0)) -> 9.420635443 | X153: =(SUMIF($P$184:$P$198,$M153,X$184:X$198))*INDEX('Standard Inputs - SB 6362'!L$12:L$1048576,MATCH($N153,'Standard Inputs - SB 6362'!$D$12:$D$1048576,0)) -> 3.598487478 | Y153: =(SUMIF($P$184:$P$198,$M153,Y$184:Y$198))*INDEX('Standard Inputs - SB 6362'!M$12:M$1048576,MATCH($N153,'Standard Inputs - SB 6362'!$D$12:$D$1048576,0)) -> 3.847820205 | Z153: =(SUMIF($P$184:$P$198,$M153,Z$184:Z$198))*INDEX('Standard Inputs - SB 6362'!N$12:N$1048576,MATCH($N153,'Standard Inputs - SB 6362'!$D$12:$D$1048576,0)) -> 3.914779588 | AA153: =(SUMIF($P$184:$P$198,$M153,AA$184:AA$198))*INDEX('Standard Inputs - SB 6362'!O$12:O$1048576,MATCH($N153,'Standard Inputs - SB 6362'!$D$12:$D$1048576,0)) -> 3.982950722 | AB153: =(SUMIF($P$184:$P$198,$M153,AB$184:AB$198))*INDEX('Standard Inputs - SB 6362'!P$12:P$1048576,MATCH($N153,'Standard Inputs - SB 6362'!$D$12:$D$1048576,0)) -> 4.062449825
O155: PAYROLL TAX AND BENEFITS | R155: SY 2017-18 | S155: SY 2018-19 | T155: SY 2019-20 | U155: SY 2020-21 | V155: SY 2021-22 | W155: SY 2022-23 | X155: SY 2023-24 | Y155: SY 2024-25 | Z155: SY 2025-26 | AA155: SY 2026-27 | AB155: SY 2027-28
L156: CIS Salaries | M156: CAS Salaries | N156: CIS/CAS Benefits | O156: Certificated Payroll Tax and Benefits | P156: Certificated insurance and Benefits | R156: =(SUMIF($P$201:$P$215,$L156,R$201:R$215)+SUMIF($P$201:$P$215,$M156,R$201:R$215))*INDEX('Standard Inputs - SB 6362'!F$12:F$1048576,MATCH($N156,'Standard Inputs - SB 6362'!$D$12:$D$1048576,0)) -> 0 | S156: =(SUMIF($P$201:$P$215,$L156,S$201:S$215)+SUMIF($P$201:$P$215,$M156,S$201:S$215))*INDEX('Standard Inputs - SB 6362'!G$12:G$1048576,MATCH($N156,'Standard Inputs - SB 6362'!$D$12:$D$1048576,0)) -> 0 | T156: =(SUMIF($P$201:$P$215,$L156,T$201:T$215)+SUMIF($P$201:$P$215,$M156,T$201:T$215))*INDEX('Standard Inputs - SB 6362'!H$12:H$1048576,MATCH($N156,'Standard Inputs - SB 6362'!$D$12:$D$1048576,0)) ->  | U156: =(SUMIF($P$201:$P$215,$L156,U$201:U$215)+SUMIF($P$201:$P$215,$M156,U$201:U$215))*INDEX('Standard Inputs - SB 6362'!I$12:I$1048576,MATCH($N156,'Standard Inputs - SB 6362'!$D$12:$D$1048576,0)) -> 0 | V156: =(SUMIF($P$201:$P$215,$L156,V$201:V$215)+SUMIF($P$201:$P$215,$M156,V$201:V$215))*INDEX('Standard Inputs - SB 6362'!J$12:J$1048576,MATCH($N156,'Standard Inputs - SB 6362'!$D$12:$D$1048576,0)) -> 85964.8641 | W156: =(SUMIF($P$201:$P$215,$L156,W$201:W$215)+SUMIF($P$201:$P$215,$M156,W$201:W$215))*INDEX('Standard Inputs - SB 6362'!K$12:K$1048576,MATCH($N156,'Standard Inputs - SB 6362'!$D$12:$D$1048576,0)) -> 139213.9314 | X156: =(SUMIF($P$201:$P$215,$L156,X$201:X$215)+SUMIF($P$201:$P$215,$M156,X$201:X$215))*INDEX('Standard Inputs - SB 6362'!L$12:L$1048576,MATCH($N156,'Standard Inputs - SB 6362'!$D$12:$D$1048576,0)) -> 196702.5981 | Y156: =(SUMIF($P$201:$P$215,$L156,Y$201:Y$215)+SUMIF($P$201:$P$215,$M156,Y$201:Y$215))*INDEX('Standard Inputs - SB 6362'!M$12:M$1048576,MATCH($N156,'Standard Inputs - SB 6362'!$D$12:$D$1048576,0)) -> 239767.8666 | Z156: =(SUMIF($P$201:$P$215,$L156,Z$201:Z$215)+SUMIF($P$201:$P$215,$M156,Z$201:Z$215))*INDEX('Standard Inputs - SB 6362'!N$12:N$1048576,MATCH($N156,'Standard Inputs - SB 6362'!$D$12:$D$1048576,0)) -> 445291.6948 | AA156: =(SUMIF($P$201:$P$215,$L156,AA$201:AA$215)+SUMIF($P$201:$P$215,$M156,AA$201:AA$215))*INDEX('Standard Inputs - SB 6362'!O$12:O$1048576,MATCH($N156,'Standard Inputs - SB 6362'!$D$12:$D$1048576,0)) -> 469409.4868 | AB156: =(SUMIF($P$201:$P$215,$L156,AB$201:AB$215)+SUMIF($P$201:$P$215,$M156,AB$201:AB$215))*INDEX('Standard Inputs - SB 6362'!P$12:P$1048576,MATCH($N156,'Standard Inputs - SB 6362'!$D$12:$D$1048576,0)) -> 494130.7186
M157: CLS Salaries | N157: CLS Benefits | O157: Classified Payroll Tax and Benefits | P157: Classified Insurance and Benefits | R157: =SUMIF($P$201:$P$215,$M157,R$201:R$215)*INDEX('Standard Inputs - SB 6362'!F$12:F$1048576,MATCH($N157,'Standard Inputs - SB 6362'!$D$12:$D$1048576,0)) -> 0 | S157: =SUMIF($P$201:$P$215,$M157,S$201:S$215)*INDEX('Standard Inputs - SB 6362'!G$12:G$1048576,MATCH($N157,'Standard Inputs - SB 6362'!$D$12:$D$1048576,0)) -> 0 | T157: =SUMIF($P$201:$P$215,$M157,T$201:T$215)*INDEX('Standard Inputs - SB 6362'!H$12:H$1048576,MATCH($N157,'Standard Inputs - SB 6362'!$D$12:$D$1048576,0)) ->  | U157: =SUMIF($P$201:$P$215,$M157,U$201:U$215)*INDEX('Standard Inputs - SB 6362'!I$12:I$1048576,MATCH($N157,'Standard Inputs - SB 6362'!$D$12:$D$1048576,0)) -> 0 | V157: =SUMIF($P$201:$P$215,$M157,V$201:V$215)*INDEX('Standard Inputs - SB 6362'!J$12:J$1048576,MATCH($N157,'Standard Inputs - SB 6362'!$D$12:$D$1048576,0)) -> 21975.77099 | W157: =SUMIF($P$201:$P$215,$M157,W$201:W$215)*INDEX('Standard Inputs - SB 6362'!K$12:K$1048576,MATCH($N157,'Standard Inputs - SB 6362'!$D$12:$D$1048576,0)) -> 30882.13499 | X157: =SUMIF($P$201:$P$215,$M157,X$201:X$215)*INDEX('Standard Inputs - SB 6362'!L$12:L$1048576,MATCH($N157,'Standard Inputs - SB 6362'!$D$12:$D$1048576,0)) -> 42064.79622 | Y157: =SUMIF($P$201:$P$215,$M157,Y$201:Y$215)*INDEX('Standard Inputs - SB 6362'!M$12:M$1048576,MATCH($N157,'Standard Inputs - SB 6362'!$D$12:$D$1048576,0)) -> 43618.34164 | Z157: =SUMIF($P$201:$P$215,$M157,Z$201:Z$215)*INDEX('Standard Inputs - SB 6362'!N$12:N$1048576,MATCH($N157,'Standard Inputs - SB 6362'!$D$12:$D$1048576,0)) -> 90800.66814 | AA157: =SUMIF($P$201:$P$215,$M157,AA$201:AA$215)*INDEX('Standard Inputs - SB 6362'!O$12:O$1048576,MATCH($N157,'Standard Inputs - SB 6362'!$D$12:$D$1048576,0)) -> 96100.51347 | AB157: =SUMIF($P$201:$P$215,$M157,AB$201:AB$215)*INDEX('Standard Inputs - SB 6362'!P$12:P$1048576,MATCH($N157,'Standard Inputs - SB 6362'!$D$12:$D$1048576,0)) -> 101506.3087
M158: LAP Salaries | N158: CIS/CAS Benefits | O158: LAP Payroll tax and Benefits | P158: LAP Insurance and Benefits | R158: =SUMIF($P$201:$P$215,$M158,R$201:R$215)*INDEX('Standard Inputs - SB 6362'!F$12:F$1048576,MATCH($N158,'Standard Inputs - SB 6362'!$D$12:$D$1048576,0)) -> 0 | S158: =SUMIF($P$201:$P$215,$M158,S$201:S$215)*INDEX('Standard Inputs - SB 6362'!G$12:G$1048576,MATCH($N158,'Standard Inputs - SB 6362'!$D$12:$D$1048576,0)) -> 0 | T158: =SUMIF($P$201:$P$215,$M158,T$201:T$215)*INDEX('Standard Inputs - SB 6362'!H$12:H$1048576,MATCH($N158,'Standard Inputs - SB 6362'!$D$12:$D$1048576,0)) -> 0 | U158: =SUMIF($P$201:$P$215,$M158,U$201:U$215)*INDEX('Standard Inputs - SB 6362'!I$12:I$1048576,MATCH($N158,'Standard Inputs - SB 6362'!$D$12:$D$1048576,0)) -> 0 | V158: =SUMIF($P$201:$P$215,$M158,V$201:V$215)*INDEX('Standard Inputs - SB 6362'!J$12:J$1048576,MATCH($N158,'Standard Inputs - SB 6362'!$D$12:$D$1048576,0)) -> 2005.627124 | W158: =SUMIF($P$201:$P$215,$M158,W$201:W$215)*INDEX('Standard Inputs - SB 6362'!K$12:K$1048576,MATCH($N158,'Standard Inputs - SB 6362'!$D$12:$D$1048576,0)) -> 2364.617153 | X158: =SUMIF($P$201:$P$215,$M158,X$201:X$215)*INDEX('Standard Inputs - SB 6362'!L$12:L$1048576,MATCH($N158,'Standard Inputs - SB 6362'!$D$12:$D$1048576,0)) -> 3071.969265 | Y158: =SUMIF($P$201:$P$215,$M158,Y$201:Y$215)*INDEX('Standard Inputs - SB 6362'!M$12:M$1048576,MATCH($N158,'Standard Inputs - SB 6362'!$D$12:$D$1048576,0)) -> 4359.525078 | Z158: =SUMIF($P$201:$P$215,$M158,Z$201:Z$215)*INDEX('Standard Inputs - SB 6362'!N$12:N$1048576,MATCH($N158,'Standard Inputs - SB 6362'!$D$12:$D$1048576,0)) -> 5591.663101 | AA158: =SUMIF($P$201:$P$215,$M158,AA$201:AA$215)*INDEX('Standard Inputs - SB 6362'!O$12:O$1048576,MATCH($N158,'Standard Inputs - SB 6362'!$D$12:$D$1048576,0)) -> 6731.611254 | AB158: =SUMIF($P$201:$P$215,$M158,AB$201:AB$215)*INDEX('Standard Inputs - SB 6362'!P$12:P$1048576,MATCH($N158,'Standard Inputs - SB 6362'!$D$12:$D$1048576,0)) -> 7597.972463
M159: TBIP Salaries | N159: CIS/CAS Benefits | O159: TBIP Payroll tax and Benefits | P159: TBIP Insurance and Benefits | R159: =SUMIF($P$201:$P$215,$M159,R$201:R$215)*INDEX('Standard Inputs - SB 6362'!F$12:F$1048576,MATCH($N159,'Standard Inputs - SB 6362'!$D$12:$D$1048576,0)) -> 0 | S159: =SUMIF($P$201:$P$215,$M159,S$201:S$215)*INDEX('Standard Inputs - SB 6362'!G$12:G$1048576,MATCH($N159,'Standard Inputs - SB 6362'!$D$12:$D$1048576,0)) -> 9899.249055 | T159: =SUMIF($P$201:$P$215,$M159,T$201:T$215)*INDEX('Standard Inputs - SB 6362'!H$12:H$1048576,MATCH($N159,'Standard Inputs - SB 6362'!$D$12:$D$1048576,0)) -> 0 | U159: =SUMIF($P$201:$P$215,$M159,U$201:U$215)*INDEX('Standard Inputs - SB 6362'!I$12:I$1048576,MATCH($N159,'Standard Inputs - SB 6362'!$D$12:$D$1048576,0)) -> 0 | V159: =SUMIF($P$201:$P$215,$M159,V$201:V$215)*INDEX('Standard Inputs - SB 6362'!J$12:J$1048576,MATCH($N159,'Standard Inputs - SB 6362'!$D$12:$D$1048576,0)) -> 664.9075235 | W159: =SUMIF($P$201:$P$215,$M159,W$201:W$215)*INDEX('Standard Inputs - SB 6362'!K$12:K$1048576,MATCH($N159,'Standard Inputs - SB 6362'!$D$12:$D$1048576,0)) -> 1160.606842 | X159: =SUMIF($P$201:$P$215,$M159,X$201:X$215)*INDEX('Standard Inputs - SB 6362'!L$12:L$1048576,MATCH($N159,'Standard Inputs - SB 6362'!$D$12:$D$1048576,0)) -> 1597.084189 | Y159: =SUMIF($P$201:$P$215,$M159,Y$201:Y$215)*INDEX('Standard Inputs - SB 6362'!M$12:M$1048576,MATCH($N159,'Standard Inputs - SB 6362'!$D$12:$D$1048576,0)) -> 1853.241195 | Z159: =SUMIF($P$201:$P$215,$M159,Z$201:Z$215)*INDEX('Standard Inputs - SB 6362'!N$12:N$1048576,MATCH($N159,'Standard Inputs - SB 6362'!$D$12:$D$1048576,0)) -> 2045.557275 | AA159: =SUMIF($P$201:$P$215,$M159,AA$201:AA$215)*INDEX('Standard Inputs - SB 6362'!O$12:O$1048576,MATCH($N159,'Standard Inputs - SB 6362'!$D$12:$D$1048576,0)) -> 2128.825963 | AB159: =SUMIF($P$201:$P$215,$M159,AB$201:AB$215)*INDEX('Standard Inputs - SB 6362'!P$12:P$1048576,MATCH($N159,'Standard Inputs - SB 6362'!$D$12:$D$1048576,0)) -> 2180.560505
M160: HiCap Salaries | N160: CIS/CAS Benefits | O160: HiCap Payroll tax and Benefits | P160: HiCap Insurance and Benefits | R160: =SUMIF($P$201:$P$215,$M160,R$201:R$215)*INDEX('Standard Inputs - SB 6362'!F$12:F$1048576,MATCH($N160,'Standard Inputs - SB 6362'!$D$12:$D$1048576,0)) -> 0 | S160: =SUMIF($P$201:$P$215,$M160,S$201:S$215)*INDEX('Standard Inputs - SB 6362'!G$12:G$1048576,MATCH($N160,'Standard Inputs - SB 6362'!$D$12:$D$1048576,0)) -> 0 | T160: =SUMIF($P$201:$P$215,$M160,T$201:T$215)*INDEX('Standard Inputs - SB 6362'!H$12:H$1048576,MATCH($N160,'Standard Inputs - SB 6362'!$D$12:$D$1048576,0)) -> 0 | U160: =SUMIF($P$201:$P$215,$M160,U$201:U$215)*INDEX('Standard Inputs - SB 6362'!I$12:I$1048576,MATCH($N160,'Standard Inputs - SB 6362'!$D$12:$D$1048576,0)) -> 0 | V160: =SUMIF($P$201:$P$215,$M160,V$201:V$215)*INDEX('Standard Inputs - SB 6362'!J$12:J$1048576,MATCH($N160,'Standard Inputs - SB 6362'!$D$12:$D$1048576,0)) -> 326.9569331 | W160: =SUMIF($P$201:$P$215,$M160,W$201:W$215)*INDEX('Standard Inputs - SB 6362'!K$12:K$1048576,MATCH($N160,'Standard Inputs - SB 6362'!$D$12:$D$1048576,0)) -> 524.4349461 | X160: =SUMIF($P$201:$P$215,$M160,X$201:X$215)*INDEX('Standard Inputs - SB 6362'!L$12:L$1048576,MATCH($N160,'Standard Inputs - SB 6362'!$D$12:$D$1048576,0)) -> 769.7736322 | Y160: =SUMIF($P$201:$P$215,$M160,Y$201:Y$215)*INDEX('Standard Inputs - SB 6362'!M$12:M$1048576,MATCH($N160,'Standard Inputs - SB 6362'!$D$12:$D$1048576,0)) -> 986.368688 | Z160: =SUMIF($P$201:$P$215,$M160,Z$201:Z$215)*INDEX('Standard Inputs - SB 6362'!N$12:N$1048576,MATCH($N160,'Standard Inputs - SB 6362'!$D$12:$D$1048576,0)) -> 1187.455403 | AA160: =SUMIF($P$201:$P$215,$M160,AA$201:AA$215)*INDEX('Standard Inputs - SB 6362'!O$12:O$1048576,MATCH($N160,'Standard Inputs - SB 6362'!$D$12:$D$1048576,0)) -> 1340.281414 | AB160: =SUMIF($P$201:$P$215,$M160,AB$201:AB$215)*INDEX('Standard Inputs - SB 6362'!P$12:P$1048576,MATCH($N160,'Standard Inputs - SB 6362'!$D$12:$D$1048576,0)) -> 1410.211365
M161: LAP High Pov Salaries | N161: CIS/CAS Benefits | O161: LAP High Poverty Payroll tax and Benefits | P161: LAP Insurance and Benefits | R161: =SUMIF($P$201:$P$215,$M161,R$201:R$215)*INDEX('Standard Inputs - SB 6362'!F$12:F$1048576,MATCH($N161,'Standard Inputs - SB 6362'!$D$12:$D$1048576,0)) -> 0 | S161: =SUMIF($P$201:$P$215,$M161,S$201:S$215)*INDEX('Standard Inputs - SB 6362'!G$12:G$1048576,MATCH($N161,'Standard Inputs - SB 6362'!$D$12:$D$1048576,0)) -> 0 | T161: =SUMIF($P$201:$P$215,$M161,T$201:T$215)*INDEX('Standard Inputs - SB 6362'!H$12:H$1048576,MATCH($N161,'Standard Inputs - SB 6362'!$D$12:$D$1048576,0)) -> 0 | U161: =SUMIF($P$201:$P$215,$M161,U$201:U$215)*INDEX('Standard Inputs - SB 6362'!I$12:I$1048576,MATCH($N161,'Standard Inputs - SB 6362'!$D$12:$D$1048576,0)) -> 0 | V161: =SUMIF($P$201:$P$215,$M161,V$201:V$215)*INDEX('Standard Inputs - SB 6362'!J$12:J$1048576,MATCH($N161,'Standard Inputs - SB 6362'!$D$12:$D$1048576,0)) -> 0 | W161: =SUMIF($P$201:$P$215,$M161,W$201:W$215)*INDEX('Standard Inputs - SB 6362'!K$12:K$1048576,MATCH($N161,'Standard Inputs - SB 6362'!$D$12:$D$1048576,0)) -> 0 | X161: =SUMIF($P$201:$P$215,$M161,X$201:X$215)*INDEX('Standard Inputs - SB 6362'!L$12:L$1048576,MATCH($N161,'Standard Inputs - SB 6362'!$D$12:$D$1048576,0)) -> 0 | Y161: =SUMIF($P$201:$P$215,$M161,Y$201:Y$215)*INDEX('Standard Inputs - SB 6362'!M$12:M$1048576,MATCH($N161,'Standard Inputs - SB 6362'!$D$12:$D$1048576,0)) -> 0 | Z161: =SUMIF($P$201:$P$215,$M161,Z$201:Z$215)*INDEX('Standard Inputs - SB 6362'!N$12:N$1048576,MATCH($N161,'Standard Inputs - SB 6362'!$D$12:$D$1048576,0)) -> 0 | AA161: =SUMIF($P$201:$P$215,$M161,AA$201:AA$215)*INDEX('Standard Inputs - SB 6362'!O$12:O$1048576,MATCH($N161,'Standard Inputs - SB 6362'!$D$12:$D$1048576,0)) -> 0 | AB161: =SUMIF($P$201:$P$215,$M161,AB$201:AB$215)*INDEX('Standard Inputs - SB 6362'!P$12:P$1048576,MATCH($N161,'Standard Inputs - SB 6362'!$D$12:$D$1048576,0)) -> 0
L162: CIS SpEd Salary | M162: CAS SpEd Salary | N162: CIS/CAS Benefits | O162: Certificated Payroll tax and Benefits SpEd | P162: SpEd Insurance and Benefits | R162: =(SUMIF($P$201:$P$215,$L162,R$201:R$215)+SUMIF($P$201:$P$215,$M162,R$201:R$215))*INDEX('Standard Inputs - SB 6362'!F$12:F$1048576,MATCH($N162,'Standard Inputs - SB 6362'!$D$12:$D$1048576,0)) -> 0 | S162: =(SUMIF($P$201:$P$215,$L162,S$201:S$215)+SUMIF($P$201:$P$215,$M162,S$201:S$215))*INDEX('Standard Inputs - SB 6362'!G$12:G$1048576,MATCH($N162,'Standard Inputs - SB 6362'!$D$12:$D$1048576,0)) -> 0 | T162: =(SUMIF($P$201:$P$215,$L162,T$201:T$215)+SUMIF($P$201:$P$215,$M162,T$201:T$215))*INDEX('Standard Inputs - SB 6362'!H$12:H$1048576,MATCH($N162,'Standard Inputs - SB 6362'!$D$12:$D$1048576,0)) -> 0 | U162: =(SUMIF($P$201:$P$215,$L162,U$201:U$215)+SUMIF($P$201:$P$215,$M162,U$201:U$215))*INDEX('Standard Inputs - SB 6362'!I$12:I$1048576,MATCH($N162,'Standard Inputs - SB 6362'!$D$12:$D$1048576,0)) -> 0 | V162: =(SUMIF($P$201:$P$215,$L162,V$201:V$215)+SUMIF($P$201:$P$215,$M162,V$201:V$215))*INDEX('Standard Inputs - SB 6362'!J$12:J$1048576,MATCH($N162,'Standard Inputs - SB 6362'!$D$12:$D$1048576,0)) -> 1057.956286 | W162: =(SUMIF($P$201:$P$215,$L162,W$201:W$215)+SUMIF($P$201:$P$215,$M162,W$201:W$215))*INDEX('Standard Inputs - SB 6362'!K$12:K$1048576,MATCH($N162,'Standard Inputs - SB 6362'!$D$12:$D$1048576,0)) -> 1123.100345 | X162: =(SUMIF($P$201:$P$215,$L162,X$201:X$215)+SUMIF($P$201:$P$215,$M162,X$201:X$215))*INDEX('Standard Inputs - SB 6362'!L$12:L$1048576,MATCH($N162,'Standard Inputs - SB 6362'!$D$12:$D$1048576,0)) -> 1157.769746 | Y162: =(SUMIF($P$201:$P$215,$L162,Y$201:Y$215)+SUMIF($P$201:$P$215,$M162,Y$201:Y$215))*INDEX('Standard Inputs - SB 6362'!M$12:M$1048576,MATCH($N162,'Standard Inputs - SB 6362'!$D$12:$D$1048576,0)) -> 1173.118793 | Z162: =(SUMIF($P$201:$P$215,$L162,Z$201:Z$215)+SUMIF($P$201:$P$215,$M162,Z$201:Z$215))*INDEX('Standard Inputs - SB 6362'!N$12:N$1048576,MATCH($N162,'Standard Inputs - SB 6362'!$D$12:$D$1048576,0)) -> 1171.468518 | AA162: =(SUMIF($P$201:$P$215,$L162,AA$201:AA$215)+SUMIF($P$201:$P$215,$M162,AA$201:AA$215))*INDEX('Standard Inputs - SB 6362'!O$12:O$1048576,MATCH($N162,'Standard Inputs - SB 6362'!$D$12:$D$1048576,0)) -> 1169.880178 | AB162: =(SUMIF($P$201:$P$215,$L162,AB$201:AB$215)+SUMIF($P$201:$P$215,$M162,AB$201:AB$215))*INDEX('Standard Inputs - SB 6362'!P$12:P$1048576,MATCH($N162,'Standard Inputs - SB 6362'!$D$12:$D$1048576,0)) -> 1187.655736
M163: CLS SpEd Salary | N163: CLS Benefits | O163: Classified Payroll tax and Benefits SpEd | P163: SpEd Insurance and Benefits | R163: =(SUMIF($P$201:$P$215,$M163,R$201:R$215))*INDEX('Standard Inputs - SB 6362'!F$12:F$1048576,MATCH($N163,'Standard Inputs - SB 6362'!$D$12:$D$1048576,0)) -> 0 | S163: =(SUMIF($P$201:$P$215,$M163,S$201:S$215))*INDEX('Standard Inputs - SB 6362'!G$12:G$1048576,MATCH($N163,'Standard Inputs - SB 6362'!$D$12:$D$1048576,0)) -> 0 | T163: =(SUMIF($P$201:$P$215,$M163,T$201:T$215))*INDEX('Standard Inputs - SB 6362'!H$12:H$1048576,MATCH($N163,'Standard Inputs - SB 6362'!$D$12:$D$1048576,0)) -> 0 | U163: =(SUMIF($P$201:$P$215,$M163,U$201:U$215))*INDEX('Standard Inputs - SB 6362'!I$12:I$1048576,MATCH($N163,'Standard Inputs - SB 6362'!$D$12:$D$1048576,0)) -> 0 | V163: =(SUMIF($P$201:$P$215,$M163,V$201:V$215))*INDEX('Standard Inputs - SB 6362'!J$12:J$1048576,MATCH($N163,'Standard Inputs - SB 6362'!$D$12:$D$1048576,0)) -> 197.0840272 | W163: =(SUMIF($P$201:$P$215,$M163,W$201:W$215))*INDEX('Standard Inputs - SB 6362'!K$12:K$1048576,MATCH($N163,'Standard Inputs - SB 6362'!$D$12:$D$1048576,0)) -> 202.3398737 | X163: =(SUMIF($P$201:$P$215,$M163,X$201:X$215))*INDEX('Standard Inputs - SB 6362'!L$12:L$1048576,MATCH($N163,'Standard Inputs - SB 6362'!$D$12:$D$1048576,0)) -> 212.5531463 | Y163: =(SUMIF($P$201:$P$215,$M163,Y$201:Y$215))*INDEX('Standard Inputs - SB 6362'!M$12:M$1048576,MATCH($N163,'Standard Inputs - SB 6362'!$D$12:$D$1048576,0)) -> 216.4576874 | Z163: =(SUMIF($P$201:$P$215,$M163,Z$201:Z$215))*INDEX('Standard Inputs - SB 6362'!N$12:N$1048576,MATCH($N163,'Standard Inputs - SB 6362'!$D$12:$D$1048576,0)) -> 220.2244624 | AA163: =(SUMIF($P$201:$P$215,$M163,AA$201:AA$215))*INDEX('Standard Inputs - SB 6362'!O$12:O$1048576,MATCH($N163,'Standard Inputs - SB 6362'!$D$12:$D$1048576,0)) -> 224.059404 | AB163: =(SUMIF($P$201:$P$215,$M163,AB$201:AB$215))*INDEX('Standard Inputs - SB 6362'!P$12:P$1048576,MATCH($N163,'Standard Inputs - SB 6362'!$D$12:$D$1048576,0)) -> 228.5315964
O165: INSURANCE CALCULATIONS | R165: SY 2017-18 | S165: SY 2018-19 | T165: SY 2019-20 | U165: SY 2020-21 | V165: SY 2021-22 | W165: SY 2022-23 | X165: SY 2023-24 | Y165: SY 2024-25 | Z165: SY 2025-26 | AA165: SY 2026-27 | AB165: SY 2027-28
H166: SS RN CIS | I166: SS RN CAS | J166: School CIS Staff Units | K166: School CAS Staff Units | L166: Central Admin CAS Staff Units | M166: SEBB Health Insurance | N166: CIS/ CAS SEBB Multiplier | O166: Certificated SEBB | P166: Certificated SEBB | T166: =(SUMIF($P$218:$P$326,$H166,T$218:T$326)+SUMIF($P$218:$P$326,$I166,T$218:T$326)+SUMIF($P$218:$P$326,$J166,T$218:T$326)+SUMIF($P$218:$P$326,$K166,T$218:T$326)+SUMIF($P$218:$P$326,$L166,T$218:T$326))*INDEX('Standard Inputs - SB 6362'!H$12:H$1048576,MATCH('Single School Forecast'!$N166,'Standard Inputs - SB 6362'!$D$12:$D$1048576,0))*INDEX('Standard Inputs - SB 6362'!H$12:H$1048576,MATCH('Single School Forecast'!$M166,'Standard Inputs - SB 6362'!$D$12:$D$1048576,0)) ->  | U166: =(SUMIF($P$218:$P$326,$H166,U$218:U$326)+SUMIF($P$218:$P$326,$I166,U$218:U$326)+SUMIF($P$218:$P$326,$J166,U$218:U$326)+SUMIF($P$218:$P$326,$K166,U$218:U$326)+SUMIF($P$218:$P$326,$L166,U$218:U$326))*INDEX('Standard Inputs - SB 6362'!I$12:I$1048576,MATCH('Single School Forecast'!$N166,'Standard Inputs - SB 6362'!$D$12:$D$1048576,0))*INDEX('Standard Inputs - SB 6362'!I$12:I$1048576,MATCH('Single School Forecast'!$M166,'Standard Inputs - SB 6362'!$D$12:$D$1048576,0)) -> 0 | V166: =(SUMIF($P$218:$P$326,$H166,V$218:V$326)+SUMIF($P$218:$P$326,$I166,V$218:V$326)+SUMIF($P$218:$P$326,$J166,V$218:V$326)+SUMIF($P$218:$P$326,$K166,V$218:V$326)+SUMIF($P$218:$P$326,$L166,V$218:V$326))*INDEX('Standard Inputs - SB 6362'!J$12:J$1048576,MATCH('Single School Forecast'!$N166,'Standard Inputs - SB 6362'!$D$12:$D$1048576,0))*INDEX('Standard Inputs - SB 6362'!J$12:J$1048576,MATCH('Single School Forecast'!$M166,'Standard Inputs - SB 6362'!$D$12:$D$1048576,0)) -> 64568.8045 | W166: =(SUMIF($P$218:$P$326,$H166,W$218:W$326)+SUMIF($P$218:$P$326,$I166,W$218:W$326)+SUMIF($P$218:$P$326,$J166,W$218:W$326)+SUMIF($P$218:$P$326,$K166,W$218:W$326)+SUMIF($P$218:$P$326,$L166,W$218:W$326))*INDEX('Standard Inputs - SB 6362'!K$12:K$1048576,MATCH('Single School Forecast'!$N166,'Standard Inputs - SB 6362'!$D$12:$D$1048576,0))*INDEX('Standard Inputs - SB 6362'!K$12:K$1048576,MATCH('Single School Forecast'!$M166,'Standard Inputs - SB 6362'!$D$12:$D$1048576,0)) -> 107379.3747 | X166: =(SUMIF($P$218:$P$326,$H166,X$218:X$326)+SUMIF($P$218:$P$326,$I166,X$218:X$326)+SUMIF($P$218:$P$326,$J166,X$218:X$326)+SUMIF($P$218:$P$326,$K166,X$218:X$326)+SUMIF($P$218:$P$326,$L166,X$218:X$326))*INDEX('Standard Inputs - SB 6362'!L$12:L$1048576,MATCH('Single School Forecast'!$N166,'Standard Inputs - SB 6362'!$D$12:$D$1048576,0))*INDEX('Standard Inputs - SB 6362'!L$12:L$1048576,MATCH('Single School Forecast'!$M166,'Standard Inputs - SB 6362'!$D$12:$D$1048576,0)) -> 143678.9416 | Y166: =(SUMIF($P$218:$P$326,$H166,Y$218:Y$326)+SUMIF($P$218:$P$326,$I166,Y$218:Y$326)+SUMIF($P$218:$P$326,$J166,Y$218:Y$326)+SUMIF($P$218:$P$326,$K166,Y$218:Y$326)+SUMIF($P$218:$P$326,$L166,Y$218:Y$326))*INDEX('Standard Inputs - SB 6362'!M$12:M$1048576,MATCH('Single School Forecast'!$N166,'Standard Inputs - SB 6362'!$D$12:$D$1048576,0))*INDEX('Standard Inputs - SB 6362'!M$12:M$1048576,MATCH('Single School Forecast'!$M166,'Standard Inputs - SB 6362'!$D$12:$D$1048576,0)) -> 171456.6497 | Z166: =(SUMIF($P$218:$P$326,$H166,Z$218:Z$326)+SUMIF($P$218:$P$326,$I166,Z$218:Z$326)+SUMIF($P$218:$P$326,$J166,Z$218:Z$326)+SUMIF($P$218:$P$326,$K166,Z$218:Z$326)+SUMIF($P$218:$P$326,$L166,Z$218:Z$326))*INDEX('Standard Inputs - SB 6362'!N$12:N$1048576,MATCH('Single School Forecast'!$N166,'Standard Inputs - SB 6362'!$D$12:$D$1048576,0))*INDEX('Standard Inputs - SB 6362'!N$12:N$1048576,MATCH('Single School Forecast'!$M166,'Standard Inputs - SB 6362'!$D$12:$D$1048576,0)) -> 312346.5074 | AA166: =(SUMIF($P$218:$P$326,$H166,AA$218:AA$326)+SUMIF($P$218:$P$326,$I166,AA$218:AA$326)+SUMIF($P$218:$P$326,$J166,AA$218:AA$326)+SUMIF($P$218:$P$326,$K166,AA$218:AA$326)+SUMIF($P$218:$P$326,$L166,AA$218:AA$326))*INDEX('Standard Inputs - SB 6362'!O$12:O$1048576,MATCH('Single School Forecast'!$N166,'Standard Inputs - SB 6362'!$D$12:$D$1048576,0))*INDEX('Standard Inputs - SB 6362'!O$12:O$1048576,MATCH('Single School Forecast'!$M166,'Standard Inputs - SB 6362'!$D$12:$D$1048576,0)) -> 322393.4173 | AB166: =(SUMIF($P$218:$P$326,$H166,AB$218:AB$326)+SUMIF($P$218:$P$326,$I166,AB$218:AB$326)+SUMIF($P$218:$P$326,$J166,AB$218:AB$326)+SUMIF($P$218:$P$326,$K166,AB$218:AB$326)+SUMIF($P$218:$P$326,$L166,AB$218:AB$326))*INDEX('Standard Inputs - SB 6362'!P$12:P$1048576,MATCH('Single School Forecast'!$N166,'Standard Inputs - SB 6362'!$D$12:$D$1048576,0))*INDEX('Standard Inputs - SB 6362'!P$12:P$1048576,MATCH('Single School Forecast'!$M166,'Standard Inputs - SB 6362'!$D$12:$D$1048576,0)) -> 332313.9865
I167: SS RN CIS | J167: SS RN CAS | K167: School CIS Staff Units | L167: School CAS Staff Units | M167: Central Admin CAS Staff Units | N167: Health Insurance | O167: Certificated Insurance | P167: Certificated Insurance and Benefits | R167: =(SUMIF($P$218:$P$326,$I167,R$218:R$326)+SUMIF($P$218:$P$326,$J167,R$218:R$326)+SUMIF($P$218:$P$326,$K167,R$218:R$326)+SUMIF($P$218:$P$326,$L167,R$218:R$326)+SUMIF($P$218:$P$326,$M167,R$218:R$326))*INDEX('Standard Inputs - SB 6362'!F$12:F$1048576,MATCH('Single School Forecast'!$N167,'Standard Inputs - SB 6362'!$D$12:$D$1048576,0)) -> 0 | S167: =(SUMIF($P$218:$P$326,$I167,S$218:S$326)+SUMIF($P$218:$P$326,$J167,S$218:S$326)+SUMIF($P$218:$P$326,$K167,S$218:S$326)+SUMIF($P$218:$P$326,$L167,S$218:S$326)+SUMIF($P$218:$P$326,$M167,S$218:S$326))*INDEX('Standard Inputs - SB 6362'!G$12:G$1048576,MATCH('Single School Forecast'!$N167,'Standard Inputs - SB 6362'!$D$12:$D$1048576,0)) -> 0 | T167: =(SUMIF($P$218:$P$326,$I167,T$218:T$326)+SUMIF($P$218:$P$326,$J167,T$218:T$326)+SUMIF($P$218:$P$326,$K167,T$218:T$326)+SUMIF($P$218:$P$326,$L167,T$218:T$326)+SUMIF($P$218:$P$326,$M167,T$218:T$326))*INDEX('Standard Inputs - SB 6362'!H$12:H$1048576,MATCH('Single School Forecast'!$N167,'Standard Inputs - SB 6362'!$D$12:$D$1048576,0)) ->  | U167: =(SUMIF($P$218:$P$326,$I167,U$218:U$326)+SUMIF($P$218:$P$326,$J167,U$218:U$326)+SUMIF($P$218:$P$326,$K167,U$218:U$326)+SUMIF($P$218:$P$326,$L167,U$218:U$326)+SUMIF($P$218:$P$326,$M167,U$218:U$326)+U289+U290+U291+U292)*INDEX('Standard Inputs - SB 6362'!I$12:I$1048576,MATCH('Single School Forecast'!$N167,'Standard Inputs - SB 6362'!$D$12:$D$1048576,0)) -> 0 | V167: =(SUMIF($P$218:$P$326,$I167,V$218:V$326)+SUMIF($P$218:$P$326,$J167,V$218:V$326)+SUMIF($P$218:$P$326,$K167,V$218:V$326)+SUMIF($P$218:$P$326,$L167,V$218:V$326)+SUMIF($P$218:$P$326,$M167,V$218:V$326)+V289+V290+V291+V292)*INDEX('Standard Inputs - SB 6362'!J$12:J$1048576,MATCH('Single School Forecast'!$N167,'Standard Inputs - SB 6362'!$D$12:$D$1048576,0)) -> 0 | W167: =(SUMIF($P$218:$P$326,$I167,W$218:W$326)+SUMIF($P$218:$P$326,$J167,W$218:W$326)+SUMIF($P$218:$P$326,$K167,W$218:W$326)+SUMIF($P$218:$P$326,$L167,W$218:W$326)+SUMIF($P$218:$P$326,$M167,W$218:W$326)+W289+W290+W291+W292)*INDEX('Standard Inputs - SB 6362'!K$12:K$1048576,MATCH('Single School Forecast'!$N167,'Standard Inputs - SB 6362'!$D$12:$D$1048576,0)) -> 0 | X167: =(SUMIF($P$218:$P$326,$I167,X$218:X$326)+SUMIF($P$218:$P$326,$J167,X$218:X$326)+SUMIF($P$218:$P$326,$K167,X$218:X$326)+SUMIF($P$218:$P$326,$L167,X$218:X$326)+SUMIF($P$218:$P$326,$M167,X$218:X$326)+X289+X290+X291+X292)*INDEX('Standard Inputs - SB 6362'!L$12:L$1048576,MATCH('Single School Forecast'!$N167,'Standard Inputs - SB 6362'!$D$12:$D$1048576,0)) -> 0 | Y167: =(SUMIF($P$218:$P$326,$I167,Y$218:Y$326)+SUMIF($P$218:$P$326,$J167,Y$218:Y$326)+SUMIF($P$218:$P$326,$K167,Y$218:Y$326)+SUMIF($P$218:$P$326,$L167,Y$218:Y$326)+SUMIF($P$218:$P$326,$M167,Y$218:Y$326)+Y289+Y290+Y291+Y292)*INDEX('Standard Inputs - SB 6362'!M$12:M$1048576,MATCH('Single School Forecast'!$N167,'Standard Inputs - SB 6362'!$D$12:$D$1048576,0)) -> 0 | Z167: =(SUMIF($P$218:$P$326,$I167,Z$218:Z$326)+SUMIF($P$218:$P$326,$J167,Z$218:Z$326)+SUMIF($P$218:$P$326,$K167,Z$218:Z$326)+SUMIF($P$218:$P$326,$L167,Z$218:Z$326)+SUMIF($P$218:$P$326,$M167,Z$218:Z$326)+Z289+Z290+Z291+Z292)*INDEX('Standard Inputs - SB 6362'!N$12:N$1048576,MATCH('Single School Forecast'!$N167,'Standard Inputs - SB 6362'!$D$12:$D$1048576,0)) -> 0 | AA167: =(SUMIF($P$218:$P$326,$I167,AA$218:AA$326)+SUMIF($P$218:$P$326,$J167,AA$218:AA$326)+SUMIF($P$218:$P$326,$K167,AA$218:AA$326)+SUMIF($P$218:$P$326,$L167,AA$218:AA$326)+SUMIF($P$218:$P$326,$M167,AA$218:AA$326)+AA289+AA290+AA291+AA292)*INDEX('Standard Inputs - SB 6362'!O$12:O$1048576,MATCH('Single School Forecast'!$N167,'Standard Inputs - SB 6362'!$D$12:$D$1048576,0)) -> 0 | AB167: =(SUMIF($P$218:$P$326,$I167,AB$218:AB$326)+SUMIF($P$218:$P$326,$J167,AB$218:AB$326)+SUMIF($P$218:$P$326,$K167,AB$218:AB$326)+SUMIF($P$218:$P$326,$L167,AB$218:AB$326)+SUMIF($P$218:$P$326,$M167,AB$218:AB$326)+AB289+AB290+AB291+AB292)*INDEX('Standard Inputs - SB 6362'!P$12:P$1048576,MATCH('Single School Forecast'!$N167,'Standard Inputs - SB 6362'!$D$12:$D$1048576,0)) -> 0
I168: SS RN CLS | J168: School CLS Staff Units | K168: District CLS Staff Units | L168: Central Admin CLS Staff Units | M168: SEBB Health Insurance | N168: CLS SEBB Multiplier | O168: Classified SEBB | P168: Classified SEBB | T168: =(SUMIF($P$218:$P$326,$I168,T$218:T$326)+SUMIF($P$218:$P$326,$J168,T$218:T$326)+SUMIF($P$218:$P$326,$K168,T$218:T$326)+SUMIF($P$218:$P$326,$L168,T$218:T$326))*INDEX('Standard Inputs - SB 6362'!H$12:H$1048576,MATCH('Single School Forecast'!$N168,'Standard Inputs - SB 6362'!$D$12:$D$1048576,0))*INDEX('Standard Inputs - SB 6362'!H$12:H$1048576,MATCH('Single School Forecast'!$M168,'Standard Inputs - SB 6362'!$D$12:$D$1048576,0)) ->  | U168: =(SUMIF($P$218:$P$326,$I168,U$218:U$326)+SUMIF($P$218:$P$326,$J168,U$218:U$326)+SUMIF($P$218:$P$326,$K168,U$218:U$326)+SUMIF($P$218:$P$326,$L168,U$218:U$326))*INDEX('Standard Inputs - SB 6362'!I$12:I$1048576,MATCH('Single School Forecast'!$N168,'Standard Inputs - SB 6362'!$D$12:$D$1048576,0))*INDEX('Standard Inputs - SB 6362'!I$12:I$1048576,MATCH('Single School Forecast'!$M168,'Standard Inputs - SB 6362'!$D$12:$D$1048576,0)) -> 0 | V168: =(SUMIF($P$218:$P$326,$I168,V$218:V$326)+SUMIF($P$218:$P$326,$J168,V$218:V$326)+SUMIF($P$218:$P$326,$K168,V$218:V$326)+SUMIF($P$218:$P$326,$L168,V$218:V$326))*INDEX('Standard Inputs - SB 6362'!J$12:J$1048576,MATCH('Single School Forecast'!$N168,'Standard Inputs - SB 6362'!$D$12:$D$1048576,0))*INDEX('Standard Inputs - SB 6362'!J$12:J$1048576,MATCH('Single School Forecast'!$M168,'Standard Inputs - SB 6362'!$D$12:$D$1048576,0)) -> 33095.26595 | W168: =(SUMIF($P$218:$P$326,$I168,W$218:W$326)+SUMIF($P$218:$P$326,$J168,W$218:W$326)+SUMIF($P$218:$P$326,$K168,W$218:W$326)+SUMIF($P$218:$P$326,$L168,W$218:W$326))*INDEX('Standard Inputs - SB 6362'!K$12:K$1048576,MATCH('Single School Forecast'!$N168,'Standard Inputs - SB 6362'!$D$12:$D$1048576,0))*INDEX('Standard Inputs - SB 6362'!K$12:K$1048576,MATCH('Single School Forecast'!$M168,'Standard Inputs - SB 6362'!$D$12:$D$1048576,0)) -> 48221.91705 | X168: =(SUMIF($P$218:$P$326,$I168,X$218:X$326)+SUMIF($P$218:$P$326,$J168,X$218:X$326)+SUMIF($P$218:$P$326,$K168,X$218:X$326)+SUMIF($P$218:$P$326,$L168,X$218:X$326))*INDEX('Standard Inputs - SB 6362'!L$12:L$1048576,MATCH('Single School Forecast'!$N168,'Standard Inputs - SB 6362'!$D$12:$D$1048576,0))*INDEX('Standard Inputs - SB 6362'!L$12:L$1048576,MATCH('Single School Forecast'!$M168,'Standard Inputs - SB 6362'!$D$12:$D$1048576,0)) -> 62259.09118 | Y168: =(SUMIF($P$218:$P$326,$I168,Y$218:Y$326)+SUMIF($P$218:$P$326,$J168,Y$218:Y$326)+SUMIF($P$218:$P$326,$K168,Y$218:Y$326)+SUMIF($P$218:$P$326,$L168,Y$218:Y$326))*INDEX('Standard Inputs - SB 6362'!M$12:M$1048576,MATCH('Single School Forecast'!$N168,'Standard Inputs - SB 6362'!$D$12:$D$1048576,0))*INDEX('Standard Inputs - SB 6362'!M$12:M$1048576,MATCH('Single School Forecast'!$M168,'Standard Inputs - SB 6362'!$D$12:$D$1048576,0)) -> 63292.60424 | Z168: =(SUMIF($P$218:$P$326,$I168,Z$218:Z$326)+SUMIF($P$218:$P$326,$J168,Z$218:Z$326)+SUMIF($P$218:$P$326,$K168,Z$218:Z$326)+SUMIF($P$218:$P$326,$L168,Z$218:Z$326))*INDEX('Standard Inputs - SB 6362'!N$12:N$1048576,MATCH('Single School Forecast'!$N168,'Standard Inputs - SB 6362'!$D$12:$D$1048576,0))*INDEX('Standard Inputs - SB 6362'!N$12:N$1048576,MATCH('Single School Forecast'!$M168,'Standard Inputs - SB 6362'!$D$12:$D$1048576,0)) -> 129046.7638 | AA168: =(SUMIF($P$218:$P$326,$I168,AA$218:AA$326)+SUMIF($P$218:$P$326,$J168,AA$218:AA$326)+SUMIF($P$218:$P$326,$K168,AA$218:AA$326)+SUMIF($P$218:$P$326,$L168,AA$218:AA$326))*INDEX('Standard Inputs - SB 6362'!O$12:O$1048576,MATCH('Single School Forecast'!$N168,'Standard Inputs - SB 6362'!$D$12:$D$1048576,0))*INDEX('Standard Inputs - SB 6362'!O$12:O$1048576,MATCH('Single School Forecast'!$M168,'Standard Inputs - SB 6362'!$D$12:$D$1048576,0)) -> 133769.7883 | AB168: =(SUMIF($P$218:$P$326,$I168,AB$218:AB$326)+SUMIF($P$218:$P$326,$J168,AB$218:AB$326)+SUMIF($P$218:$P$326,$K168,AB$218:AB$326)+SUMIF($P$218:$P$326,$L168,AB$218:AB$326))*INDEX('Standard Inputs - SB 6362'!P$12:P$1048576,MATCH('Single School Forecast'!$N168,'Standard Inputs - SB 6362'!$D$12:$D$1048576,0))*INDEX('Standard Inputs - SB 6362'!P$12:P$1048576,MATCH('Single School Forecast'!$M168,'Standard Inputs - SB 6362'!$D$12:$D$1048576,0)) -> 138388.3797
I169: SS RN CLS | J169: School CLS Staff Units | K169: District CLS Staff Units | L169: Central Admin CLS Staff Units | M169: Health Insurance | N169: CLS Health Factor | O169: Classified Insurance | P169: Classified Insurance and Benefits | R169: =(SUMIF($P$218:$P$326,$I169,R$218:R$326)+SUMIF($P$218:$P$326,$J169,R$218:R$326)+SUMIF($P$218:$P$326,$K169,R$218:R$326)+SUMIF($P$218:$P$326,$L169,R$218:R$326))*INDEX('Standard Inputs - SB 6362'!F$12:F$1048576,MATCH('Single School Forecast'!$M169,'Standard Inputs - SB 6362'!$D$12:$D$1048576,0))*INDEX('Standard Inputs - SB 6362'!F$12:F$1048576,MATCH('Single School Forecast'!$N169,'Standard Inputs - SB 6362'!$D$12:$D$1048576,0)) -> 0 | S169: =(SUMIF($P$218:$P$326,$I169,S$218:S$326)+SUMIF($P$218:$P$326,$J169,S$218:S$326)+SUMIF($P$218:$P$326,$K169,S$218:S$326)+SUMIF($P$218:$P$326,$L169,S$218:S$326))*INDEX('Standard Inputs - SB 6362'!G$12:G$1048576,MATCH('Single School Forecast'!$M169,'Standard Inputs - SB 6362'!$D$12:$D$1048576,0))*INDEX('Standard Inputs - SB 6362'!G$12:G$1048576,MATCH('Single School Forecast'!$N169,'Standard Inputs - SB 6362'!$D$12:$D$1048576,0)) -> 0 | T169: =(SUMIF($P$218:$P$326,$I169,T$218:T$326)+SUMIF($P$218:$P$326,$J169,T$218:T$326)+SUMIF($P$218:$P$326,$K169,T$218:T$326)+SUMIF($P$218:$P$326,$L169,T$218:T$326))*INDEX('Standard Inputs - SB 6362'!H$12:H$1048576,MATCH('Single School Forecast'!$M169,'Standard Inputs - SB 6362'!$D$12:$D$1048576,0))*INDEX('Standard Inputs - SB 6362'!H$12:H$1048576,MATCH('Single School Forecast'!$N169,'Standard Inputs - SB 6362'!$D$12:$D$1048576,0)) ->  | U169: =(SUMIF($P$218:$P$326,$I169,U$218:U$326)+SUMIF($P$218:$P$326,$J169,U$218:U$326)+SUMIF($P$218:$P$326,$K169,U$218:U$326)+SUMIF($P$218:$P$326,$L169,U$218:U$326))*INDEX('Standard Inputs - SB 6362'!I$12:I$1048576,MATCH('Single School Forecast'!$M169,'Standard Inputs - SB 6362'!$D$12:$D$1048576,0))*INDEX('Standard Inputs - SB 6362'!I$12:I$1048576,MATCH('Single School Forecast'!$N169,'Standard Inputs - SB 6362'!$D$12:$D$1048576,0)) -> 0 | V169: =(SUMIF($P$218:$P$326,$I169,V$218:V$326)+SUMIF($P$218:$P$326,$J169,V$218:V$326)+SUMIF($P$218:$P$326,$K169,V$218:V$326)+SUMIF($P$218:$P$326,$L169,V$218:V$326))*INDEX('Standard Inputs - SB 6362'!J$12:J$1048576,MATCH('Single School Forecast'!$M169,'Standard Inputs - SB 6362'!$D$12:$D$1048576,0))*INDEX('Standard Inputs - SB 6362'!J$12:J$1048576,MATCH('Single School Forecast'!$N169,'Standard Inputs - SB 6362'!$D$12:$D$1048576,0)) -> 0 | W169: =(SUMIF($P$218:$P$326,$I169,W$218:W$326)+SUMIF($P$218:$P$326,$J169,W$218:W$326)+SUMIF($P$218:$P$326,$K169,W$218:W$326)+SUMIF($P$218:$P$326,$L169,W$218:W$326))*INDEX('Standard Inputs - SB 6362'!K$12:K$1048576,MATCH('Single School Forecast'!$M169,'Standard Inputs - SB 6362'!$D$12:$D$1048576,0))*INDEX('Standard Inputs - SB 6362'!K$12:K$1048576,MATCH('Single School Forecast'!$N169,'Standard Inputs - SB 6362'!$D$12:$D$1048576,0)) -> 0 | X169: =(SUMIF($P$218:$P$326,$I169,X$218:X$326)+SUMIF($P$218:$P$326,$J169,X$218:X$326)+SUMIF($P$218:$P$326,$K169,X$218:X$326)+SUMIF($P$218:$P$326,$L169,X$218:X$326))*INDEX('Standard Inputs - SB 6362'!L$12:L$1048576,MATCH('Single School Forecast'!$M169,'Standard Inputs - SB 6362'!$D$12:$D$1048576,0))*INDEX('Standard Inputs - SB 6362'!L$12:L$1048576,MATCH('Single School Forecast'!$N169,'Standard Inputs - SB 6362'!$D$12:$D$1048576,0)) -> 0 | Y169: =(SUMIF($P$218:$P$326,$I169,Y$218:Y$326)+SUMIF($P$218:$P$326,$J169,Y$218:Y$326)+SUMIF($P$218:$P$326,$K169,Y$218:Y$326)+SUMIF($P$218:$P$326,$L169,Y$218:Y$326))*INDEX('Standard Inputs - SB 6362'!M$12:M$1048576,MATCH('Single School Forecast'!$M169,'Standard Inputs - SB 6362'!$D$12:$D$1048576,0))*INDEX('Standard Inputs - SB 6362'!M$12:M$1048576,MATCH('Single School Forecast'!$N169,'Standard Inputs - SB 6362'!$D$12:$D$1048576,0)) -> 0 | Z169: =(SUMIF($P$218:$P$326,$I169,Z$218:Z$326)+SUMIF($P$218:$P$326,$J169,Z$218:Z$326)+SUMIF($P$218:$P$326,$K169,Z$218:Z$326)+SUMIF($P$218:$P$326,$L169,Z$218:Z$326))*INDEX('Standard Inputs - SB 6362'!N$12:N$1048576,MATCH('Single School Forecast'!$M169,'Standard Inputs - SB 6362'!$D$12:$D$1048576,0))*INDEX('Standard Inputs - SB 6362'!N$12:N$1048576,MATCH('Single School Forecast'!$N169,'Standard Inputs - SB 6362'!$D$12:$D$1048576,0)) -> 0 | AA169: =(SUMIF($P$218:$P$326,$I169,AA$218:AA$326)+SUMIF($P$218:$P$326,$J169,AA$218:AA$326)+SUMIF($P$218:$P$326,$K169,AA$218:AA$326)+SUMIF($P$218:$P$326,$L169,AA$218:AA$326))*INDEX('Standard Inputs - SB 6362'!O$12:O$1048576,MATCH('Single School Forecast'!$M169,'Standard Inputs - SB 6362'!$D$12:$D$1048576,0))*INDEX('Standard Inputs - SB 6362'!O$12:O$1048576,MATCH('Single School Forecast'!$N169,'Standard Inputs - SB 6362'!$D$12:$D$1048576,0)) -> 0 | AB169: =(SUMIF($P$218:$P$326,$I169,AB$218:AB$326)+SUMIF($P$218:$P$326,$J169,AB$218:AB$326)+SUMIF($P$218:$P$326,$K169,AB$218:AB$326)+SUMIF($P$218:$P$326,$L169,AB$218:AB$326))*INDEX('Standard Inputs - SB 6362'!P$12:P$1048576,MATCH('Single School Forecast'!$M169,'Standard Inputs - SB 6362'!$D$12:$D$1048576,0))*INDEX('Standard Inputs - SB 6362'!P$12:P$1048576,MATCH('Single School Forecast'!$N169,'Standard Inputs - SB 6362'!$D$12:$D$1048576,0)) -> 0
L170: LAP Staff Units | M170: SEBB Health Insurance | N170: CIS/ CAS SEBB Multiplier | O170: LAP SEBB | P170: LAP SEBB | T170: =SUMIF($P$218:$P$326,$L170,T$218:T$326)*INDEX('Standard Inputs - SB 6362'!H$12:H$1048576,MATCH($N170,'Standard Inputs - SB 6362'!$D$12:$D$1048576,0))*INDEX('Standard Inputs - SB 6362'!H$12:H$1048576,MATCH($M170,'Standard Inputs - SB 6362'!$D$12:$D$1048576,0)) -> 0 | U170: =SUMIF($P$218:$P$326,$L170,U$218:U$326)*INDEX('Standard Inputs - SB 6362'!I$12:I$1048576,MATCH($N170,'Standard Inputs - SB 6362'!$D$12:$D$1048576,0))*INDEX('Standard Inputs - SB 6362'!I$12:I$1048576,MATCH($M170,'Standard Inputs - SB 6362'!$D$12:$D$1048576,0)) -> 0 | V170: =SUMIF($P$218:$P$326,$L170,V$218:V$326)*INDEX('Standard Inputs - SB 6362'!J$12:J$1048576,MATCH($N170,'Standard Inputs - SB 6362'!$D$12:$D$1048576,0))*INDEX('Standard Inputs - SB 6362'!J$12:J$1048576,MATCH($M170,'Standard Inputs - SB 6362'!$D$12:$D$1048576,0)) -> 1548.244398 | W170: =SUMIF($P$218:$P$326,$L170,W$218:W$326)*INDEX('Standard Inputs - SB 6362'!K$12:K$1048576,MATCH($N170,'Standard Inputs - SB 6362'!$D$12:$D$1048576,0))*INDEX('Standard Inputs - SB 6362'!K$12:K$1048576,MATCH($M170,'Standard Inputs - SB 6362'!$D$12:$D$1048576,0)) -> 1874.507619 | X170: =SUMIF($P$218:$P$326,$L170,X$218:X$326)*INDEX('Standard Inputs - SB 6362'!L$12:L$1048576,MATCH($N170,'Standard Inputs - SB 6362'!$D$12:$D$1048576,0))*INDEX('Standard Inputs - SB 6362'!L$12:L$1048576,MATCH($M170,'Standard Inputs - SB 6362'!$D$12:$D$1048576,0)) -> 2308.309164 | Y170: =SUMIF($P$218:$P$326,$L170,Y$218:Y$326)*INDEX('Standard Inputs - SB 6362'!M$12:M$1048576,MATCH($N170,'Standard Inputs - SB 6362'!$D$12:$D$1048576,0))*INDEX('Standard Inputs - SB 6362'!M$12:M$1048576,MATCH($M170,'Standard Inputs - SB 6362'!$D$12:$D$1048576,0)) -> 3211.560576 | Z170: =SUMIF($P$218:$P$326,$L170,Z$218:Z$326)*INDEX('Standard Inputs - SB 6362'!N$12:N$1048576,MATCH($N170,'Standard Inputs - SB 6362'!$D$12:$D$1048576,0))*INDEX('Standard Inputs - SB 6362'!N$12:N$1048576,MATCH($M170,'Standard Inputs - SB 6362'!$D$12:$D$1048576,0)) -> 4034.522974 | AA170: =SUMIF($P$218:$P$326,$L170,AA$218:AA$326)*INDEX('Standard Inputs - SB 6362'!O$12:O$1048576,MATCH($N170,'Standard Inputs - SB 6362'!$D$12:$D$1048576,0))*INDEX('Standard Inputs - SB 6362'!O$12:O$1048576,MATCH($M170,'Standard Inputs - SB 6362'!$D$12:$D$1048576,0)) -> 4757.124103 | AB170: =SUMIF($P$218:$P$326,$L170,AB$218:AB$326)*INDEX('Standard Inputs - SB 6362'!P$12:P$1048576,MATCH($N170,'Standard Inputs - SB 6362'!$D$12:$D$1048576,0))*INDEX('Standard Inputs - SB 6362'!P$12:P$1048576,MATCH($M170,'Standard Inputs - SB 6362'!$D$12:$D$1048576,0)) -> 5258.930443
L171: TBIP Staff Units | M171: SEBB Health Insurance | N171: CIS/ CAS SEBB Multiplier | O171: TBIP SEBB | P171: TBIP SEBB | T171: =SUMIF($P$218:$P$326,$L171,T$218:T$326)*INDEX('Standard Inputs - SB 6362'!H$12:H$1048576,MATCH($N171,'Standard Inputs - SB 6362'!$D$12:$D$1048576,0))*INDEX('Standard Inputs - SB 6362'!H$12:H$1048576,MATCH($M171,'Standard Inputs - SB 6362'!$D$12:$D$1048576,0)) -> 0 | U171: =SUMIF($P$218:$P$326,$L171,U$218:U$326)*INDEX('Standard Inputs - SB 6362'!I$12:I$1048576,MATCH($N171,'Standard Inputs - SB 6362'!$D$12:$D$1048576,0))*INDEX('Standard Inputs - SB 6362'!I$12:I$1048576,MATCH($M171,'Standard Inputs - SB 6362'!$D$12:$D$1048576,0)) -> 0 | V171: =SUMIF($P$218:$P$326,$L171,V$218:V$326)*INDEX('Standard Inputs - SB 6362'!J$12:J$1048576,MATCH($N171,'Standard Inputs - SB 6362'!$D$12:$D$1048576,0))*INDEX('Standard Inputs - SB 6362'!J$12:J$1048576,MATCH($M171,'Standard Inputs - SB 6362'!$D$12:$D$1048576,0)) -> 513.2755415 | W171: =SUMIF($P$218:$P$326,$L171,W$218:W$326)*INDEX('Standard Inputs - SB 6362'!K$12:K$1048576,MATCH($N171,'Standard Inputs - SB 6362'!$D$12:$D$1048576,0))*INDEX('Standard Inputs - SB 6362'!K$12:K$1048576,MATCH($M171,'Standard Inputs - SB 6362'!$D$12:$D$1048576,0)) -> 920.050151 | X171: =SUMIF($P$218:$P$326,$L171,X$218:X$326)*INDEX('Standard Inputs - SB 6362'!L$12:L$1048576,MATCH($N171,'Standard Inputs - SB 6362'!$D$12:$D$1048576,0))*INDEX('Standard Inputs - SB 6362'!L$12:L$1048576,MATCH($M171,'Standard Inputs - SB 6362'!$D$12:$D$1048576,0)) -> 1200.065414 | Y171: =SUMIF($P$218:$P$326,$L171,Y$218:Y$326)*INDEX('Standard Inputs - SB 6362'!M$12:M$1048576,MATCH($N171,'Standard Inputs - SB 6362'!$D$12:$D$1048576,0))*INDEX('Standard Inputs - SB 6362'!M$12:M$1048576,MATCH($M171,'Standard Inputs - SB 6362'!$D$12:$D$1048576,0)) -> 1365.23962 | Z171: =SUMIF($P$218:$P$326,$L171,Z$218:Z$326)*INDEX('Standard Inputs - SB 6362'!N$12:N$1048576,MATCH($N171,'Standard Inputs - SB 6362'!$D$12:$D$1048576,0))*INDEX('Standard Inputs - SB 6362'!N$12:N$1048576,MATCH($M171,'Standard Inputs - SB 6362'!$D$12:$D$1048576,0)) -> 1475.920074 | AA171: =SUMIF($P$218:$P$326,$L171,AA$218:AA$326)*INDEX('Standard Inputs - SB 6362'!O$12:O$1048576,MATCH($N171,'Standard Inputs - SB 6362'!$D$12:$D$1048576,0))*INDEX('Standard Inputs - SB 6362'!O$12:O$1048576,MATCH($M171,'Standard Inputs - SB 6362'!$D$12:$D$1048576,0)) -> 1504.407922 | AB171: =SUMIF($P$218:$P$326,$L171,AB$218:AB$326)*INDEX('Standard Inputs - SB 6362'!P$12:P$1048576,MATCH($N171,'Standard Inputs - SB 6362'!$D$12:$D$1048576,0))*INDEX('Standard Inputs - SB 6362'!P$12:P$1048576,MATCH($M171,'Standard Inputs - SB 6362'!$D$12:$D$1048576,0)) -> 1509.273175
L172: HiCap Staff Units | M172: SEBB Health Insurance | N172: CIS/ CAS SEBB Multiplier | O172: HiCap SEBB | P172: HiCap SEBB | T172: =SUMIF($P$218:$P$326,$L172,T$218:T$326)*INDEX('Standard Inputs - SB 6362'!H$12:H$1048576,MATCH($N172,'Standard Inputs - SB 6362'!$D$12:$D$1048576,0))*INDEX('Standard Inputs - SB 6362'!H$12:H$1048576,MATCH($M172,'Standard Inputs - SB 6362'!$D$12:$D$1048576,0)) -> 0 | U172: =SUMIF($P$218:$P$326,$L172,U$218:U$326)*INDEX('Standard Inputs - SB 6362'!I$12:I$1048576,MATCH($N172,'Standard Inputs - SB 6362'!$D$12:$D$1048576,0))*INDEX('Standard Inputs - SB 6362'!I$12:I$1048576,MATCH($M172,'Standard Inputs - SB 6362'!$D$12:$D$1048576,0)) -> 0 | V172: =SUMIF($P$218:$P$326,$L172,V$218:V$326)*INDEX('Standard Inputs - SB 6362'!J$12:J$1048576,MATCH($N172,'Standard Inputs - SB 6362'!$D$12:$D$1048576,0))*INDEX('Standard Inputs - SB 6362'!J$12:J$1048576,MATCH($M172,'Standard Inputs - SB 6362'!$D$12:$D$1048576,0)) -> 252.3944924 | W172: =SUMIF($P$218:$P$326,$L172,W$218:W$326)*INDEX('Standard Inputs - SB 6362'!K$12:K$1048576,MATCH($N172,'Standard Inputs - SB 6362'!$D$12:$D$1048576,0))*INDEX('Standard Inputs - SB 6362'!K$12:K$1048576,MATCH($M172,'Standard Inputs - SB 6362'!$D$12:$D$1048576,0)) -> 415.7363491 | X172: =SUMIF($P$218:$P$326,$L172,X$218:X$326)*INDEX('Standard Inputs - SB 6362'!L$12:L$1048576,MATCH($N172,'Standard Inputs - SB 6362'!$D$12:$D$1048576,0))*INDEX('Standard Inputs - SB 6362'!L$12:L$1048576,MATCH($M172,'Standard Inputs - SB 6362'!$D$12:$D$1048576,0)) -> 578.4157901 | Y172: =SUMIF($P$218:$P$326,$L172,Y$218:Y$326)*INDEX('Standard Inputs - SB 6362'!M$12:M$1048576,MATCH($N172,'Standard Inputs - SB 6362'!$D$12:$D$1048576,0))*INDEX('Standard Inputs - SB 6362'!M$12:M$1048576,MATCH($M172,'Standard Inputs - SB 6362'!$D$12:$D$1048576,0)) -> 726.6348363 | Z172: =SUMIF($P$218:$P$326,$L172,Z$218:Z$326)*INDEX('Standard Inputs - SB 6362'!N$12:N$1048576,MATCH($N172,'Standard Inputs - SB 6362'!$D$12:$D$1048576,0))*INDEX('Standard Inputs - SB 6362'!N$12:N$1048576,MATCH($M172,'Standard Inputs - SB 6362'!$D$12:$D$1048576,0)) -> 856.7783891 | AA172: =SUMIF($P$218:$P$326,$L172,AA$218:AA$326)*INDEX('Standard Inputs - SB 6362'!O$12:O$1048576,MATCH($N172,'Standard Inputs - SB 6362'!$D$12:$D$1048576,0))*INDEX('Standard Inputs - SB 6362'!O$12:O$1048576,MATCH($M172,'Standard Inputs - SB 6362'!$D$12:$D$1048576,0)) -> 947.1558563 | AB172: =SUMIF($P$218:$P$326,$L172,AB$218:AB$326)*INDEX('Standard Inputs - SB 6362'!P$12:P$1048576,MATCH($N172,'Standard Inputs - SB 6362'!$D$12:$D$1048576,0))*INDEX('Standard Inputs - SB 6362'!P$12:P$1048576,MATCH($M172,'Standard Inputs - SB 6362'!$D$12:$D$1048576,0)) -> 976.0766458
L173: LAP High Pov Staff Units | M173: SEBB Health Insurance | N173: CIS/ CAS SEBB Multiplier | O173: LAP High Poverty SEBB | P173: LAP SEBB | T173: =SUMIF($P$218:$P$326,$L173,T$218:T$326)*INDEX('Standard Inputs - SB 6362'!H$12:H$1048576,MATCH($N173,'Standard Inputs - SB 6362'!$D$12:$D$1048576,0))*INDEX('Standard Inputs - SB 6362'!H$12:H$1048576,MATCH($M173,'Standard Inputs - SB 6362'!$D$12:$D$1048576,0)) -> 0 | U173: =SUMIF($P$218:$P$326,$L173,U$218:U$326)*INDEX('Standard Inputs - SB 6362'!I$12:I$1048576,MATCH($N173,'Standard Inputs - SB 6362'!$D$12:$D$1048576,0))*INDEX('Standard Inputs - SB 6362'!I$12:I$1048576,MATCH($M173,'Standard Inputs - SB 6362'!$D$12:$D$1048576,0)) -> 0 | V173: =SUMIF($P$218:$P$326,$L173,V$218:V$326)*INDEX('Standard Inputs - SB 6362'!J$12:J$1048576,MATCH($N173,'Standard Inputs - SB 6362'!$D$12:$D$1048576,0))*INDEX('Standard Inputs - SB 6362'!J$12:J$1048576,MATCH($M173,'Standard Inputs - SB 6362'!$D$12:$D$1048576,0)) -> 0 | W173: =SUMIF($P$218:$P$326,$L173,W$218:W$326)*INDEX('Standard Inputs - SB 6362'!K$12:K$1048576,MATCH($N173,'Standard Inputs - SB 6362'!$D$12:$D$1048576,0))*INDEX('Standard Inputs - SB 6362'!K$12:K$1048576,MATCH($M173,'Standard Inputs - SB 6362'!$D$12:$D$1048576,0)) -> 0 | X173: =SUMIF($P$218:$P$326,$L173,X$218:X$326)*INDEX('Standard Inputs - SB 6362'!L$12:L$1048576,MATCH($N173,'Standard Inputs - SB 6362'!$D$12:$D$1048576,0))*INDEX('Standard Inputs - SB 6362'!L$12:L$1048576,MATCH($M173,'Standard Inputs - SB 6362'!$D$12:$D$1048576,0)) -> 0 | Y173: =SUMIF($P$218:$P$326,$L173,Y$218:Y$326)*INDEX('Standard Inputs - SB 6362'!M$12:M$1048576,MATCH($N173,'Standard Inputs - SB 6362'!$D$12:$D$1048576,0))*INDEX('Standard Inputs - SB 6362'!M$12:M$1048576,MATCH($M173,'Standard Inputs - SB 6362'!$D$12:$D$1048576,0)) -> 0 | Z173: =SUMIF($P$218:$P$326,$L173,Z$218:Z$326)*INDEX('Standard Inputs - SB 6362'!N$12:N$1048576,MATCH($N173,'Standard Inputs - SB 6362'!$D$12:$D$1048576,0))*INDEX('Standard Inputs - SB 6362'!N$12:N$1048576,MATCH($M173,'Standard Inputs - SB 6362'!$D$12:$D$1048576,0)) -> 0 | AA173: =SUMIF($P$218:$P$326,$L173,AA$218:AA$326)*INDEX('Standard Inputs - SB 6362'!O$12:O$1048576,MATCH($N173,'Standard Inputs - SB 6362'!$D$12:$D$1048576,0))*INDEX('Standard Inputs - SB 6362'!O$12:O$1048576,MATCH($M173,'Standard Inputs - SB 6362'!$D$12:$D$1048576,0)) -> 0 | AB173: =SUMIF($P$218:$P$326,$L173,AB$218:AB$326)*INDEX('Standard Inputs - SB 6362'!P$12:P$1048576,MATCH($N173,'Standard Inputs - SB 6362'!$D$12:$D$1048576,0))*INDEX('Standard Inputs - SB 6362'!P$12:P$1048576,MATCH($M173,'Standard Inputs - SB 6362'!$D$12:$D$1048576,0)) -> 0
M174: LAP Staff Units | N174: Health Insurance | O174: LAP Insurance | P174: LAP Insurance and Benefits | R174: =SUMIF($P$218:$P$326,$M174,R$218:R$326)*INDEX('Standard Inputs - SB 6362'!F$12:F$1048576,MATCH($N174,'Standard Inputs - SB 6362'!$D$12:$D$1048576,0)) -> 0 | S174: =SUMIF($P$218:$P$326,$M174,S$218:S$326)*INDEX('Standard Inputs - SB 6362'!G$12:G$1048576,MATCH($N174,'Standard Inputs - SB 6362'!$D$12:$D$1048576,0)) -> 0 | T174: =SUMIF($P$218:$P$326,$M174,T$218:T$326)*INDEX('Standard Inputs - SB 6362'!H$12:H$1048576,MATCH($N174,'Standard Inputs - SB 6362'!$D$12:$D$1048576,0)) -> 0 | U174: =SUMIF($P$218:$P$326,$M174,U$218:U$326)*INDEX('Standard Inputs - SB 6362'!I$12:I$1048576,MATCH($N174,'Standard Inputs - SB 6362'!$D$12:$D$1048576,0)) -> 0 | V174: =SUMIF($P$218:$P$326,$M174,V$218:V$326)*INDEX('Standard Inputs - SB 6362'!J$12:J$1048576,MATCH($N174,'Standard Inputs - SB 6362'!$D$12:$D$1048576,0)) -> 0 | W174: =SUMIF($P$218:$P$326,$M174,W$218:W$326)*INDEX('Standard Inputs - SB 6362'!K$12:K$1048576,MATCH($N174,'Standard Inputs - SB 6362'!$D$12:$D$1048576,0)) -> 0 | X174: =SUMIF($P$218:$P$326,$M174,X$218:X$326)*INDEX('Standard Inputs - SB 6362'!L$12:L$1048576,MATCH($N174,'Standard Inputs - SB 6362'!$D$12:$D$1048576,0)) -> 0 | Y174: =SUMIF($P$218:$P$326,$M174,Y$218:Y$326)*INDEX('Standard Inputs - SB 6362'!M$12:M$1048576,MATCH($N174,'Standard Inputs - SB 6362'!$D$12:$D$1048576,0)) -> 0 | Z174: =SUMIF($P$218:$P$326,$M174,Z$218:Z$326)*INDEX('Standard Inputs - SB 6362'!N$12:N$1048576,MATCH($N174,'Standard Inputs - SB 6362'!$D$12:$D$1048576,0)) -> 0 | AA174: =SUMIF($P$218:$P$326,$M174,AA$218:AA$326)*INDEX('Standard Inputs - SB 6362'!O$12:O$1048576,MATCH($N174,'Standard Inputs - SB 6362'!$D$12:$D$1048576,0)) -> 0 | AB174: =SUMIF($P$218:$P$326,$M174,AB$218:AB$326)*INDEX('Standard Inputs - SB 6362'!P$12:P$1048576,MATCH($N174,'Standard Inputs - SB 6362'!$D$12:$D$1048576,0)) -> 0
M175: TBIP Staff Units | N175: Health Insurance | O175: TBIP Insurance | P175: TBIP Insurance and Benefits | R175: =SUMIF($P$218:$P$326,$M175,R$218:R$326)*INDEX('Standard Inputs - SB 6362'!F$12:F$1048576,MATCH($N175,'Standard Inputs - SB 6362'!$D$12:$D$1048576,0)) -> 0 | S175: =SUMIF($P$218:$P$326,$M175,S$218:S$326)*INDEX('Standard Inputs - SB 6362'!G$12:G$1048576,MATCH($N175,'Standard Inputs - SB 6362'!$D$12:$D$1048576,0)) -> 7667.298656 | T175: =SUMIF($P$218:$P$326,$M175,T$218:T$326)*INDEX('Standard Inputs - SB 6362'!H$12:H$1048576,MATCH($N175,'Standard Inputs - SB 6362'!$D$12:$D$1048576,0)) -> 0 | U175: =SUMIF($P$218:$P$326,$M175,U$218:U$326)*INDEX('Standard Inputs - SB 6362'!I$12:I$1048576,MATCH($N175,'Standard Inputs - SB 6362'!$D$12:$D$1048576,0)) -> 0 | V175: =SUMIF($P$218:$P$326,$M175,V$218:V$326)*INDEX('Standard Inputs - SB 6362'!J$12:J$1048576,MATCH($N175,'Standard Inputs - SB 6362'!$D$12:$D$1048576,0)) -> 0 | W175: =SUMIF($P$218:$P$326,$M175,W$218:W$326)*INDEX('Standard Inputs - SB 6362'!K$12:K$1048576,MATCH($N175,'Standard Inputs - SB 6362'!$D$12:$D$1048576,0)) -> 0 | X175: =SUMIF($P$218:$P$326,$M175,X$218:X$326)*INDEX('Standard Inputs - SB 6362'!L$12:L$1048576,MATCH($N175,'Standard Inputs - SB 6362'!$D$12:$D$1048576,0)) -> 0 | Y175: =SUMIF($P$218:$P$326,$M175,Y$218:Y$326)*INDEX('Standard Inputs - SB 6362'!M$12:M$1048576,MATCH($N175,'Standard Inputs - SB 6362'!$D$12:$D$1048576,0)) -> 0 | Z175: =SUMIF($P$218:$P$326,$M175,Z$218:Z$326)*INDEX('Standard Inputs - SB 6362'!N$12:N$1048576,MATCH($N175,'Standard Inputs - SB 6362'!$D$12:$D$1048576,0)) -> 0 | AA175: =SUMIF($P$218:$P$326,$M175,AA$218:AA$326)*INDEX('Standard Inputs - SB 6362'!O$12:O$1048576,MATCH($N175,'Standard Inputs - SB 6362'!$D$12:$D$1048576,0)) -> 0 | AB175: =SUMIF($P$218:$P$326,$M175,AB$218:AB$326)*INDEX('Standard Inputs - SB 6362'!P$12:P$1048576,MATCH($N175,'Standard Inputs - SB 6362'!$D$12:$D$1048576,0)) -> 0
M176: HiCap Staff Units | N176: Health Insurance | O176: HiCap Insurance | P176: HiCap Insurance and Benefits | R176: =SUMIF($P$218:$P$326,$M176,R$218:R$326)*INDEX('Standard Inputs - SB 6362'!F$12:F$1048576,MATCH($N176,'Standard Inputs - SB 6362'!$D$12:$D$1048576,0)) -> 0 | S176: =SUMIF($P$218:$P$326,$M176,S$218:S$326)*INDEX('Standard Inputs - SB 6362'!G$12:G$1048576,MATCH($N176,'Standard Inputs - SB 6362'!$D$12:$D$1048576,0)) -> 0 | T176: =SUMIF($P$218:$P$326,$M176,T$218:T$326)*INDEX('Standard Inputs - SB 6362'!H$12:H$1048576,MATCH($N176,'Standard Inputs - SB 6362'!$D$12:$D$1048576,0)) -> 0 | U176: =SUMIF($P$218:$P$326,$M176,U$218:U$326)*INDEX('Standard Inputs - SB 6362'!I$12:I$1048576,MATCH($N176,'Standard Inputs - SB 6362'!$D$12:$D$1048576,0)) -> 0 | V176: =SUMIF($P$218:$P$326,$M176,V$218:V$326)*INDEX('Standard Inputs - SB 6362'!J$12:J$1048576,MATCH($N176,'Standard Inputs - SB 6362'!$D$12:$D$1048576,0)) -> 0 | W176: =SUMIF($P$218:$P$326,$M176,W$218:W$326)*INDEX('Standard Inputs - SB 6362'!K$12:K$1048576,MATCH($N176,'Standard Inputs - SB 6362'!$D$12:$D$1048576,0)) -> 0 | X176: =SUMIF($P$218:$P$326,$M176,X$218:X$326)*INDEX('Standard Inputs - SB 6362'!L$12:L$1048576,MATCH($N176,'Standard Inputs - SB 6362'!$D$12:$D$1048576,0)) -> 0 | Y176: =SUMIF($P$218:$P$326,$M176,Y$218:Y$326)*INDEX('Standard Inputs - SB 6362'!M$12:M$1048576,MATCH($N176,'Standard Inputs - SB 6362'!$D$12:$D$1048576,0)) -> 0 | Z176: =SUMIF($P$218:$P$326,$M176,Z$218:Z$326)*INDEX('Standard Inputs - SB 6362'!N$12:N$1048576,MATCH($N176,'Standard Inputs - SB 6362'!$D$12:$D$1048576,0)) -> 0 | AA176: =SUMIF($P$218:$P$326,$M176,AA$218:AA$326)*INDEX('Standard Inputs - SB 6362'!O$12:O$1048576,MATCH($N176,'Standard Inputs - SB 6362'!$D$12:$D$1048576,0)) -> 0 | AB176: =SUMIF($P$218:$P$326,$M176,AB$218:AB$326)*INDEX('Standard Inputs - SB 6362'!P$12:P$1048576,MATCH($N176,'Standard Inputs - SB 6362'!$D$12:$D$1048576,0)) -> 0
M177: LAP High Pov Staff Units | N177: Health Insurance | O177: LAP High Poverty Insurance | P177: LAP Insurance and Benefits | R177: =SUMIF($P$218:$P$326,$M177,R$218:R$326)*INDEX('Standard Inputs - SB 6362'!F$12:F$1048576,MATCH($N177,'Standard Inputs - SB 6362'!$D$12:$D$1048576,0)) -> 0 | S177: =SUMIF($P$218:$P$326,$M177,S$218:S$326)*INDEX('Standard Inputs - SB 6362'!G$12:G$1048576,MATCH($N177,'Standard Inputs - SB 6362'!$D$12:$D$1048576,0)) -> 0 | T177: =SUMIF($P$218:$P$326,$M177,T$218:T$326)*INDEX('Standard Inputs - SB 6362'!H$12:H$1048576,MATCH($N177,'Standard Inputs - SB 6362'!$D$12:$D$1048576,0)) -> 0 | U177: =SUMIF($P$218:$P$326,$M177,U$218:U$326)*INDEX('Standard Inputs - SB 6362'!I$12:I$1048576,MATCH($N177,'Standard Inputs - SB 6362'!$D$12:$D$1048576,0)) -> 0 | V177: =SUMIF($P$218:$P$326,$M177,V$218:V$326)*INDEX('Standard Inputs - SB 6362'!J$12:J$1048576,MATCH($N177,'Standard Inputs - SB 6362'!$D$12:$D$1048576,0)) -> 0 | W177: =SUMIF($P$218:$P$326,$M177,W$218:W$326)*INDEX('Standard Inputs - SB 6362'!K$12:K$1048576,MATCH($N177,'Standard Inputs - SB 6362'!$D$12:$D$1048576,0)) -> 0 | X177: =SUMIF($P$218:$P$326,$M177,X$218:X$326)*INDEX('Standard Inputs - SB 6362'!L$12:L$1048576,MATCH($N177,'Standard Inputs - SB 6362'!$D$12:$D$1048576,0)) -> 0 | Y177: =SUMIF($P$218:$P$326,$M177,Y$218:Y$326)*INDEX('Standard Inputs - SB 6362'!M$12:M$1048576,MATCH($N177,'Standard Inputs - SB 6362'!$D$12:$D$1048576,0)) -> 0 | Z177: =SUMIF($P$218:$P$326,$M177,Z$218:Z$326)*INDEX('Standard Inputs - SB 6362'!N$12:N$1048576,MATCH($N177,'Standard Inputs - SB 6362'!$D$12:$D$1048576,0)) -> 0 | AA177: =SUMIF($P$218:$P$326,$M177,AA$218:AA$326)*INDEX('Standard Inputs - SB 6362'!O$12:O$1048576,MATCH($N177,'Standard Inputs - SB 6362'!$D$12:$D$1048576,0)) -> 0 | AB177: =SUMIF($P$218:$P$326,$M177,AB$218:AB$326)*INDEX('Standard Inputs - SB 6362'!P$12:P$1048576,MATCH($N177,'Standard Inputs - SB 6362'!$D$12:$D$1048576,0)) -> 0
K178: CIS K-12 Average SpEd | L178: CAS K-12 Average SpEd | M178: SEBB Health Insurance | N178: CIS/ CAS SEBB Multiplier | O178: Certificated Insurance SpEd SEBB | P178: SpEd Insurance and Benefits | T178: =(SUMIF($P$218:$P$326,$K178,T$218:T$326)+SUMIF($P$218:$P$326,$L178,T$218:T$326))*INDEX('Standard Inputs - SB 6362'!H$12:H$1048576,MATCH('Single School Forecast'!$N178,'Standard Inputs - SB 6362'!$D$12:$D$1048576,0))*INDEX('Standard Inputs - SB 6362'!H$12:H$1048576,MATCH('Single School Forecast'!$M178,'Standard Inputs - SB 6362'!$D$12:$D$1048576,0)) -> 0 | U178: =(SUMIF($P$218:$P$326,$K178,U$218:U$326)+SUMIF($P$218:$P$326,$L178,U$218:U$326))*INDEX('Standard Inputs - SB 6362'!I$12:I$1048576,MATCH('Single School Forecast'!$N178,'Standard Inputs - SB 6362'!$D$12:$D$1048576,0))*INDEX('Standard Inputs - SB 6362'!I$12:I$1048576,MATCH('Single School Forecast'!$M178,'Standard Inputs - SB 6362'!$D$12:$D$1048576,0)) -> 0 | V178: =(SUMIF($P$218:$P$326,$K178,V$218:V$326)+SUMIF($P$218:$P$326,$L178,V$218:V$326))*INDEX('Standard Inputs - SB 6362'!J$12:J$1048576,MATCH('Single School Forecast'!$N178,'Standard Inputs - SB 6362'!$D$12:$D$1048576,0))*INDEX('Standard Inputs - SB 6362'!J$12:J$1048576,MATCH('Single School Forecast'!$M178,'Standard Inputs - SB 6362'!$D$12:$D$1048576,0)) -> 792.4840096 | W178: =(SUMIF($P$218:$P$326,$K178,W$218:W$326)+SUMIF($P$218:$P$326,$L178,W$218:W$326))*INDEX('Standard Inputs - SB 6362'!K$12:K$1048576,MATCH('Single School Forecast'!$N178,'Standard Inputs - SB 6362'!$D$12:$D$1048576,0))*INDEX('Standard Inputs - SB 6362'!K$12:K$1048576,MATCH('Single School Forecast'!$M178,'Standard Inputs - SB 6362'!$D$12:$D$1048576,0)) -> 864.5480083 | X178: =(SUMIF($P$218:$P$326,$K178,X$218:X$326)+SUMIF($P$218:$P$326,$L178,X$218:X$326))*INDEX('Standard Inputs - SB 6362'!L$12:L$1048576,MATCH('Single School Forecast'!$N178,'Standard Inputs - SB 6362'!$D$12:$D$1048576,0))*INDEX('Standard Inputs - SB 6362'!L$12:L$1048576,MATCH('Single School Forecast'!$M178,'Standard Inputs - SB 6362'!$D$12:$D$1048576,0)) -> 844.277289 | Y178: =(SUMIF($P$218:$P$326,$K178,Y$218:Y$326)+SUMIF($P$218:$P$326,$L178,Y$218:Y$326))*INDEX('Standard Inputs - SB 6362'!M$12:M$1048576,MATCH('Single School Forecast'!$N178,'Standard Inputs - SB 6362'!$D$12:$D$1048576,0))*INDEX('Standard Inputs - SB 6362'!M$12:M$1048576,MATCH('Single School Forecast'!$M178,'Standard Inputs - SB 6362'!$D$12:$D$1048576,0)) -> 838.5647925 | Z178: =(SUMIF($P$218:$P$326,$K178,Z$218:Z$326)+SUMIF($P$218:$P$326,$L178,Z$218:Z$326))*INDEX('Standard Inputs - SB 6362'!N$12:N$1048576,MATCH('Single School Forecast'!$N178,'Standard Inputs - SB 6362'!$D$12:$D$1048576,0))*INDEX('Standard Inputs - SB 6362'!N$12:N$1048576,MATCH('Single School Forecast'!$M178,'Standard Inputs - SB 6362'!$D$12:$D$1048576,0)) -> 819.721047 | AA178: =(SUMIF($P$218:$P$326,$K178,AA$218:AA$326)+SUMIF($P$218:$P$326,$L178,AA$218:AA$326))*INDEX('Standard Inputs - SB 6362'!O$12:O$1048576,MATCH('Single School Forecast'!$N178,'Standard Inputs - SB 6362'!$D$12:$D$1048576,0))*INDEX('Standard Inputs - SB 6362'!O$12:O$1048576,MATCH('Single School Forecast'!$M178,'Standard Inputs - SB 6362'!$D$12:$D$1048576,0)) -> 801.3326666 | AB178: =(SUMIF($P$218:$P$326,$K178,AB$218:AB$326)+SUMIF($P$218:$P$326,$L178,AB$218:AB$326))*INDEX('Standard Inputs - SB 6362'!P$12:P$1048576,MATCH('Single School Forecast'!$N178,'Standard Inputs - SB 6362'!$D$12:$D$1048576,0))*INDEX('Standard Inputs - SB 6362'!P$12:P$1048576,MATCH('Single School Forecast'!$M178,'Standard Inputs - SB 6362'!$D$12:$D$1048576,0)) -> 796.6637686
